Workbook

Sheet Table of Contents
B2: Town of Amherst Community Greenhouse Gas Inventory Workbook | L2: Prepared by: Taylor Briglio
L3: Using C40 Cities GPC inventory template
B4: Table of Contents
B6: Section A: Base Year Inventory and Baseline Forecasts
B8: Basic Data Entry
B9: 1 | C9: City Information Entry
B11: Summary Inventory Graphs
B12: 2 | C12: Emissions Inventory and Forecast Graphs - Business as Usual (BAU)
B13: 3 | C13: Emissions Inventory and Forecast Graphs - Adjusted Business as Usual (ABAU)
B15: Current Year Emissions Inventory - FY 2016
B16: =B13+1 -> 4 | C16: Base Year Emissions Inventory - Summary
B17: =B16+1 -> 5 | C17: Base Year Emissions Inventory - Overview
B18: 6 | C18: I. Stationary Energy Emissions
B19: 7 | C19: II. Transportation Emissions
B20: 8 | C20: III. Waste Emissions
B21: 9 | C21: IV. Industrial Processes and Product Use Emissions
B22: 10 | C22: V. Agriculture, Forestry, and Other Land Use Emissions
B23: 11 | C23: VI. Other Scope 3 Emissions
B24: 12 | C24: Activity Data
B25: 13 | C25: Residential Heating Oil Activity Model - Base Year Only
B26: 14 | C26: Water Energy Activity Model - Base Year Only
B27: 15 | C27: Wastewater Energy Activity Model - Base Year Only
B28: 16 | C28: Rail Transit Energy Activity Model - Base Year Only
B29: 17 | C29: MBTA Bus Fuel Activity Model - Base Year Only
B31: Emissions Forecast - FY 2025
B32: =B29+1 -> 18 | C32: Emissions Forecast - Summary
B33: =B32+1 -> 19 | C33: Emissions Forecast - Summary (ABAU)
B34: 20 | C34: Emissions Forecast - Overview
B35: 21 | C35: Emissions Forecast - Overview (ABAU)
B36: 22 | C36: I. Stationary Energy Emissions
B37: 23 | C37: I. Stationary Energy Emissions (ABAU)
B38: 24 | C38: II. Transportation Emissions
B39: 25 | C39: II. Transportation Emissions (ABAU)
B40: 26 | C40: III. Waste Emissions
B41: 27 | C41: IV. Industrial Processes and Product Use Emissions
B42: 28 | C42: V. Agriculture, Forestry, and Other Land Use Emissions
B43: 29 | C43: VI. Other Scope 3 Emissions
B44: 30 | C44: Activity Data
B46: Emissions Forecast - FY 2035
B47: =B44+1 -> 31 | C47: Emissions Forecast - Summary
B48: =B47+1 -> 32 | C48: Emissions Forecast - Summary (ABAU)
B49: 33 | C49: Emissions Forecast - Overview
B50: 34 | C50: Emissions Forecast - Overview (ABAU)
B51: 35 | C51: I. Stationary Energy Emissions
B52: 36 | C52: I. Stationary Energy Emissions (ABAU)
B53: 37 | C53: II. Transportation Emissions
B54: 38 | C54: II. Transportation Emissions (ABAU)
B55: 39 | C55: III. Waste Emissions
B56: 40 | C56: IV. Industrial Processes and Product Use Emissions
B57: 41 | C57: V. Agriculture, Forestry, and Other Land Use Emissions
B58: 42 | C58: VI. Other Scope 3 Emissions
B59: 43 | C59: Activity Data
B61: Emissions Forecast - FY 2050
B62: =B59+1 -> 44 | C62: Emissions Forecast - Summary
B63: =B62+1 -> 45 | C63: Emissions Forecast - Summary (ABAU)
B64: 46 | C64: Emissions Forecast - Overview
B65: 47 | C65: Emissions Forecast - Overview (ABAU)
B66: 48 | C66: I. Stationary Energy Emissions
B67: 49 | C67: I. Stationary Energy Emissions (ABAU)
B68: 50 | C68: II. Transportation Emissions
B69: 51 | C69: II. Transportation Emissions (ABAU)
B70: 52 | C70: III. Waste Emissions
B71: 53 | C71: IV. Industrial Processes and Product Use Emissions
B72: 54 | C72: V. Agriculture, Forestry, and Other Land Use Emissions
B73: 55 | C73: VI. Other Scope 3 Emissions
B74: 56 | C74: Activity Data
B77: Section B: Monitoring and Reporting Inventory Worksheets
B78: =CONCATENATE("Monitoring and Reporting Emissions Inventory - ",'Town Information'!$C$56) -> Monitoring and Reporting Emissions Inventory - 2022
B79: 1 | C79: Emission Inventory Graphs
B80: =B79+1 -> 2 | C80: Emissions Inventory - Summary
B81: 3 | C81: Emissions Inventory - Overview
B82: 4 | C82: I. Stationary Energy Emissions
B83: 5 | C83: II. Transportation Emissions
B84: 6 | C84: III. Waste Emissions
B85: 7 | C85: IV. Industrial Processes and Product Use Emissions
B86: 8 | C86: V. Agriculture, Forestry, and Other Land Use Emissions
B87: 9 | C87: VI. Other Scope 3 Emissions
B88: 10 | C88: Activity Data Input
B89: 11 | C89: Waste Sector Activity Data Detail Input
B90: 12 | C90: Residential Heating Oil Activity Model
B91: 13 | C91: Water Energy Activity Model
B92: 14 | C92: Wastewater Energy Activity Model
B93: 15 | C93: Rail Transit Energy Activity Model
B94: 16 | C94: MBTA Bus Fuel Activity Model
B96: =CONCATENATE("Monitoring and Reporting Emissions Inventory - ",'Town Information'!$C$57) -> Monitoring and Reporting Emissions Inventory - 2023
B97: =B94+1 -> 17 | C97: Emission Inventory Graphs
B98: =B97+1 -> 18 | C98: Emissions Inventory - Summary
B99: 19 | C99: Emissions Inventory - Overview
B100: 20 | C100: I. Stationary Energy Emissions
B101: 21 | C101: II. Transportation Emissions
B102: 22 | C102: III. Waste Emissions
B103: 23 | C103: IV. Industrial Processes and Product Use Emissions
B104: 24 | C104: V. Agriculture, Forestry, and Other Land Use Emissions
B105: 25 | C105: VI. Other Scope 3 Emissions
B106: 26 | C106: Activity Data Input
B107: 27 | C107: Waste Sector Activity Data Detail Input
B108: 28 | C108: Residential Heating Oil Activity Model
B109: 29 | C109: Water Energy Activity Model
B110: 30 | C110: Wastewater Energy Activity Model
B111: 31 | C111: Rail Transit Energy Activity Model
B112: 32 | C112: MBTA Bus Fuel Activity Model
B114: =CONCATENATE("Monitoring and Reporting Emissions Inventory - ",'Town Information'!$C$58) -> Monitoring and Reporting Emissions Inventory - 2024
B115: =B112+1 -> 33 | C115: Emission Inventory Graphs
B116: =B115+1 -> 34 | C116: Emissions Inventory - Summary
B117: 35 | C117: Emissions Inventory - Overview
B118: 36 | C118: I. Stationary Energy Emissions
B119: 37 | C119: II. Transportation Emissions
B120: 38 | C120: III. Waste Emissions
B121: 39 | C121: IV. Industrial Processes and Product Use Emissions
B122: 40 | C122: V. Agriculture, Forestry, and Other Land Use Emissions
B123: 41 | C123: VI. Other Scope 3 Emissions
B124: 42 | C124: Activity Data Input
B125: 43 | C125: Waste Sector Activity Data Detail Input
B126: 44 | C126: Residential Heating Oil Activity Model
B127: 45 | C127: Water Energy Activity Model
B128: 46 | C128: Wastewater Energy Activity Model
B129: 47 | C129: Rail Transit Energy Activity Model
B130: 48 | C130: MBTA Bus Fuel Activity Model
B132: =CONCATENATE("Monitoring and Reporting Emissions Inventory - ",'Town Information'!$C$59) -> Monitoring and Reporting Emissions Inventory - 2025
B133: =B130+1 -> 49 | C133: Emission Inventory Graphs
B134: =B133+1 -> 50 | C134: Emissions Inventory - Summary
B135: 51 | C135: Emissions Inventory - Overview
B136: 52 | C136: I. Stationary Energy Emissions
B137: 53 | C137: II. Transportation Emissions
B138: 54 | C138: III. Waste Emissions
B139: 55 | C139: IV. Industrial Processes and Product Use Emissions
B140: 56 | C140: V. Agriculture, Forestry, and Other Land Use Emissions
B141: 57 | C141: VI. Other Scope 3 Emissions
B142: 58 | C142: Activity Data Input
B143: 59 | C143: Waste Sector Activity Data Detail Input
B144: 60 | C144: Residential Heating Oil Activity Model
B145: 61 | C145: Water Energy Activity Model
B146: 62 | C146: Wastewater Energy Activity Model
B147: 63 | C147: Rail Transit Energy Activity Model
B148: 64 | C148: MBTA Bus Fuel Activity Model
B151: Section C: Advanced Settings
B152: Emission Inventory Factors, Parameters, and Assumptions
B153: 1 | C153: Emission Factors
B154: =B153+1 -> 2 | C154: On-Road Emission Factor Lookup
B155: 3 | C155: Global Warming Potentials
B156: 4 | C156: Electricity and Natural Gas Transmission Loss Factors - Base Year
B157: 5 | C157: Electricity and Natural Gas Transmission Loss Factors - Year M1
B158: 6 | C158: Electricity and Natural Gas Transmission Loss Factors - Year M2
B159: 7 | C159: Electricity and Natural Gas Transmission Loss Factors - Year M3
B160: 8 | C160: Electricity and Natural Gas Transmission Loss Factors - Year M4
B161: 9 | C161: Solid Waste Parameters - Base Year
B162: 10 | C162: Solid Waste Parameters - Year M1
B163: 11 | C163: Solid Waste Parameters - Year M2
B164: 12 | C164: Solid Waste Parameters - Year M3
B165: 13 | C165: Solid Waste Parameters - Year M4
B166: 14 | C166: Wastewater Parameters - Base Year
B167: 15 | C167: Wastewater Parameters - Year M1
B168: 16 | C168: Wastewater Parameters - Year M2
B169: 17 | C169: Wastewater Parameters - Year M3
B170: 18 | C170: Wastewater Parameters - Year M4
B172: Emission Forecast Factors
B173: =B170+1 -> 19 | C173: Emission Forecast Growth Factors

Sheet Town Information
B2: TOWN INFORMATION
B4: A. INVENTORY BOUNDARY (GPC table 4.1 page 40)
B6: Boundary | C6: Information | D6: Reference(s)
B9: Name of town | C9: Amherst, Massachusetts
B10: Country | C10: USA
B11: Inventory year (if not calendar year, please specify the full 12-month period, e.g. April 2014 - March 2015) | C11: FY 2022 (July 1, 2021 - June 30, 2022)
B12: Geographic boundary (select from list of values) | C12: Administrative boundary of a local government
B13: Land area (km2) within city boundary | C13: =27.63*2.58999 -> 71.5614237 | D13: 2022 US Census Bureau Quickfacts
B14: Resident population within city boundary | C14: 40059 | D14: 2022 US Census Bureau Quickfacts
B15: GDP (US$) of economic activity within city boundary | C15: 0
B16: Predominant type of economy (select from list of values) | C16: Services
B17: Climate (select from list of values) | C17: Temperate, hot summer
B18: Other information
B20: B. INVENTORY INFORMATION
B22: Inventory | C22: Information | D22: Comments
B25: GPC reporting level (select from list) | C25: BASIC+
B26: Greenhouse gases included in inventory (select from list) | C26: CO2, CH4, N2O
B27: Global Warming Potential (select relevant IPCC AR from list) | C27: IPCC Fifth Assessment Report (2013)
B28: Description of overall methodology and tools used | C28: Global Protocol for Community-Scale Greenhouse Gas Inventories
B29: Relevant local, regional and national regulations
B30: Has the inventory been audited or verified by a third party? | C30: No
B31: =IF(C30="Yes - audited","Name of auditor",IF(C30="Yes - verified","Name of verifier","")) -> 
B32: =IF(C30="Yes - audited","Year of audit",IF(C30="Yes - verified","Year of verification","")) -> 
B33: Planned improvements
B35: C. INVENTORY COMPILER
C37: Information
B40: Compiler Name | C40: Taylor Briglio
B41: Department | C41: Conservation Department
B42: Date
B43: Version
B44: Contact information | C44: taylorbriglio@gmail.com
B45: Links
B47: D. BASELINE YEARS
B48: Horizon | C48: Year
B49: Baseline Year | C49: 2016
B50: Interim Target 1 | C50: 2025
B51: Interim Target 2 | C51: 2035
B52: Long-Term Target | C52: 2050
B54: E. MONITORING FISCAL YEARS
B55: Horizon | C55: Year | D55: Population
B56: Monitoring Year 1 | C56: 2022 | D56: =C14 -> 40059
B57: Monitoring Year 2 | C57: 2023
B58: Monitoring Year 3 | C58: 2024
B59: Monitoring Year 4 | C59: 2025
B61: F. COMMUNITY POPULATION
B62: Year | C62: Population | D62: Source
B63: =CONCATENATE($B$56,": ",$C$56) -> Monitoring Year 1: 2022 | C63: =C14 -> 40059 | D63: 2022 US Census Bureau Quickfacts
B64: =CONCATENATE(B50,": ",C50) -> Interim Target 1: 2025 | C64: =$C$84+($C$84*$C$86*(C50-2010)) -> 39624.17939 | D64: Calculated
B65: =CONCATENATE(B51,": ",C51) -> Interim Target 2: 2035 | C65: =$C$84+($C$84*$C$86*(C51-2010)) -> 40827.63231 | D65: Calculated
B66: =CONCATENATE(B52,": ",C52) -> Long-Term Target: 2050 | C66: =$C$84+($C$84*$C$86*(C52-2012)) -> 42392.12111 | D66: Calculated
B68: G. COMMUNITY EMPLOYMENT
B69: Year | C69: Population | D69: Source
B70: =CONCATENATE($B$56,": ",$C$56) -> Monitoring Year 1: 2022 | C70: =$C$90+($C$90*$C$92*(C49-B90)) -> 15643.71208 | D70: Calculated
B71: =CONCATENATE($B$50,": ",$C$50) -> Interim Target 1: 2025 | C71: =$C$90+($C$90*$C$92*(C50-B90)) -> 15471.84833 | D71: Calculated
B72: =CONCATENATE($B$51,": ",$C$51) -> Interim Target 2: 2035 | C72: =$C$90+($C$90*$C$92*(C51-B90)) -> 15280.88861 | D72: Calculated
B73: =CONCATENATE($B$52,": ",$C$52) -> Long-Term Target: 2050 | C73: =$C$90+($C$90*$C$92*(C52-B90)) -> 14994.44903 | D73: Calculated
B75: H. COMMUNITY SERVICE POPULATION
B76: Year | C76: Population | D76: Source
B77: =CONCATENATE($B$56,": ",$C$56) -> Monitoring Year 1: 2022 | C77: =C63+C70 -> 55702.71208 | D77: Calculated
B78: =CONCATENATE($B$50,": ",$C$50) -> Interim Target 1: 2025 | C78: =C64+C71 -> 55096.02772 | D78: Calculated
B79: =CONCATENATE($B$51,": ",$C$51) -> Interim Target 2: 2035 | C79: =C65+C72 -> 56108.52092 | D79: Calculated
B80: =CONCATENATE($B$52,": ",$C$52) -> Long-Term Target: 2050 | C80: =C66+C73 -> 57386.57014 | D80: Calculated
B82: I. POPULATION GROWTH RATE
B83: Year | C83: Population | D83: Source
B84: 2010 | C84: 37819 | D84: 2010 US Census
B85: 2040 | C85: 41601 | D85: 2016 Regional Transportation Plan for PVMPO
B86: Annual Population Growth Rate | C86: =RATE((B85-B84),,C84,-C85) -> 0.003182138407 | D86: Calculated
B88: J. EMPLOYMENT GROWTH RATE
B89: Year | C89: Population | D89: Source
B90: 2013 | C90: 15701 | D90: 2016 Regional Transportation Plan for PVMPO
B91: 2040 | C91: 15175 | D91: 2016 Regional Transportation Plan for PVMPO
B92: Annual Employment Growth Rate | C92: =RATE((2040-2012),,C90,-C91) -> -0.001216226498 | D92: Calculated
B94: K. SERVICE POPULATION GROWTH RATE
B95: Year | C95: Population | D95: Source
B96: 2016 | C96: =C84+C70 -> 53462.71208 | D96: Calculated
B97: 2040 | C97: =C91+(C85+(C85*C86*(B97-B85))) -> 56776 | D97: Calculated
B98: Annual Employment Growth Rate | C98: =RATE((2040-2012),,C96,-C97) -> 0.00214978107 | D98: Calculated
B100: L. UMASS POPULATION GROWTH RATE
B101: Year | C101: Population | D101: Source
B102: 2011 | C102: =27569+4828 -> 32397 | D102: UMass Amhesrt at a Glance 2010-2011
B103: 2017 | C103: =30037+5271 -> 35308 | D103: UMass Amhesrt at a Glance 2016-2017
B104: Annual UMass Growth Rate | C104: =RATE((2040-2012),,C102,-C103) -> 0.003077717235 | D104: Calculated
B107: M. OPTIONAL INFORMATION ITEMS (GPC section 4.3 page 40)
B109: D1. Scope 2 emissions based on market-based method
B111: Contractual instrument or program type | C111: Quantity of energy (kWh, MW h, BTU , etc.) | D111: Emission factor conveyed by the instrument | E111: Total GHG emissions (tCO2e)
B117: TOTAL market-based scope 2 emissions (in tCO2e) | E117: =IF(SUM(E114:E116)=0,"",SUM(E114:E116)) -> 
B119: D2. Offset credit transactions
B121: Offset credits generated within the geographic boundary and sold | C121: Total GHG emissions (tCO2e)
B127: TOTAL market-based scope 2 emissions (in tCO2e) | C127: =IF(SUM(C124:C126)=0,"",SUM(C124:C126)) -> 
B129: Offset credits purchased from outside the geographic boundary (e.g. to meet a city reduction goal) | C129: Total GHG emissions (tCO2e)
B135: TOTAL market-based scope 2 emissions (in tCO2e) | C135: =IF(SUM(C132:C134)=0,"",SUM(C132:C134)) -> 
B137: D3. Renewable energy production or investments
B139: Technology type | C139: Total annual production of grid-delivered energy | D139: Located in geographic boundary? | E139: If outside boundary, percentage of ownership by city?
B145: TOTAL market-based scope 2 emissions (in tCO2e)

Sheet Emissions Graphs - BAU
B2: FY 2011 - 2050 Baseline Community Emissions Inventory and Forecast (Business-As-Usual) - Charts
D5: Emissions (MT CO2e)
B6: GPC Sector/Sub-Sector | C6: GPC No. | D6: 2011 | E6: 2016 | F6: 2025 | G6: 2035 | H6: 2050
B7: Stationary Energy | C7: I | D7: 219654.3514 | E7: =SUM(E8:E15) -> 211715.8361 | F7: =SUM(F8:F15) -> 216009.5591 | G7: =SUM(G8:G15) -> 220780.3624 | H7: 227936.5674
B8: Residential Buildings | C8: I.1 | D8: 51318.21762 | E8: =SUM('Emissions Detailed - FY 2016'!$M$13:$M$15) -> 44031.33642 | F8: =SUM('Emissions Detailed-FY 2025(BAU)'!$M$13:$M$15) -> 45292.36068 | G8: =SUM('Emissions Detailed-FY 2035(BAU)'!$M$13:$M$15) -> 46693.49875 | H8: =SUM('Emissions Detailed-FY 2050(BAU)'!$M$13:$M$15) -> 48795.20585
B9: Municipal | C9: I.2 | D9: 3906.278412 | E9: =SUMIF('Emissions Detailed - FY 2016'!$D$12:$D$53,B9,'Emissions Detailed - FY 2016'!$M$12:$M$53) -> 2356.193514 | F9: =SUMIF('Emissions Detailed-FY 2025(BAU)'!$D$12:$D$53,B9,'Emissions Detailed-FY 2025(BAU)'!$M$12:$M$53) -> 2401.781216 | G9: =SUMIF('Emissions Detailed-FY 2035(BAU)'!$D$12:$D$53,B9,'Emissions Detailed-FY 2035(BAU)'!$M$12:$M$53) -> 2452.434218 | H9: =SUMIF('Emissions Detailed-FY 2050(BAU)'!$D$12:$D$53,B9,'Emissions Detailed-FY 2050(BAU)'!$M$12:$M$53) -> 2528.413721
B10: UMass | C10: I.2 | D10: 120324.804 | E10: =SUMIF('Emissions Detailed - FY 2016'!$D$12:$D$53,B10,'Emissions Detailed - FY 2016'!$M$12:$M$53) -> 116488.9558 | F10: =SUMIF('Emissions Detailed-FY 2025(BAU)'!$D$12:$D$53,B10,'Emissions Detailed-FY 2025(BAU)'!$M$12:$M$53) -> 119715.6364 | G10: =SUMIF('Emissions Detailed-FY 2035(BAU)'!$D$12:$D$53,B10,'Emissions Detailed-FY 2035(BAU)'!$M$12:$M$53) -> 123300.8371 | H10: =SUMIF('Emissions Detailed-FY 2050(BAU)'!$D$12:$D$53,B10,'Emissions Detailed-FY 2050(BAU)'!$M$12:$M$53) -> 128678.6381
B11: Amherst College | C11: I.2 | D11: 17385.23133 | E11: =SUMIF('Emissions Detailed - FY 2016'!$D$12:$D$53,B11,'Emissions Detailed - FY 2016'!$M$12:$M$53) -> 16543.54649 | F11: =SUMIF('Emissions Detailed-FY 2025(BAU)'!$D$12:$D$53,B11,'Emissions Detailed-FY 2025(BAU)'!$M$12:$M$53) -> 16543.54649 | G11: =SUMIF('Emissions Detailed-FY 2035(BAU)'!$D$12:$D$53,B11,'Emissions Detailed-FY 2035(BAU)'!$M$12:$M$53) -> 16543.54649 | H11: =SUMIF('Emissions Detailed-FY 2050(BAU)'!$D$12:$D$53,B11,'Emissions Detailed-FY 2050(BAU)'!$M$12:$M$53) -> 16543.54649
B12: Hampshire College | C12: I.2 | D12: 2485.696445 | E12: =SUMIF('Emissions Detailed - FY 2016'!$D$12:$D$53,B12,'Emissions Detailed - FY 2016'!$M$12:$M$53) -> 1824.834273 | F12: =SUMIF('Emissions Detailed-FY 2025(BAU)'!$D$12:$D$53,B12,'Emissions Detailed-FY 2025(BAU)'!$M$12:$M$53) -> 1824.834273 | G12: =SUMIF('Emissions Detailed-FY 2035(BAU)'!$D$12:$D$53,B12,'Emissions Detailed-FY 2035(BAU)'!$M$12:$M$53) -> 1824.834273 | H12: =SUMIF('Emissions Detailed-FY 2050(BAU)'!$D$12:$D$53,B12,'Emissions Detailed-FY 2050(BAU)'!$M$12:$M$53) -> 1824.834273
B13: Community | C13: I.2 | D13: 20718.90415 | E13: =SUMIF('Emissions Detailed - FY 2016'!$D$12:$D$53,B13,'Emissions Detailed - FY 2016'!$M$12:$M$53) -> 27011.52484 | F13: =SUMIF('Emissions Detailed-FY 2025(BAU)'!$D$12:$D$53,B13,'Emissions Detailed-FY 2025(BAU)'!$M$12:$M$53) -> 26715.85565 | G13: =SUMIF('Emissions Detailed-FY 2035(BAU)'!$D$12:$D$53,B13,'Emissions Detailed-FY 2035(BAU)'!$M$12:$M$53) -> 26387.33433 | H13: =SUMIF('Emissions Detailed-FY 2050(BAU)'!$D$12:$D$53,B13,'Emissions Detailed-FY 2050(BAU)'!$M$12:$M$53) -> 25894.55234
B14: Other Non-Specified Energy Use | C14: I.6 | D14: 0 | E14: =SUM('Emissions Summary - FY 2016'!$F$30:$H$30) -> 0 | F14: =SUM('Emissions Summary - 2025'!$F$30:$H$30) -> 0 | G14: =SUMIF('Emissions Detailed-FY 2035(BAU)'!$D$12:$D$53,B14,'Emissions Detailed-FY 2035(BAU)'!$M$12:$M$53) -> 0 | H14: =SUMIF('Emissions Detailed-FY 2050(BAU)'!$D$12:$D$53,B14,'Emissions Detailed-FY 2050(BAU)'!$M$12:$M$53) -> 0
B15: Fugitive Emissions from Natural Gas | C15: 1.8 | D15: 3515.219503 | E15: =SUM('Emissions Detailed - FY 2016'!M56:M60) -> 3459.444745 | F15: =SUM('Emissions Detailed-FY 2025(BAU)'!$M$56:$M$60) -> 3515.544377 | G15: =SUM('Emissions Detailed-FY 2035(BAU)'!$M$56:$M$60) -> 3577.877301 | H15: =SUM('Emissions Detailed-FY 2050(BAU)'!$M$56:$M$60) -> 3671.376686
B16: Transportation | C16: II | D16: 66047.35013 | E16: =SUM(E17,E24,E25) -> 66916.06465 | F16: =SUM(F17,F24,F25) -> 55846.45157 | G16: =SUM(G17,G24,G25) -> 54103.39699 | H16: 58852.62394
B17: On-Road Transportation | C17: II.1 | D17: 56660.10898 | E17: =E23+E22 -> 59503.96832 | F17: =F23+F22 -> 48290.94578 | G17: 46351.16806 | H17: =H23+H22 -> 50860.22119
B18: Municipal | C18: II.1 | D18: 1646.650465 | E18: =SUMIF('Emissions Detailed - FY 2016'!$D$62:$D$70,B18,'Emissions Detailed - FY 2016'!$M$62:$M$70) -> 2007.893214 | F18: =SUMIF('Emissions Detailed-FY 2025(BAU)'!$D$62:$D$70,B18,'Emissions Detailed-FY 2025(BAU)'!$M$62:$M$70) -> 2046.741991 | G18: =SUMIF('Emissions Detailed-FY 2035(BAU)'!$D$62:$D$70,B18,'Emissions Detailed-FY 2035(BAU)'!$M$62:$M$70) -> 2089.907299 | H18: =SUMIF('Emissions Detailed-FY 2050(BAU)'!$D$62:$D$70,B18,'Emissions Detailed-FY 2050(BAU)'!$M$62:$M$70) -> 2795.36545
B19: UMass | C19: II.1 | D19: 2247.933706 | E19: =SUMIF('Emissions Detailed - FY 2016'!$D$62:$D$70,B19,'Emissions Detailed - FY 2016'!$M$62:$M$70) -> 2195.418777 | F19: =SUMIF('Emissions Detailed-FY 2025(BAU)'!$D$62:$D$70,B19,'Emissions Detailed-FY 2025(BAU)'!$M$62:$M$70) -> 2256.230681 | G19: =SUMIF('Emissions Detailed-FY 2035(BAU)'!$D$62:$D$70,B19,'Emissions Detailed-FY 2035(BAU)'!$M$62:$M$70) -> 2323.799463 | H19: =SUMIF('Emissions Detailed-FY 2050(BAU)'!$D$62:$D$70,B19,'Emissions Detailed-FY 2050(BAU)'!$M$62:$M$70) -> 2403.657819
B20: Amherst College | C20: II.1 | D20: 364.7481268 | E20: =SUMIF('Emissions Detailed - FY 2016'!$D$62:$D$70,B20,'Emissions Detailed - FY 2016'!$M$62:$M$70) -> 279.7138917 | F20: =SUMIF('Emissions Detailed-FY 2025(BAU)'!$D$62:$D$70,B20,'Emissions Detailed-FY 2025(BAU)'!$M$62:$M$70) -> 279.7138917 | G20: =SUMIF('Emissions Detailed-FY 2035(BAU)'!$D$62:$D$70,B20,'Emissions Detailed-FY 2035(BAU)'!$M$62:$M$70) -> 279.7138917 | H20: =SUMIF('Emissions Detailed-FY 2050(BAU)'!$D$62:$D$70,B20,'Emissions Detailed-FY 2050(BAU)'!$M$62:$M$70) -> 345.6460996
B21: Hampshire College | C21: II.1 | D21: 0 | E21: =SUMIF('Emissions Detailed - FY 2016'!$D$62:$D$70,B21,'Emissions Detailed - FY 2016'!$M$62:$M$70) -> 0 | F21: =SUMIF('Emissions Detailed-FY 2025(BAU)'!$D$62:$D$70,B21,'Emissions Detailed-FY 2025(BAU)'!$M$62:$M$70) -> 0 | G21: =SUMIF('Emissions Detailed-FY 2035(BAU)'!$D$62:$D$70,B21,'Emissions Detailed-FY 2035(BAU)'!$M$62:$M$70) -> 0 | H21: =SUMIF('Emissions Detailed-FY 2050(BAU)'!$D$62:$D$70,B21,'Emissions Detailed-FY 2050(BAU)'!$M$62:$M$70) -> 0
B22: City Buses | C22: II.1 | D22: 2558.908625 | E22: =SUMIF('Emissions Detailed - FY 2016'!$D$62:$D$70,B22,'Emissions Detailed - FY 2016'!$M$62:$M$70) -> 2558.908625 | F22: =SUMIF('Emissions Detailed-FY 2025(BAU)'!$D$62:$D$70,B22,'Emissions Detailed-FY 2025(BAU)'!$M$62:$M$70) -> 2608.418465 | G22: =SUMIF('Emissions Detailed-FY 2035(BAU)'!$D$62:$D$70,B22,'Emissions Detailed-FY 2035(BAU)'!$M$62:$M$70) -> 2663.429398 | H22: =SUMIF('Emissions Detailed-FY 2050(BAU)'!$D$62:$D$70,B22,'Emissions Detailed-FY 2050(BAU)'!$M$62:$M$70) -> 2745.945798
B23: Community | C23: II.1 | D23: 54101.20036 | E23: =SUMIF('Emissions Detailed - FY 2016'!$D$62:$D$70,B23,'Emissions Detailed - FY 2016'!$M$62:$M$70) -> 56945.0597 | F23: =SUMIF('Emissions Detailed-FY 2025(BAU)'!$D$62:$D$70,B23,'Emissions Detailed-FY 2025(BAU)'!$M$62:$M$70) -> 45682.52732 | G23: =SUMIF('Emissions Detailed-FY 2035(BAU)'!$D$62:$D$70,B23,'Emissions Detailed-FY 2035(BAU)'!$M$62:$M$70) -> 43687.73866 | H23: =SUMIF('Emissions Detailed-FY 2050(BAU)'!$D$62:$D$70,B23,'Emissions Detailed-FY 2050(BAU)'!$M$62:$M$70) -> 48114.27539
B24: Railways | C24: II.2 | D24: 24.35082168 | E24: =SUM('Emissions Summary - FY 2016'!$F$36:$H$36) -> 0 | F24: =SUM('Emissions Summary - 2025'!$F$36:$H$36) -> 0 | G24: =SUM('Emissions Summary - 2035'!$F$36:$H$36) -> 0 | H24: =SUM('Emissions Summary - 2050'!$F$36:$H$36) -> 0
B25: Off-Road | C25: II.5 | D25: 9362.890328 | E25: =SUM('Emissions Detailed - FY 2016'!M85:M88) -> 7412.096327 | F25: =SUM('Emissions Detailed-FY 2025(BAU)'!M85:M88) -> 7555.505786 | G25: =SUM('Emissions Detailed-FY 2035(BAU)'!M85:M88) -> 7752.22893 | H25: =SUM('Emissions Detailed-FY 2050(BAU)'!M85:M88) -> 7992.402753
B26: Municipal | C26: II.5 | D26: 11.3404105 | E26: =SUMIF('Emissions Detailed - FY 2016'!$D$85:$D$88,B26,'Emissions Detailed - FY 2016'!$M$85:$M$88) -> 9.19865196 | F26: =SUMIF('Emissions Detailed-FY 2025(BAU)'!$D$85:$D$88,B26,'Emissions Detailed-FY 2025(BAU)'!$M$85:$M$88) -> 9.376627751 | G26: =SUMIF('Emissions Detailed-FY 2035(BAU)'!$D$85:$D$88,B26,'Emissions Detailed-FY 2035(BAU)'!$M$85:$M$88) -> 9.574378629 | H26: =SUMIF('Emissions Detailed-FY 2050(BAU)'!$D$85:$D$88,B26,'Emissions Detailed-FY 2050(BAU)'!$M$85:$M$88) -> 9.871004947
B27: Community | C27: II.5 | D27: 9351.549918 | E27: =SUMIF('Emissions Detailed - FY 2016'!$D$85:$D$88,B27,'Emissions Detailed - FY 2016'!$M$85:$M$88) -> 7402.897675 | F27: =SUMIF('Emissions Detailed-FY 2025(BAU)'!$D$85:$D$88,B27,'Emissions Detailed-FY 2025(BAU)'!$M$85:$M$88) -> 7546.129158 | G27: =SUMIF('Emissions Detailed-FY 2035(BAU)'!$D$85:$D$88,B27,'Emissions Detailed-FY 2035(BAU)'!$M$85:$M$88) -> 7742.654551 | H27: =SUMIF('Emissions Detailed-FY 2050(BAU)'!$D$85:$D$88,B27,'Emissions Detailed-FY 2050(BAU)'!$M$85:$M$88) -> 7982.531748
B28: Waste | C28: III | D28: 6994.255691 | E28: =E29+E34 -> 7266.704022 | F28: =F29+F34 -> 7416.03048 | G28: =G29+G34 -> 7581.967416 | H28: =H29+H34 -> 7830.872821
B29: Solid Waste Disposal | C29: III.3 | D29: 6712.276991 | E29: =SUM('Emissions Detailed - FY 2016'!M91:M113) -> 7127.480237 | F29: =SUM('Emissions Detailed-FY 2025(BAU)'!M91:$M$113) -> 7273.798619 | G29: =SUM('Emissions Detailed-FY 2035(BAU)'!$M91:N$113) -> 7436.374599 | H29: =SUM('Emissions Detailed-FY 2050(BAU)'!$M91:O$113) -> 7680.23857
B30: UMass | C30: III.3 | D30: 1231.96475 | E30: =SUMIF('Emissions Detailed - FY 2016'!$D$91:$D$113,B30,'Emissions Detailed - FY 2016'!$M$91:$M$113) -> 1346.73874 | F30: =SUMIF('Emissions Detailed-FY 2025(BAU)'!$D$91:$D$113,B30,'Emissions Detailed-FY 2025(BAU)'!$M$91:$M$113) -> 1384.042669 | G30: =SUMIF('Emissions Detailed-FY 2035(BAU)'!$D$91:$D$113,B30,'Emissions Detailed-FY 2035(BAU)'!$M$91:$M$113) -> 1425.491479 | H30: =SUMIF('Emissions Detailed-FY 2050(BAU)'!$D$91:$D$113,B30,'Emissions Detailed-FY 2050(BAU)'!$M$91:$M$113) -> 1487.664695
B31: Amherst College | C31: III.3 | D31: 168.0611082 | E31: =SUMIF('Emissions Detailed - FY 2016'!$D$91:$D$113,B31,'Emissions Detailed - FY 2016'!$M$91:$M$113) -> 146.345897 | F31: =SUMIF('Emissions Detailed-FY 2025(BAU)'!$D$91:$D$113,B31,'Emissions Detailed-FY 2025(BAU)'!$M$91:$M$113) -> 146.345897 | G31: =SUMIF('Emissions Detailed-FY 2035(BAU)'!$D$91:$D$113,B31,'Emissions Detailed-FY 2035(BAU)'!$M$91:$M$113) -> 146.345897 | H31: =SUMIF('Emissions Detailed-FY 2050(BAU)'!$D$91:$D$113,B31,'Emissions Detailed-FY 2050(BAU)'!$M$91:$M$113) -> 146.345897
B32: Hampshire College | C32: III.3 | D32: 0 | E32: =SUMIF('Emissions Detailed - FY 2016'!$D$91:$D$113,B32,'Emissions Detailed - FY 2016'!$M$91:$M$113) -> 0 | F32: =SUMIF('Emissions Detailed-FY 2025(BAU)'!$D$91:$D$113,B32,'Emissions Detailed-FY 2025(BAU)'!$M$91:$M$113) -> 0 | G32: =SUMIF('Emissions Detailed-FY 2035(BAU)'!$D$91:$D$113,B32,'Emissions Detailed-FY 2035(BAU)'!$M$91:$M$113) -> 0 | H32: =SUMIF('Emissions Detailed-FY 2050(BAU)'!$D$91:$D$113,B32,'Emissions Detailed-FY 2050(BAU)'!$M$91:$M$113) -> 0
B33: Community | C33: III.3 | D33: 5312.251133 | E33: =SUMIF('Emissions Detailed - FY 2016'!$D$91:$D$113,B33,'Emissions Detailed - FY 2016'!$M$91:$M$113) -> 5634.3956 | F33: =SUMIF('Emissions Detailed-FY 2025(BAU)'!$D$91:$D$113,B33,'Emissions Detailed-FY 2025(BAU)'!$M$91:$M$113) -> 5743.410053 | G33: =SUMIF('Emissions Detailed-FY 2035(BAU)'!$D$91:$D$113,B33,'Emissions Detailed-FY 2035(BAU)'!$M$91:$M$113) -> 5864.537223 | H33: =SUMIF('Emissions Detailed-FY 2050(BAU)'!$D$91:$D$113,B33,'Emissions Detailed-FY 2050(BAU)'!$M$91:$M$113) -> 6046.227978
B34: Wastewater Treatment and Discharge | C34: III.4 | D34: 281.9786999 | E34: =SUM('Emissions Detailed - FY 2016'!M116:M120) -> 139.2237848 | F34: =SUM('Emissions Detailed-FY 2025(BAU)'!M116:M120) -> 142.2318611 | G34: =SUM('Emissions Detailed-FY 2035(BAU)'!M116:M120) -> 145.592817 | H34: =SUM('Emissions Detailed-FY 2050(BAU)'!M116:M120) -> 150.6342508
B35: UMass | C35: III.4 | D35: 69.73526236 | E35: =SUMIF('Emissions Detailed - FY 2016'!$D$116:$D$120,B35,'Emissions Detailed - FY 2016'!$M$116:$M$120) -> 39.69132235 | F35: =SUMIF('Emissions Detailed-FY 2025(BAU)'!$D$116:$D$120,B35,'Emissions Detailed-FY 2025(BAU)'!$M$116:$M$120) -> 40.79075035 | G35: =SUMIF('Emissions Detailed-FY 2035(BAU)'!$D$116:$D$120,B35,'Emissions Detailed-FY 2035(BAU)'!$M$116:$M$120) -> 42.01233702 | H35: =SUMIF('Emissions Detailed-FY 2050(BAU)'!$D$116:$D$120,B35,'Emissions Detailed-FY 2050(BAU)'!$M$116:$M$120) -> 43.84471702
B36: Community | C36: III.4 | D36: 212.2401689 | E36: =SUMIF('Emissions Detailed - FY 2016'!$D$116:$D$120,B36,'Emissions Detailed - FY 2016'!$M$116:$M$120) -> 99.51567843 | F36: =SUMIF('Emissions Detailed-FY 2025(BAU)'!$D$116:$D$120,B36,'Emissions Detailed-FY 2025(BAU)'!$M$116:$M$120) -> 101.424002 | G36: =SUMIF('Emissions Detailed-FY 2035(BAU)'!$D$116:$D$120,B36,'Emissions Detailed-FY 2035(BAU)'!$M$116:$M$120) -> 103.5630104 | H36: =SUMIF('Emissions Detailed-FY 2050(BAU)'!$D$116:$D$120,B36,'Emissions Detailed-FY 2050(BAU)'!$M$116:$M$120) -> 106.771523
B37: Agriculture | C37: V | D37: 842.2223859 | E37: =SUM(E38:E39) -> 842.2223859 | F37: =SUM(F38:F39) -> 918.0224006 | G37: 1002.244639 | H37: 1128.577997
B38: Livestock | C38: V.1 | D38: 539.011783 | E38: ='Emissions Detailed - FY 2016'!$M$125 -> 539.011783 | F38: ='Emissions Detailed-FY 2025(BAU)'!$M$125 -> 587.5228434 | G38: ='Emissions Detailed-FY 2035(BAU)'!$M$125 -> 641.4240217 | H38: ='Emissions Detailed-FY 2050(BAU)'!$M$125 -> 722.2757892
B39: Aggregate Sources | C39: V.3 | D39: 303.2106029 | E39: ='Emissions Detailed - FY 2016'!$M$127 -> 303.2106029 | F39: ='Emissions Detailed-FY 2025(BAU)'!$M$127 -> 330.4995572 | G39: ='Emissions Detailed-FY 2035(BAU)'!$M$127 -> 360.8206174 | H39: ='Emissions Detailed-FY 2050(BAU)'!$M$127 -> 406.3022079
B40: Total | D40: 293538.1797 | E40: =SUM(E7,E16,E28,E37) -> 286740.8271 | F40: =SUM(F7,F16,F28,F37) -> 280190.0635 | G40: =SUM(G7,G16,G28,G37) -> 283467.9715 | H40: =SUM(H7,H16,H28,H37) -> 295748.6422
B70: Community Base Year Inventory
B71: =B7 -> Stationary Energy | C71: =D71/$D$75 -> 0.7383526029 | D71: =E7 -> 211715.8361
B72: =B16 -> Transportation | C72: =D72/$D$75 -> 0.2333677604 | D72: =E16 -> 66916.06465
B73: =B28 -> Waste | C73: 0.02534241145 | D73: =E28 -> 7266.704022
B74: =B37 -> Agriculture | C74: 0.002937225209 | D74: =E37 -> 842.2223859
D75: =SUM(D71:D74) -> 286740.8271
B77: Stationary Energy by Sector | C77: % | D77: MT CO2e/yr
B78: Residential Buildings | C78: =D78/$D$85 -> 0.2079737503 | D78: =E8 -> 44031.33642
B79: Municipal | C79: 0.01112903767 | D79: 2356.193514
B80: UMass | C80: 0.5502137107 | D80: 116488.9558
B81: Amherst College | C81: 0.07814033563 | D81: 16543.54649
B82: Hampshire College | C82: 0.008619262058 | D82: 1824.834273
B83: Community | C83: 0.1275838659 | D83: 27011.52484
B84: =B15 -> Fugitive Emissions from Natural Gas | C84: 0.01634003771 | D84: =E15 -> 3459.444745
D85: =SUM(D78:D84) -> 211715.8361
B88: Total Emissions by Sector | C88: % | D88: MT CO2e/yr
B89: Residential Buildings | C89: =D89/$D$96 -> 0.1535579688 | D89: =SUMIF($B$7:$B$38,B89,$E$7:$E$38) -> 44031.33642
B90: Municipal | C90: =D90/$D$96 -> 0.01525170196 | D90: =SUMIF($B$7:$B$38,B90,$E$7:$E$38) -> 4373.28538
B91: UMass | C91: 0.41874334 | D91: 120070.8046
B92: Amherst College | C92: 0.05918099435 | D92: 16969.60628
B93: Hampshire College | C93: 0.006364054948 | D93: 1824.834273
B94: Community | C94: 0.3348372299 | D94: =SUMIF($B$7:$B$39,B94,$E$7:$E$39)+E22-E18-E19-E20+E37 -> 96011.49862
B95: Fugitive Emissions from Natural Gas | C95: 0.01206471008 | D95: 3459.444745
B96: Total | D96: =SUM(D89:D95) -> 286740.8103
B97: check | D97: =E40-D96 -> 0.01678398292
B108: Stationary Energy by Fuel Type | C108: % | D108: MT CO2e/yr
C109: FY 2016 | E109: FY 2011
B110: Gas (natural gas) | C110: =D110/$D$117 -> 0.620612891 | D110: =SUMIF('I - Stationary-FY 2016'!D:D,B110,'I - Stationary-FY 2016'!Z:Z) -> 131511.3735 | E110: =F110/$F$117 -> 0.5098215559 | F110: 111984.5232
B111: Electricity | C111: 0.2091702268 | D111: =SUMIF('I - Stationary-FY 2016'!D:D,B111,'I - Stationary-FY 2016'!Z:Z)+SUMIF('I - Stationary-FY 2016'!D:D,"Electrictiy transmission losses",'I - Stationary-FY 2016'!Z:Z) -> 44324.35134 | E111: =F111/$F$117 -> 0.2251833706 | F111: 49462.50723
B112: Distillate oil (heating fuel) | C112: 0.09028787552 | D112: =SUMIF('I - Stationary-FY 2016'!D:D,B112,'I - Stationary-FY 2016'!Z:Z) -> 19132.51029 | E112: 0.1047866942 | F112: 23016.85336
B113: Liquefied natural gas (LNG) | C113: 0.04234595147 | D113: =SUMIF('I - Stationary-FY 2016'!D:D,B113,'I - Stationary-FY 2016'!Z:Z) -> 8973.34606 | E113: 0 | F113: 0
B114: Diesel oil | C114: 0.03564826585 | D114: =SUMIF('I - Stationary-FY 2016'!D:D,B114,'I - Stationary-FY 2016'!Z:Z) -> 7554.068684 | E114: 0.1443513121 | F114: 31707.39385
B115: Liquefied petroleum gases (LPG) | C115: 0.0009711789766 | D115: =SUMIF('I - Stationary-FY 2016'!D:D,B115,'I - Stationary-FY 2016'!Z:Z) -> 205.7983052 | E115: 0.001164789785 | F115: 255.8511448
B116: Residual fuel oil | C116: 0.0009636104279 | D116: =SUMIF('I - Stationary-FY 2016'!D:D,B116,'I - Stationary-FY 2016'!Z:Z) -> 204.194487 | E116: 0.01469227728 | F116: 3227.222636
B117: Total | D117: =SUM(D110:D116) -> 211905.6427 | F117: =SUM(F110:F116) -> 219654.3514
B118: Check | D118: ='Emissions Summary - FY 2016'!I33-D117 -> 0
B120: Residential Buildings by Fuel Type | C120: % | D120: MT CO2e/yr
B121: Gas (natural gas) | C121: =D121/$D$124 -> 0.1593253866 | D121: ='I - Stationary-FY 2016'!Z11 -> 7015.309697
B122: Electricity | C122: =D122/$D$124 -> 0.4135749538 | D122: ='I - Stationary-FY 2016'!Z14+'I - Stationary-FY 2016'!Z16 -> 18210.25793
B123: Distillate oil (heating fuel) | C123: =D123/$D$124 -> 0.4270996596 | D123: ='I - Stationary-FY 2016'!Z12 -> 18805.7688
B124: Total | D124: =SUM(D121:D123) -> 44031.33642
B125: Check | D125: =D124-'Emissions Summary - FY 2016'!I24 -> 0
B127: Commercial/Institutional Buildings by Fuel Type | C127: % | D127: MT CO2e/yr
B128: Gas (natural gas) | C128: =D128/$D$135 -> 0.7358609959 | D128: =SUMIF('I - Stationary-FY 2016'!$D$22:$D$48,B128,'I - Stationary-FY 2016'!$Z$22:$Z$48) -> 120846.8125
B129: Electricity | C129: 0.1590140641 | D129: =SUMIF('I - Stationary-FY 2016'!$D$22:$D$48,B129,'I - Stationary-FY 2016'!$Z$22:$Z$48)+SUMIF('I - Stationary-FY 2016'!$D$22:$D$48,"Electrictiy transmission losses",'I - Stationary-FY 2016'!$Z$22:$Z$48) -> 26114.09341
B130: Liquefied natural gas (LNG) | C130: 0.05464054231 | D130: =SUMIF('I - Stationary-FY 2016'!$D$22:$D$48,B130,'I - Stationary-FY 2016'!$Z$22:$Z$48) -> 8973.34606
B131: Diesel oil | C131: 0.04599827163 | D131: =SUMIF('I - Stationary-FY 2016'!$D$22:$D$48,B131,'I - Stationary-FY 2016'!$Z$22:$Z$48) -> 7554.068684
B132: Distillate oil (heating fuel) | C132: 0.001989595876 | D132: =SUMIF('I - Stationary-FY 2016'!$D$22:$D$48,B132,'I - Stationary-FY 2016'!$Z$22:$Z$48) -> 326.741492
B133: Liquefied petroleum gases (LPG) | C133: 0.001253148037 | D133: =SUMIF('I - Stationary-FY 2016'!$D$22:$D$48,B133,'I - Stationary-FY 2016'!$Z$22:$Z$48) -> 205.7983052
B134: Residual fuel oil | C134: 0.00124338206 | D134: =SUMIF('I - Stationary-FY 2016'!$D$22:$D$48,B134,'I - Stationary-FY 2016'!$Z$22:$Z$48) -> 204.194487
B135: Total | D135: =SUM(D128:D134) -> 164225.0549
B136: check | D136: =D135-'Emissions Summary - FY 2016'!I25 -> 0
C138: Gas (natural gas) | D138: Electricity | E138: Liquefied natural gas (LNG) | F138: Diesel oil | G138: Distillate oil (heating fuel) | H138: Liquefied petroleum gases (LPG) | I138: Residual fuel oil
B139: =B78 -> Residential Buildings | C139: =C148/$E$7 -> 0.03313549816 | D139: =D148/$E$7 -> 0.08601273417 | E139: 0 | F139: 0 | G139: 0.08882551795 | H139: 0 | I139: 0
B140: Municipal | C140: =C149/$E$7 -> 0.002666476736 | D140: 0.00838505717 | E140: 0 | F140: 0 | G140: 7.750376007e-05 | H140: 0 | I140: 0
B141: UMass | C141: =C150/$E$7 -> 0.4070222033 | D141: 0.06312983227 | E141: 0.04238391529 | F141: 0.03568022508 | G141: 0.001154283528 | H141: 0.0008432512441 | I141: 0
B142: Amherst College | C142: =C151/$E$7 -> 0.06163807075 | D142: 0.01509747735 | E142: 0 | F142: 0 | G142: 0.0003115148009 | H142: 0.0001287984098 | I142: 0.0009644743199
B143: Hampshire College | C143: =C152/$E$7 -> 0 | D143: 0.008619262058 | E143: 0 | F143: 0 | G143: 0 | H143: 0 | I143: 0
B144: Community | C144: =C153/$E$7 -> 0.09947047769 | D144: 0.02811338822 | E144: 0 | F144: 0 | G144: 0 | H144: 0 | I144: 0
B145: Fugitive Emissions from Natural Gas | C145: =C154/$E$7 -> 0.01634003771 | D145: 0 | E145: 0 | F145: 0 | G145: 0 | H145: 0 | I145: 0
C147: Gas (natural gas) | D147: Electricity | E147: Liquefied natural gas (LNG) | F147: Diesel oil | G147: Distillate oil (heating fuel) | H147: Liquefied petroleum gases (LPG) | I147: Residual fuel oil
B148: =B78 -> Residential Buildings | C148: =D121 -> 7015.309697 | D148: =D122 -> 18210.25793 | E148: 0 | F148: 0 | G148: =D123 -> 18805.7688 | H148: 0 | I148: 0
B149: Municipal | C149: =SUMIFS('I - Stationary-FY 2016'!$Z$22:$Z$48,'I - Stationary-FY 2016'!$D$22:$D$48,C$147,'I - Stationary-FY 2016'!$E$22:$E$48,$B149) -> 564.5353514 | D149: =SUMIFS('I - Stationary-FY 2016'!$Z$22:$Z$48,'I - Stationary-FY 2016'!$D$22:$D$48,D$147,'I - Stationary-FY 2016'!$E$22:$E$48,$B149)+SUMIFS('I - Stationary-FY 2016'!$Z$22:$Z$48,'I - Stationary-FY 2016'!$D$22:$D$48,"Electrictiy transmission losses",'I - Stationary-FY 2016'!$E$22:$E$48,$B149) -> 1775.249389 | E149: =SUMIFS('I - Stationary-FY 2016'!$Z$22:$Z$48,'I - Stationary-FY 2016'!$D$22:$D$48,E$147,'I - Stationary-FY 2016'!$E$22:$E$48,$B149) -> 0 | F149: =SUMIFS('I - Stationary-FY 2016'!$Z$22:$Z$48,'I - Stationary-FY 2016'!$D$22:$D$48,F$147,'I - Stationary-FY 2016'!$E$22:$E$48,$B149) -> 0 | G149: =SUMIFS('I - Stationary-FY 2016'!$Z$22:$Z$48,'I - Stationary-FY 2016'!$D$22:$D$48,G$147,'I - Stationary-FY 2016'!$E$22:$E$48,$B149) -> 16.40877336 | H149: =SUMIFS('I - Stationary-FY 2016'!$Z$22:$Z$48,'I - Stationary-FY 2016'!$D$22:$D$48,H$147,'I - Stationary-FY 2016'!$E$22:$E$48,$B149) -> 0 | I149: =SUMIFS('I - Stationary-FY 2016'!$Z$22:$Z$48,'I - Stationary-FY 2016'!$D$22:$D$48,I$147,'I - Stationary-FY 2016'!$E$22:$E$48,$B149) -> 0
B150: UMass | C150: =SUMIFS('I - Stationary-FY 2016'!$Z$22:$Z$48,'I - Stationary-FY 2016'!$D$22:$D$48,C$147,'I - Stationary-FY 2016'!$E$22:$E$48,$B150) -> 86173.04607 | D150: =SUMIFS('I - Stationary-FY 2016'!$Z$22:$Z$48,'I - Stationary-FY 2016'!$D$22:$D$48,D$147,'I - Stationary-FY 2016'!$E$22:$E$48,$B150)+SUMIFS('I - Stationary-FY 2016'!$Z$22:$Z$48,'I - Stationary-FY 2016'!$D$22:$D$48,"Electrictiy transmission losses",'I - Stationary-FY 2016'!$E$22:$E$48,$B150) -> 13365.58522 | E150: =SUMIFS('I - Stationary-FY 2016'!$Z$22:$Z$48,'I - Stationary-FY 2016'!$D$22:$D$48,E$147,'I - Stationary-FY 2016'!$E$22:$E$48,$B150) -> 8973.34606 | F150: =SUMIFS('I - Stationary-FY 2016'!$Z$22:$Z$48,'I - Stationary-FY 2016'!$D$22:$D$48,F$147,'I - Stationary-FY 2016'!$E$22:$E$48,$B150) -> 7554.068684 | G150: =SUMIFS('I - Stationary-FY 2016'!$Z$22:$Z$48,'I - Stationary-FY 2016'!$D$22:$D$48,G$147,'I - Stationary-FY 2016'!$E$22:$E$48,$B150) -> 244.3801021 | H150: =SUMIFS('I - Stationary-FY 2016'!$Z$22:$Z$48,'I - Stationary-FY 2016'!$D$22:$D$48,H$147,'I - Stationary-FY 2016'!$E$22:$E$48,$B150) -> 178.5296422 | I150: =SUMIFS('I - Stationary-FY 2016'!$Z$22:$Z$48,'I - Stationary-FY 2016'!$D$22:$D$48,I$147,'I - Stationary-FY 2016'!$E$22:$E$48,$B150) -> 0
B151: Amherst College | C151: =SUMIFS('I - Stationary-FY 2016'!$Z$22:$Z$48,'I - Stationary-FY 2016'!$D$22:$D$48,C$147,'I - Stationary-FY 2016'!$E$22:$E$48,$B151) -> 13049.75568 | D151: =SUMIFS('I - Stationary-FY 2016'!$Z$22:$Z$48,'I - Stationary-FY 2016'!$D$22:$D$48,D$147,'I - Stationary-FY 2016'!$E$22:$E$48,$B151)+SUMIFS('I - Stationary-FY 2016'!$Z$22:$Z$48,'I - Stationary-FY 2016'!$D$22:$D$48,"Electrictiy transmission losses",'I - Stationary-FY 2016'!$E$22:$E$48,$B151) -> 3196.375039 | E151: =SUMIFS('I - Stationary-FY 2016'!$Z$22:$Z$48,'I - Stationary-FY 2016'!$D$22:$D$48,E$147,'I - Stationary-FY 2016'!$E$22:$E$48,$B151) -> 0 | F151: =SUMIFS('I - Stationary-FY 2016'!$Z$22:$Z$48,'I - Stationary-FY 2016'!$D$22:$D$48,F$147,'I - Stationary-FY 2016'!$E$22:$E$48,$B151) -> 0 | G151: =SUMIFS('I - Stationary-FY 2016'!$Z$22:$Z$48,'I - Stationary-FY 2016'!$D$22:$D$48,G$147,'I - Stationary-FY 2016'!$E$22:$E$48,$B151) -> 65.95261652 | H151: =SUMIFS('I - Stationary-FY 2016'!$Z$22:$Z$48,'I - Stationary-FY 2016'!$D$22:$D$48,H$147,'I - Stationary-FY 2016'!$E$22:$E$48,$B151) -> 27.26866302 | I151: =SUMIFS('I - Stationary-FY 2016'!$Z$22:$Z$48,'I - Stationary-FY 2016'!$D$22:$D$48,I$147,'I - Stationary-FY 2016'!$E$22:$E$48,$B151) -> 204.194487
B152: Hampshire College | C152: =SUMIFS('I - Stationary-FY 2016'!$Z$22:$Z$48,'I - Stationary-FY 2016'!$D$22:$D$48,C$147,'I - Stationary-FY 2016'!$E$22:$E$48,$B152) -> 0 | D152: =SUMIFS('I - Stationary-FY 2016'!$Z$22:$Z$48,'I - Stationary-FY 2016'!$D$22:$D$48,D$147,'I - Stationary-FY 2016'!$E$22:$E$48,$B152)+SUMIFS('I - Stationary-FY 2016'!$Z$22:$Z$48,'I - Stationary-FY 2016'!$D$22:$D$48,"Electrictiy transmission losses",'I - Stationary-FY 2016'!$E$22:$E$48,$B152) -> 1824.834273 | E152: =SUMIFS('I - Stationary-FY 2016'!$Z$22:$Z$48,'I - Stationary-FY 2016'!$D$22:$D$48,E$147,'I - Stationary-FY 2016'!$E$22:$E$48,$B152) -> 0 | F152: =SUMIFS('I - Stationary-FY 2016'!$Z$22:$Z$48,'I - Stationary-FY 2016'!$D$22:$D$48,F$147,'I - Stationary-FY 2016'!$E$22:$E$48,$B152) -> 0 | G152: =SUMIFS('I - Stationary-FY 2016'!$Z$22:$Z$48,'I - Stationary-FY 2016'!$D$22:$D$48,G$147,'I - Stationary-FY 2016'!$E$22:$E$48,$B152) -> 0 | H152: =SUMIFS('I - Stationary-FY 2016'!$Z$22:$Z$48,'I - Stationary-FY 2016'!$D$22:$D$48,H$147,'I - Stationary-FY 2016'!$E$22:$E$48,$B152) -> 0 | I152: =SUMIFS('I - Stationary-FY 2016'!$Z$22:$Z$48,'I - Stationary-FY 2016'!$D$22:$D$48,I$147,'I - Stationary-FY 2016'!$E$22:$E$48,$B152) -> 0
B153: Community | C153: =SUMIFS('I - Stationary-FY 2016'!$Z$22:$Z$48,'I - Stationary-FY 2016'!$D$22:$D$48,C$147,'I - Stationary-FY 2016'!$E$22:$E$48,$B153) -> 21059.47535 | D153: =SUMIFS('I - Stationary-FY 2016'!$Z$22:$Z$48,'I - Stationary-FY 2016'!$D$22:$D$48,D$147,'I - Stationary-FY 2016'!$E$22:$E$48,$B153)+SUMIFS('I - Stationary-FY 2016'!$Z$22:$Z$48,'I - Stationary-FY 2016'!$D$22:$D$48,"Electrictiy transmission losses",'I - Stationary-FY 2016'!$E$22:$E$48,$B153) -> 5952.049491 | E153: =SUMIFS('I - Stationary-FY 2016'!$Z$22:$Z$48,'I - Stationary-FY 2016'!$D$22:$D$48,E$147,'I - Stationary-FY 2016'!$E$22:$E$48,$B153) -> 0 | F153: =SUMIFS('I - Stationary-FY 2016'!$Z$22:$Z$48,'I - Stationary-FY 2016'!$D$22:$D$48,F$147,'I - Stationary-FY 2016'!$E$22:$E$48,$B153) -> 0 | G153: =SUMIFS('I - Stationary-FY 2016'!$Z$22:$Z$48,'I - Stationary-FY 2016'!$D$22:$D$48,G$147,'I - Stationary-FY 2016'!$E$22:$E$48,$B153) -> 0 | H153: =SUMIFS('I - Stationary-FY 2016'!$Z$22:$Z$48,'I - Stationary-FY 2016'!$D$22:$D$48,H$147,'I - Stationary-FY 2016'!$E$22:$E$48,$B153) -> 0 | I153: =SUMIFS('I - Stationary-FY 2016'!$Z$22:$Z$48,'I - Stationary-FY 2016'!$D$22:$D$48,I$147,'I - Stationary-FY 2016'!$E$22:$E$48,$B153) -> 0
B154: Fugitive Emissions from Natural Gas | C154: =E15 -> 3459.444745 | D154: 0 | E154: 0 | F154: 0 | G154: 0 | H154: 0 | I154: 0
B159: Electricty | C159: % | D159: MT CO2e/yr
B160: =B148 -> Residential Buildings | C160: =D160/$D$166 -> 0.4108409346 | D160: =D148 -> 18210.25793
B161: =B149 -> Municipal | C161: =D161/$D$166 -> 0.04005133376 | D161: =D149 -> 1775.249389
B162: UMass | C162: 0.3015404584 | D162: 13365.58522
B163: Amherst College | C163: 0.07211329534 | D163: 3196.375039
B164: Hampshire College | C164: 0.04117001643 | D164: 1824.834273
B165: Community | C165: 0.1342839616 | D165: 5952.049491
D166: =SUM(D160:D165) -> 44324.35134
B176: FY 2016 Transportation | C176: % | D176: MT CO2e/yr
B177: =B17 -> On-Road Transportation | C177: =D177/$D$180 -> 0.8892329314 | D177: =E17 -> 59503.96832
B178: Off-Road Equipment | C178: =D178/$D$180 -> 0.1107670686 | D178: =E25 -> 7412.096327
B179: =B24 -> Railways | C179: =D179/$D$180 -> 0 | D179: =E24 -> 0
D180: =SUM(D177:D179) -> 66916.06465
B182: FY 2011 Transportation | C182: % | D182: MT CO2e/yr
B183: On-Road Transportation | C183: =D183/$D$186 -> 0.8578710405 | D183: 56660.10898
B184: Off-Road Equipment | C184: =D184/$D$186 -> 0.1417602721 | D184: 9362.890328
B185: Railways | C185: 0.0003686873377 | D185: 24.35082168
D186: 66047.35013
B197: FY 2016 On-Road Transportation | C197: % | D197: MT CO2e/yr
B198: Personal Vehicles | C198: =D198/$D$201 -> 0.9600089259 | D198: =SUM('II - Transport-FY 2016'!$AA$11:$AA$25) -> 61428.08558
B199: Buses | C199: =D199/$D$201 -> 0.03999107407 | D199: ='II - Transport-FY 2016'!AA26 -> 2558.908625
B200: Railways | C200: =D200/$D$201 -> 0 | D200: ='II - Transport-FY 2016'!AA39 -> 0
D201: =SUM(D198:D200) -> 63986.99421
B203: FY 2011 On- Road Transportation | C203: % | D203: MT CO2e/yr
B204: Personal Vehicles | C204: =D204/$D$207 -> 0.9576124268 | D204: 58360.53266
B205: Buses | C205: =D205/$D$207 -> 0.0419880112 | D205: 2558.908625
B206: Railways | C206: =D206/$D$207 -> 0.0003995619708 | D206: 24.35082168
D207: =SUM(D204:D206) -> 60943.7921
B220: FY 2016 Waste | C220: % | D220: MT CO2e/yr
B221: Landfill | C221: =D221/$D$225 -> 0.3560540559 | D221: =SUM('III - Waste-FY 2016'!AD13:AD16) -> 2587.33944
B222: Incineration | C222: =D222/$D$225 -> 0.5129569307 | D222: ='III - Waste-FY 2016'!AD41 -> 3727.506191
B223: Compost | C223: 0.1118298755 | D223: =SUM('III - Waste-FY 2016'!AD27:AD30) -> 812.6346059
B224: Wastewater | C224: 0.01915913795 | D224: =E34 -> 139.2237848
B225: Total | D225: =SUM(D221:D224) -> 7266.704022
B228: FY 2011 Waste | C228: % | D228: MT CO2e/yr
B229: Landfill | C229: =D229/$D$233 -> 0.3583776888 | D229: 2506.585189
B230: Incineration | C230: =D230/$D$233 -> 0.5024676778 | D230: 3514.387415
B231: Compost | C231: 0.09883887831 | D231: 691.3043871
B232: Wastewater | C232: 0.04031575515 | D232: =D34 -> 281.9786999
B233: Total | D233: =SUM(D229:D232) -> 6994.255691
D236: =(D225-D233)/D233 -> 0.03895315566
B242: FY 2016 Agriculture | C242: % | D242: MT CO2e/yr
B243: Livestock | C243: =D243/$D$245 -> 0.6399874808 | D243: =E38 -> 539.011783
B244: Aggregate Sources | C244: =D244/$D$245 -> 0.3600125192 | D244: =E39 -> 303.2106029
B245: Total | D245: =SUM(D243:D244) -> 842.2223859
B248: FY 2016 Livestock | C248: % | D248: MT CO2e/yr
B249: Cattle | C249: =D249/$D$253 -> 0.8858423454 | D249: =SUM('V - AFOLU-FY 2016'!Z11:Z12,'V - AFOLU-FY 2016'!Z22:Z23) -> 477.479462
B250: Swine | C250: =D250/$D$253 -> 0.05848835218 | D250: =SUM('V - AFOLU-FY 2016'!Z18:Z19,'V - AFOLU-FY 2016'!Z29:Z30) -> 31.52591099
B251: Poultry | C251: 0.01548661294 | D251: =SUM('V - AFOLU-FY 2016'!Z13:Z16,'V - AFOLU-FY 2016'!Z21,'V - AFOLU-FY 2016'!Z24:Z27,'V - AFOLU-FY 2016'!Z32) -> 8.347466853
B252: Other | C252: 0.04018268948 | D252: =SUM('V - AFOLU-FY 2016'!Z17,'V - AFOLU-FY 2016'!Z20,'V - AFOLU-FY 2016'!Z28,'V - AFOLU-FY 2016'!Z31) -> 21.6589431
D253: =SUM(D249:D252) -> 539.011783

Sheet Emissions Graphs - ABAU
B2: 2011 - 2050 Baseline Community Emissions Inventory and Forecast (Adjusted Business-As-Usual) - Charts
D5: Emissions (MT CO2e)
B6: GPC Sector/Sub-Sector | C6: GPC No. | D6: 2011 | E6: 2016 | F6: 2025 | G6: 2035 | H6: 2050
B7: Stationary Energy | C7: I | D7: 219654.3514 | E7: =SUM(E8:E15) -> 211715.8361 | F7: =SUM(F8:F15) -> 170486.0909 | G7: 127679.6714 | H7: 67213.26642
B8: Residential Buildings | C8: I.1 | D8: 51318.21762 | E8: =SUM('Emissions Detailed - FY 2016'!$M$13:$M$15) -> 44031.33642 | F8: =SUM('Emissions Detailed-FY 2025(ABAU'!$M$13:$M$15) -> 43231.86422 | G8: =SUM('Emissions Detailed-FY 2035(ABAU'!$M$13:$M$15) -> 42638.13381 | H8: =SUM('Emissions Detailed-FY 2050(ABAU'!$M$13:$M$15) -> 41530.23485
B9: Municipal | C9: I.2 | D9: 3906.278412 | E9: =SUMIF('Emissions Detailed - FY 2016'!$D$12:$D$53,B9,'Emissions Detailed - FY 2016'!$M$12:$M$53) -> 2356.193514 | F9: =SUMIF('Emissions Detailed-FY 2025(ABAU'!$D$12:$D$53,B9,'Emissions Detailed-FY 2025(ABAU'!$M$12:$M$53) -> 2202.725549 | G9: =SUMIF('Emissions Detailed-FY 2035(ABAU'!$D$12:$D$53,B9,'Emissions Detailed-FY 2035(ABAU'!$M$12:$M$53) -> 2064.40442 | H9: =SUMIF('Emissions Detailed-FY 2050(ABAU'!$D$12:$D$53,B9,'Emissions Detailed-FY 2050(ABAU'!$M$12:$M$53) -> 1842.611235
B10: UMass | C10: I.2 | D10: 120324.804 | E10: =SUMIF('Emissions Detailed - FY 2016'!$D$12:$D$53,B10,'Emissions Detailed - FY 2016'!$M$12:$M$53) -> 116488.9558 | F10: =SUMIF('Emissions Detailed-FY 2025(ABAU'!$D$12:$D$53,B10,'Emissions Detailed-FY 2025(ABAU'!$M$12:$M$53) -> 84572.60398 | G10: =SUMIF('Emissions Detailed-FY 2035(ABAU'!$D$12:$D$53,B10,'Emissions Detailed-FY 2035(ABAU'!$M$12:$M$53) -> 50153.90421 | H10: =SUMIF('Emissions Detailed-FY 2050(ABAU'!$D$12:$D$53,B10,'Emissions Detailed-FY 2050(ABAU'!$M$12:$M$53) -> 0
B11: Amherst College | C11: I.2 | D11: 17385.23133 | E11: =SUMIF('Emissions Detailed - FY 2016'!$D$12:$D$53,B11,'Emissions Detailed - FY 2016'!$M$12:$M$53) -> 16543.54649 | F11: =SUMIF('Emissions Detailed-FY 2025(ABAU'!$D$12:$D$53,B11,'Emissions Detailed-FY 2025(ABAU'!$M$12:$M$53) -> 11905.84208 | G11: =SUMIF('Emissions Detailed-FY 2035(ABAU'!$D$12:$D$53,B11,'Emissions Detailed-FY 2035(ABAU'!$M$12:$M$53) -> 7002.488704 | H11: =SUMIF('Emissions Detailed-FY 2050(ABAU'!$D$12:$D$53,B11,'Emissions Detailed-FY 2050(ABAU'!$M$12:$M$53) -> 0
B12: Hampshire College | C12: I.2 | D12: 2485.696445 | E12: =SUMIF('Emissions Detailed - FY 2016'!$D$12:$D$53,B12,'Emissions Detailed - FY 2016'!$M$12:$M$53) -> 1824.834273 | F12: =SUMIF('Emissions Detailed-FY 2025(ABAU'!$D$12:$D$53,B12,'Emissions Detailed-FY 2025(ABAU'!$M$12:$M$53) -> 710.544845 | G12: =SUMIF('Emissions Detailed-FY 2035(ABAU'!$D$12:$D$53,B12,'Emissions Detailed-FY 2035(ABAU'!$M$12:$M$53) -> 0 | H12: =SUMIF('Emissions Detailed-FY 2050(ABAU'!$D$12:$D$53,B12,'Emissions Detailed-FY 2050(ABAU'!$M$12:$M$53) -> 0
B13: Community | C13: I.2 | D13: 20718.90415 | E13: =SUMIF('Emissions Detailed - FY 2016'!$D$12:$D$53,B13,'Emissions Detailed - FY 2016'!$M$12:$M$53) -> 27011.52484 | F13: =SUMIF('Emissions Detailed-FY 2025(ABAU'!$D$12:$D$53,B13,'Emissions Detailed-FY 2025(ABAU'!$M$12:$M$53) -> 26068.29685 | G13: =SUMIF('Emissions Detailed-FY 2035(ABAU'!$D$12:$D$53,B13,'Emissions Detailed-FY 2035(ABAU'!$M$12:$M$53) -> 25166.2877 | H13: =SUMIF('Emissions Detailed-FY 2050(ABAU'!$D$12:$D$53,B13,'Emissions Detailed-FY 2050(ABAU'!$M$12:$M$53) -> 23840.42038
B14: Other Non-Specified Energy Use | C14: I.6 | D14: 0 | E14: =SUM('Emissions Summary - FY 2016'!$F$30:$H$30) -> 0 | F14: =SUM('Emissions Summary - 2025'!$F$30:$H$30) -> 0 | G14: =SUMIF('Emissions Detailed-FY 2035(ABAU'!$D$12:$D$53,B14,'Emissions Detailed-FY 2035(ABAU'!$M$12:$M$53) -> 0 | H14: =SUMIF('Emissions Detailed-FY 2050(ABAU'!$D$12:$D$53,B14,'Emissions Detailed-FY 2050(ABAU'!$M$12:$M$53) -> 0
B15: Fugitive Emissions from Natural Gas | C15: 1.8 | D15: 3515.219503 | E15: =SUM('Emissions Detailed - FY 2016'!M56:M60) -> 3459.444745 | F15: =SUM('Emissions Detailed-FY 2025(ABAU'!$M$56:$M$60) -> 1794.213408 | G15: =SUM('Emissions Detailed-FY 2035(ABAU'!$M$56:$M$60) -> 654.4525673 | H15: =SUM('Emissions Detailed-FY 2050(ABAU'!$M$56:$M$60) -> -3.530993624e-05
B16: Transportation | C16: II | D16: 66342.96349 | E16: =SUM(E17,E24,E25) -> 66916.06465 | F16: =SUM(F17,F24,F25) -> 55796.94173 | G16: =SUM(G17,G24,G25) -> 53961.49692 | H16: 58627.04941
B17: On-Road Transportation | C17: II.1 | D17: 56955.72234 | E17: =E23+E22 -> 59503.96832 | F17: =F23+F22 -> 48241.43594 | G17: =G23+G22 -> 46246.64729 | H17: =H23+H22 -> 50673.18402
B18: Municipal | C18: II.1 | D18: 1646.650465 | E18: =SUMIF('Emissions Detailed - FY 2016'!$D$62:$D$70,B18,'Emissions Detailed - FY 2016'!$M$62:$M$70) -> 2007.893214 | F18: =SUMIF('Emissions Detailed-FY 2025(ABAU'!$D$62:$D$70,B18,'Emissions Detailed-FY 2025(ABAU'!$M$62:$M$70) -> 2046.741991 | G18: =SUMIF('Emissions Detailed-FY 2035(ABAU'!$D$62:$D$70,B18,'Emissions Detailed-FY 2035(ABAU'!$M$62:$M$70) -> 2089.907299 | H18: =SUMIF('Emissions Detailed-FY 2050(ABAU'!$D$62:$D$70,B18,'Emissions Detailed-FY 2050(ABAU'!$M$62:$M$70) -> 2795.36545
B19: UMass | C19: II.1 | D19: 2247.933706 | E19: =SUMIF('Emissions Detailed - FY 2016'!$D$62:$D$70,B19,'Emissions Detailed - FY 2016'!$M$62:$M$70) -> 2195.418777 | F19: =SUMIF('Emissions Detailed-FY 2025(ABAU'!$D$62:$D$70,B19,'Emissions Detailed-FY 2025(ABAU'!$M$62:$M$70) -> 1614.278513 | G19: =SUMIF('Emissions Detailed-FY 2035(ABAU'!$D$62:$D$70,B19,'Emissions Detailed-FY 2035(ABAU'!$M$62:$M$70) -> 968.5671077 | H19: =SUMIF('Emissions Detailed-FY 2050(ABAU'!$D$62:$D$70,B19,'Emissions Detailed-FY 2050(ABAU'!$M$62:$M$70) -> 0
B20: Amherst College | C20: II.1 | D20: 364.7481268 | E20: =SUMIF('Emissions Detailed - FY 2016'!$D$62:$D$70,B20,'Emissions Detailed - FY 2016'!$M$62:$M$70) -> 279.7138917 | F20: =SUMIF('Emissions Detailed-FY 2025(ABAU'!$D$62:$D$70,B20,'Emissions Detailed-FY 2025(ABAU'!$M$62:$M$70) -> 242.0923506 | G20: =SUMIF('Emissions Detailed-FY 2035(ABAU'!$D$62:$D$70,B20,'Emissions Detailed-FY 2035(ABAU'!$M$62:$M$70) -> 200.2906383 | H20: =SUMIF('Emissions Detailed-FY 2050(ABAU'!$D$62:$D$70,B20,'Emissions Detailed-FY 2050(ABAU'!$M$62:$M$70) -> 274.3759376
B21: Hampshire College | C21: II.1 | D21: 0 | E21: =SUMIF('Emissions Detailed - FY 2016'!$D$62:$D$70,B21,'Emissions Detailed - FY 2016'!$M$62:$M$70) -> 0 | F21: =SUMIF('Emissions Detailed-FY 2025(ABAU'!$D$62:$D$70,B21,'Emissions Detailed-FY 2025(ABAU'!$M$62:$M$70) -> 0 | G21: =SUMIF('Emissions Detailed-FY 2035(ABAU'!$D$62:$D$70,B21,'Emissions Detailed-FY 2035(ABAU'!$M$62:$M$70) -> 0 | H21: =SUMIF('Emissions Detailed-FY 2050(ABAU'!$D$62:$D$70,B21,'Emissions Detailed-FY 2050(ABAU'!$M$62:$M$70) -> 0
B22: City Buses | C22: II.1 | D22: 2854.521982 | E22: =SUMIF('Emissions Detailed - FY 2016'!$D$62:$D$70,B22,'Emissions Detailed - FY 2016'!$M$62:$M$70) -> 2558.908625 | F22: =SUMIF('Emissions Detailed-FY 2025(ABAU'!$D$62:$D$70,B22,'Emissions Detailed-FY 2025(ABAU'!$M$62:$M$70) -> 2558.908625 | G22: =SUMIF('Emissions Detailed-FY 2035(ABAU'!$D$62:$D$70,B22,'Emissions Detailed-FY 2035(ABAU'!$M$62:$M$70) -> 2558.908625 | H22: =SUMIF('Emissions Detailed-FY 2050(ABAU'!$D$62:$D$70,B22,'Emissions Detailed-FY 2050(ABAU'!$M$62:$M$70) -> 2558.908625
B23: Community | C23: II.1 | D23: 54101.20036 | E23: =SUMIF('Emissions Detailed - FY 2016'!$D$62:$D$70,B23,'Emissions Detailed - FY 2016'!$M$62:$M$70) -> 56945.0597 | F23: =SUMIF('Emissions Detailed-FY 2025(ABAU'!$D$62:$D$70,B23,'Emissions Detailed-FY 2025(ABAU'!$M$62:$M$70) -> 45682.52732 | G23: =SUMIF('Emissions Detailed-FY 2035(ABAU'!$D$62:$D$70,B23,'Emissions Detailed-FY 2035(ABAU'!$M$62:$M$70) -> 43687.73866 | H23: =SUMIF('Emissions Detailed-FY 2050(ABAU'!$D$62:$D$70,B23,'Emissions Detailed-FY 2050(ABAU'!$M$62:$M$70) -> 48114.27539
B24: Railways | C24: II.2 | D24: 24.35082168 | E24: =SUM('Emissions Summary - FY 2016'!$F$36:$H$36) -> 0 | F24: =SUM('Emissions Summary - 2025'!$F$36:$H$36) -> 0 | G24: =SUM('Emissions Summary - 2035'!$F$36:$H$36) -> 0 | H24: =SUM('Emissions Summary - 2050'!$F$36:$H$36) -> 0
B25: Off-Road | C25: II.5 | D25: 9362.890328 | E25: =SUM('Emissions Detailed - FY 2016'!M85:M88) -> 7412.096327 | F25: =SUM('Emissions Detailed-FY 2025(ABAU'!M85:M88) -> 7555.505786 | G25: =SUM('Emissions Detailed-FY 2035(ABAU'!M85:M88) -> 7714.84963 | H25: =SUM('Emissions Detailed-FY 2050(ABAU'!M85:M88) -> 7953.865395
B26: Municipal | C26: II.5 | D26: 11.3404105 | E26: =SUMIF('Emissions Detailed - FY 2016'!$D$85:$D$88,B26,'Emissions Detailed - FY 2016'!$M$85:$M$88) -> 9.19865196 | F26: =SUMIF('Emissions Detailed-FY 2025(ABAU'!$D$85:$D$88,B26,'Emissions Detailed-FY 2025(ABAU'!$M$85:$M$88) -> 9.376627751 | G26: =SUMIF('Emissions Detailed-FY 2035(ABAU'!$D$85:$D$88,B26,'Emissions Detailed-FY 2035(ABAU'!$M$85:$M$88) -> 9.574378629 | H26: =SUMIF('Emissions Detailed-FY 2050(ABAU'!$D$85:$D$88,B26,'Emissions Detailed-FY 2050(ABAU'!$M$85:$M$88) -> 9.871004947
B27: Community | C27: II.5 | D27: 9351.549918 | E27: =SUMIF('Emissions Detailed - FY 2016'!$D$85:$D$88,B27,'Emissions Detailed - FY 2016'!$M$85:$M$88) -> 7402.897675 | F27: =SUMIF('Emissions Detailed-FY 2025(ABAU'!$D$85:$D$88,B27,'Emissions Detailed-FY 2025(ABAU'!$M$85:$M$88) -> 7546.129158 | G27: =SUMIF('Emissions Detailed-FY 2035(ABAU'!$D$85:$D$88,B27,'Emissions Detailed-FY 2035(ABAU'!$M$85:$M$88) -> 7705.275251 | H27: =SUMIF('Emissions Detailed-FY 2050(ABAU'!$D$85:$D$88,B27,'Emissions Detailed-FY 2050(ABAU'!$M$85:$M$88) -> 7943.99439
B28: Waste | C28: III | D28: 6994.255691 | E28: =E29+E34 -> 7266.704022 | F28: =F29+F34 -> 7416.03048 | G28: =G29+G34 -> 6459.293674 | H28: =H29+H34 -> 6153.017512
B29: Waste | C29: III.3 | D29: 6712.276991 | E29: =SUM('Emissions Detailed - FY 2016'!M91:M113) -> 7127.480237 | F29: =SUM('Emissions Detailed-FY 2025(ABAU'!M91:$M$113) -> 7273.798619 | G29: =SUM('Emissions Detailed-FY 2035(ABAU'!$M91:N$113) -> 6338.202316 | H29: =SUM('Emissions Detailed-FY 2050(ABAU'!$M91:O$113) -> 6046.227978
B30: UMass | C30: III.3 | D30: 1231.96475 | E30: =SUMIF('Emissions Detailed - FY 2016'!$D$91:$D$113,B30,'Emissions Detailed - FY 2016'!$M$91:$M$113) -> 1346.73874 | F30: =SUMIF('Emissions Detailed-FY 2025(ABAU'!$D$91:$D$113,B30,'Emissions Detailed-FY 2025(ABAU'!$M$91:$M$113) -> 1384.042669 | G30: =SUMIF('Emissions Detailed-FY 2035(ABAU'!$D$91:$D$113,B30,'Emissions Detailed-FY 2035(ABAU'!$M$91:$M$113) -> 416.4585286 | H30: =SUMIF('Emissions Detailed-FY 2050(ABAU'!$D$91:$D$113,B30,'Emissions Detailed-FY 2050(ABAU'!$M$91:$M$113) -> 0
B31: Amherst College | C31: III.3 | D31: 168.0611082 | E31: =SUMIF('Emissions Detailed - FY 2016'!$D$91:$D$113,B31,'Emissions Detailed - FY 2016'!$M$91:$M$113) -> 146.345897 | F31: =SUMIF('Emissions Detailed-FY 2025(ABAU'!$D$91:$D$113,B31,'Emissions Detailed-FY 2025(ABAU'!$M$91:$M$113) -> 146.345897 | G31: =SUMIF('Emissions Detailed-FY 2035(ABAU'!$D$91:$D$113,B31,'Emissions Detailed-FY 2035(ABAU'!$M$91:$M$113) -> 57.20656444 | H31: =SUMIF('Emissions Detailed-FY 2050(ABAU'!$D$91:$D$113,B31,'Emissions Detailed-FY 2050(ABAU'!$M$91:$M$113) -> 0
B32: Hampshire College | C32: III.3 | D32: 0 | E32: =SUMIF('Emissions Detailed - FY 2016'!$D$91:$D$113,B32,'Emissions Detailed - FY 2016'!$M$91:$M$113) -> 0 | F32: =SUMIF('Emissions Detailed-FY 2025(ABAU'!$D$91:$D$113,B32,'Emissions Detailed-FY 2025(ABAU'!$M$91:$M$113) -> 0 | G32: =SUMIF('Emissions Detailed-FY 2035(ABAU'!$D$91:$D$113,B32,'Emissions Detailed-FY 2035(ABAU'!$M$91:$M$113) -> 0 | H32: =SUMIF('Emissions Detailed-FY 2050(ABAU'!$D$91:$D$113,B32,'Emissions Detailed-FY 2050(ABAU'!$M$91:$M$113) -> 0
B33: Community | C33: III.3 | D33: 5312.251133 | E33: =SUMIF('Emissions Detailed - FY 2016'!$D$91:$D$113,B33,'Emissions Detailed - FY 2016'!$M$91:$M$113) -> 5634.3956 | F33: =SUMIF('Emissions Detailed-FY 2025(ABAU'!$D$91:$D$113,B33,'Emissions Detailed-FY 2025(ABAU'!$M$91:$M$113) -> 5743.410053 | G33: =SUMIF('Emissions Detailed-FY 2035(ABAU'!$D$91:$D$113,B33,'Emissions Detailed-FY 2035(ABAU'!$M$91:$M$113) -> 5864.537223 | H33: =SUMIF('Emissions Detailed-FY 2050(ABAU'!$D$91:$D$113,B33,'Emissions Detailed-FY 2050(ABAU'!$M$91:$M$113) -> 6046.227978
B34: Wastewater Treatment and Discharge | C34: III.4 | D34: 281.9786999 | E34: =SUM('Emissions Detailed - FY 2016'!M116:M120) -> 139.2237848 | F34: =SUM('Emissions Detailed-FY 2025(ABAU'!M116:M120) -> 142.2318611 | G34: =SUM('Emissions Detailed-FY 2035(ABAU'!M116:M120) -> 121.0913574 | H34: =SUM('Emissions Detailed-FY 2050(ABAU'!M116:M120) -> 106.7895338
B35: UMass | C35: III.4 | D35: 69.73526236 | E35: =SUMIF('Emissions Detailed - FY 2016'!$D$116:$D$120,B35,'Emissions Detailed - FY 2016'!$M$116:$M$120) -> 39.69132235 | F35: =SUMIF('Emissions Detailed-FY 2025(ABAU'!$D$116:$D$120,B35,'Emissions Detailed-FY 2025(ABAU'!$M$116:$M$120) -> 40.79075035 | G35: =SUMIF('Emissions Detailed-FY 2035(ABAU'!$D$116:$D$120,B35,'Emissions Detailed-FY 2035(ABAU'!$M$116:$M$120) -> 17.51087751 | H35: =SUMIF('Emissions Detailed-FY 2050(ABAU'!$D$116:$D$120,B35,'Emissions Detailed-FY 2050(ABAU'!$M$116:$M$120) -> 0
B36: Community | C36: III.4 | D36: 212.2401689 | E36: =SUMIF('Emissions Detailed - FY 2016'!$D$116:$D$120,B36,'Emissions Detailed - FY 2016'!$M$116:$M$120) -> 99.51567843 | F36: =SUMIF('Emissions Detailed-FY 2025(ABAU'!$D$116:$D$120,B36,'Emissions Detailed-FY 2025(ABAU'!$M$116:$M$120) -> 101.424002 | G36: =SUMIF('Emissions Detailed-FY 2035(ABAU'!$D$116:$D$120,B36,'Emissions Detailed-FY 2035(ABAU'!$M$116:$M$120) -> 103.5630104 | H36: =SUMIF('Emissions Detailed-FY 2050(ABAU'!$D$116:$D$120,B36,'Emissions Detailed-FY 2050(ABAU'!$M$116:$M$120) -> 106.771523
B37: Agriculture | C37: V | D37: 842.2223859 | E37: =E38 -> 842.2223859 | F37: =F38 -> 918.0224006 | G37: 1002.244639 | H37: =H38 -> 1128.577997
B38: Livestock | C38: V.1 | D38: 842.2223859 | E38: =SUM('Emissions Detailed - FY 2016'!$M$125:$M$127) -> 842.2223859 | F38: =SUM('Emissions Detailed-FY 2025(ABAU'!$M$125:$M$127) -> 918.0224006 | G38: =SUM('Emissions Detailed-FY 2035(ABAU'!$M$125:$M$127) -> 1002.244639 | H38: =SUM('Emissions Detailed-FY 2050(ABAU'!$M$125:$M$127) -> 1128.577997
B39: Aggregate Sources | C39: V.3
B40: Total | D40: 293833.793 | E40: =SUM(E7,E16,E28,E37) -> 286740.8271 | F40: =SUM(F7,F16,F29) -> 233556.8313 | G40: =SUM(G7,G16,G29) -> 187979.3707 | H40: =SUM(H7,H16,H28,H37) -> 133121.9113
B42: Target Emissions | D42: =D40 -> 293833.793 | E42: =E40 -> 286740.8271 | F42: =((0-E42)/(H6-E6))*(F6-E6)+E42 -> 210838.8435 | G42: =((H42-E42)/(H6-E6))*(G6-E6)+E42 -> 126503.3061 | H42: =H40*0% -> 0

Sheet Emissions Summary - FY 2016
H1: Prepared by: Taylor Briglio
B2: GPC GHG Summary Tables - FY 2016 | H2: Using C40 Cities GPC inventory template
B4: NAME OF CITY: | D4: =IF('Town Information'!C10="",'Town Information'!C9,CONCATENATE('Town Information'!C9,", ",'Town Information'!C10)) -> Amherst, Massachusetts, USA | G4: POPULATION: | I4: ='Town Information'!C14 -> 40059
B5: BOUNDARY: | D5: ='Town Information'!C12 -> Administrative boundary of a local government | G5: LAND AREA (km2): | I5: ='Town Information'!C13 -> 71.5614237
B6: INVENTORY YEAR: | D6: =CONCATENATE('Town Information'!C11," - Current Year") -> FY 2022 (July 1, 2021 - June 30, 2022) - Current Year | G6: GDP (US$ bn): | I6: ='Town Information'!C15/1000000000 -> 0
B7: INVENTORY TYPE: | D7: =IF('Town Information'!C25="BASIC","BASIC ",IF('Town Information'!C25="BASIC+","BASIC+ ","")) -> BASIC+
B9: GHG Emissions Source (By Sector) | E9: Total GHGs (metric tonnes CO2e)
E10: Scope 1 | F10: Scope 2 | G10: Scope 3 | H10: BASIC | I10: BASIC+ | L10: 219654.3514
B11: STATIONARY ENERGY | D11: Energy use (all emissions except I.4.4) | E11: =F33 -> 167581.2913 | F11: =G33 -> 42225.73244 | G11: =H33 -> 2098.618902 | H11: =E11+F11 -> 209807.0238 | I11: =SUM(E11:G11) -> 211905.6427 | L11: =(L10-I11)/L10 -> 0.03527682798
D12: Energy generation supplied to the grid (I.4.4) | E12: =IF('Emissions Overview - FY 2016'!E28="",'Emissions Overview - FY 2016'!M28,"") -> 
B13: TRANSPORTATION | D13: (all II emissions) | E13: =F40 -> 66916.06465 | F13: =G40 -> 0 | G13: =H40 -> 0 | H13: =E13+F13 -> 66916.06465 | I13: =SUM(E13:G13) -> 66916.06465
B14: WASTE | D14: Waste generated in the city (III.X.1 and III.X.2) | E14: =F50 -> 139.1902168 | G14: =H50 -> 7127.480237 | H14: =E14+G14 -> 7266.670454 | I14: =E14+G14 -> 7266.670454
D15: Waste enerated outside city (III.X.3) | E15: =SUM(F46:F49) -> 0.01678398295
B16: IPPU | D16: (all IV emissions) | E16: =F54 -> 0 | I16: =E16 -> 0
B17: AFOLU | D17: (all V emissions) | E17: =F59 -> 842.2223859 | I17: =E17 -> 842.2223859
B18: OTHER SCOPE 3 | D18: (all VI emissions) | G18: =IF(ISNUMBER(H61),H61,"") -> 
B19: TOTAL | E19: =IF(SUM(E11:E17)=0,"All territorial emissions",SUM(E11:E17)) -> 235478.7854 | F19: =IF((F11+F13)=0,"",F11+F13) -> 42225.73244 | G19: =IF((G11+G13+G14)=0,"",(G11+G13+G14)) -> 9226.099139 | H19: =IF((H11+H13+H14)=0,"All BASIC emissions",(H11+H13+H14)) -> 283989.7589 | I19: =IF((I11+I13+I14+I16+I17)=0,"All BASIC+ emissions",(I11+I13+I14+I16+I17)) -> 286930.6002
B21: GPC ref No. | C21: GHG Emissions Source (By Sector and Sub-sector) | F21: Total GHGs (metric tonnes CO2e)
F22: Scope 1 | G22: Scope 2 | H22: Scope 3 | I22: Total
B23: I | C23: STATIONARY ENERGY
B24: I.1 | C24: Residential buildings | F24: =IF('Emissions Overview - FY 2016'!E13="",'Emissions Overview - FY 2016'!M13,'Emissions Overview - FY 2016'!E13) -> 25821.07849 | G24: =IF('Emissions Overview - FY 2016'!E14="",'Emissions Overview - FY 2016'!M14,'Emissions Overview - FY 2016'!E14) -> 17348.05938 | H24: =IF('Emissions Overview - FY 2016'!E15="",'Emissions Overview - FY 2016'!M15,'Emissions Overview - FY 2016'!E15) -> 862.198551 | I24: =SUM(F24:H24) -> 44031.33642
B25: I.2 | C25: Commercial and institutional buildings and facilities | F25: =IF('Emissions Overview - FY 2016'!E17="",'Emissions Overview - FY 2016'!M17,'Emissions Overview - FY 2016'!E17) -> 138110.9615 | G25: =IF('Emissions Overview - FY 2016'!E18="",'Emissions Overview - FY 2016'!M18,'Emissions Overview - FY 2016'!E18) -> 24877.67306 | H25: =IF('Emissions Overview - FY 2016'!E19="",'Emissions Overview - FY 2016'!M19,'Emissions Overview - FY 2016'!E19) -> 1236.420351 | I25: =SUM(F25:H25) -> 164225.0549
B26: I.3 | C26: Manufacturing industries and construction | F26: =IF('Emissions Overview - FY 2016'!E21="",'Emissions Overview - FY 2016'!M21,'Emissions Overview - FY 2016'!E21) -> IE | G26: =IF('Emissions Overview - FY 2016'!E22="",'Emissions Overview - FY 2016'!M22,'Emissions Overview - FY 2016'!E22) -> IE | H26: =IF('Emissions Overview - FY 2016'!E23="",'Emissions Overview - FY 2016'!M23,'Emissions Overview - FY 2016'!E23) -> IE | I26: 0 | K26: =SUM(F26:G26,F27,F32)/29081000 -> 0.000125485759
B27: I.4.1/2/3 | C27: Energy industries | F27: =IF('Emissions Overview - FY 2016'!E25="",'Emissions Overview - FY 2016'!M25,'Emissions Overview - FY 2016'!E25) -> NO | G27: =IF('Emissions Overview - FY 2016'!E26="",'Emissions Overview - FY 2016'!M26,'Emissions Overview - FY 2016'!E26) -> NO | H27: =IF('Emissions Overview - FY 2016'!E27="",'Emissions Overview - FY 2016'!M27,'Emissions Overview - FY 2016'!E27) -> NO | I27: 0
B28: I.4.4 | C28: Energy generation supplied to the grid | F28: =IF('Emissions Overview - FY 2016'!E28="",'Emissions Overview - FY 2016'!M28,'Emissions Overview - FY 2016'!E28) -> NO | K28: =K24+K25+K26 -> 0.000125485759
B29: I.5 | C29: Agriculture, forestry and fishing activities | F29: =IF('Emissions Overview - FY 2016'!E30="",'Emissions Overview - FY 2016'!M30,'Emissions Overview - FY 2016'!E30) -> IE | G29: =IF('Emissions Overview - FY 2016'!E31="",'Emissions Overview - FY 2016'!M31,'Emissions Overview - FY 2016'!E31) -> IE | H29: =IF('Emissions Overview - FY 2016'!E32="",'Emissions Overview - FY 2016'!M32,'Emissions Overview - FY 2016'!E32) -> IE | I29: 0
B30: I.6 | C30: Non-specified sources | F30: =IF('Emissions Overview - FY 2016'!E34="",'Emissions Overview - FY 2016'!M34,'Emissions Overview - FY 2016'!E34) -> NO | G30: =IF('Emissions Overview - FY 2016'!E35="",'Emissions Overview - FY 2016'!M35,'Emissions Overview - FY 2016'!E35) -> NO | H30: =IF('Emissions Overview - FY 2016'!E36="",'Emissions Overview - FY 2016'!M36,'Emissions Overview - FY 2016'!E36) -> NO | I30: 0
B31: I.7 | C31: Fugitive emissions from mining, processing, storage, and transportation of coal | F31: =IF('Emissions Overview - FY 2016'!E38="",'Emissions Overview - FY 2016'!M38,'Emissions Overview - FY 2016'!E38) -> NO | I31: =SUM(F31:H31) -> 0
B32: I.8 | C32: Fugitive emissions from oil and natural gas systems | F32: =IF('Emissions Overview - FY 2016'!E40="",'Emissions Overview - FY 2016'!M40,'Emissions Overview - FY 2016'!E40) -> 3649.251357 | I32: =SUM(F32:H32) -> 3649.251357
B33: SUB-TOTAL | C33: (city induced framework only) | F33: =SUM(F24:F27)+SUM(F29:F32) -> 167581.2913 | G33: =SUM(G24:G32) -> 42225.73244 | H33: =SUM(H24:H32) -> 2098.618902 | I33: =SUM(I24:I27)+SUM(I29:I32) -> 211905.6427
B34: II | C34: TRANSPORTATION
B35: II.1 | C35: On-road transportation | F35: =IF('Emissions Overview - FY 2016'!E43="",'Emissions Overview - FY 2016'!M43,'Emissions Overview - FY 2016'!E43) -> 59503.96832 | G35: =IF('Emissions Overview - FY 2016'!E44="",'Emissions Overview - FY 2016'!M44,'Emissions Overview - FY 2016'!E44) -> IE | H35: =IF('Emissions Overview - FY 2016'!E45="",'Emissions Overview - FY 2016'!M45,'Emissions Overview - FY 2016'!E45) -> IE | I35: =SUM(F35:H35) -> 59503.96832
B36: II.2 | C36: Railways | F36: =IF('Emissions Overview - FY 2016'!E47="",'Emissions Overview - FY 2016'!M47,'Emissions Overview - FY 2016'!E47) -> NO | G36: =IF('Emissions Overview - FY 2016'!E48="",'Emissions Overview - FY 2016'!M48,'Emissions Overview - FY 2016'!E48) -> NO | H36: =IF('Emissions Overview - FY 2016'!E49="",'Emissions Overview - FY 2016'!M49,'Emissions Overview - FY 2016'!E49) -> NO | I36: =SUM(F36:H36) -> 0
B37: II.3 | C37: Waterborne navigation | F37: =IF('Emissions Overview - FY 2016'!E51="",'Emissions Overview - FY 2016'!M51,'Emissions Overview - FY 2016'!E51) -> NO | G37: =IF('Emissions Overview - FY 2016'!E52="",'Emissions Overview - FY 2016'!M52,'Emissions Overview - FY 2016'!E52) -> NO | H37: =IF('Emissions Overview - FY 2016'!E53="",'Emissions Overview - FY 2016'!M53,'Emissions Overview - FY 2016'!E53) -> NO | I37: =SUM(F37:H37) -> 0
B38: II.4 | C38: Aviation | F38: =IF('Emissions Overview - FY 2016'!E55="",'Emissions Overview - FY 2016'!M55,'Emissions Overview - FY 2016'!E55) -> NO | G38: =IF('Emissions Overview - FY 2016'!E56="",'Emissions Overview - FY 2016'!M56,'Emissions Overview - FY 2016'!E56) -> NO | H38: =IF('Emissions Overview - FY 2016'!E57="",'Emissions Overview - FY 2016'!M57,'Emissions Overview - FY 2016'!E57) -> NO | I38: =SUM(F38:H38) -> 0
B39: II.5 | C39: Off-road transportation | F39: =IF('Emissions Overview - FY 2016'!E59="",'Emissions Overview - FY 2016'!M59,'Emissions Overview - FY 2016'!E59) -> 7412.096327 | G39: =IF('Emissions Overview - FY 2016'!E60="",'Emissions Overview - FY 2016'!M60,'Emissions Overview - FY 2016'!E60) -> NO | H39: =IF('Emissions Overview - FY 2016'!E61="",'Emissions Overview - FY 2016'!M61,'Emissions Overview - FY 2016'!E61) -> NO | I39: =SUM(F39:H39) -> 7412.096327
B40: SUB-TOTAL | C40: (city induced framework only) | F40: =SUM(F35:F39) -> 66916.06465 | G40: =SUM(G35:G39) -> 0 | H40: =SUM(H35:H39) -> 0 | I40: =SUM(I35:I39) -> 66916.06465
B41: III | C41: WASTE
B42: III.1.1/2 | C42: Solid waste generated in the city | F42: =IF('Emissions Overview - FY 2016'!E64="",'Emissions Overview - FY 2016'!M64,'Emissions Overview - FY 2016'!E64) -> NO | H42: =IF('Emissions Overview - FY 2016'!E65="",'Emissions Overview - FY 2016'!M65,'Emissions Overview - FY 2016'!E65) -> 2587.33944 | I42: =SUM(F42:H42) -> 2587.33944
B43: III.2.1/2 | C43: Biological waste generated in the city | F43: =IF('Emissions Overview - FY 2016'!E68="",'Emissions Overview - FY 2016'!M68,'Emissions Overview - FY 2016'!E68) -> NO | H43: =IF('Emissions Overview - FY 2016'!E69="",'Emissions Overview - FY 2016'!M69,'Emissions Overview - FY 2016'!E69) -> 812.6346059 | I43: =SUM(F43:H43) -> 812.6346059
B44: III.3.1/2 | C44: Incinerated and burned waste generated in the city | F44: =IF('Emissions Overview - FY 2016'!E72="",'Emissions Overview - FY 2016'!M72,'Emissions Overview - FY 2016'!E72) -> NO | H44: =IF('Emissions Overview - FY 2016'!E73="",'Emissions Overview - FY 2016'!M73,'Emissions Overview - FY 2016'!E73) -> 3727.506191 | I44: =SUM(F44:H44) -> 3727.506191
B45: III.4.1/2 | C45: Wastewater generated in the city | F45: =IF('Emissions Overview - FY 2016'!E76="",'Emissions Overview - FY 2016'!M76,'Emissions Overview - FY 2016'!E76) -> 139.1902168 | H45: =IF('Emissions Overview - FY 2016'!E77="",'Emissions Overview - FY 2016'!M77,'Emissions Overview - FY 2016'!E77) -> NO | I45: =SUM(F45:H45) -> 139.1902168
B46: III.1.3 | C46: Solid waste generated outside the city | F46: =IF('Emissions Overview - FY 2016'!E66="",'Emissions Overview - FY 2016'!M66,'Emissions Overview - FY 2016'!E66) -> NO
B47: III.2.3 | C47: Biological waste generated outside the city | F47: =IF('Emissions Overview - FY 2016'!E70="",'Emissions Overview - FY 2016'!M70,'Emissions Overview - FY 2016'!E70) -> NO
B48: III.3.3 | C48: Incinerated and burned waste generated outside city | F48: =IF('Emissions Overview - FY 2016'!E74="",'Emissions Overview - FY 2016'!M74,'Emissions Overview - FY 2016'!E74) -> NO
B49: III.4.3 | C49: Wastewater generated outside the city | F49: =IF('Emissions Overview - FY 2016'!E78="",'Emissions Overview - FY 2016'!M78,'Emissions Overview - FY 2016'!E78) -> 0.01678398295
B50: SUB-TOTAL | C50: (city induced framework only) | F50: =SUM(F42:F45) -> 139.1902168 | H50: =SUM(H42:H45) -> 7127.480237 | I50: =SUM(I42:I45) -> 7266.670454
B51: IV | C51: INDUSTRIAL PROCESSES and PRODUCT USES
B52: IV.1 | C52: Emissions from industrial processes occurring in the city boundary | F52: =IF('Emissions Overview - FY 2016'!E80="",'Emissions Overview - FY 2016'!M80,'Emissions Overview - FY 2016'!E80) -> NO | I52: =SUM(F52:H52) -> 0
B53: IV.2 | C53: Emissions from product use occurring within the city boundary | F53: =IF('Emissions Overview - FY 2016'!E81="",'Emissions Overview - FY 2016'!M81,'Emissions Overview - FY 2016'!E81) -> NO | I53: =SUM(F53:H53) -> 0
B54: SUB-TOTAL | C54: (city induced framework only) | F54: =SUM(F52:F53) -> 0 | I54: =SUM(I52:I53) -> 0
B55: V | C55: AGRICULTURE, FORESTRY and OTHER LAND USE
B56: V.1 | C56: Emissions from livestock | F56: =IF('Emissions Overview - FY 2016'!E83="",'Emissions Overview - FY 2016'!M83,'Emissions Overview - FY 2016'!E83) -> 539.011783 | I56: =SUM(F56:H56) -> 539.011783
B57: V.2 | C57: Emissions from land | F57: =IF('Emissions Overview - FY 2016'!E84="",'Emissions Overview - FY 2016'!M84,'Emissions Overview - FY 2016'!E84) -> NE | I57: =SUM(F57:H57) -> 0
B58: V.3 | C58: Emissions from aggregate sources and non-CO2 emission sources on land | F58: =IF('Emissions Overview - FY 2016'!E85="",'Emissions Overview - FY 2016'!M85,'Emissions Overview - FY 2016'!E85) -> 303.2106029 | I58: =SUM(F58:H58) -> 303.2106029
B59: SUB-TOTAL | C59: (city induced framework only) | F59: =SUM(F56:F58) -> 842.2223859 | I59: =SUM(I56:I58) -> 842.2223859
B60: VI | C60: OTHER SCOPE 3
B61: VI.1 | C61: Other Scope 3 | H61: =IF('Emissions Overview - FY 2016'!E87="",'Emissions Overview - FY 2016'!M87,'Emissions Overview - FY 2016'!E87) -> NE | I61: =SUM(F61:H61) -> 0
B62: TOTAL | C62: (city induced framework only) | F62: =F33+F40+F50+F54+F59+F61 -> 235478.7686 | G62: =G33+G40+G50+G54+G59+G61 -> 42225.73244 | H62: =H33+H40+H50+H54+H59+SUM(H61) -> 9226.099139 | I62: =I33+I40+I50+I54+I59+I61 -> 286930.6002
I64: 609561
B65: GPC GHG Summary Graphs
B67: BASIC BASIC+ BASIC+ Other scope 3 | L67: BASIC | M67: BASIC+ | N67: BASIC+ Other scope 3
L68: =CONCATENATE(L76," mtCO2e") -> 284000 mtCO2e | M68: =CONCATENATE(M76," mtCO2e") -> 287000 mtCO2e | N68: =CONCATENATE(N76," mtCO2e") -> 287000 mtCO2e
K69: Stationary energy | L69: =H11 -> 209807.0238 | M69: =I11 -> 211905.6427 | N69: =I11 -> 211905.6427 | O69: 0
K70: Transportation | L70: =H13 -> 66916.06465 | M70: =I13 -> 66916.06465 | N70: =I13 -> 66916.06465 | O70: 0
K71: Waste | L71: =H14 -> 7266.670454 | M71: =I14 -> 7266.670454 | N71: =I14 -> 7266.670454 | O71: 0
K72: IPPU | M72: =I16 -> 0 | N72: =I16 -> 0 | O72: 0
K73: AFOLU | M73: =I17 -> 842.2223859 | N73: =I17 -> 842.2223859 | O73: 0
K74: Other scope 3 | N74: =G18 ->  | O74: 0
K75: TOTAL | L75: =SUM(L69:L74) -> 283989.7589 | M75: =SUM(M69:M74) -> 286930.6002 | N75: =SUM(N69:N74) -> 286930.6002 | O75: 0
L76: =ROUND(L75,-3) -> 284000 | M76: =ROUND(M75,-3) -> 287000 | N76: =ROUND(N75,-3) -> 287000
B81: BASIC/BASIC+ by subsector and scope
L82: Scope 1 | M82: Scope 2 | N82: Scope 3
K83: Residential | L83: =F24/1000000 -> 0.02582107849 | M83: 0.01734805938 | N83: 0.000862198551
K84: Commercial / institutional | L84: 0.1381109615 | M84: 0.02487767306 | N84: 0.001236420351
K85: Manufacturing / construction
K86: Energy industries
K87: Agriculture | L87: =F29/1000000 ->  | M87: =G29/1000000 -> 
K88: Non-specified sources
K89: Fugitive emissions (coal) | M89: 0 | N89: 0
K90: Fugitive emissions (oil and gas) | L90: 0.003649251357 | M90: 0 | N90: 0
K91: On-road | L91: =F35/1000000 -> 0.05950396832
K92: Railways
K93: Waterborne
K94: Aviation
K95: Off-road | L95: 0.007412096327
K96: Solid waste | L96: =F42/1000000 ->  | M96: 0 | N96: 0.00258733944
K97: Biological waste | M97: 0 | N97: 0.0008126346059
K98: Incineraton | M98: 0 | N98: 0.003727506191
K99: Wastewater | L99: 0.0001391902168 | M99: 0
K100: Industrial processes | L100: =F52/1000000 ->  | M100: 0 | N100: 0
K101: Product use | M101: 0 | N101: 0
K102: Livestock | L102: =F56/1000000 -> 0.000539011783 | M102: 0 | N102: 0
K103: Land | M103: 0 | N103: 0
C104: Subsector | K104: Aggregate sources | L104: 0.0003032106029 | M104: 0 | N104: 0
B106: By scope
L107: BASIC | M107: BASIC+ (additional) | N107: Other territorial | O107: Other scope 3
K108: Scope 1 | L108: =(E11+E13+E14)/1000000 -> 0.2346365462 | M108: =(E16+E17)/1000000 -> 0.0008422223859 | N108: =(E12+E15)/1000000 -> 
K109: Scope 2 | L109: =(F11+F13)/1000000 -> 0.04222573244
K110: Scope 3 | L110: =G14/1000000 -> 0.007127480237 | M110: =(G11+G13)/1000000 -> 0.002098618902 | O110: =G18/1000000 -> 
F124: Emissions Efficiency (Basic): | G124: =H19/I4 -> 7.089287273 | H124: tonnes/capita
F125: Emissions Efficiency (Basic +): | G125: =I19/I4 -> 7.162700022 | H125: tonnes/capita
H131: 6870.5 | I131: mil metric tons
H132: 323 | I132: mil ppl
H133: =H131/H132 -> 21.27089783 | I133: metric ton/ppl
H134: =1-G125/H133 -> 0.6632629202

Sheet Emissions Detailed - FY 2016
B2: GPC GHG Overview - FY 2016 | E2: Prepared by: Taylor Briglio
B4: NAME OF CITY: | D4: =IF('Town Information'!C10="",'Town Information'!C9,CONCATENATE('Town Information'!C9,", ",'Town Information'!C10)) -> Amherst, Massachusetts, USA
B5: BOUNDARY: | D5: ='Town Information'!C12 -> Administrative boundary of a local government
B6: INVENTORY YEAR: | D6: ='Town Information'!C11 -> FY 2022 (July 1, 2021 - June 30, 2022)
B8: GPC ref No. | C8: Scope | D8: GHG Emissions Source (By Sector and Sub-sector) | E8: Notation keys | F8: GHGs (metric tonnes CO2e) | O8: Description of method(s) used or explanation for using notation key(s)
F9: CO2 | G9: CH4 | H9: N2O | I9: PFC | J9: HFC | K9: SF6 | L9: NF3 | M9: Total tCO2e | N9: CO2(b)
B11: I | D11: STATIONARY ENERGY
B12: I.1 | D12: Residential buildings
B13: I.1.1 | C13: 1 | D13: Emissions from fuel combustion within the city boundary | E13: =IF(VLOOKUP($B13,'I - Stationary-FY 2016'!$B:$F,5,FALSE)="","",VLOOKUP($B13,'I - Stationary-FY 2016'!$B:$F,5,FALSE)) ->  | F13: =SUMIF('I - Stationary-FY 2016'!$B:$B,$B13,'I - Stationary-FY 2016'!W:W) -> 25753.87904 | G13: =SUMIF('I - Stationary-FY 2016'!$B:$B,$B13,'I - Stationary-FY 2016'!X:X) -> 24.7757253 | H13: =SUMIF('I - Stationary-FY 2016'!$B:$B,$B13,'I - Stationary-FY 2016'!Y:Y) -> 42.42372449 | M13: =SUMIF('I - Stationary-FY 2016'!$B:$B,$B13,'I - Stationary-FY 2016'!Z:Z) -> 25821.07849 | N13: =SUMIF('I - Stationary-FY 2016'!$B:$B,$B13,'I - Stationary-FY 2016'!AA:AA) -> 0 | O13: =IF(VLOOKUP($B13,'I - Stationary-FY 2016'!$B:$AD,15,FALSE)="","",VLOOKUP($B13,'I - Stationary-FY 2016'!$B:$AD,15,FALSE)) -> 
B14: I.1.2 | C14: 2 | D14: Emissions from grid-supplied energy consumed within the city boundary | E14: =IF(VLOOKUP(B14,'I - Stationary-FY 2016'!$B:$F,5,FALSE)="","",VLOOKUP(B14,'I - Stationary-FY 2016'!$B:$F,5,FALSE)) ->  | F14: =SUMIF('I - Stationary-FY 2016'!$B:$B,$B14,'I - Stationary-FY 2016'!W:W) -> 17165.252 | G14: =SUMIF('I - Stationary-FY 2016'!$B:$B,$B14,'I - Stationary-FY 2016'!X:X) -> 80.820104 | H14: =SUMIF('I - Stationary-FY 2016'!$B:$B,$B14,'I - Stationary-FY 2016'!Y:Y) -> 101.9872741 | M14: =SUMIF('I - Stationary-FY 2016'!$B:$B,$B14,'I - Stationary-FY 2016'!Z:Z) -> 17348.05938 | N14: =SUMIF('I - Stationary-FY 2016'!$B:$B,$B14,'I - Stationary-FY 2016'!AA:AA) -> 0 | O14: =IF(VLOOKUP($B14,'I - Stationary-FY 2016'!$B:$AD,15,FALSE)="","",VLOOKUP($B14,'I - Stationary-FY 2016'!$B:$AD,15,FALSE)) -> 
B15: I.1.3 | C15: 3 | D15: Transmission and distribution losses from grid-supplied energy | E15: =IF(VLOOKUP(B15,'I - Stationary-FY 2016'!$B:$F,5,FALSE)="","",VLOOKUP(B15,'I - Stationary-FY 2016'!$B:$F,5,FALSE)) ->  | F15: =SUMIF('I - Stationary-FY 2016'!$B:$B,$B15,'I - Stationary-FY 2016'!W:W) -> 853.1130243 | G15: =SUMIF('I - Stationary-FY 2016'!$B:$B,$B15,'I - Stationary-FY 2016'!X:X) -> 4.016759169 | H15: =SUMIF('I - Stationary-FY 2016'!$B:$B,$B15,'I - Stationary-FY 2016'!Y:Y) -> 5.068767522 | M15: =SUMIF('I - Stationary-FY 2016'!$B:$B,$B15,'I - Stationary-FY 2016'!Z:Z) -> 862.198551 | N15: =SUMIF('I - Stationary-FY 2016'!$B:$B,$B15,'I - Stationary-FY 2016'!AA:AA) -> 0 | O15: =IF(VLOOKUP($B15,'I - Stationary-FY 2016'!$B:$AD,15,FALSE)="","",VLOOKUP($B15,'I - Stationary-FY 2016'!$B:$AD,15,FALSE)) -> 
B16: I.2 | D16: Commercial and institutional buildings and facilities
B17: I.2.1 | C17: 1 | D17: Emissions from fuel combustion within the city boundary | E17: =IF(VLOOKUP(B17,'I - Stationary-FY 2016'!$B:$F,5,FALSE)="","",VLOOKUP(B17,'I - Stationary-FY 2016'!$B:$F,5,FALSE)) ->  | O17: =IF(VLOOKUP($B17,'I - Stationary-FY 2016'!$B:$AD,15,FALSE)="","",VLOOKUP($B17,'I - Stationary-FY 2016'!$B:$AD,15,FALSE)) -> 
B18: I.2.1 | C18: 1 | D18: Municipal | F18: =SUMIFS('I - Stationary-FY 2016'!W:W,'I - Stationary-FY 2016'!$B:$B,$B18,'I - Stationary-FY 2016'!$E:$E,$D18) -> 580.31251 | G18: =SUMIFS('I - Stationary-FY 2016'!X:X,'I - Stationary-FY 2016'!$B:$B,$B18,'I - Stationary-FY 2016'!$E:$E,$D18) -> 0.3159931183 | H18: =SUMIFS('I - Stationary-FY 2016'!Y:Y,'I - Stationary-FY 2016'!$B:$B,$B18,'I - Stationary-FY 2016'!$E:$E,$D18) -> 0.3156215856 | M18: =SUMIFS('I - Stationary-FY 2016'!Z:Z,'I - Stationary-FY 2016'!$B:$B,$B18,'I - Stationary-FY 2016'!$E:$E,$D18) -> 580.9441248 | N18: =SUMIFS('I - Stationary-FY 2016'!AA:AA,'I - Stationary-FY 2016'!$B:$B,$B18,'I - Stationary-FY 2016'!$E:$E,$D18) -> 0
B19: I.2.1 | C19: 1 | D19: UMass | F19: =SUMIFS('I - Stationary-FY 2016'!W:W,'I - Stationary-FY 2016'!$B:$B,$B19,'I - Stationary-FY 2016'!$E:$E,$D19) -> 103009.4211 | G19: =SUMIFS('I - Stationary-FY 2016'!X:X,'I - Stationary-FY 2016'!$B:$B,$B19,'I - Stationary-FY 2016'!$E:$E,$D19) -> 54.402803 | H19: =SUMIFS('I - Stationary-FY 2016'!Y:Y,'I - Stationary-FY 2016'!$B:$B,$B19,'I - Stationary-FY 2016'!$E:$E,$D19) -> 59.54661115 | M19: =SUMIFS('I - Stationary-FY 2016'!Z:Z,'I - Stationary-FY 2016'!$B:$B,$B19,'I - Stationary-FY 2016'!$E:$E,$D19) -> 103123.3706 | N19: =SUMIFS('I - Stationary-FY 2016'!AA:AA,'I - Stationary-FY 2016'!$B:$B,$B19,'I - Stationary-FY 2016'!$E:$E,$D19) -> 0
B20: I.2.1 | C20: 1 | D20: Amherst College | F20: =SUMIFS('I - Stationary-FY 2016'!W:W,'I - Stationary-FY 2016'!$B:$B,$B20,'I - Stationary-FY 2016'!$E:$E,$D20) -> 13332.81375 | G20: =SUMIFS('I - Stationary-FY 2016'!X:X,'I - Stationary-FY 2016'!$B:$B,$B20,'I - Stationary-FY 2016'!$E:$E,$D20) -> 7.21672672 | H20: =SUMIFS('I - Stationary-FY 2016'!Y:Y,'I - Stationary-FY 2016'!$B:$B,$B20,'I - Stationary-FY 2016'!$E:$E,$D20) -> 7.14097408 | M20: =SUMIFS('I - Stationary-FY 2016'!Z:Z,'I - Stationary-FY 2016'!$B:$B,$B20,'I - Stationary-FY 2016'!$E:$E,$D20) -> 13347.17145 | N20: =SUMIFS('I - Stationary-FY 2016'!AA:AA,'I - Stationary-FY 2016'!$B:$B,$B20,'I - Stationary-FY 2016'!$E:$E,$D20) -> 0
B21: I.2.1 | C21: 1 | D21: Hampshire College | F21: =SUMIFS('I - Stationary-FY 2016'!W:W,'I - Stationary-FY 2016'!$B:$B,$B21,'I - Stationary-FY 2016'!$E:$E,$D21) -> 0 | G21: =SUMIFS('I - Stationary-FY 2016'!X:X,'I - Stationary-FY 2016'!$B:$B,$B21,'I - Stationary-FY 2016'!$E:$E,$D21) -> 0 | H21: =SUMIFS('I - Stationary-FY 2016'!Y:Y,'I - Stationary-FY 2016'!$B:$B,$B21,'I - Stationary-FY 2016'!$E:$E,$D21) -> 0 | M21: =SUMIFS('I - Stationary-FY 2016'!Z:Z,'I - Stationary-FY 2016'!$B:$B,$B21,'I - Stationary-FY 2016'!$E:$E,$D21) -> 0 | N21: =SUMIFS('I - Stationary-FY 2016'!AA:AA,'I - Stationary-FY 2016'!$B:$B,$B21,'I - Stationary-FY 2016'!$E:$E,$D21) -> 0
B22: I.2.1 | C22: 1 | D22: Community | F22: =SUMIFS('I - Stationary-FY 2016'!W:W,'I - Stationary-FY 2016'!$B:$B,$B22,'I - Stationary-FY 2016'!$E:$E,$D22) -> 21037.86653 | G22: =SUMIFS('I - Stationary-FY 2016'!X:X,'I - Stationary-FY 2016'!$B:$B,$B22,'I - Stationary-FY 2016'!$E:$E,$D22) -> 11.10177653 | H22: =SUMIFS('I - Stationary-FY 2016'!Y:Y,'I - Stationary-FY 2016'!$B:$B,$B22,'I - Stationary-FY 2016'!$E:$E,$D22) -> 10.50703851 | M22: =SUMIFS('I - Stationary-FY 2016'!Z:Z,'I - Stationary-FY 2016'!$B:$B,$B22,'I - Stationary-FY 2016'!$E:$E,$D22) -> 21059.47535 | N22: =SUMIFS('I - Stationary-FY 2016'!AA:AA,'I - Stationary-FY 2016'!$B:$B,$B22,'I - Stationary-FY 2016'!$E:$E,$D22) -> 0
B23: I.2.2 | C23: 2 | D23: Emissions from grid-supplied energy consumed within the city boundary | E23: =IF(VLOOKUP(B23,'I - Stationary-FY 2016'!$B:$F,5,FALSE)="","",VLOOKUP(B23,'I - Stationary-FY 2016'!$B:$F,5,FALSE)) ->  | O23: =IF(VLOOKUP($B23,'I - Stationary-FY 2016'!$B:$AD,15,FALSE)="","",VLOOKUP($B23,'I - Stationary-FY 2016'!$B:$AD,15,FALSE)) -> 
B24: I.2.2 | C24: 2 | D24: Municipal | F24: =SUMIFS('I - Stationary-FY 2016'!W:W,'I - Stationary-FY 2016'!$B:$B,$B24,'I - Stationary-FY 2016'!$E:$E,$D24) -> 1673.375701 | G24: =SUMIFS('I - Stationary-FY 2016'!X:X,'I - Stationary-FY 2016'!$B:$B,$B24,'I - Stationary-FY 2016'!$E:$E,$D24) -> 7.878847231 | H24: =SUMIFS('I - Stationary-FY 2016'!Y:Y,'I - Stationary-FY 2016'!$B:$B,$B24,'I - Stationary-FY 2016'!$E:$E,$D24) -> 9.942354839 | M24: =SUMIFS('I - Stationary-FY 2016'!Z:Z,'I - Stationary-FY 2016'!$B:$B,$B24,'I - Stationary-FY 2016'!$E:$E,$D24) -> 1691.196903 | N24: =SUMIFS('I - Stationary-FY 2016'!AA:AA,'I - Stationary-FY 2016'!$B:$B,$B24,'I - Stationary-FY 2016'!$E:$E,$D24) -> 0
B25: I.2.2 | C25: 2 | D25: UMass | F25: =SUMIFS('I - Stationary-FY 2016'!W:W,'I - Stationary-FY 2016'!$B:$B,$B25,'I - Stationary-FY 2016'!$E:$E,$D25) -> 12598.59357 | G25: =SUMIFS('I - Stationary-FY 2016'!X:X,'I - Stationary-FY 2016'!$B:$B,$B25,'I - Stationary-FY 2016'!$E:$E,$D25) -> 59.3186539 | H25: =SUMIFS('I - Stationary-FY 2016'!Y:Y,'I - Stationary-FY 2016'!$B:$B,$B25,'I - Stationary-FY 2016'!$E:$E,$D25) -> 74.85449183 | M25: =SUMIFS('I - Stationary-FY 2016'!Z:Z,'I - Stationary-FY 2016'!$B:$B,$B25,'I - Stationary-FY 2016'!$E:$E,$D25) -> 12732.76671 | N25: =SUMIFS('I - Stationary-FY 2016'!AA:AA,'I - Stationary-FY 2016'!$B:$B,$B25,'I - Stationary-FY 2016'!$E:$E,$D25) -> 0
B26: I.2.2 | C26: 2 | D26: Amherst College | F26: =SUMIFS('I - Stationary-FY 2016'!W:W,'I - Stationary-FY 2016'!$B:$B,$B26,'I - Stationary-FY 2016'!$E:$E,$D26) -> 3012.949253 | G26: =SUMIFS('I - Stationary-FY 2016'!X:X,'I - Stationary-FY 2016'!$B:$B,$B26,'I - Stationary-FY 2016'!$E:$E,$D26) -> 14.18603537 | H26: =SUMIFS('I - Stationary-FY 2016'!Y:Y,'I - Stationary-FY 2016'!$B:$B,$B26,'I - Stationary-FY 2016'!$E:$E,$D26) -> 17.90142558 | M26: =SUMIFS('I - Stationary-FY 2016'!Z:Z,'I - Stationary-FY 2016'!$B:$B,$B26,'I - Stationary-FY 2016'!$E:$E,$D26) -> 3045.036714 | N26: =SUMIFS('I - Stationary-FY 2016'!AA:AA,'I - Stationary-FY 2016'!$B:$B,$B26,'I - Stationary-FY 2016'!$E:$E,$D26) -> 0
B27: I.2.2 | C27: 2 | D27: Hampshire College | F27: =SUMIFS('I - Stationary-FY 2016'!W:W,'I - Stationary-FY 2016'!$B:$B,$B27,'I - Stationary-FY 2016'!$E:$E,$D27) -> 1720.115128 | G27: =SUMIFS('I - Stationary-FY 2016'!X:X,'I - Stationary-FY 2016'!$B:$B,$B27,'I - Stationary-FY 2016'!$E:$E,$D27) -> 8.098913058 | H27: =SUMIFS('I - Stationary-FY 2016'!Y:Y,'I - Stationary-FY 2016'!$B:$B,$B27,'I - Stationary-FY 2016'!$E:$E,$D27) -> 10.22005695 | M27: =SUMIFS('I - Stationary-FY 2016'!Z:Z,'I - Stationary-FY 2016'!$B:$B,$B27,'I - Stationary-FY 2016'!$E:$E,$D27) -> 1738.434098 | N27: =SUMIFS('I - Stationary-FY 2016'!AA:AA,'I - Stationary-FY 2016'!$B:$B,$B27,'I - Stationary-FY 2016'!$E:$E,$D27) -> 0
B28: I.2.2 | C28: 2 | D28: Community | F28: =SUMIFS('I - Stationary-FY 2016'!W:W,'I - Stationary-FY 2016'!$B:$B,$B28,'I - Stationary-FY 2016'!$E:$E,$D28) -> 5610.487772 | G28: =SUMIFS('I - Stationary-FY 2016'!X:X,'I - Stationary-FY 2016'!$B:$B,$B28,'I - Stationary-FY 2016'!$E:$E,$D28) -> 26.41616943 | H28: =SUMIFS('I - Stationary-FY 2016'!Y:Y,'I - Stationary-FY 2016'!$B:$B,$B28,'I - Stationary-FY 2016'!$E:$E,$D28) -> 33.33469 | M28: =SUMIFS('I - Stationary-FY 2016'!Z:Z,'I - Stationary-FY 2016'!$B:$B,$B28,'I - Stationary-FY 2016'!$E:$E,$D28) -> 5670.238631 | N28: =SUMIFS('I - Stationary-FY 2016'!AA:AA,'I - Stationary-FY 2016'!$B:$B,$B28,'I - Stationary-FY 2016'!$E:$E,$D28) -> 0
B29: I.2.3 | C29: 3 | D29: Transmission and distribution losses from grid-supplied energy | E29: =IF(VLOOKUP(B29,'I - Stationary-FY 2016'!$B:$F,5,FALSE)="","",VLOOKUP(B29,'I - Stationary-FY 2016'!$B:$F,5,FALSE)) ->  | O29: =IF(VLOOKUP($B29,'I - Stationary-FY 2016'!$B:$AD,15,FALSE)="","",VLOOKUP($B29,'I - Stationary-FY 2016'!$B:$AD,15,FALSE)) -> 
B30: I.2.3 | C30: 3 | D30: Municipal | F30: =SUMIFS('I - Stationary-FY 2016'!W:W,'I - Stationary-FY 2016'!$B:$B,$B30,'I - Stationary-FY 2016'!$E:$E,$D30) -> 83.16677234 | G30: =SUMIFS('I - Stationary-FY 2016'!X:X,'I - Stationary-FY 2016'!$B:$B,$B30,'I - Stationary-FY 2016'!$E:$E,$D30) -> 0.3915787074 | H30: =SUMIFS('I - Stationary-FY 2016'!Y:Y,'I - Stationary-FY 2016'!$B:$B,$B30,'I - Stationary-FY 2016'!$E:$E,$D30) -> 0.4941350355 | M30: =SUMIFS('I - Stationary-FY 2016'!Z:Z,'I - Stationary-FY 2016'!$B:$B,$B30,'I - Stationary-FY 2016'!$E:$E,$D30) -> 84.05248608 | N30: =SUMIFS('I - Stationary-FY 2016'!AA:AA,'I - Stationary-FY 2016'!$B:$B,$B30,'I - Stationary-FY 2016'!$E:$E,$D30) -> 0
B31: I.2.3 | C31: 3 | D31: UMass | F31: =SUMIFS('I - Stationary-FY 2016'!W:W,'I - Stationary-FY 2016'!$B:$B,$B31,'I - Stationary-FY 2016'!$E:$E,$D31) -> 626.1501003 | G31: =SUMIFS('I - Stationary-FY 2016'!X:X,'I - Stationary-FY 2016'!$B:$B,$B31,'I - Stationary-FY 2016'!$E:$E,$D31) -> 2.948137099 | H31: =SUMIFS('I - Stationary-FY 2016'!Y:Y,'I - Stationary-FY 2016'!$B:$B,$B31,'I - Stationary-FY 2016'!$E:$E,$D31) -> 3.720268244 | M31: =SUMIFS('I - Stationary-FY 2016'!Z:Z,'I - Stationary-FY 2016'!$B:$B,$B31,'I - Stationary-FY 2016'!$E:$E,$D31) -> 632.8185057 | N31: =SUMIFS('I - Stationary-FY 2016'!AA:AA,'I - Stationary-FY 2016'!$B:$B,$B31,'I - Stationary-FY 2016'!$E:$E,$D31) -> 0
B32: I.2.3 | C32: 3 | D32: Amherst College | F32: =SUMIFS('I - Stationary-FY 2016'!W:W,'I - Stationary-FY 2016'!$B:$B,$B32,'I - Stationary-FY 2016'!$E:$E,$D32) -> 149.7435779 | G32: =SUMIFS('I - Stationary-FY 2016'!X:X,'I - Stationary-FY 2016'!$B:$B,$B32,'I - Stationary-FY 2016'!$E:$E,$D32) -> 0.7050459578 | H32: =SUMIFS('I - Stationary-FY 2016'!Y:Y,'I - Stationary-FY 2016'!$B:$B,$B32,'I - Stationary-FY 2016'!$E:$E,$D32) -> 0.8897008516 | M32: =SUMIFS('I - Stationary-FY 2016'!Z:Z,'I - Stationary-FY 2016'!$B:$B,$B32,'I - Stationary-FY 2016'!$E:$E,$D32) -> 151.3383247 | N32: =SUMIFS('I - Stationary-FY 2016'!AA:AA,'I - Stationary-FY 2016'!$B:$B,$B32,'I - Stationary-FY 2016'!$E:$E,$D32) -> 0
B33: I.2.3 | C33: 3 | D33: Hampshire College | F33: =SUMIFS('I - Stationary-FY 2016'!W:W,'I - Stationary-FY 2016'!$B:$B,$B33,'I - Stationary-FY 2016'!$E:$E,$D33) -> 85.48972187 | G33: =SUMIFS('I - Stationary-FY 2016'!X:X,'I - Stationary-FY 2016'!$B:$B,$B33,'I - Stationary-FY 2016'!$E:$E,$D33) -> 0.402515979 | H33: =SUMIFS('I - Stationary-FY 2016'!Y:Y,'I - Stationary-FY 2016'!$B:$B,$B33,'I - Stationary-FY 2016'!$E:$E,$D33) -> 0.5079368306 | M33: =SUMIFS('I - Stationary-FY 2016'!Z:Z,'I - Stationary-FY 2016'!$B:$B,$B33,'I - Stationary-FY 2016'!$E:$E,$D33) -> 86.40017468 | N33: =SUMIFS('I - Stationary-FY 2016'!AA:AA,'I - Stationary-FY 2016'!$B:$B,$B33,'I - Stationary-FY 2016'!$E:$E,$D33) -> 0
B34: I.2.3 | C34: 3 | D34: Community | F34: =SUMIFS('I - Stationary-FY 2016'!W:W,'I - Stationary-FY 2016'!$B:$B,$B34,'I - Stationary-FY 2016'!$E:$E,$D34) -> 278.8412423 | G34: =SUMIFS('I - Stationary-FY 2016'!X:X,'I - Stationary-FY 2016'!$B:$B,$B34,'I - Stationary-FY 2016'!$E:$E,$D34) -> 1.312883621 | H34: =SUMIFS('I - Stationary-FY 2016'!Y:Y,'I - Stationary-FY 2016'!$B:$B,$B34,'I - Stationary-FY 2016'!$E:$E,$D34) -> 1.656734093 | M34: =SUMIFS('I - Stationary-FY 2016'!Z:Z,'I - Stationary-FY 2016'!$B:$B,$B34,'I - Stationary-FY 2016'!$E:$E,$D34) -> 281.81086 | N34: =SUMIFS('I - Stationary-FY 2016'!AA:AA,'I - Stationary-FY 2016'!$B:$B,$B34,'I - Stationary-FY 2016'!$E:$E,$D34) -> 0
B35: I.3 | D35: Manufacturing industries and construction
B36: I.3.1 | C36: 1 | D36: Emissions from fuel combustion within the city boundary | E36: =IF(VLOOKUP(B36,'I - Stationary-FY 2016'!$B:$F,5,FALSE)="","",VLOOKUP(B36,'I - Stationary-FY 2016'!$B:$F,5,FALSE)) -> IE | F36: =SUMIF('I - Stationary-FY 2016'!$B:$B,$B36,'I - Stationary-FY 2016'!W:W) -> 0 | G36: =SUMIF('I - Stationary-FY 2016'!$B:$B,$B36,'I - Stationary-FY 2016'!X:X) -> 0 | H36: =SUMIF('I - Stationary-FY 2016'!$B:$B,$B36,'I - Stationary-FY 2016'!Y:Y) -> 0 | M36: =SUMIF('I - Stationary-FY 2016'!$B:$B,$B36,'I - Stationary-FY 2016'!Z:Z) -> 0 | N36: =SUMIF('I - Stationary-FY 2016'!$B:$B,$B36,'I - Stationary-FY 2016'!AA:AA) -> 0 | O36: =IF(VLOOKUP($B36,'I - Stationary-FY 2016'!$B:$AD,15,FALSE)="","",VLOOKUP($B36,'I - Stationary-FY 2016'!$B:$AD,15,FALSE)) -> 
B37: I.3.2 | C37: 2 | D37: Emissions from grid-supplied energy consumed within the city boundary | E37: =IF(VLOOKUP(B37,'I - Stationary-FY 2016'!$B:$F,5,FALSE)="","",VLOOKUP(B37,'I - Stationary-FY 2016'!$B:$F,5,FALSE)) -> IE | F37: =SUMIF('I - Stationary-FY 2016'!$B:$B,$B37,'I - Stationary-FY 2016'!W:W) -> 0 | G37: =SUMIF('I - Stationary-FY 2016'!$B:$B,$B37,'I - Stationary-FY 2016'!X:X) -> 0 | H37: =SUMIF('I - Stationary-FY 2016'!$B:$B,$B37,'I - Stationary-FY 2016'!Y:Y) -> 0 | M37: =SUMIF('I - Stationary-FY 2016'!$B:$B,$B37,'I - Stationary-FY 2016'!Z:Z) -> 0 | N37: =SUMIF('I - Stationary-FY 2016'!$B:$B,$B37,'I - Stationary-FY 2016'!AA:AA) -> 0 | O37: =IF(VLOOKUP($B37,'I - Stationary-FY 2016'!$B:$AD,15,FALSE)="","",VLOOKUP($B37,'I - Stationary-FY 2016'!$B:$AD,15,FALSE)) -> 
B38: I.3.3 | C38: 3 | D38: Transmission and distribution losses from grid-supplied energy | E38: =IF(VLOOKUP(B38,'I - Stationary-FY 2016'!$B:$F,5,FALSE)="","",VLOOKUP(B38,'I - Stationary-FY 2016'!$B:$F,5,FALSE)) -> IE | F38: =SUMIF('I - Stationary-FY 2016'!$B:$B,$B38,'I - Stationary-FY 2016'!W:W) -> 0 | G38: =SUMIF('I - Stationary-FY 2016'!$B:$B,$B38,'I - Stationary-FY 2016'!X:X) -> 0 | H38: =SUMIF('I - Stationary-FY 2016'!$B:$B,$B38,'I - Stationary-FY 2016'!Y:Y) -> 0 | M38: =SUMIF('I - Stationary-FY 2016'!$B:$B,$B38,'I - Stationary-FY 2016'!Z:Z) -> 0 | N38: =SUMIF('I - Stationary-FY 2016'!$B:$B,$B38,'I - Stationary-FY 2016'!AA:AA) -> 0 | O38: =IF(VLOOKUP($B38,'I - Stationary-FY 2016'!$B:$AD,15,FALSE)="","",VLOOKUP($B38,'I - Stationary-FY 2016'!$B:$AD,15,FALSE)) -> 
B39: I.4 | D39: Energy industries
B40: I.4.1 | C40: 1 | D40: Emissions from energy production used in power plant auxiliary operations within the city | E40: =IF(VLOOKUP(B40,'I - Stationary-FY 2016'!$B:$F,5,FALSE)="","",VLOOKUP(B40,'I - Stationary-FY 2016'!$B:$F,5,FALSE)) -> NO | F40: =SUMIF('I - Stationary-FY 2016'!$B:$B,$B40,'I - Stationary-FY 2016'!W:W) -> 0 | G40: =SUMIF('I - Stationary-FY 2016'!$B:$B,$B40,'I - Stationary-FY 2016'!X:X) -> 0 | H40: =SUMIF('I - Stationary-FY 2016'!$B:$B,$B40,'I - Stationary-FY 2016'!Y:Y) -> 0 | M40: =SUMIF('I - Stationary-FY 2016'!$B:$B,$B40,'I - Stationary-FY 2016'!Z:Z) -> 0 | N40: =SUMIF('I - Stationary-FY 2016'!$B:$B,$B40,'I - Stationary-FY 2016'!AA:AA) -> 0 | O40: =IF(VLOOKUP($B40,'I - Stationary-FY 2016'!$B:$AD,15,FALSE)="","",VLOOKUP($B40,'I - Stationary-FY 2016'!$B:$AD,15,FALSE)) -> 
B41: I.4.2 | C41: 2 | D41: Emissions from grid-supplied energy consumed by energy industries | E41: =IF(VLOOKUP(B41,'I - Stationary-FY 2016'!$B:$F,5,FALSE)="","",VLOOKUP(B41,'I - Stationary-FY 2016'!$B:$F,5,FALSE)) -> NO | F41: =SUMIF('I - Stationary-FY 2016'!$B:$B,$B41,'I - Stationary-FY 2016'!W:W) -> 0 | G41: =SUMIF('I - Stationary-FY 2016'!$B:$B,$B41,'I - Stationary-FY 2016'!X:X) -> 0 | H41: =SUMIF('I - Stationary-FY 2016'!$B:$B,$B41,'I - Stationary-FY 2016'!Y:Y) -> 0 | M41: =SUMIF('I - Stationary-FY 2016'!$B:$B,$B41,'I - Stationary-FY 2016'!Z:Z) -> 0 | N41: =SUMIF('I - Stationary-FY 2016'!$B:$B,$B41,'I - Stationary-FY 2016'!AA:AA) -> 0 | O41: =IF(VLOOKUP($B41,'I - Stationary-FY 2016'!$B:$AD,15,FALSE)="","",VLOOKUP($B41,'I - Stationary-FY 2016'!$B:$AD,15,FALSE)) -> 
B42: I.4.3 | C42: 3 | D42: Emissions from transmission and distribution losses from grid-supplied energy used in power plant auxiliary operations | E42: =IF(VLOOKUP(B42,'I - Stationary-FY 2016'!$B:$F,5,FALSE)="","",VLOOKUP(B42,'I - Stationary-FY 2016'!$B:$F,5,FALSE)) -> NO | F42: =SUMIF('I - Stationary-FY 2016'!$B:$B,$B42,'I - Stationary-FY 2016'!W:W) -> 0 | G42: =SUMIF('I - Stationary-FY 2016'!$B:$B,$B42,'I - Stationary-FY 2016'!X:X) -> 0 | H42: =SUMIF('I - Stationary-FY 2016'!$B:$B,$B42,'I - Stationary-FY 2016'!Y:Y) -> 0 | M42: =SUMIF('I - Stationary-FY 2016'!$B:$B,$B42,'I - Stationary-FY 2016'!Z:Z) -> 0 | N42: =SUMIF('I - Stationary-FY 2016'!$B:$B,$B42,'I - Stationary-FY 2016'!AA:AA) -> 0 | O42: =IF(VLOOKUP($B42,'I - Stationary-FY 2016'!$B:$AD,15,FALSE)="","",VLOOKUP($B42,'I - Stationary-FY 2016'!$B:$AD,15,FALSE)) -> 
B43: I.4.4 | C43: 1 | D43: Emissions from energy generation supplied to the grid | E43: =IF(VLOOKUP(B43,'I - Stationary-FY 2016'!$B:$F,5,FALSE)="","",VLOOKUP(B43,'I - Stationary-FY 2016'!$B:$F,5,FALSE)) -> NO | F43: =SUMIF('I - Stationary-FY 2016'!$B:$B,$B43,'I - Stationary-FY 2016'!W:W) -> 0 | G43: =SUMIF('I - Stationary-FY 2016'!$B:$B,$B43,'I - Stationary-FY 2016'!X:X) -> 0 | H43: =SUMIF('I - Stationary-FY 2016'!$B:$B,$B43,'I - Stationary-FY 2016'!Y:Y) -> 0 | M43: =SUMIF('I - Stationary-FY 2016'!$B:$B,$B43,'I - Stationary-FY 2016'!Z:Z) -> 0 | N43: =SUMIF('I - Stationary-FY 2016'!$B:$B,$B43,'I - Stationary-FY 2016'!AA:AA) -> 0 | O43: =IF(VLOOKUP($B43,'I - Stationary-FY 2016'!$B:$AD,15,FALSE)="","",VLOOKUP($B43,'I - Stationary-FY 2016'!$B:$AD,15,FALSE)) -> 
B44: I.5 | D44: Agriculture, forestry and fishing activities
B45: I.5.1 | C45: 1 | D45: Emissions from fuel combustion within the city boundary | E45: =IF(VLOOKUP(B45,'I - Stationary-FY 2016'!$B:$F,5,FALSE)="","",VLOOKUP(B45,'I - Stationary-FY 2016'!$B:$F,5,FALSE)) -> IE | F45: =SUMIF('I - Stationary-FY 2016'!$B:$B,$B45,'I - Stationary-FY 2016'!W:W) -> 0 | G45: =SUMIF('I - Stationary-FY 2016'!$B:$B,$B45,'I - Stationary-FY 2016'!X:X) -> 0 | H45: =SUMIF('I - Stationary-FY 2016'!$B:$B,$B45,'I - Stationary-FY 2016'!Y:Y) -> 0 | M45: =SUMIF('I - Stationary-FY 2016'!$B:$B,$B45,'I - Stationary-FY 2016'!Z:Z) -> 0 | N45: =SUMIF('I - Stationary-FY 2016'!$B:$B,$B45,'I - Stationary-FY 2016'!AA:AA) -> 0 | O45: =IF(VLOOKUP($B45,'I - Stationary-FY 2016'!$B:$AD,15,FALSE)="","",VLOOKUP($B45,'I - Stationary-FY 2016'!$B:$AD,15,FALSE)) -> 
B46: I.5.2 | C46: 2 | D46: Emissions from grid-supplied energy consumed within the city boundary | E46: =IF(VLOOKUP(B46,'I - Stationary-FY 2016'!$B:$F,5,FALSE)="","",VLOOKUP(B46,'I - Stationary-FY 2016'!$B:$F,5,FALSE)) -> IE | F46: =SUMIF('I - Stationary-FY 2016'!$B:$B,$B46,'I - Stationary-FY 2016'!W:W) -> 0 | G46: =SUMIF('I - Stationary-FY 2016'!$B:$B,$B46,'I - Stationary-FY 2016'!X:X) -> 0 | H46: =SUMIF('I - Stationary-FY 2016'!$B:$B,$B46,'I - Stationary-FY 2016'!Y:Y) -> 0 | M46: =SUMIF('I - Stationary-FY 2016'!$B:$B,$B46,'I - Stationary-FY 2016'!Z:Z) -> 0 | N46: =SUMIF('I - Stationary-FY 2016'!$B:$B,$B46,'I - Stationary-FY 2016'!AA:AA) -> 0 | O46: =IF(VLOOKUP($B46,'I - Stationary-FY 2016'!$B:$AD,15,FALSE)="","",VLOOKUP($B46,'I - Stationary-FY 2016'!$B:$AD,15,FALSE)) -> 
B47: I.5.3 | C47: 3 | D47: Transmission and distribution losses from grid-supplied energy consumption | E47: =IF(VLOOKUP(B47,'I - Stationary-FY 2016'!$B:$F,5,FALSE)="","",VLOOKUP(B47,'I - Stationary-FY 2016'!$B:$F,5,FALSE)) -> IE | F47: =SUMIF('I - Stationary-FY 2016'!$B:$B,$B47,'I - Stationary-FY 2016'!W:W) -> 0 | G47: =SUMIF('I - Stationary-FY 2016'!$B:$B,$B47,'I - Stationary-FY 2016'!X:X) -> 0 | H47: =SUMIF('I - Stationary-FY 2016'!$B:$B,$B47,'I - Stationary-FY 2016'!Y:Y) -> 0 | M47: =SUMIF('I - Stationary-FY 2016'!$B:$B,$B47,'I - Stationary-FY 2016'!Z:Z) -> 0 | N47: =SUMIF('I - Stationary-FY 2016'!$B:$B,$B47,'I - Stationary-FY 2016'!AA:AA) -> 0 | O47: =IF(VLOOKUP($B47,'I - Stationary-FY 2016'!$B:$AD,15,FALSE)="","",VLOOKUP($B47,'I - Stationary-FY 2016'!$B:$AD,15,FALSE)) -> 
B48: I.6 | D48: Non-specified sources
B49: I.6.1 | C49: 1 | D49: Emissions from fuel combustion within the city boundary | E49: =IF(VLOOKUP(B49,'I - Stationary-FY 2016'!$B:$F,5,FALSE)="","",VLOOKUP(B49,'I - Stationary-FY 2016'!$B:$F,5,FALSE)) -> NO | F49: =SUMIF('I - Stationary-FY 2016'!$B:$B,$B49,'I - Stationary-FY 2016'!W:W) -> 0 | G49: =SUMIF('I - Stationary-FY 2016'!$B:$B,$B49,'I - Stationary-FY 2016'!X:X) -> 0 | H49: =SUMIF('I - Stationary-FY 2016'!$B:$B,$B49,'I - Stationary-FY 2016'!Y:Y) -> 0 | M49: =SUMIF('I - Stationary-FY 2016'!$B:$B,$B49,'I - Stationary-FY 2016'!Z:Z) -> 0 | N49: =SUMIF('I - Stationary-FY 2016'!$B:$B,$B49,'I - Stationary-FY 2016'!AA:AA) -> 0 | O49: =IF(VLOOKUP($B49,'I - Stationary-FY 2016'!$B:$AD,15,FALSE)="","",VLOOKUP($B49,'I - Stationary-FY 2016'!$B:$AD,15,FALSE)) -> 
B50: I.6.2 | C50: 2 | D50: Emissions from grid-supplied energy consumed within the city boundary | E50: =IF(VLOOKUP(B50,'I - Stationary-FY 2016'!$B:$F,5,FALSE)="","",VLOOKUP(B50,'I - Stationary-FY 2016'!$B:$F,5,FALSE)) -> NO | F50: =SUMIF('I - Stationary-FY 2016'!$B:$B,$B50,'I - Stationary-FY 2016'!W:W) -> 0 | G50: =SUMIF('I - Stationary-FY 2016'!$B:$B,$B50,'I - Stationary-FY 2016'!X:X) -> 0 | H50: =SUMIF('I - Stationary-FY 2016'!$B:$B,$B50,'I - Stationary-FY 2016'!Y:Y) -> 0 | M50: =SUMIF('I - Stationary-FY 2016'!$B:$B,$B50,'I - Stationary-FY 2016'!Z:Z) -> 0 | N50: =SUMIF('I - Stationary-FY 2016'!$B:$B,$B50,'I - Stationary-FY 2016'!AA:AA) -> 0 | O50: =IF(VLOOKUP($B50,'I - Stationary-FY 2016'!$B:$AD,15,FALSE)="","",VLOOKUP($B50,'I - Stationary-FY 2016'!$B:$AD,15,FALSE)) -> 
B51: I.6.3 | C51: 3 | D51: Emissions from transmission and distribution losses from grid-supplied energy consumption | E51: =IF(VLOOKUP(B51,'I - Stationary-FY 2016'!$B:$F,5,FALSE)="","",VLOOKUP(B51,'I - Stationary-FY 2016'!$B:$F,5,FALSE)) -> NO | F51: =SUMIF('I - Stationary-FY 2016'!$B:$B,$B51,'I - Stationary-FY 2016'!W:W) -> 0 | G51: =SUMIF('I - Stationary-FY 2016'!$B:$B,$B51,'I - Stationary-FY 2016'!X:X) -> 0 | H51: =SUMIF('I - Stationary-FY 2016'!$B:$B,$B51,'I - Stationary-FY 2016'!Y:Y) -> 0 | M51: =SUMIF('I - Stationary-FY 2016'!$B:$B,$B51,'I - Stationary-FY 2016'!Z:Z) -> 0 | N51: =SUMIF('I - Stationary-FY 2016'!$B:$B,$B51,'I - Stationary-FY 2016'!AA:AA) -> 0 | O51: =IF(VLOOKUP($B51,'I - Stationary-FY 2016'!$B:$AD,15,FALSE)="","",VLOOKUP($B51,'I - Stationary-FY 2016'!$B:$AD,15,FALSE)) -> 
B52: I.7 | C52: 1 | D52: Fugitive emissions from mining, processing, storage, and transportation of coal
B53: I.7.1 | C53: 1 | D53: Fugitive emissions from mining, processing, storage, and transportation of coal within the city boundary | E53: =IF(VLOOKUP(B53,'I - Stationary-FY 2016'!$B:$F,5,FALSE)="","",VLOOKUP(B53,'I - Stationary-FY 2016'!$B:$F,5,FALSE)) -> NO | F53: =SUMIF('I - Stationary-FY 2016'!$B:$B,$B53,'I - Stationary-FY 2016'!W:W) -> 0 | G53: =SUMIF('I - Stationary-FY 2016'!$B:$B,$B53,'I - Stationary-FY 2016'!X:X) -> 0 | H53: =SUMIF('I - Stationary-FY 2016'!$B:$B,$B53,'I - Stationary-FY 2016'!Y:Y) -> 0 | M53: =SUMIF('I - Stationary-FY 2016'!$B:$B,$B53,'I - Stationary-FY 2016'!Z:Z) -> 0 | N53: =SUMIF('I - Stationary-FY 2016'!$B:$B,$B53,'I - Stationary-FY 2016'!AA:AA) -> 0 | O53: =IF(VLOOKUP($B53,'I - Stationary-FY 2016'!$B:$AD,15,FALSE)="","",VLOOKUP($B53,'I - Stationary-FY 2016'!$B:$AD,15,FALSE)) -> 
B54: I.8 | C54: 1 | D54: Fugitive emissions from oil and natural gas systems
B55: I.8.1 | C55: 1 | D55: Fugitive emissions from oil and natural gas systems within the city boundary | O55: =IF(VLOOKUP($B55,'I - Stationary-FY 2016'!$B:$AD,15,FALSE)="","",VLOOKUP($B55,'I - Stationary-FY 2016'!$B:$AD,15,FALSE)) -> 
B56: I.8.1 | C56: 1 | D56: Municipal | F56: =SUMIFS('I - Stationary-FY 2016'!W:W,'I - Stationary-FY 2016'!$B:$B,$B56,'I - Stationary-FY 2016'!$E:$E,$D56) -> 0 | G56: =SUMIFS('I - Stationary-FY 2016'!X:X,'I - Stationary-FY 2016'!$B:$B,$B56,'I - Stationary-FY 2016'!$E:$E,$D56) -> 15.27410012 | H56: =SUMIFS('I - Stationary-FY 2016'!Y:Y,'I - Stationary-FY 2016'!$B:$B,$B56,'I - Stationary-FY 2016'!$E:$E,$D56) -> 0 | M56: =SUMIFS('I - Stationary-FY 2016'!Z:Z,'I - Stationary-FY 2016'!$B:$B,$B56,'I - Stationary-FY 2016'!$E:$E,$D56) -> 15.27410012 | N56: =SUMIFS('I - Stationary-FY 2016'!AA:AA,'I - Stationary-FY 2016'!$B:$B,$B56,'I - Stationary-FY 2016'!$E:$E,$D56) -> 0
B57: I.8.1 | C57: 1 | D57: UMass | F57: =SUMIFS('I - Stationary-FY 2016'!W:W,'I - Stationary-FY 2016'!$B:$B,$B57,'I - Stationary-FY 2016'!$E:$E,$D57) -> 0 | G57: =SUMIFS('I - Stationary-FY 2016'!X:X,'I - Stationary-FY 2016'!$B:$B,$B57,'I - Stationary-FY 2016'!$E:$E,$D57) -> 2331.502766 | H57: =SUMIFS('I - Stationary-FY 2016'!Y:Y,'I - Stationary-FY 2016'!$B:$B,$B57,'I - Stationary-FY 2016'!$E:$E,$D57) -> 0 | M57: =SUMIFS('I - Stationary-FY 2016'!Z:Z,'I - Stationary-FY 2016'!$B:$B,$B57,'I - Stationary-FY 2016'!$E:$E,$D57) -> 2331.502766 | N57: =SUMIFS('I - Stationary-FY 2016'!AA:AA,'I - Stationary-FY 2016'!$B:$B,$B57,'I - Stationary-FY 2016'!$E:$E,$D57) -> 0
B58: I.8.1 | C58: 1 | D58: Amherst College | F58: =SUMIFS('I - Stationary-FY 2016'!W:W,'I - Stationary-FY 2016'!$B:$B,$B58,'I - Stationary-FY 2016'!$E:$E,$D58) -> 0 | G58: =SUMIFS('I - Stationary-FY 2016'!X:X,'I - Stationary-FY 2016'!$B:$B,$B58,'I - Stationary-FY 2016'!$E:$E,$D58) -> 353.0749213 | H58: =SUMIFS('I - Stationary-FY 2016'!Y:Y,'I - Stationary-FY 2016'!$B:$B,$B58,'I - Stationary-FY 2016'!$E:$E,$D58) -> 0 | M58: =SUMIFS('I - Stationary-FY 2016'!Z:Z,'I - Stationary-FY 2016'!$B:$B,$B58,'I - Stationary-FY 2016'!$E:$E,$D58) -> 353.0749213 | N58: =SUMIFS('I - Stationary-FY 2016'!AA:AA,'I - Stationary-FY 2016'!$B:$B,$B58,'I - Stationary-FY 2016'!$E:$E,$D58) -> 0
B59: I.8.1 | C59: 1 | D59: Hampshire College | F59: =SUMIFS('I - Stationary-FY 2016'!W:W,'I - Stationary-FY 2016'!$B:$B,$B59,'I - Stationary-FY 2016'!$E:$E,$D59) -> 0 | G59: =SUMIFS('I - Stationary-FY 2016'!X:X,'I - Stationary-FY 2016'!$B:$B,$B59,'I - Stationary-FY 2016'!$E:$E,$D59) -> 0 | H59: =SUMIFS('I - Stationary-FY 2016'!Y:Y,'I - Stationary-FY 2016'!$B:$B,$B59,'I - Stationary-FY 2016'!$E:$E,$D59) -> 0 | M59: =SUMIFS('I - Stationary-FY 2016'!Z:Z,'I - Stationary-FY 2016'!$B:$B,$B59,'I - Stationary-FY 2016'!$E:$E,$D59) -> 0 | N59: =SUMIFS('I - Stationary-FY 2016'!AA:AA,'I - Stationary-FY 2016'!$B:$B,$B59,'I - Stationary-FY 2016'!$E:$E,$D59) -> 0
B60: I.8.1 | C60: 1 | D60: Community | F60: =SUMIFS('I - Stationary-FY 2016'!W:W,'I - Stationary-FY 2016'!$B:$B,$B60,'I - Stationary-FY 2016'!$E:$E,$D60) -> 0 | G60: =SUMIFS('I - Stationary-FY 2016'!X:X,'I - Stationary-FY 2016'!$B:$B,$B60,'I - Stationary-FY 2016'!$E:$E,$D60) -> 759.592958 | H60: =SUMIFS('I - Stationary-FY 2016'!Y:Y,'I - Stationary-FY 2016'!$B:$B,$B60,'I - Stationary-FY 2016'!$E:$E,$D60) -> 0 | M60: =SUMIFS('I - Stationary-FY 2016'!Z:Z,'I - Stationary-FY 2016'!$B:$B,$B60,'I - Stationary-FY 2016'!$E:$E,$D60) -> 759.592958 | N60: =SUMIFS('I - Stationary-FY 2016'!AA:AA,'I - Stationary-FY 2016'!$B:$B,$B60,'I - Stationary-FY 2016'!$E:$E,$D60) -> 0
B61: II | D61: TRANSPORTATION
B62: II.1 | D62: On-road transportation
B63: II.1.1 | C63: 1 | D63: Emissions from fuel combustion on-road transportation occurring in the city | E63: =IF(VLOOKUP(B63,'II - Transport-FY 2016'!$B:$G,6,FALSE)="","",VLOOKUP(B63,'II - Transport-FY 2016'!$B:$G,6,FALSE)) ->  | O63: =IF(VLOOKUP($B63,'II - Transport-FY 2016'!$B:$AE,17,FALSE)="","",VLOOKUP($B63,'II - Transport-FY 2016'!$B:$AE,17,FALSE)) -> 
B64: II.1.1(s) | C64: 1 | D64: Municipal | F64: =SUMIFS('II - Transport-FY 2016'!X:X,'II - Transport-FY 2016'!$B:$B,$B64,'II - Transport-FY 2016'!$F:$F,$D64) -> 1459.86717 | G64: =SUMIFS('II - Transport-FY 2016'!Y:Y,'II - Transport-FY 2016'!$B:$B,$B64,'II - Transport-FY 2016'!$F:$F,$D64) -> 5.088546904 | H64: =SUMIFS('II - Transport-FY 2016'!Z:Z,'II - Transport-FY 2016'!$B:$B,$B64,'II - Transport-FY 2016'!$F:$F,$D64) -> 542.9374969 | M64: =SUMIFS('II - Transport-FY 2016'!AA:AA,'II - Transport-FY 2016'!$B:$B,$B64,'II - Transport-FY 2016'!$F:$F,$D64) -> 2007.893214 | N64: =SUMIFS('II - Transport-FY 2016'!AB:AB,'II - Transport-FY 2016'!$B:$B,$B64,'II - Transport-FY 2016'!$F:$F,$D64) -> 0 | O64: II.1.1(s) stands for subset. Emissions are assumed to be accounted for in community emissions.
B65: II.1.1(s) | C65: 1 | D65: UMass | F65: =SUMIFS('II - Transport-FY 2016'!X:X,'II - Transport-FY 2016'!$B:$B,$B65,'II - Transport-FY 2016'!$F:$F,$D65) -> 1800.82747 | G65: =SUMIFS('II - Transport-FY 2016'!Y:Y,'II - Transport-FY 2016'!$B:$B,$B65,'II - Transport-FY 2016'!$F:$F,$D65) -> 4.555750248 | H65: =SUMIFS('II - Transport-FY 2016'!Z:Z,'II - Transport-FY 2016'!$B:$B,$B65,'II - Transport-FY 2016'!$F:$F,$D65) -> 390.0355571 | M65: =SUMIFS('II - Transport-FY 2016'!AA:AA,'II - Transport-FY 2016'!$B:$B,$B65,'II - Transport-FY 2016'!$F:$F,$D65) -> 2195.418777 | N65: =SUMIFS('II - Transport-FY 2016'!AB:AB,'II - Transport-FY 2016'!$B:$B,$B65,'II - Transport-FY 2016'!$F:$F,$D65) -> 24.67395 | O65: II.1.1(s) stands for subset. Emissions are assumed to be accounted for in community emissions.
B66: II.1.1(s) | C66: 1 | D66: Amherst College | F66: =SUMIFS('II - Transport-FY 2016'!X:X,'II - Transport-FY 2016'!$B:$B,$B66,'II - Transport-FY 2016'!$F:$F,$D66) -> 219.6694 | G66: =SUMIFS('II - Transport-FY 2016'!Y:Y,'II - Transport-FY 2016'!$B:$B,$B66,'II - Transport-FY 2016'!$F:$F,$D66) -> 0.628572448 | H66: =SUMIFS('II - Transport-FY 2016'!Z:Z,'II - Transport-FY 2016'!$B:$B,$B66,'II - Transport-FY 2016'!$F:$F,$D66) -> 59.41591924 | M66: =SUMIFS('II - Transport-FY 2016'!AA:AA,'II - Transport-FY 2016'!$B:$B,$B66,'II - Transport-FY 2016'!$F:$F,$D66) -> 279.7138917 | N66: =SUMIFS('II - Transport-FY 2016'!AB:AB,'II - Transport-FY 2016'!$B:$B,$B66,'II - Transport-FY 2016'!$F:$F,$D66) -> 0 | O66: II.1.1(s) stands for subset. Emissions are assumed to be accounted for in community emissions.
B67: II.1.1 | C67: 1 | D67: City Buses | F67: =SUMIFS('II - Transport-FY 2016'!X:X,'II - Transport-FY 2016'!$B:$B,$B67,'II - Transport-FY 2016'!$F:$F,$D67) -> 1486.786721 | G67: =SUMIFS('II - Transport-FY 2016'!Y:Y,'II - Transport-FY 2016'!$B:$B,$B67,'II - Transport-FY 2016'!$F:$F,$D67) -> 8.326005636 | H67: =SUMIFS('II - Transport-FY 2016'!Z:Z,'II - Transport-FY 2016'!$B:$B,$B67,'II - Transport-FY 2016'!$F:$F,$D67) -> 1063.795899 | M67: =SUMIFS('II - Transport-FY 2016'!AA:AA,'II - Transport-FY 2016'!$B:$B,$B67,'II - Transport-FY 2016'!$F:$F,$D67) -> 2558.908625 | N67: =SUMIFS('II - Transport-FY 2016'!AB:AB,'II - Transport-FY 2016'!$B:$B,$B67,'II - Transport-FY 2016'!$F:$F,$D67) -> 0
B68: II.1.1 | C68: 1 | D68: Community | F68: =SUM(SUMIFS('II - Transport-FY 2016'!X:X,'II - Transport-FY 2016'!$B:$B,$B68,'II - Transport-FY 2016'!$F:$F,{"Passenger Cars","Light Trucks","Motorcycles","Heavy Trucks","Other Vehicles"})) -> 56945.0597 | G68: =SUM(SUMIFS('II - Transport-FY 2016'!Y:Y,'II - Transport-FY 2016'!$B:$B,$B68,'II - Transport-FY 2016'!$F:$F,{"Passenger Cars","Light Trucks","Motorcycles","Heavy Trucks","Other Vehicles"})) -> 0 | H68: =SUM(SUMIFS('II - Transport-FY 2016'!Z:Z,'II - Transport-FY 2016'!$B:$B,$B68,'II - Transport-FY 2016'!$F:$F,{"Passenger Cars","Light Trucks","Motorcycles","Heavy Trucks","Other Vehicles"})) -> 0 | I68: =SUM(SUMIFS('II - Transport-FY 2016'!AA:AA,'II - Transport-FY 2016'!$B:$B,$B68,'II - Transport-FY 2016'!$F:$F,{"Passenger Cars","Light Trucks","Motorcycles","Heavy Trucks","Other Vehicles"})) -> 56945.0597 | J68: =SUM(SUMIFS('II - Transport-FY 2016'!AB:AB,'II - Transport-FY 2016'!$B:$B,$B68,'II - Transport-FY 2016'!$F:$F,{"Passenger Cars","Light Trucks","Motorcycles","Heavy Trucks","Other Vehicles"})) -> 0 | K68: =SUM(SUMIFS('II - Transport-FY 2016'!AC:AC,'II - Transport-FY 2016'!$B:$B,$B68,'II - Transport-FY 2016'!$F:$F,{"Passenger Cars","Light Trucks","Motorcycles","Heavy Trucks","Other Vehicles"})) -> 0 | L68: =SUM(SUMIFS('II - Transport-FY 2016'!AD:AD,'II - Transport-FY 2016'!$B:$B,$B68,'II - Transport-FY 2016'!$F:$F,{"Passenger Cars","Light Trucks","Motorcycles","Heavy Trucks","Other Vehicles"})) -> 0 | M68: =SUM(SUMIFS('II - Transport-FY 2016'!AA:AA,'II - Transport-FY 2016'!$B:$B,$B68,'II - Transport-FY 2016'!$F:$F,{"Passenger Cars","Light Trucks","Motorcycles","Heavy Trucks","Other Vehicles"})) -> 56945.0597 | N68: =SUM(SUMIFS('II - Transport-FY 2016'!AB:AB,'II - Transport-FY 2016'!$B:$B,$B68,'II - Transport-FY 2016'!$F:$F,{"Passenger Cars","Light Trucks","Motorcycles","Heavy Trucks","Other Vehicles"})) -> 0
B69: II.1.2 | C69: 2 | D69: Emissions from grid-supplied energy consumed in the city for on-road transportation | E69: =IF(VLOOKUP(B69,'II - Transport-FY 2016'!$B:$G,6,FALSE)="","",VLOOKUP(B69,'II - Transport-FY 2016'!$B:$G,6,FALSE)) -> IE | F69: =SUMIF('II - Transport-FY 2016'!$B:$B,$B69,'II - Transport-FY 2016'!X:X) -> 0 | G69: =SUMIF('II - Transport-FY 2016'!$B:$B,$B69,'II - Transport-FY 2016'!Y:Y) -> 0 | H69: =SUMIF('II - Transport-FY 2016'!$B:$B,$B69,'II - Transport-FY 2016'!Z:Z) -> 0 | M69: =SUMIF('II - Transport-FY 2016'!$B:$B,$B69,'II - Transport-FY 2016'!AA:AA) -> 0 | N69: =SUMIF('II - Transport-FY 2016'!$B:$B,$B69,'II - Transport-FY 2016'!AB:AB) -> 0 | O69: =IF(VLOOKUP($B69,'II - Transport-FY 2016'!$B:$AE,17,FALSE)="","",VLOOKUP($B69,'II - Transport-FY 2016'!$B:$AE,17,FALSE)) -> 
B70: II.1.3 | C70: 3 | D70: Emissions from transboundary journeys occurring outside the city, and T and D losses from grid-supplied energy use | E70: =IF(VLOOKUP(B70,'II - Transport-FY 2016'!$B:$G,6,FALSE)="","",VLOOKUP(B70,'II - Transport-FY 2016'!$B:$G,6,FALSE)) -> IE | F70: =SUMIF('II - Transport-FY 2016'!$B:$B,$B70,'II - Transport-FY 2016'!X:X) -> 0 | G70: =SUMIF('II - Transport-FY 2016'!$B:$B,$B70,'II - Transport-FY 2016'!Y:Y) -> 0 | H70: =SUMIF('II - Transport-FY 2016'!$B:$B,$B70,'II - Transport-FY 2016'!Z:Z) -> 0 | M70: =SUMIF('II - Transport-FY 2016'!$B:$B,$B70,'II - Transport-FY 2016'!AA:AA) -> 0 | N70: =SUMIF('II - Transport-FY 2016'!$B:$B,$B70,'II - Transport-FY 2016'!AB:AB) -> 0 | O70: =IF(VLOOKUP($B70,'II - Transport-FY 2016'!$B:$AE,17,FALSE)="","",VLOOKUP($B70,'II - Transport-FY 2016'!$B:$AE,17,FALSE)) -> 
B71: II.2 | D71: Railways
B72: II.2.1 | C72: 1 | D72: Emissions from fuel combustion for railway transportation occurring in the city | E72: =IF(VLOOKUP(B72,'II - Transport-FY 2016'!$B:$G,6,FALSE)="","",VLOOKUP(B72,'II - Transport-FY 2016'!$B:$G,6,FALSE)) -> NO | F72: =SUMIF('II - Transport-FY 2016'!$B:$B,$B72,'II - Transport-FY 2016'!X:X) -> 0 | G72: =SUMIF('II - Transport-FY 2016'!$B:$B,$B72,'II - Transport-FY 2016'!Y:Y) -> 0 | H72: =SUMIF('II - Transport-FY 2016'!$B:$B,$B72,'II - Transport-FY 2016'!Z:Z) -> 0 | M72: =SUMIF('II - Transport-FY 2016'!$B:$B,$B72,'II - Transport-FY 2016'!AA:AA) -> 0 | N72: =SUMIF('II - Transport-FY 2016'!$B:$B,$B72,'II - Transport-FY 2016'!AB:AB) -> 0 | O72: =IF(VLOOKUP($B72,'II - Transport-FY 2016'!$B:$AE,17,FALSE)="","",VLOOKUP($B72,'II - Transport-FY 2016'!$B:$AE,17,FALSE)) -> 
B73: II.2.2 | C73: 2 | D73: Emissions from grid-supplied energy consumed in the city for railways | E73: =IF(VLOOKUP(B73,'II - Transport-FY 2016'!$B:$G,6,FALSE)="","",VLOOKUP(B73,'II - Transport-FY 2016'!$B:$G,6,FALSE)) -> NO | F73: =SUMIF('II - Transport-FY 2016'!$B:$B,$B73,'II - Transport-FY 2016'!X:X) -> 0 | G73: =SUMIF('II - Transport-FY 2016'!$B:$B,$B73,'II - Transport-FY 2016'!Y:Y) -> 0 | H73: =SUMIF('II - Transport-FY 2016'!$B:$B,$B73,'II - Transport-FY 2016'!Z:Z) -> 0 | M73: =SUMIF('II - Transport-FY 2016'!$B:$B,$B73,'II - Transport-FY 2016'!AA:AA) -> 0 | N73: =SUMIF('II - Transport-FY 2016'!$B:$B,$B73,'II - Transport-FY 2016'!AB:AB) -> 0 | O73: =IF(VLOOKUP($B73,'II - Transport-FY 2016'!$B:$AE,17,FALSE)="","",VLOOKUP($B73,'II - Transport-FY 2016'!$B:$AE,17,FALSE)) -> 
B74: II.2.3 | C74: 3 | D74: Emissions from transboundary journeys occurring outside the city, and T and D losses from grid-supplied energy use | E74: =IF(VLOOKUP(B74,'II - Transport-FY 2016'!$B:$G,6,FALSE)="","",VLOOKUP(B74,'II - Transport-FY 2016'!$B:$G,6,FALSE)) -> NO | F74: =SUMIF('II - Transport-FY 2016'!$B:$B,$B74,'II - Transport-FY 2016'!X:X) -> 0 | G74: =SUMIF('II - Transport-FY 2016'!$B:$B,$B74,'II - Transport-FY 2016'!Y:Y) -> 0 | H74: =SUMIF('II - Transport-FY 2016'!$B:$B,$B74,'II - Transport-FY 2016'!Z:Z) -> 0 | M74: =SUMIF('II - Transport-FY 2016'!$B:$B,$B74,'II - Transport-FY 2016'!AA:AA) -> 0 | N74: =SUMIF('II - Transport-FY 2016'!$B:$B,$B74,'II - Transport-FY 2016'!AB:AB) -> 0 | O74: =IF(VLOOKUP($B74,'II - Transport-FY 2016'!$B:$AE,17,FALSE)="","",VLOOKUP($B74,'II - Transport-FY 2016'!$B:$AE,17,FALSE)) -> 
B75: II.3 | D75: Waterborne navigation
B76: II.3.1 | C76: 1 | D76: Emissions from fuel combustion for waterborne navigation occurring in the city | E76: =IF(VLOOKUP(B76,'II - Transport-FY 2016'!$B:$G,6,FALSE)="","",VLOOKUP(B76,'II - Transport-FY 2016'!$B:$G,6,FALSE)) -> NO | F76: =SUMIF('II - Transport-FY 2016'!$B:$B,$B76,'II - Transport-FY 2016'!X:X) -> 0 | G76: =SUMIF('II - Transport-FY 2016'!$B:$B,$B76,'II - Transport-FY 2016'!Y:Y) -> 0 | H76: =SUMIF('II - Transport-FY 2016'!$B:$B,$B76,'II - Transport-FY 2016'!Z:Z) -> 0 | M76: =SUMIF('II - Transport-FY 2016'!$B:$B,$B76,'II - Transport-FY 2016'!AA:AA) -> 0 | N76: =SUMIF('II - Transport-FY 2016'!$B:$B,$B76,'II - Transport-FY 2016'!AB:AB) -> 0 | O76: =IF(VLOOKUP($B76,'II - Transport-FY 2016'!$B:$AE,17,FALSE)="","",VLOOKUP($B76,'II - Transport-FY 2016'!$B:$AE,17,FALSE)) -> 
B77: II.3.2 | C77: 2 | D77: Emissions from grid-supplied energy consumed in the city for waterborne navigation | E77: =IF(VLOOKUP(B77,'II - Transport-FY 2016'!$B:$G,6,FALSE)="","",VLOOKUP(B77,'II - Transport-FY 2016'!$B:$G,6,FALSE)) -> NO | F77: =SUMIF('II - Transport-FY 2016'!$B:$B,$B77,'II - Transport-FY 2016'!X:X) -> 0 | G77: =SUMIF('II - Transport-FY 2016'!$B:$B,$B77,'II - Transport-FY 2016'!Y:Y) -> 0 | H77: =SUMIF('II - Transport-FY 2016'!$B:$B,$B77,'II - Transport-FY 2016'!Z:Z) -> 0 | M77: =SUMIF('II - Transport-FY 2016'!$B:$B,$B77,'II - Transport-FY 2016'!AA:AA) -> 0 | N77: =SUMIF('II - Transport-FY 2016'!$B:$B,$B77,'II - Transport-FY 2016'!AB:AB) -> 0 | O77: =IF(VLOOKUP($B77,'II - Transport-FY 2016'!$B:$AE,17,FALSE)="","",VLOOKUP($B77,'II - Transport-FY 2016'!$B:$AE,17,FALSE)) -> 
B78: II.3.3 | C78: 3 | D78: Emissions from transboundary journeys occurring outside the city, and T and D losses from grid-supplied energy use | E78: =IF(VLOOKUP(B78,'II - Transport-FY 2016'!$B:$G,6,FALSE)="","",VLOOKUP(B78,'II - Transport-FY 2016'!$B:$G,6,FALSE)) -> NO | F78: =SUMIF('II - Transport-FY 2016'!$B:$B,$B78,'II - Transport-FY 2016'!X:X) -> 0 | G78: =SUMIF('II - Transport-FY 2016'!$B:$B,$B78,'II - Transport-FY 2016'!Y:Y) -> 0 | H78: =SUMIF('II - Transport-FY 2016'!$B:$B,$B78,'II - Transport-FY 2016'!Z:Z) -> 0 | M78: =SUMIF('II - Transport-FY 2016'!$B:$B,$B78,'II - Transport-FY 2016'!AA:AA) -> 0 | N78: =SUMIF('II - Transport-FY 2016'!$B:$B,$B78,'II - Transport-FY 2016'!AB:AB) -> 0 | O78: =IF(VLOOKUP($B78,'II - Transport-FY 2016'!$B:$AE,17,FALSE)="","",VLOOKUP($B78,'II - Transport-FY 2016'!$B:$AE,17,FALSE)) -> 
B79: II.4 | D79: Aviation
B80: II.4.1 | C80: 1 | D80: Emissions from fuel combustion for aviation occurring in the city | E80: =IF(VLOOKUP(B80,'II - Transport-FY 2016'!$B:$G,6,FALSE)="","",VLOOKUP(B80,'II - Transport-FY 2016'!$B:$G,6,FALSE)) -> NO | F80: =SUMIF('II - Transport-FY 2016'!$B:$B,$B80,'II - Transport-FY 2016'!X:X) -> 0 | G80: =SUMIF('II - Transport-FY 2016'!$B:$B,$B80,'II - Transport-FY 2016'!Y:Y) -> 0 | H80: =SUMIF('II - Transport-FY 2016'!$B:$B,$B80,'II - Transport-FY 2016'!Z:Z) -> 0 | M80: =SUMIF('II - Transport-FY 2016'!$B:$B,$B80,'II - Transport-FY 2016'!AA:AA) -> 0 | N80: =SUMIF('II - Transport-FY 2016'!$B:$B,$B80,'II - Transport-FY 2016'!AB:AB) -> 0 | O80: =IF(VLOOKUP($B80,'II - Transport-FY 2016'!$B:$AE,17,FALSE)="","",VLOOKUP($B80,'II - Transport-FY 2016'!$B:$AE,17,FALSE)) -> 
B81: II.4.2 | C81: 2 | D81: Emissions from grid-supplied energy consumed in the city for aviation | E81: =IF(VLOOKUP(B81,'II - Transport-FY 2016'!$B:$G,6,FALSE)="","",VLOOKUP(B81,'II - Transport-FY 2016'!$B:$G,6,FALSE)) -> NO | F81: =SUMIF('II - Transport-FY 2016'!$B:$B,$B81,'II - Transport-FY 2016'!X:X) -> 0 | G81: =SUMIF('II - Transport-FY 2016'!$B:$B,$B81,'II - Transport-FY 2016'!Y:Y) -> 0 | H81: =SUMIF('II - Transport-FY 2016'!$B:$B,$B81,'II - Transport-FY 2016'!Z:Z) -> 0 | M81: =SUMIF('II - Transport-FY 2016'!$B:$B,$B81,'II - Transport-FY 2016'!AA:AA) -> 0 | N81: =SUMIF('II - Transport-FY 2016'!$B:$B,$B81,'II - Transport-FY 2016'!AB:AB) -> 0 | O81: =IF(VLOOKUP($B81,'II - Transport-FY 2016'!$B:$AE,17,FALSE)="","",VLOOKUP($B81,'II - Transport-FY 2016'!$B:$AE,17,FALSE)) -> 
B82: II.4.3 | C82: 3 | D82: Emissions from transboundary journeys occurring outside the city, and T and D losses from grid-supplied energy use | E82: =IF(VLOOKUP(B82,'II - Transport-FY 2016'!$B:$G,6,FALSE)="","",VLOOKUP(B82,'II - Transport-FY 2016'!$B:$G,6,FALSE)) -> NO | F82: =SUMIF('II - Transport-FY 2016'!$B:$B,$B82,'II - Transport-FY 2016'!X:X) -> 0 | G82: =SUMIF('II - Transport-FY 2016'!$B:$B,$B82,'II - Transport-FY 2016'!Y:Y) -> 0 | H82: =SUMIF('II - Transport-FY 2016'!$B:$B,$B82,'II - Transport-FY 2016'!Z:Z) -> 0 | M82: =SUMIF('II - Transport-FY 2016'!$B:$B,$B82,'II - Transport-FY 2016'!AA:AA) -> 0 | N82: =SUMIF('II - Transport-FY 2016'!$B:$B,$B82,'II - Transport-FY 2016'!AB:AB) -> 0 | O82: =IF(VLOOKUP($B82,'II - Transport-FY 2016'!$B:$AE,17,FALSE)="","",VLOOKUP($B82,'II - Transport-FY 2016'!$B:$AE,17,FALSE)) -> 
B83: II.5 | D83: Off-road transportation
B84: II.5.1 | C84: 1 | D84: Emissions from fuel combustion for off-road transportation occurring in the city | E84: =IF(VLOOKUP(B84,'II - Transport-FY 2016'!$B:$G,6,FALSE)="","",VLOOKUP(B84,'II - Transport-FY 2016'!$B:$G,6,FALSE)) ->  | N84: =SUMIF('II - Transport-FY 2016'!$B:$B,$B84,'II - Transport-FY 2016'!AB:AB) -> 0 | O84: =IF(VLOOKUP($B84,'II - Transport-FY 2016'!$B:$AE,17,FALSE)="","",VLOOKUP($B84,'II - Transport-FY 2016'!$B:$AE,17,FALSE)) -> 
B85: II.5.1 | C85: 1 | D85: Municipal | F85: =SUMIFS('II - Transport-FY 2016'!X:X,'II - Transport-FY 2016'!$B:$B,$B85,'II - Transport-FY 2016'!$F:$F,$D85) -> 9.16531434 | G85: =SUMIFS('II - Transport-FY 2016'!Y:Y,'II - Transport-FY 2016'!$B:$B,$B85,'II - Transport-FY 2016'!$F:$F,$D85) -> 0.01211112 | H85: =SUMIFS('II - Transport-FY 2016'!Z:Z,'II - Transport-FY 2016'!$B:$B,$B85,'II - Transport-FY 2016'!$F:$F,$D85) -> 0.0212265 | M85: =SUMIFS('II - Transport-FY 2016'!AA:AA,'II - Transport-FY 2016'!$B:$B,$B85,'II - Transport-FY 2016'!$F:$F,$D85) -> 9.19865196 | N85: =SUMIFS('II - Transport-FY 2016'!AB:AB,'II - Transport-FY 2016'!$B:$B,$B85,'II - Transport-FY 2016'!$F:$F,$D85) -> 0
B86: II.5.1 | C86: 1 | D86: Community | F86: =SUM(SUMIFS('II - Transport-FY 2016'!X:X,'II - Transport-FY 2016'!$B:$B,$B86,'II - Transport-FY 2016'!$F:$F,{"Agriculture","Commercial","Lawn & Garden","Construction","Industrial"})) -> 7315.851608 | G86: =SUM(SUMIFS('II - Transport-FY 2016'!Y:Y,'II - Transport-FY 2016'!$B:$B,$B86,'II - Transport-FY 2016'!$F:$F,{"Agriculture","Commercial","Lawn & Garden","Construction","Industrial"})) -> 3.108788089 | H86: =SUM(SUMIFS('II - Transport-FY 2016'!Z:Z,'II - Transport-FY 2016'!$B:$B,$B86,'II - Transport-FY 2016'!$F:$F,{"Agriculture","Commercial","Lawn & Garden","Construction","Industrial"})) -> 0 | I86: =SUM(SUMIFS('II - Transport-FY 2016'!AA:AA,'II - Transport-FY 2016'!$B:$B,$B86,'II - Transport-FY 2016'!$F:$F,{"Agriculture","Commercial","Lawn & Garden","Construction","Industrial"})) -> 7402.897675 | J86: =SUM(SUMIFS('II - Transport-FY 2016'!AB:AB,'II - Transport-FY 2016'!$B:$B,$B86,'II - Transport-FY 2016'!$F:$F,{"Agriculture","Commercial","Lawn & Garden","Construction","Industrial"})) -> 0 | K86: =SUM(SUMIFS('II - Transport-FY 2016'!AC:AC,'II - Transport-FY 2016'!$B:$B,$B86,'II - Transport-FY 2016'!$F:$F,{"Agriculture","Commercial","Lawn & Garden","Construction","Industrial"})) -> 0 | L86: =SUM(SUMIFS('II - Transport-FY 2016'!AD:AD,'II - Transport-FY 2016'!$B:$B,$B86,'II - Transport-FY 2016'!$F:$F,{"Agriculture","Commercial","Lawn & Garden","Construction","Industrial"})) -> 0 | M86: =SUM(SUMIFS('II - Transport-FY 2016'!AA:AA,'II - Transport-FY 2016'!$B:$B,$B86,'II - Transport-FY 2016'!$F:$F,{"Agriculture","Commercial","Lawn & Garden","Construction","Industrial"})) -> 7402.897675 | N86: =SUM(SUMIFS('II - Transport-FY 2016'!AB:AB,'II - Transport-FY 2016'!$B:$B,$B86,'II - Transport-FY 2016'!$F:$F,{"Agriculture","Commercial","Lawn & Garden","Construction","Industrial"})) -> 0
B87: II.5.2 | C87: 2 | D87: Emissions from grid-supplied energy consumed in the city for off-road transportation | E87: =IF(VLOOKUP(B87,'II - Transport-FY 2016'!$B:$G,6,FALSE)="","",VLOOKUP(B87,'II - Transport-FY 2016'!$B:$G,6,FALSE)) -> NO | F87: =SUMIF('II - Transport-FY 2016'!$B:$B,$B87,'II - Transport-FY 2016'!X:X) -> 0 | G87: =SUMIF('II - Transport-FY 2016'!$B:$B,$B87,'II - Transport-FY 2016'!Y:Y) -> 0 | H87: =SUMIF('II - Transport-FY 2016'!$B:$B,$B87,'II - Transport-FY 2016'!Z:Z) -> 0 | M87: =SUMIF('II - Transport-FY 2016'!$B:$B,$B87,'II - Transport-FY 2016'!AA:AA) -> 0 | N87: =SUMIF('II - Transport-FY 2016'!$B:$B,$B87,'II - Transport-FY 2016'!AB:AB) -> 0 | O87: =IF(VLOOKUP($B87,'II - Transport-FY 2016'!$B:$AE,17,FALSE)="","",VLOOKUP($B87,'II - Transport-FY 2016'!$B:$AE,17,FALSE)) -> 
B88: II.5.3 | C88: 3 | D88: Emissions from transboundary journeys occurring outside the city, and T and D losses from grid-supplied energy use | E88: =IF(VLOOKUP(B88,'II - Transport-FY 2016'!$B:$G,6,FALSE)="","",VLOOKUP(B88,'II - Transport-FY 2016'!$B:$G,6,FALSE)) -> NO | F88: =SUMIF('II - Transport-FY 2016'!$B:$B,$B88,'II - Transport-FY 2016'!X:X) -> 0 | G88: =SUMIF('II - Transport-FY 2016'!$B:$B,$B88,'II - Transport-FY 2016'!Y:Y) -> 0 | H88: =SUMIF('II - Transport-FY 2016'!$B:$B,$B88,'II - Transport-FY 2016'!Z:Z) -> 0 | M88: =SUMIF('II - Transport-FY 2016'!$B:$B,$B88,'II - Transport-FY 2016'!AA:AA) -> 0 | N88: =SUMIF('II - Transport-FY 2016'!$B:$B,$B88,'II - Transport-FY 2016'!AB:AB) -> 0 | O88: =IF(VLOOKUP($B88,'II - Transport-FY 2016'!$B:$AE,17,FALSE)="","",VLOOKUP($B88,'II - Transport-FY 2016'!$B:$AE,17,FALSE)) -> 
B89: III | D89: WASTE
B90: III.1 | D90: Solid waste disposal
B91: III.1.1 | C91: 1 | D91: Emissions from solid waste generated in the city and disposed in landfills or open dumps within the city | E91: =IF(VLOOKUP(B91,'III - Waste-FY 2016'!$B:$G,6,FALSE)="","",VLOOKUP(B91,'III - Waste-FY 2016'!$B:$G,6,FALSE)) -> NO | F91: =SUMIF('III - Waste-FY 2016'!$B:$B,$B91,'III - Waste-FY 2016'!AA:AA) -> 0 | G91: =SUMIF('III - Waste-FY 2016'!$B:$B,$B91,'III - Waste-FY 2016'!AB:AB) -> 0 | H91: =SUMIF('III - Waste-FY 2016'!$B:$B,$B91,'III - Waste-FY 2016'!AC:AC) -> 0 | M91: =SUMIF('III - Waste-FY 2016'!$B:$B,$B91,'III - Waste-FY 2016'!AD:AD) -> 0 | N91: =SUMIF('III - Waste-FY 2016'!$B:$B,$B91,'III - Waste-FY 2016'!AE:AE) -> 0 | O91: =IF(VLOOKUP($B91,'III - Waste-FY 2016'!$B:$AH,17,FALSE)="","",VLOOKUP($B91,'III - Waste-FY 2016'!$B:$AH,17,FALSE)) -> 
B92: III.1.2 | C92: 3 | D92: Emissions from solid waste generated in the city but disposed in landfills or open dumps outside the city | E92: =IF(VLOOKUP(B92,'III - Waste-FY 2016'!$B:$G,6,FALSE)="","",VLOOKUP(B92,'III - Waste-FY 2016'!$B:$G,6,FALSE)) ->  | O92: =IF(VLOOKUP($B92,'III - Waste-FY 2016'!$B:$AH,17,FALSE)="","",VLOOKUP($B92,'III - Waste-FY 2016'!$B:$AH,17,FALSE)) -> 
B93: III.1.2 | C93: 3 | D93: Community | E93: =IF(VLOOKUP(B93,'III - Waste-FY 2016'!$B:$G,6,FALSE)="","",VLOOKUP(B93,'III - Waste-FY 2016'!$B:$G,6,FALSE)) ->  | F93: =SUMIFS('III - Waste-FY 2016'!AA:AA,'III - Waste-FY 2016'!$B:$B,$B93,'III - Waste-FY 2016'!$F:$F,$D93) -> 0 | G93: =SUMIFS('III - Waste-FY 2016'!AB:AB,'III - Waste-FY 2016'!$B:$B,$B93,'III - Waste-FY 2016'!$F:$F,$D93) -> 1513.698562 | H93: =SUMIFS('III - Waste-FY 2016'!AC:AC,'III - Waste-FY 2016'!$B:$B,$B93,'III - Waste-FY 2016'!$F:$F,$D93) -> 0 | I93: =SUMIFS('III - Waste-FY 2016'!AD:AD,'III - Waste-FY 2016'!$B:$B,$B93,'III - Waste-FY 2016'!$F:$F,$D93) -> 1513.698562 | J93: =SUMIFS('III - Waste-FY 2016'!AE:AE,'III - Waste-FY 2016'!$B:$B,$B93,'III - Waste-FY 2016'!$F:$F,$D93) -> 0 | K93: =SUMIFS('III - Waste-FY 2016'!AF:AF,'III - Waste-FY 2016'!$B:$B,$B93,'III - Waste-FY 2016'!$F:$F,$D93) -> 0 | L93: =SUMIFS('III - Waste-FY 2016'!AG:AG,'III - Waste-FY 2016'!$B:$B,$B93,'III - Waste-FY 2016'!$F:$F,$D93) -> 0 | M93: =SUMIFS('III - Waste-FY 2016'!AD:AD,'III - Waste-FY 2016'!$B:$B,$B93,'III - Waste-FY 2016'!$F:$F,$D93) -> 1513.698562 | N93: =SUMIFS('III - Waste-FY 2016'!AE:AE,'III - Waste-FY 2016'!$B:$B,$B93,'III - Waste-FY 2016'!$F:$F,$D93) -> 0 | O93: =IF(VLOOKUP($B93,'III - Waste-FY 2016'!$B:$AH,17,FALSE)="","",VLOOKUP($B93,'III - Waste-FY 2016'!$B:$AH,17,FALSE)) -> 
B94: III.1.2 | C94: 3 | D94: UMass | E94: =IF(VLOOKUP(B94,'III - Waste-FY 2016'!$B:$G,6,FALSE)="","",VLOOKUP(B94,'III - Waste-FY 2016'!$B:$G,6,FALSE)) ->  | F94: =SUMIFS('III - Waste-FY 2016'!AA:AA,'III - Waste-FY 2016'!$B:$B,$B94,'III - Waste-FY 2016'!$F:$F,$D94) -> 0 | G94: =SUMIFS('III - Waste-FY 2016'!AB:AB,'III - Waste-FY 2016'!$B:$B,$B94,'III - Waste-FY 2016'!$F:$F,$D94) -> 943.9726649 | H94: =SUMIFS('III - Waste-FY 2016'!AC:AC,'III - Waste-FY 2016'!$B:$B,$B94,'III - Waste-FY 2016'!$F:$F,$D94) -> 0 | I94: =SUMIFS('III - Waste-FY 2016'!AD:AD,'III - Waste-FY 2016'!$B:$B,$B94,'III - Waste-FY 2016'!$F:$F,$D94) -> 943.9726649 | J94: =SUMIFS('III - Waste-FY 2016'!AE:AE,'III - Waste-FY 2016'!$B:$B,$B94,'III - Waste-FY 2016'!$F:$F,$D94) -> 0 | K94: =SUMIFS('III - Waste-FY 2016'!AF:AF,'III - Waste-FY 2016'!$B:$B,$B94,'III - Waste-FY 2016'!$F:$F,$D94) -> 0 | L94: =SUMIFS('III - Waste-FY 2016'!AG:AG,'III - Waste-FY 2016'!$B:$B,$B94,'III - Waste-FY 2016'!$F:$F,$D94) -> 0 | M94: =SUMIFS('III - Waste-FY 2016'!AD:AD,'III - Waste-FY 2016'!$B:$B,$B94,'III - Waste-FY 2016'!$F:$F,$D94) -> 943.9726649 | N94: =SUMIFS('III - Waste-FY 2016'!AE:AE,'III - Waste-FY 2016'!$B:$B,$B94,'III - Waste-FY 2016'!$F:$F,$D94) -> 0
B95: III.1.2 | C95: 3 | D95: Amherst College | E95: =IF(VLOOKUP(B95,'III - Waste-FY 2016'!$B:$G,6,FALSE)="","",VLOOKUP(B95,'III - Waste-FY 2016'!$B:$G,6,FALSE)) ->  | F95: =SUMIFS('III - Waste-FY 2016'!AA:AA,'III - Waste-FY 2016'!$B:$B,$B95,'III - Waste-FY 2016'!$F:$F,$D95) -> 0 | G95: =SUMIFS('III - Waste-FY 2016'!AB:AB,'III - Waste-FY 2016'!$B:$B,$B95,'III - Waste-FY 2016'!$F:$F,$D95) -> 129.6682127 | H95: =SUMIFS('III - Waste-FY 2016'!AC:AC,'III - Waste-FY 2016'!$B:$B,$B95,'III - Waste-FY 2016'!$F:$F,$D95) -> 0 | I95: =SUMIFS('III - Waste-FY 2016'!AD:AD,'III - Waste-FY 2016'!$B:$B,$B95,'III - Waste-FY 2016'!$F:$F,$D95) -> 129.6682127 | J95: =SUMIFS('III - Waste-FY 2016'!AE:AE,'III - Waste-FY 2016'!$B:$B,$B95,'III - Waste-FY 2016'!$F:$F,$D95) -> 0 | K95: =SUMIFS('III - Waste-FY 2016'!AF:AF,'III - Waste-FY 2016'!$B:$B,$B95,'III - Waste-FY 2016'!$F:$F,$D95) -> 0 | L95: =SUMIFS('III - Waste-FY 2016'!AG:AG,'III - Waste-FY 2016'!$B:$B,$B95,'III - Waste-FY 2016'!$F:$F,$D95) -> 0 | M95: =SUMIFS('III - Waste-FY 2016'!AD:AD,'III - Waste-FY 2016'!$B:$B,$B95,'III - Waste-FY 2016'!$F:$F,$D95) -> 129.6682127 | N95: =SUMIFS('III - Waste-FY 2016'!AE:AE,'III - Waste-FY 2016'!$B:$B,$B95,'III - Waste-FY 2016'!$F:$F,$D95) -> 0
B96: III.1.2 | C96: 3 | D96: Hampshire College | E96: =IF(VLOOKUP(B96,'III - Waste-FY 2016'!$B:$G,6,FALSE)="","",VLOOKUP(B96,'III - Waste-FY 2016'!$B:$G,6,FALSE)) ->  | F96: =SUMIFS('III - Waste-FY 2016'!AA:AA,'III - Waste-FY 2016'!$B:$B,$B96,'III - Waste-FY 2016'!$F:$F,$D96) -> 0 | G96: =SUMIFS('III - Waste-FY 2016'!AB:AB,'III - Waste-FY 2016'!$B:$B,$B96,'III - Waste-FY 2016'!$F:$F,$D96) -> 0 | H96: =SUMIFS('III - Waste-FY 2016'!AC:AC,'III - Waste-FY 2016'!$B:$B,$B96,'III - Waste-FY 2016'!$F:$F,$D96) -> 0 | I96: =SUMIFS('III - Waste-FY 2016'!AD:AD,'III - Waste-FY 2016'!$B:$B,$B96,'III - Waste-FY 2016'!$F:$F,$D96) -> 0 | J96: =SUMIFS('III - Waste-FY 2016'!AE:AE,'III - Waste-FY 2016'!$B:$B,$B96,'III - Waste-FY 2016'!$F:$F,$D96) -> 0 | K96: =SUMIFS('III - Waste-FY 2016'!AF:AF,'III - Waste-FY 2016'!$B:$B,$B96,'III - Waste-FY 2016'!$F:$F,$D96) -> 0 | L96: =SUMIFS('III - Waste-FY 2016'!AG:AG,'III - Waste-FY 2016'!$B:$B,$B96,'III - Waste-FY 2016'!$F:$F,$D96) -> 0 | M96: =SUMIFS('III - Waste-FY 2016'!AD:AD,'III - Waste-FY 2016'!$B:$B,$B96,'III - Waste-FY 2016'!$F:$F,$D96) -> 0 | N96: =SUMIFS('III - Waste-FY 2016'!AE:AE,'III - Waste-FY 2016'!$B:$B,$B96,'III - Waste-FY 2016'!$F:$F,$D96) -> 0
B97: III.1.3 | C97: 1 | D97: Emissions from waste generated outside the city and disposed in landfills or open dumps within the city | E97: =IF(VLOOKUP(B97,'III - Waste-FY 2016'!$B:$G,6,FALSE)="","",VLOOKUP(B97,'III - Waste-FY 2016'!$B:$G,6,FALSE)) -> NO | F97: =SUMIF('III - Waste-FY 2016'!$B:$B,$B97,'III - Waste-FY 2016'!AA:AA) -> 0 | G97: =SUMIF('III - Waste-FY 2016'!$B:$B,$B97,'III - Waste-FY 2016'!AB:AB) -> 0 | H97: =SUMIF('III - Waste-FY 2016'!$B:$B,$B97,'III - Waste-FY 2016'!AC:AC) -> 0 | M97: =SUMIF('III - Waste-FY 2016'!$B:$B,$B97,'III - Waste-FY 2016'!AD:AD) -> 0 | N97: =SUMIF('III - Waste-FY 2016'!$B:$B,$B97,'III - Waste-FY 2016'!AE:AE) -> 0 | O97: =IF(VLOOKUP($B97,'III - Waste-FY 2016'!$B:$AH,17,FALSE)="","",VLOOKUP($B97,'III - Waste-FY 2016'!$B:$AH,17,FALSE)) -> 
B98: III.2 | D98: Biological treatment of waste
B99: III.2.1 | C99: 1 | D99: Emissions from solid waste generated in the city that is treated biologically in the city | E99: =IF(VLOOKUP(B99,'III - Waste-FY 2016'!$B:$G,6,FALSE)="","",VLOOKUP(B99,'III - Waste-FY 2016'!$B:$G,6,FALSE)) -> NO | F99: =SUMIF('III - Waste-FY 2016'!$B:$B,$B99,'III - Waste-FY 2016'!AA:AA) -> 0 | G99: =SUMIF('III - Waste-FY 2016'!$B:$B,$B99,'III - Waste-FY 2016'!AB:AB) -> 0 | H99: =SUMIF('III - Waste-FY 2016'!$B:$B,$B99,'III - Waste-FY 2016'!AC:AC) -> 0 | M99: =SUMIF('III - Waste-FY 2016'!$B:$B,$B99,'III - Waste-FY 2016'!AD:AD) -> 0 | N99: =SUMIF('III - Waste-FY 2016'!$B:$B,$B99,'III - Waste-FY 2016'!AE:AE) -> 0 | O99: =IF(VLOOKUP($B99,'III - Waste-FY 2016'!$B:$AH,17,FALSE)="","",VLOOKUP($B99,'III - Waste-FY 2016'!$B:$AH,17,FALSE)) -> 
B100: III.2.2 | C100: 3 | D100: Emissions from solid waste generated in the city but treated biologically outside of the city | E100: =IF(VLOOKUP(B100,'III - Waste-FY 2016'!$B:$G,6,FALSE)="","",VLOOKUP(B100,'III - Waste-FY 2016'!$B:$G,6,FALSE)) ->  | O100: =IF(VLOOKUP($B100,'III - Waste-FY 2016'!$B:$AH,17,FALSE)="","",VLOOKUP($B100,'III - Waste-FY 2016'!$B:$AH,17,FALSE)) -> 
B101: III.2.2 | C101: 3 | D101: Community | F101: =SUMIFS('III - Waste-FY 2016'!AA:AA,'III - Waste-FY 2016'!$B:$B,$B101,'III - Waste-FY 2016'!$F:$F,$D101) -> 392.7976559 | G101: =SUMIFS('III - Waste-FY 2016'!AB:AB,'III - Waste-FY 2016'!$B:$B,$B101,'III - Waste-FY 2016'!$F:$F,$D101) -> 0.2299601819 | H101: =SUMIFS('III - Waste-FY 2016'!AC:AC,'III - Waste-FY 2016'!$B:$B,$B101,'III - Waste-FY 2016'!$F:$F,$D101) -> 0.1632306648 | I101: =SUMIFS('III - Waste-FY 2016'!AD:AD,'III - Waste-FY 2016'!$B:$B,$B101,'III - Waste-FY 2016'!$F:$F,$D101) -> 393.1908467 | J101: =SUMIFS('III - Waste-FY 2016'!AE:AE,'III - Waste-FY 2016'!$B:$B,$B101,'III - Waste-FY 2016'!$F:$F,$D101) -> 0 | K101: =SUMIFS('III - Waste-FY 2016'!AF:AF,'III - Waste-FY 2016'!$B:$B,$B101,'III - Waste-FY 2016'!$F:$F,$D101) -> 0 | L101: =SUMIFS('III - Waste-FY 2016'!AG:AG,'III - Waste-FY 2016'!$B:$B,$B101,'III - Waste-FY 2016'!$F:$F,$D101) -> 0 | M101: =SUMIFS('III - Waste-FY 2016'!AD:AD,'III - Waste-FY 2016'!$B:$B,$B101,'III - Waste-FY 2016'!$F:$F,$D101) -> 393.1908467 | N101: =SUMIFS('III - Waste-FY 2016'!AE:AE,'III - Waste-FY 2016'!$B:$B,$B101,'III - Waste-FY 2016'!$F:$F,$D101) -> 0
B102: III.2.2 | C102: 3 | D102: UMass | F102: =SUMIFS('III - Waste-FY 2016'!AA:AA,'III - Waste-FY 2016'!$B:$B,$B102,'III - Waste-FY 2016'!$F:$F,$D102) -> 402.3633088 | G102: =SUMIFS('III - Waste-FY 2016'!AB:AB,'III - Waste-FY 2016'!$B:$B,$B102,'III - Waste-FY 2016'!$F:$F,$D102) -> 0.2355603153 | H102: =SUMIFS('III - Waste-FY 2016'!AC:AC,'III - Waste-FY 2016'!$B:$B,$B102,'III - Waste-FY 2016'!$F:$F,$D102) -> 0.1672057595 | I102: =SUMIFS('III - Waste-FY 2016'!AD:AD,'III - Waste-FY 2016'!$B:$B,$B102,'III - Waste-FY 2016'!$F:$F,$D102) -> 402.7660749 | J102: =SUMIFS('III - Waste-FY 2016'!AE:AE,'III - Waste-FY 2016'!$B:$B,$B102,'III - Waste-FY 2016'!$F:$F,$D102) -> 0 | K102: =SUMIFS('III - Waste-FY 2016'!AF:AF,'III - Waste-FY 2016'!$B:$B,$B102,'III - Waste-FY 2016'!$F:$F,$D102) -> 0 | L102: =SUMIFS('III - Waste-FY 2016'!AG:AG,'III - Waste-FY 2016'!$B:$B,$B102,'III - Waste-FY 2016'!$F:$F,$D102) -> 0 | M102: =SUMIFS('III - Waste-FY 2016'!AD:AD,'III - Waste-FY 2016'!$B:$B,$B102,'III - Waste-FY 2016'!$F:$F,$D102) -> 402.7660749 | N102: =SUMIFS('III - Waste-FY 2016'!AE:AE,'III - Waste-FY 2016'!$B:$B,$B102,'III - Waste-FY 2016'!$F:$F,$D102) -> 0
B103: III.2.2 | C103: 3 | D103: Amherst College | F103: =SUMIFS('III - Waste-FY 2016'!AA:AA,'III - Waste-FY 2016'!$B:$B,$B103,'III - Waste-FY 2016'!$F:$F,$D103) -> 16.66100658 | G103: =SUMIFS('III - Waste-FY 2016'!AB:AB,'III - Waste-FY 2016'!$B:$B,$B103,'III - Waste-FY 2016'!$F:$F,$D103) -> 0.009754050324 | H103: =SUMIFS('III - Waste-FY 2016'!AC:AC,'III - Waste-FY 2016'!$B:$B,$B103,'III - Waste-FY 2016'!$F:$F,$D103) -> 0.006923633936 | I103: =SUMIFS('III - Waste-FY 2016'!AD:AD,'III - Waste-FY 2016'!$B:$B,$B103,'III - Waste-FY 2016'!$F:$F,$D103) -> 16.67768426 | J103: =SUMIFS('III - Waste-FY 2016'!AE:AE,'III - Waste-FY 2016'!$B:$B,$B103,'III - Waste-FY 2016'!$F:$F,$D103) -> 0 | K103: =SUMIFS('III - Waste-FY 2016'!AF:AF,'III - Waste-FY 2016'!$B:$B,$B103,'III - Waste-FY 2016'!$F:$F,$D103) -> 0 | L103: =SUMIFS('III - Waste-FY 2016'!AG:AG,'III - Waste-FY 2016'!$B:$B,$B103,'III - Waste-FY 2016'!$F:$F,$D103) -> 0 | M103: =SUMIFS('III - Waste-FY 2016'!AD:AD,'III - Waste-FY 2016'!$B:$B,$B103,'III - Waste-FY 2016'!$F:$F,$D103) -> 16.67768426 | N103: =SUMIFS('III - Waste-FY 2016'!AE:AE,'III - Waste-FY 2016'!$B:$B,$B103,'III - Waste-FY 2016'!$F:$F,$D103) -> 0
B104: III.2.2 | C104: 3 | D104: Hampshire College | F104: =SUMIFS('III - Waste-FY 2016'!AA:AA,'III - Waste-FY 2016'!$B:$B,$B104,'III - Waste-FY 2016'!$F:$F,$D104) -> 0 | G104: =SUMIFS('III - Waste-FY 2016'!AB:AB,'III - Waste-FY 2016'!$B:$B,$B104,'III - Waste-FY 2016'!$F:$F,$D104) -> 0 | H104: =SUMIFS('III - Waste-FY 2016'!AC:AC,'III - Waste-FY 2016'!$B:$B,$B104,'III - Waste-FY 2016'!$F:$F,$D104) -> 0 | I104: =SUMIFS('III - Waste-FY 2016'!AD:AD,'III - Waste-FY 2016'!$B:$B,$B104,'III - Waste-FY 2016'!$F:$F,$D104) -> 0 | J104: =SUMIFS('III - Waste-FY 2016'!AE:AE,'III - Waste-FY 2016'!$B:$B,$B104,'III - Waste-FY 2016'!$F:$F,$D104) -> 0 | K104: =SUMIFS('III - Waste-FY 2016'!AF:AF,'III - Waste-FY 2016'!$B:$B,$B104,'III - Waste-FY 2016'!$F:$F,$D104) -> 0 | L104: =SUMIFS('III - Waste-FY 2016'!AG:AG,'III - Waste-FY 2016'!$B:$B,$B104,'III - Waste-FY 2016'!$F:$F,$D104) -> 0 | M104: =SUMIFS('III - Waste-FY 2016'!AD:AD,'III - Waste-FY 2016'!$B:$B,$B104,'III - Waste-FY 2016'!$F:$F,$D104) -> 0 | N104: =SUMIFS('III - Waste-FY 2016'!AE:AE,'III - Waste-FY 2016'!$B:$B,$B104,'III - Waste-FY 2016'!$F:$F,$D104) -> 0
B105: III.2.3 | C105: 1 | D105: Emissions from waste generated outside the city boundary but treated in the city | E105: =IF(VLOOKUP(B105,'III - Waste-FY 2016'!$B:$G,6,FALSE)="","",VLOOKUP(B105,'III - Waste-FY 2016'!$B:$G,6,FALSE)) -> NO | F105: =SUMIF('III - Waste-FY 2016'!$B:$B,$B105,'III - Waste-FY 2016'!AA:AA) -> 0 | G105: =SUMIF('III - Waste-FY 2016'!$B:$B,$B105,'III - Waste-FY 2016'!AB:AB) -> 0 | H105: =SUMIF('III - Waste-FY 2016'!$B:$B,$B105,'III - Waste-FY 2016'!AC:AC) -> 0 | M105: =SUMIF('III - Waste-FY 2016'!$B:$B,$B105,'III - Waste-FY 2016'!AD:AD) -> 0 | N105: =SUMIF('III - Waste-FY 2016'!$B:$B,$B105,'III - Waste-FY 2016'!AE:AE) -> 0 | O105: =IF(VLOOKUP($B105,'III - Waste-FY 2016'!$B:$AH,17,FALSE)="","",VLOOKUP($B105,'III - Waste-FY 2016'!$B:$AH,17,FALSE)) -> 
B106: III.3 | D106: Incineration and open burning
B107: III.3.1 | C107: 1 | D107: Emissions from waste generated and treated within the city | E107: =IF(VLOOKUP(B107,'III - Waste-FY 2016'!$B:$G,6,FALSE)="","",VLOOKUP(B107,'III - Waste-FY 2016'!$B:$G,6,FALSE)) -> NO | F107: =SUMIF('III - Waste-FY 2016'!$B:$B,$B107,'III - Waste-FY 2016'!AA:AA) -> 0 | G107: =SUMIF('III - Waste-FY 2016'!$B:$B,$B107,'III - Waste-FY 2016'!AB:AB) -> 0 | H107: =SUMIF('III - Waste-FY 2016'!$B:$B,$B107,'III - Waste-FY 2016'!AC:AC) -> 0 | M107: =SUMIF('III - Waste-FY 2016'!$B:$B,$B107,'III - Waste-FY 2016'!AD:AD) -> 0 | N107: =SUMIF('III - Waste-FY 2016'!$B:$B,$B107,'III - Waste-FY 2016'!AE:AE) -> 0 | O107: =IF(VLOOKUP($B107,'III - Waste-FY 2016'!$B:$AH,17,FALSE)="","",VLOOKUP($B107,'III - Waste-FY 2016'!$B:$AH,17,FALSE)) -> 
B108: III.3.2 | C108: 3 | D108: Emissions from waste generated within but treated outside of the city | E108: =IF(VLOOKUP(B108,'III - Waste-FY 2016'!$B:$G,6,FALSE)="","",VLOOKUP(B108,'III - Waste-FY 2016'!$B:$G,6,FALSE)) ->  | N108: =SUMIF('III - Waste-FY 2016'!$B:$B,$B108,'III - Waste-FY 2016'!AE:AE) -> 0 | O108: =IF(VLOOKUP($B108,'III - Waste-FY 2016'!$B:$AH,17,FALSE)="","",VLOOKUP($B108,'III - Waste-FY 2016'!$B:$AH,17,FALSE)) -> 
B109: III.3.2 | C109: 3 | D109: Community | F109: =SUMIFS('III - Waste-FY 2016'!AA:AA,'III - Waste-FY 2016'!$B:$B,$B109,'III - Waste-FY 2016'!$F:$F,$D109) -> 3602.698599 | G109: =SUMIFS('III - Waste-FY 2016'!AB:AB,'III - Waste-FY 2016'!$B:$B,$B109,'III - Waste-FY 2016'!$F:$F,$D109) -> 0.05272658457 | H109: =SUMIFS('III - Waste-FY 2016'!AC:AC,'III - Waste-FY 2016'!$B:$B,$B109,'III - Waste-FY 2016'!$F:$F,$D109) -> 124.7548653 | I109: =SUMIFS('III - Waste-FY 2016'!AD:AD,'III - Waste-FY 2016'!$B:$B,$B109,'III - Waste-FY 2016'!$F:$F,$D109) -> 3727.506191 | J109: =SUMIFS('III - Waste-FY 2016'!AE:AE,'III - Waste-FY 2016'!$B:$B,$B109,'III - Waste-FY 2016'!$F:$F,$D109) -> 0 | K109: =SUMIFS('III - Waste-FY 2016'!AF:AF,'III - Waste-FY 2016'!$B:$B,$B109,'III - Waste-FY 2016'!$F:$F,$D109) -> 0 | L109: =SUMIFS('III - Waste-FY 2016'!AG:AG,'III - Waste-FY 2016'!$B:$B,$B109,'III - Waste-FY 2016'!$F:$F,$D109) -> 0 | M109: =SUMIFS('III - Waste-FY 2016'!AD:AD,'III - Waste-FY 2016'!$B:$B,$B109,'III - Waste-FY 2016'!$F:$F,$D109) -> 3727.506191 | N109: =SUMIFS('III - Waste-FY 2016'!AE:AE,'III - Waste-FY 2016'!$B:$B,$B109,'III - Waste-FY 2016'!$F:$F,$D109) -> 0
B110: III.3.2 | C110: 3 | D110: UMass | F110: =SUMIFS('III - Waste-FY 2016'!AA:AA,'III - Waste-FY 2016'!$B:$B,$B110,'III - Waste-FY 2016'!$F:$F,$D110) -> 0 | G110: =SUMIFS('III - Waste-FY 2016'!AB:AB,'III - Waste-FY 2016'!$B:$B,$B110,'III - Waste-FY 2016'!$F:$F,$D110) -> 0 | H110: =SUMIFS('III - Waste-FY 2016'!AC:AC,'III - Waste-FY 2016'!$B:$B,$B110,'III - Waste-FY 2016'!$F:$F,$D110) -> 0 | I110: =SUMIFS('III - Waste-FY 2016'!AD:AD,'III - Waste-FY 2016'!$B:$B,$B110,'III - Waste-FY 2016'!$F:$F,$D110) -> 0 | J110: =SUMIFS('III - Waste-FY 2016'!AE:AE,'III - Waste-FY 2016'!$B:$B,$B110,'III - Waste-FY 2016'!$F:$F,$D110) -> 0 | K110: =SUMIFS('III - Waste-FY 2016'!AF:AF,'III - Waste-FY 2016'!$B:$B,$B110,'III - Waste-FY 2016'!$F:$F,$D110) -> 0 | L110: =SUMIFS('III - Waste-FY 2016'!AG:AG,'III - Waste-FY 2016'!$B:$B,$B110,'III - Waste-FY 2016'!$F:$F,$D110) -> 0 | M110: =SUMIFS('III - Waste-FY 2016'!AD:AD,'III - Waste-FY 2016'!$B:$B,$B110,'III - Waste-FY 2016'!$F:$F,$D110) -> 0 | N110: =SUMIFS('III - Waste-FY 2016'!AE:AE,'III - Waste-FY 2016'!$B:$B,$B110,'III - Waste-FY 2016'!$F:$F,$D110) -> 0
B111: III.3.2 | C111: 3 | D111: Amherst College | F111: =SUMIFS('III - Waste-FY 2016'!AA:AA,'III - Waste-FY 2016'!$B:$B,$B111,'III - Waste-FY 2016'!$F:$F,$D111) -> 0 | G111: =SUMIFS('III - Waste-FY 2016'!AB:AB,'III - Waste-FY 2016'!$B:$B,$B111,'III - Waste-FY 2016'!$F:$F,$D111) -> 0 | H111: =SUMIFS('III - Waste-FY 2016'!AC:AC,'III - Waste-FY 2016'!$B:$B,$B111,'III - Waste-FY 2016'!$F:$F,$D111) -> 0 | I111: =SUMIFS('III - Waste-FY 2016'!AD:AD,'III - Waste-FY 2016'!$B:$B,$B111,'III - Waste-FY 2016'!$F:$F,$D111) -> 0 | J111: =SUMIFS('III - Waste-FY 2016'!AE:AE,'III - Waste-FY 2016'!$B:$B,$B111,'III - Waste-FY 2016'!$F:$F,$D111) -> 0 | K111: =SUMIFS('III - Waste-FY 2016'!AF:AF,'III - Waste-FY 2016'!$B:$B,$B111,'III - Waste-FY 2016'!$F:$F,$D111) -> 0 | L111: =SUMIFS('III - Waste-FY 2016'!AG:AG,'III - Waste-FY 2016'!$B:$B,$B111,'III - Waste-FY 2016'!$F:$F,$D111) -> 0 | M111: =SUMIFS('III - Waste-FY 2016'!AD:AD,'III - Waste-FY 2016'!$B:$B,$B111,'III - Waste-FY 2016'!$F:$F,$D111) -> 0 | N111: =SUMIFS('III - Waste-FY 2016'!AE:AE,'III - Waste-FY 2016'!$B:$B,$B111,'III - Waste-FY 2016'!$F:$F,$D111) -> 0
B112: III.3.2 | C112: 3 | D112: Hampshire College | F112: =SUMIFS('III - Waste-FY 2016'!AA:AA,'III - Waste-FY 2016'!$B:$B,$B112,'III - Waste-FY 2016'!$F:$F,$D112) -> 0 | G112: =SUMIFS('III - Waste-FY 2016'!AB:AB,'III - Waste-FY 2016'!$B:$B,$B112,'III - Waste-FY 2016'!$F:$F,$D112) -> 0 | H112: =SUMIFS('III - Waste-FY 2016'!AC:AC,'III - Waste-FY 2016'!$B:$B,$B112,'III - Waste-FY 2016'!$F:$F,$D112) -> 0 | I112: =SUMIFS('III - Waste-FY 2016'!AD:AD,'III - Waste-FY 2016'!$B:$B,$B112,'III - Waste-FY 2016'!$F:$F,$D112) -> 0 | J112: =SUMIFS('III - Waste-FY 2016'!AE:AE,'III - Waste-FY 2016'!$B:$B,$B112,'III - Waste-FY 2016'!$F:$F,$D112) -> 0 | K112: =SUMIFS('III - Waste-FY 2016'!AF:AF,'III - Waste-FY 2016'!$B:$B,$B112,'III - Waste-FY 2016'!$F:$F,$D112) -> 0 | L112: =SUMIFS('III - Waste-FY 2016'!AG:AG,'III - Waste-FY 2016'!$B:$B,$B112,'III - Waste-FY 2016'!$F:$F,$D112) -> 0 | M112: =SUMIFS('III - Waste-FY 2016'!AD:AD,'III - Waste-FY 2016'!$B:$B,$B112,'III - Waste-FY 2016'!$F:$F,$D112) -> 0 | N112: =SUMIFS('III - Waste-FY 2016'!AE:AE,'III - Waste-FY 2016'!$B:$B,$B112,'III - Waste-FY 2016'!$F:$F,$D112) -> 0
B113: III.3.3 | C113: 1 | D113: Emissions from waste generated outside the city boundary but treated within the city | E113: =IF(VLOOKUP(B113,'III - Waste-FY 2016'!$B:$G,6,FALSE)="","",VLOOKUP(B113,'III - Waste-FY 2016'!$B:$G,6,FALSE)) -> NO | F113: =SUMIF('III - Waste-FY 2016'!$B:$B,$B113,'III - Waste-FY 2016'!AA:AA) -> 0 | G113: =SUMIF('III - Waste-FY 2016'!$B:$B,$B113,'III - Waste-FY 2016'!AB:AB) -> 0 | H113: =SUMIF('III - Waste-FY 2016'!$B:$B,$B113,'III - Waste-FY 2016'!AC:AC) -> 0 | M113: =SUMIF('III - Waste-FY 2016'!$B:$B,$B113,'III - Waste-FY 2016'!AD:AD) -> 0 | N113: =SUMIF('III - Waste-FY 2016'!$B:$B,$B113,'III - Waste-FY 2016'!AE:AE) -> 0 | O113: =IF(VLOOKUP($B113,'III - Waste-FY 2016'!$B:$AH,17,FALSE)="","",VLOOKUP($B113,'III - Waste-FY 2016'!$B:$AH,17,FALSE)) -> 
B114: III.4 | D114: Wastewater treatment and discharge
B115: III.4.1 | C115: 1 | D115: Emissions from wastewater generated and treated within the city | O115: =IF(VLOOKUP($B115,'III - Waste-FY 2016'!$B:$AH,17,FALSE)="","",VLOOKUP($B115,'III - Waste-FY 2016'!$B:$AH,17,FALSE)) -> 
B116: III.4.1 | C116: 1 | D116: Community | F116: =SUMIFS('III - Waste-FY 2016'!AA:AA,'III - Waste-FY 2016'!$B:$B,$B116,'III - Waste-FY 2016'!$F:$F,$D116) -> 0 | G116: =SUMIFS('III - Waste-FY 2016'!AB:AB,'III - Waste-FY 2016'!$B:$B,$B116,'III - Waste-FY 2016'!$F:$F,$D116) -> 0 | H116: =SUMIFS('III - Waste-FY 2016'!AC:AC,'III - Waste-FY 2016'!$B:$B,$B116,'III - Waste-FY 2016'!$F:$F,$D116) -> 99.49889445 | I116: =SUMIFS('III - Waste-FY 2016'!AD:AD,'III - Waste-FY 2016'!$B:$B,$B116,'III - Waste-FY 2016'!$F:$F,$D116) -> 99.49889445 | J116: =SUMIFS('III - Waste-FY 2016'!AE:AE,'III - Waste-FY 2016'!$B:$B,$B116,'III - Waste-FY 2016'!$F:$F,$D116) -> 0 | K116: =SUMIFS('III - Waste-FY 2016'!AF:AF,'III - Waste-FY 2016'!$B:$B,$B116,'III - Waste-FY 2016'!$F:$F,$D116) -> 0 | L116: =SUMIFS('III - Waste-FY 2016'!AG:AG,'III - Waste-FY 2016'!$B:$B,$B116,'III - Waste-FY 2016'!$F:$F,$D116) -> 0 | M116: =SUMIFS('III - Waste-FY 2016'!AD:AD,'III - Waste-FY 2016'!$B:$B,$B116,'III - Waste-FY 2016'!$F:$F,$D116) -> 99.49889445 | N116: =SUMIFS('III - Waste-FY 2016'!AE:AE,'III - Waste-FY 2016'!$B:$B,$B116,'III - Waste-FY 2016'!$F:$F,$D116) -> 0
B117: III.4.1 | C117: 1 | D117: UMass | F117: =SUMIFS('III - Waste-FY 2016'!AA:AA,'III - Waste-FY 2016'!$B:$B,$B117,'III - Waste-FY 2016'!$F:$F,$D117) -> 0 | G117: =SUMIFS('III - Waste-FY 2016'!AB:AB,'III - Waste-FY 2016'!$B:$B,$B117,'III - Waste-FY 2016'!$F:$F,$D117) -> 0 | H117: =SUMIFS('III - Waste-FY 2016'!AC:AC,'III - Waste-FY 2016'!$B:$B,$B117,'III - Waste-FY 2016'!$F:$F,$D117) -> 39.69132235 | I117: =SUMIFS('III - Waste-FY 2016'!AD:AD,'III - Waste-FY 2016'!$B:$B,$B117,'III - Waste-FY 2016'!$F:$F,$D117) -> 39.69132235 | J117: =SUMIFS('III - Waste-FY 2016'!AE:AE,'III - Waste-FY 2016'!$B:$B,$B117,'III - Waste-FY 2016'!$F:$F,$D117) -> 0 | K117: =SUMIFS('III - Waste-FY 2016'!AF:AF,'III - Waste-FY 2016'!$B:$B,$B117,'III - Waste-FY 2016'!$F:$F,$D117) -> 0 | L117: =SUMIFS('III - Waste-FY 2016'!AG:AG,'III - Waste-FY 2016'!$B:$B,$B117,'III - Waste-FY 2016'!$F:$F,$D117) -> 0 | M117: =SUMIFS('III - Waste-FY 2016'!AD:AD,'III - Waste-FY 2016'!$B:$B,$B117,'III - Waste-FY 2016'!$F:$F,$D117) -> 39.69132235 | N117: =SUMIFS('III - Waste-FY 2016'!AE:AE,'III - Waste-FY 2016'!$B:$B,$B117,'III - Waste-FY 2016'!$F:$F,$D117) -> 0
B118: III.4.2 | C118: 3 | D118: Emissions from wastewater generated within but treated outside of the city | E118: =IF(VLOOKUP(B118,'III - Waste-FY 2016'!$B:$G,6,FALSE)="","",VLOOKUP(B118,'III - Waste-FY 2016'!$B:$G,6,FALSE)) -> NO | F118: =SUMIF('III - Waste-FY 2016'!$B:$B,$B118,'III - Waste-FY 2016'!AA:AA) -> 0 | G118: =SUMIF('III - Waste-FY 2016'!$B:$B,$B118,'III - Waste-FY 2016'!AB:AB) -> 0 | H118: =SUMIF('III - Waste-FY 2016'!$B:$B,$B118,'III - Waste-FY 2016'!AC:AC) -> 0 | M118: =SUMIF('III - Waste-FY 2016'!$B:$B,$B118,'III - Waste-FY 2016'!AD:AD) -> 0 | N118: =SUMIF('III - Waste-FY 2016'!$B:$B,$B118,'III - Waste-FY 2016'!AE:AE) -> 0 | O118: =IF(VLOOKUP($B118,'III - Waste-FY 2016'!$B:$AH,17,FALSE)="","",VLOOKUP($B118,'III - Waste-FY 2016'!$B:$AH,17,FALSE)) -> 
B119: III.4.3 | C119: 1 | D119: Emissions from wastewater generated outside the city boundary but treated within the city | E119: =IF(VLOOKUP(B119,'III - Waste-FY 2016'!$B:$G,6,FALSE)="","",VLOOKUP(B119,'III - Waste-FY 2016'!$B:$G,6,FALSE)) ->  | F119: =SUMIF('III - Waste-FY 2016'!$B:$B,$B119,'III - Waste-FY 2016'!AA:AA) -> 0 | G119: =SUMIF('III - Waste-FY 2016'!$B:$B,$B119,'III - Waste-FY 2016'!AB:AB) -> 0 | H119: =SUMIF('III - Waste-FY 2016'!$B:$B,$B119,'III - Waste-FY 2016'!AC:AC) -> 0.01678398295 | M119: =SUMIF('III - Waste-FY 2016'!$B:$B,$B119,'III - Waste-FY 2016'!AD:AD) -> 0.01678398295 | N119: =SUMIF('III - Waste-FY 2016'!$B:$B,$B119,'III - Waste-FY 2016'!AE:AE) -> 0 | O119: =IF(VLOOKUP($B119,'III - Waste-FY 2016'!$B:$AH,17,FALSE)="","",VLOOKUP($B119,'III - Waste-FY 2016'!$B:$AH,17,FALSE)) -> 
B120: III.4.3 | C120: 1 | D120: Community | F120: =SUMIFS('III - Waste-FY 2016'!AA:AA,'III - Waste-FY 2016'!$B:$B,$B120,'III - Waste-FY 2016'!$F:$F,$D120) -> 0 | G120: =SUMIFS('III - Waste-FY 2016'!AB:AB,'III - Waste-FY 2016'!$B:$B,$B120,'III - Waste-FY 2016'!$F:$F,$D120) -> 0 | H120: =SUMIFS('III - Waste-FY 2016'!AC:AC,'III - Waste-FY 2016'!$B:$B,$B120,'III - Waste-FY 2016'!$F:$F,$D120) -> 0.01678398295 | I120: =SUMIFS('III - Waste-FY 2016'!AD:AD,'III - Waste-FY 2016'!$B:$B,$B120,'III - Waste-FY 2016'!$F:$F,$D120) -> 0.01678398295 | J120: =SUMIFS('III - Waste-FY 2016'!AE:AE,'III - Waste-FY 2016'!$B:$B,$B120,'III - Waste-FY 2016'!$F:$F,$D120) -> 0 | K120: =SUMIFS('III - Waste-FY 2016'!AF:AF,'III - Waste-FY 2016'!$B:$B,$B120,'III - Waste-FY 2016'!$F:$F,$D120) -> 0 | L120: =SUMIFS('III - Waste-FY 2016'!AG:AG,'III - Waste-FY 2016'!$B:$B,$B120,'III - Waste-FY 2016'!$F:$F,$D120) -> 0 | M120: =SUMIFS('III - Waste-FY 2016'!AD:AD,'III - Waste-FY 2016'!$B:$B,$B120,'III - Waste-FY 2016'!$F:$F,$D120) -> 0.01678398295 | N120: =SUMIFS('III - Waste-FY 2016'!AE:AE,'III - Waste-FY 2016'!$B:$B,$B120,'III - Waste-FY 2016'!$F:$F,$D120) -> 0
B121: IV | C121: 1 | D121: INDUSTRIAL PROCESSES and PRODUCT USES (IPPU)
B122: IV.1 | C122: 1 | D122: Emissions from industrial processes occurring in the city boundary | E122: =IF(VLOOKUP(B122,'IV - IPPU-FY 2016'!$B:$F,5,FALSE)="","",VLOOKUP(B122,'IV - IPPU-FY 2016'!$B:$F,5,FALSE)) -> NO | F122: =SUMIF('IV - IPPU-FY 2016'!$B:$B,$B122,'IV - IPPU-FY 2016'!AQ:AQ) -> 0 | G122: =SUMIF('IV - IPPU-FY 2016'!$B:$B,$B122,'IV - IPPU-FY 2016'!AR:AR) -> 0 | H122: =SUMIF('IV - IPPU-FY 2016'!$B:$B,$B122,'IV - IPPU-FY 2016'!AS:AS) -> 0 | M122: =SUMIF('IV - IPPU-FY 2016'!$B:$B,$B122,'IV - IPPU-FY 2016'!AX:AX) -> 0 | N122: =SUMIF('IV - IPPU-FY 2016'!$B:$B,$B122,'IV - IPPU-FY 2016'!AY:AY) -> 0 | O122: =IF(VLOOKUP($B122,'IV - IPPU-FY 2016'!$B:$BB,20,FALSE)="","",VLOOKUP($B122,'IV - IPPU-FY 2016'!$B:$BB,20,FALSE)) -> 
B123: IV.2 | C123: 1 | D123: Emissions from product use occurring within the city boundary | E123: =IF(VLOOKUP(B123,'IV - IPPU-FY 2016'!$B:$F,5,FALSE)="","",VLOOKUP(B123,'IV - IPPU-FY 2016'!$B:$F,5,FALSE)) -> NO | F123: =SUMIF('IV - IPPU-FY 2016'!$B:$B,$B123,'IV - IPPU-FY 2016'!AQ:AQ) -> 0 | G123: =SUMIF('IV - IPPU-FY 2016'!$B:$B,$B123,'IV - IPPU-FY 2016'!AR:AR) -> 0 | H123: =SUMIF('IV - IPPU-FY 2016'!$B:$B,$B123,'IV - IPPU-FY 2016'!AS:AS) -> 0 | M123: =SUMIF('IV - IPPU-FY 2016'!$B:$B,$B123,'IV - IPPU-FY 2016'!AX:AX) -> 0 | N123: =SUMIF('IV - IPPU-FY 2016'!$B:$B,$B123,'IV - IPPU-FY 2016'!AY:AY) -> 0 | O123: =IF(VLOOKUP($B123,'IV - IPPU-FY 2016'!$B:$AX,15,FALSE)="","",VLOOKUP($B123,'IV - IPPU-FY 2016'!$B:$AX,15,FALSE)) -> 
B124: V | C124: 1 | D124: AGRICULTURE, FORESTRY and OTHER LAND USE (AFOLU)
B125: V.1 | C125: 1 | D125: Emissions from livestock | E125: =IF(VLOOKUP(B125,'V - AFOLU-FY 2016'!$B:$F,5,FALSE)="","",VLOOKUP(B125,'V - AFOLU-FY 2016'!$B:$F,5,FALSE)) ->  | F125: =SUMIF('V - AFOLU-FY 2016'!$B:$B,$B125,'V - AFOLU-FY 2016'!W:W) -> 0 | G125: =SUMIF('V - AFOLU-FY 2016'!$B:$B,$B125,'V - AFOLU-FY 2016'!X:X) -> 520.5290412 | H125: =SUMIF('V - AFOLU-FY 2016'!$B:$B,$B125,'V - AFOLU-FY 2016'!Y:Y) -> 18.48274179 | M125: =SUMIF('V - AFOLU-FY 2016'!$B:$B,$B125,'V - AFOLU-FY 2016'!Z:Z) -> 539.011783 | N125: =SUMIF('V - AFOLU-FY 2016'!$B:$B,$B125,'V - AFOLU-FY 2016'!AA:AA) -> 0 | O125: =IF(VLOOKUP($B125,'V - AFOLU-FY 2016'!$B:$AD,16,FALSE)="","",VLOOKUP($B125,'V - AFOLU-FY 2016'!$B:$AD,16,FALSE)) -> 
B126: V.2 | C126: 1 | D126: Emissions from land | E126: =IF(VLOOKUP(B126,'V - AFOLU-FY 2016'!$B:$F,5,FALSE)="","",VLOOKUP(B126,'V - AFOLU-FY 2016'!$B:$F,5,FALSE)) -> NE | F126: =SUMIF('V - AFOLU-FY 2016'!$B:$B,$B126,'V - AFOLU-FY 2016'!W:W) -> 0 | G126: =SUMIF('V - AFOLU-FY 2016'!$B:$B,$B126,'V - AFOLU-FY 2016'!X:X) -> 0 | H126: =SUMIF('V - AFOLU-FY 2016'!$B:$B,$B126,'V - AFOLU-FY 2016'!Y:Y) -> 0 | M126: =SUMIF('V - AFOLU-FY 2016'!$B:$B,$B126,'V - AFOLU-FY 2016'!Z:Z) -> 0 | N126: =SUMIF('V - AFOLU-FY 2016'!$B:$B,$B126,'V - AFOLU-FY 2016'!AA:AA) -> 0 | O126: =IF(VLOOKUP($B126,'V - AFOLU-FY 2016'!$B:$AD,16,FALSE)="","",VLOOKUP($B126,'V - AFOLU-FY 2016'!$B:$AD,16,FALSE)) -> 
B127: V.3 | C127: 1 | D127: Emissions from aggregate sources and non-CO2 emission sources on land | E127: =IF(VLOOKUP(B127,'V - AFOLU-FY 2016'!$B:$F,5,FALSE)="","",VLOOKUP(B127,'V - AFOLU-FY 2016'!$B:$F,5,FALSE)) ->  | F127: =SUMIF('V - AFOLU-FY 2016'!$B:$B,$B127,'V - AFOLU-FY 2016'!W:W) -> 0 | G127: =SUMIF('V - AFOLU-FY 2016'!$B:$B,$B127,'V - AFOLU-FY 2016'!X:X) -> 0 | H127: =SUMIF('V - AFOLU-FY 2016'!$B:$B,$B127,'V - AFOLU-FY 2016'!Y:Y) -> 303.2106029 | M127: =SUMIF('V - AFOLU-FY 2016'!$B:$B,$B127,'V - AFOLU-FY 2016'!Z:Z) -> 303.2106029 | N127: =SUMIF('V - AFOLU-FY 2016'!$B:$B,$B127,'V - AFOLU-FY 2016'!AA:AA) -> 0 | O127: =IF(VLOOKUP($B127,'V - AFOLU-FY 2016'!$B:$AD,16,FALSE)="","",VLOOKUP($B127,'V - AFOLU-FY 2016'!$B:$AD,16,FALSE)) -> 
B128: VI | C128: 3 | D128: OTHER SCOPE 3
B129: VI.1 | C129: 3 | D129: Other Scope 3 | E129: =IF(VLOOKUP(B129,'VI - Other scope 3-FY 2016'!$B:$F,5,FALSE)="","",VLOOKUP(B129,'VI - Other scope 3-FY 2016'!$B:$F,5,FALSE)) -> NE | F129: =SUMIF('VI - Other scope 3-FY 2016'!$B:$B,$B129,'VI - Other scope 3-FY 2016'!AQ:AQ) -> 0 | G129: =SUMIF('VI - Other scope 3-FY 2016'!$B:$B,$B129,'VI - Other scope 3-FY 2016'!AR:AR) -> 0 | H129: =SUMIF('VI - Other scope 3-FY 2016'!$B:$B,$B129,'VI - Other scope 3-FY 2016'!AS:AS) -> 0 | J129: =SUMIF('VI - Other scope 3-FY 2016'!$B:$B,$B129,'VI - Other scope 3-FY 2016'!AU:AU) -> 0 | K129: =SUMIF('VI - Other scope 3-FY 2016'!$B:$B,$B129,'VI - Other scope 3-FY 2016'!AV:AV) -> 0 | L129: =SUMIF('VI - Other scope 3-FY 2016'!$B:$B,$B129,'VI - Other scope 3-FY 2016'!AW:AW) -> 0 | M129: =SUMIF('VI - Other scope 3-FY 2016'!$B:$B,'Emissions Overview - FY 2016'!$B87,'VI - Other scope 3-FY 2016'!AX:AX) -> 0 | N129: =SUMIF('VI - Other scope 3-FY 2016'!$B:$B,$B129,'VI - Other scope 3-FY 2016'!AY:AY) -> 0 | O129: =IF(VLOOKUP($B129,'VI - Other scope 3-FY 2016'!$B:$BB,20,FALSE)="","",VLOOKUP($B129,'VI - Other scope 3-FY 2016'!$B:$BB,20,FALSE)) -> 

Sheet Emissions Overview - FY 2016
B2: GPC GHG Overview - FY 2016 | E2: Prepared by: Taylor Briglio
B4: NAME OF CITY: | D4: =IF('Town Information'!C10="",'Town Information'!C9,CONCATENATE('Town Information'!C9,", ",'Town Information'!C10)) -> Amherst, Massachusetts, USA
B5: BOUNDARY: | D5: ='Town Information'!C12 -> Administrative boundary of a local government
B6: INVENTORY YEAR: | D6: ='Town Information'!C11 -> FY 2022 (July 1, 2021 - June 30, 2022)
B8: GPC ref No. | C8: Scope | D8: GHG Emissions Source (By Sector and Sub-sector) | E8: Notation keys | F8: GHGs (metric tonnes CO2e) | O8: Description of method(s) used or explanation for using notation key(s)
F9: CO2 | G9: CH4 | H9: N2O | I9: PFC | J9: HFC | K9: SF6 | L9: NF3 | M9: Total tCO2e | N9: CO2(b)
B11: I | D11: STATIONARY ENERGY
B12: I.1 | D12: Residential buildings
B13: I.1.1 | C13: 1 | D13: Emissions from fuel combustion within the city boundary | E13: =IF(VLOOKUP($B13,'I - Stationary-FY 2016'!$B:$F,5,FALSE)="","",VLOOKUP($B13,'I - Stationary-FY 2016'!$B:$F,5,FALSE)) ->  | F13: =SUMIF('I - Stationary-FY 2016'!$B:$B,$B13,'I - Stationary-FY 2016'!W:W) -> 25753.87904 | G13: =SUMIF('I - Stationary-FY 2016'!$B:$B,$B13,'I - Stationary-FY 2016'!X:X) -> 24.7757253 | H13: =SUMIF('I - Stationary-FY 2016'!$B:$B,$B13,'I - Stationary-FY 2016'!Y:Y) -> 42.42372449 | M13: =SUMIF('I - Stationary-FY 2016'!$B:$B,$B13,'I - Stationary-FY 2016'!Z:Z) -> 25821.07849 | N13: =SUMIF('I - Stationary-FY 2016'!$B:$B,$B13,'I - Stationary-FY 2016'!AA:AA) -> 0 | O13: =IF(VLOOKUP($B13,'I - Stationary-FY 2016'!$B:$AD,15,FALSE)="","",VLOOKUP($B13,'I - Stationary-FY 2016'!$B:$AD,15,FALSE)) -> 
B14: I.1.2 | C14: 2 | D14: Emissions from grid-supplied energy consumed within the city boundary | E14: =IF(VLOOKUP(B14,'I - Stationary-FY 2016'!$B:$F,5,FALSE)="","",VLOOKUP(B14,'I - Stationary-FY 2016'!$B:$F,5,FALSE)) ->  | F14: =SUMIF('I - Stationary-FY 2016'!$B:$B,$B14,'I - Stationary-FY 2016'!W:W) -> 17165.252 | G14: =SUMIF('I - Stationary-FY 2016'!$B:$B,$B14,'I - Stationary-FY 2016'!X:X) -> 80.820104 | H14: =SUMIF('I - Stationary-FY 2016'!$B:$B,$B14,'I - Stationary-FY 2016'!Y:Y) -> 101.9872741 | M14: =SUMIF('I - Stationary-FY 2016'!$B:$B,$B14,'I - Stationary-FY 2016'!Z:Z) -> 17348.05938 | N14: =SUMIF('I - Stationary-FY 2016'!$B:$B,$B14,'I - Stationary-FY 2016'!AA:AA) -> 0 | O14: =IF(VLOOKUP($B14,'I - Stationary-FY 2016'!$B:$AD,15,FALSE)="","",VLOOKUP($B14,'I - Stationary-FY 2016'!$B:$AD,15,FALSE)) -> 
B15: I.1.3 | C15: 3 | D15: Transmission and distribution losses from grid-supplied energy | E15: =IF(VLOOKUP(B15,'I - Stationary-FY 2016'!$B:$F,5,FALSE)="","",VLOOKUP(B15,'I - Stationary-FY 2016'!$B:$F,5,FALSE)) ->  | F15: =SUMIF('I - Stationary-FY 2016'!$B:$B,$B15,'I - Stationary-FY 2016'!W:W) -> 853.1130243 | G15: =SUMIF('I - Stationary-FY 2016'!$B:$B,$B15,'I - Stationary-FY 2016'!X:X) -> 4.016759169 | H15: =SUMIF('I - Stationary-FY 2016'!$B:$B,$B15,'I - Stationary-FY 2016'!Y:Y) -> 5.068767522 | M15: =SUMIF('I - Stationary-FY 2016'!$B:$B,$B15,'I - Stationary-FY 2016'!Z:Z) -> 862.198551 | N15: =SUMIF('I - Stationary-FY 2016'!$B:$B,$B15,'I - Stationary-FY 2016'!AA:AA) -> 0 | O15: =IF(VLOOKUP($B15,'I - Stationary-FY 2016'!$B:$AD,15,FALSE)="","",VLOOKUP($B15,'I - Stationary-FY 2016'!$B:$AD,15,FALSE)) -> 
B16: I.2 | D16: Commercial and institutional buildings and facilities
B17: I.2.1 | C17: 1 | D17: Emissions from fuel combustion within the city boundary | E17: =IF(VLOOKUP(B17,'I - Stationary-FY 2016'!$B:$F,5,FALSE)="","",VLOOKUP(B17,'I - Stationary-FY 2016'!$B:$F,5,FALSE)) ->  | F17: =SUMIF('I - Stationary-FY 2016'!$B:$B,$B17,'I - Stationary-FY 2016'!W:W) -> 137960.4139 | G17: =SUMIF('I - Stationary-FY 2016'!$B:$B,$B17,'I - Stationary-FY 2016'!X:X) -> 73.03729938 | H17: =SUMIF('I - Stationary-FY 2016'!$B:$B,$B17,'I - Stationary-FY 2016'!Y:Y) -> 77.51024532 | M17: =SUMIF('I - Stationary-FY 2016'!$B:$B,$B17,'I - Stationary-FY 2016'!Z:Z) -> 138110.9615 | N17: =SUMIF('I - Stationary-FY 2016'!$B:$B,$B17,'I - Stationary-FY 2016'!AA:AA) -> 0 | O17: =IF(VLOOKUP($B17,'I - Stationary-FY 2016'!$B:$AD,15,FALSE)="","",VLOOKUP($B17,'I - Stationary-FY 2016'!$B:$AD,15,FALSE)) -> 
B18: I.2.2 | C18: 2 | D18: Emissions from grid-supplied energy consumed within the city boundary | E18: =IF(VLOOKUP(B18,'I - Stationary-FY 2016'!$B:$F,5,FALSE)="","",VLOOKUP(B18,'I - Stationary-FY 2016'!$B:$F,5,FALSE)) ->  | F18: =SUMIF('I - Stationary-FY 2016'!$B:$B,$B18,'I - Stationary-FY 2016'!W:W) -> 24615.52142 | G18: =SUMIF('I - Stationary-FY 2016'!$B:$B,$B18,'I - Stationary-FY 2016'!X:X) -> 115.898619 | H18: =SUMIF('I - Stationary-FY 2016'!$B:$B,$B18,'I - Stationary-FY 2016'!Y:Y) -> 146.2530192 | M18: =SUMIF('I - Stationary-FY 2016'!$B:$B,$B18,'I - Stationary-FY 2016'!Z:Z) -> 24877.67306 | N18: =SUMIF('I - Stationary-FY 2016'!$B:$B,$B18,'I - Stationary-FY 2016'!AA:AA) -> 0 | O18: =IF(VLOOKUP($B18,'I - Stationary-FY 2016'!$B:$AD,15,FALSE)="","",VLOOKUP($B18,'I - Stationary-FY 2016'!$B:$AD,15,FALSE)) -> 
B19: I.2.3 | C19: 3 | D19: Transmission and distribution losses from grid-supplied energy | E19: =IF(VLOOKUP(B19,'I - Stationary-FY 2016'!$B:$F,5,FALSE)="","",VLOOKUP(B19,'I - Stationary-FY 2016'!$B:$F,5,FALSE)) ->  | F19: =SUMIF('I - Stationary-FY 2016'!$B:$B,$B19,'I - Stationary-FY 2016'!W:W) -> 1223.391415 | G19: =SUMIF('I - Stationary-FY 2016'!$B:$B,$B19,'I - Stationary-FY 2016'!X:X) -> 5.760161364 | H19: =SUMIF('I - Stationary-FY 2016'!$B:$B,$B19,'I - Stationary-FY 2016'!Y:Y) -> 7.268775054 | M19: =SUMIF('I - Stationary-FY 2016'!$B:$B,$B19,'I - Stationary-FY 2016'!Z:Z) -> 1236.420351 | N19: =SUMIF('I - Stationary-FY 2016'!$B:$B,$B19,'I - Stationary-FY 2016'!AA:AA) -> 0 | O19: =IF(VLOOKUP($B19,'I - Stationary-FY 2016'!$B:$AD,15,FALSE)="","",VLOOKUP($B19,'I - Stationary-FY 2016'!$B:$AD,15,FALSE)) -> 
B20: I.3 | D20: Manufacturing industries and construction
B21: I.3.1 | C21: 1 | D21: Emissions from fuel combustion within the city boundary | E21: =IF(VLOOKUP(B21,'I - Stationary-FY 2016'!$B:$F,5,FALSE)="","",VLOOKUP(B21,'I - Stationary-FY 2016'!$B:$F,5,FALSE)) -> IE | F21: =SUMIF('I - Stationary-FY 2016'!$B:$B,$B21,'I - Stationary-FY 2016'!W:W) -> 0 | G21: =SUMIF('I - Stationary-FY 2016'!$B:$B,$B21,'I - Stationary-FY 2016'!X:X) -> 0 | H21: =SUMIF('I - Stationary-FY 2016'!$B:$B,$B21,'I - Stationary-FY 2016'!Y:Y) -> 0 | M21: =SUMIF('I - Stationary-FY 2016'!$B:$B,$B21,'I - Stationary-FY 2016'!Z:Z) -> 0 | N21: =SUMIF('I - Stationary-FY 2016'!$B:$B,$B21,'I - Stationary-FY 2016'!AA:AA) -> 0 | O21: =IF(VLOOKUP($B21,'I - Stationary-FY 2016'!$B:$AD,15,FALSE)="","",VLOOKUP($B21,'I - Stationary-FY 2016'!$B:$AD,15,FALSE)) -> 
B22: I.3.2 | C22: 2 | D22: Emissions from grid-supplied energy consumed within the city boundary | E22: =IF(VLOOKUP(B22,'I - Stationary-FY 2016'!$B:$F,5,FALSE)="","",VLOOKUP(B22,'I - Stationary-FY 2016'!$B:$F,5,FALSE)) -> IE | F22: =SUMIF('I - Stationary-FY 2016'!$B:$B,$B22,'I - Stationary-FY 2016'!W:W) -> 0 | G22: =SUMIF('I - Stationary-FY 2016'!$B:$B,$B22,'I - Stationary-FY 2016'!X:X) -> 0 | H22: =SUMIF('I - Stationary-FY 2016'!$B:$B,$B22,'I - Stationary-FY 2016'!Y:Y) -> 0 | M22: =SUMIF('I - Stationary-FY 2016'!$B:$B,$B22,'I - Stationary-FY 2016'!Z:Z) -> 0 | N22: =SUMIF('I - Stationary-FY 2016'!$B:$B,$B22,'I - Stationary-FY 2016'!AA:AA) -> 0 | O22: =IF(VLOOKUP($B22,'I - Stationary-FY 2016'!$B:$AD,15,FALSE)="","",VLOOKUP($B22,'I - Stationary-FY 2016'!$B:$AD,15,FALSE)) -> 
B23: I.3.3 | C23: 3 | D23: Transmission and distribution losses from grid-supplied energy | E23: =IF(VLOOKUP(B23,'I - Stationary-FY 2016'!$B:$F,5,FALSE)="","",VLOOKUP(B23,'I - Stationary-FY 2016'!$B:$F,5,FALSE)) -> IE | F23: =SUMIF('I - Stationary-FY 2016'!$B:$B,$B23,'I - Stationary-FY 2016'!W:W) -> 0 | G23: =SUMIF('I - Stationary-FY 2016'!$B:$B,$B23,'I - Stationary-FY 2016'!X:X) -> 0 | H23: =SUMIF('I - Stationary-FY 2016'!$B:$B,$B23,'I - Stationary-FY 2016'!Y:Y) -> 0 | M23: =SUMIF('I - Stationary-FY 2016'!$B:$B,$B23,'I - Stationary-FY 2016'!Z:Z) -> 0 | N23: =SUMIF('I - Stationary-FY 2016'!$B:$B,$B23,'I - Stationary-FY 2016'!AA:AA) -> 0 | O23: =IF(VLOOKUP($B23,'I - Stationary-FY 2016'!$B:$AD,15,FALSE)="","",VLOOKUP($B23,'I - Stationary-FY 2016'!$B:$AD,15,FALSE)) -> 
B24: I.4 | D24: Energy industries
B25: I.4.1 | C25: 1 | D25: Emissions from energy production used in power plant auxiliary operations within the city | E25: =IF(VLOOKUP(B25,'I - Stationary-FY 2016'!$B:$F,5,FALSE)="","",VLOOKUP(B25,'I - Stationary-FY 2016'!$B:$F,5,FALSE)) -> NO | F25: =SUMIF('I - Stationary-FY 2016'!$B:$B,$B25,'I - Stationary-FY 2016'!W:W) -> 0 | G25: =SUMIF('I - Stationary-FY 2016'!$B:$B,$B25,'I - Stationary-FY 2016'!X:X) -> 0 | H25: =SUMIF('I - Stationary-FY 2016'!$B:$B,$B25,'I - Stationary-FY 2016'!Y:Y) -> 0 | M25: =SUMIF('I - Stationary-FY 2016'!$B:$B,$B25,'I - Stationary-FY 2016'!Z:Z) -> 0 | N25: =SUMIF('I - Stationary-FY 2016'!$B:$B,$B25,'I - Stationary-FY 2016'!AA:AA) -> 0 | O25: =IF(VLOOKUP($B25,'I - Stationary-FY 2016'!$B:$AD,15,FALSE)="","",VLOOKUP($B25,'I - Stationary-FY 2016'!$B:$AD,15,FALSE)) -> 
B26: I.4.2 | C26: 2 | D26: Emissions from grid-supplied energy consumed by energy industries | E26: =IF(VLOOKUP(B26,'I - Stationary-FY 2016'!$B:$F,5,FALSE)="","",VLOOKUP(B26,'I - Stationary-FY 2016'!$B:$F,5,FALSE)) -> NO | F26: =SUMIF('I - Stationary-FY 2016'!$B:$B,$B26,'I - Stationary-FY 2016'!W:W) -> 0 | G26: =SUMIF('I - Stationary-FY 2016'!$B:$B,$B26,'I - Stationary-FY 2016'!X:X) -> 0 | H26: =SUMIF('I - Stationary-FY 2016'!$B:$B,$B26,'I - Stationary-FY 2016'!Y:Y) -> 0 | M26: =SUMIF('I - Stationary-FY 2016'!$B:$B,$B26,'I - Stationary-FY 2016'!Z:Z) -> 0 | N26: =SUMIF('I - Stationary-FY 2016'!$B:$B,$B26,'I - Stationary-FY 2016'!AA:AA) -> 0 | O26: =IF(VLOOKUP($B26,'I - Stationary-FY 2016'!$B:$AD,15,FALSE)="","",VLOOKUP($B26,'I - Stationary-FY 2016'!$B:$AD,15,FALSE)) -> 
B27: I.4.3 | C27: 3 | D27: Emissions from transmission and distribution losses from grid-supplied energy used in power plant auxiliary operations | E27: =IF(VLOOKUP(B27,'I - Stationary-FY 2016'!$B:$F,5,FALSE)="","",VLOOKUP(B27,'I - Stationary-FY 2016'!$B:$F,5,FALSE)) -> NO | F27: =SUMIF('I - Stationary-FY 2016'!$B:$B,$B27,'I - Stationary-FY 2016'!W:W) -> 0 | G27: =SUMIF('I - Stationary-FY 2016'!$B:$B,$B27,'I - Stationary-FY 2016'!X:X) -> 0 | H27: =SUMIF('I - Stationary-FY 2016'!$B:$B,$B27,'I - Stationary-FY 2016'!Y:Y) -> 0 | M27: =SUMIF('I - Stationary-FY 2016'!$B:$B,$B27,'I - Stationary-FY 2016'!Z:Z) -> 0 | N27: =SUMIF('I - Stationary-FY 2016'!$B:$B,$B27,'I - Stationary-FY 2016'!AA:AA) -> 0 | O27: =IF(VLOOKUP($B27,'I - Stationary-FY 2016'!$B:$AD,15,FALSE)="","",VLOOKUP($B27,'I - Stationary-FY 2016'!$B:$AD,15,FALSE)) -> 
B28: I.4.4 | C28: 1 | D28: Emissions from energy generation supplied to the grid | E28: =IF(VLOOKUP(B28,'I - Stationary-FY 2016'!$B:$F,5,FALSE)="","",VLOOKUP(B28,'I - Stationary-FY 2016'!$B:$F,5,FALSE)) -> NO | F28: =SUMIF('I - Stationary-FY 2016'!$B:$B,$B28,'I - Stationary-FY 2016'!W:W) -> 0 | G28: =SUMIF('I - Stationary-FY 2016'!$B:$B,$B28,'I - Stationary-FY 2016'!X:X) -> 0 | H28: =SUMIF('I - Stationary-FY 2016'!$B:$B,$B28,'I - Stationary-FY 2016'!Y:Y) -> 0 | M28: =SUMIF('I - Stationary-FY 2016'!$B:$B,$B28,'I - Stationary-FY 2016'!Z:Z) -> 0 | N28: =SUMIF('I - Stationary-FY 2016'!$B:$B,$B28,'I - Stationary-FY 2016'!AA:AA) -> 0 | O28: =IF(VLOOKUP($B28,'I - Stationary-FY 2016'!$B:$AD,15,FALSE)="","",VLOOKUP($B28,'I - Stationary-FY 2016'!$B:$AD,15,FALSE)) -> 
B29: I.5 | D29: Agriculture, forestry and fishing activities
B30: I.5.1 | C30: 1 | D30: Emissions from fuel combustion within the city boundary | E30: =IF(VLOOKUP(B30,'I - Stationary-FY 2016'!$B:$F,5,FALSE)="","",VLOOKUP(B30,'I - Stationary-FY 2016'!$B:$F,5,FALSE)) -> IE | F30: =SUMIF('I - Stationary-FY 2016'!$B:$B,$B30,'I - Stationary-FY 2016'!W:W) -> 0 | G30: =SUMIF('I - Stationary-FY 2016'!$B:$B,$B30,'I - Stationary-FY 2016'!X:X) -> 0 | H30: =SUMIF('I - Stationary-FY 2016'!$B:$B,$B30,'I - Stationary-FY 2016'!Y:Y) -> 0 | M30: =SUMIF('I - Stationary-FY 2016'!$B:$B,$B30,'I - Stationary-FY 2016'!Z:Z) -> 0 | N30: =SUMIF('I - Stationary-FY 2016'!$B:$B,$B30,'I - Stationary-FY 2016'!AA:AA) -> 0 | O30: =IF(VLOOKUP($B30,'I - Stationary-FY 2016'!$B:$AD,15,FALSE)="","",VLOOKUP($B30,'I - Stationary-FY 2016'!$B:$AD,15,FALSE)) -> 
B31: I.5.2 | C31: 2 | D31: Emissions from grid-supplied energy consumed within the city boundary | E31: =IF(VLOOKUP(B31,'I - Stationary-FY 2016'!$B:$F,5,FALSE)="","",VLOOKUP(B31,'I - Stationary-FY 2016'!$B:$F,5,FALSE)) -> IE | F31: =SUMIF('I - Stationary-FY 2016'!$B:$B,$B31,'I - Stationary-FY 2016'!W:W) -> 0 | G31: =SUMIF('I - Stationary-FY 2016'!$B:$B,$B31,'I - Stationary-FY 2016'!X:X) -> 0 | H31: =SUMIF('I - Stationary-FY 2016'!$B:$B,$B31,'I - Stationary-FY 2016'!Y:Y) -> 0 | M31: =SUMIF('I - Stationary-FY 2016'!$B:$B,$B31,'I - Stationary-FY 2016'!Z:Z) -> 0 | N31: =SUMIF('I - Stationary-FY 2016'!$B:$B,$B31,'I - Stationary-FY 2016'!AA:AA) -> 0 | O31: =IF(VLOOKUP($B31,'I - Stationary-FY 2016'!$B:$AD,15,FALSE)="","",VLOOKUP($B31,'I - Stationary-FY 2016'!$B:$AD,15,FALSE)) -> 
B32: I.5.3 | C32: 3 | D32: Transmission and distribution losses from grid-supplied energy consumption | E32: =IF(VLOOKUP(B32,'I - Stationary-FY 2016'!$B:$F,5,FALSE)="","",VLOOKUP(B32,'I - Stationary-FY 2016'!$B:$F,5,FALSE)) -> IE | F32: =SUMIF('I - Stationary-FY 2016'!$B:$B,$B32,'I - Stationary-FY 2016'!W:W) -> 0 | G32: =SUMIF('I - Stationary-FY 2016'!$B:$B,$B32,'I - Stationary-FY 2016'!X:X) -> 0 | H32: =SUMIF('I - Stationary-FY 2016'!$B:$B,$B32,'I - Stationary-FY 2016'!Y:Y) -> 0 | M32: =SUMIF('I - Stationary-FY 2016'!$B:$B,$B32,'I - Stationary-FY 2016'!Z:Z) -> 0 | N32: =SUMIF('I - Stationary-FY 2016'!$B:$B,$B32,'I - Stationary-FY 2016'!AA:AA) -> 0 | O32: =IF(VLOOKUP($B32,'I - Stationary-FY 2016'!$B:$AD,15,FALSE)="","",VLOOKUP($B32,'I - Stationary-FY 2016'!$B:$AD,15,FALSE)) -> 
B33: I.6 | D33: Non-specified sources
B34: I.6.1 | C34: 1 | D34: Emissions from fuel combustion within the city boundary | E34: =IF(VLOOKUP(B34,'I - Stationary-FY 2016'!$B:$F,5,FALSE)="","",VLOOKUP(B34,'I - Stationary-FY 2016'!$B:$F,5,FALSE)) -> NO | F34: =SUMIF('I - Stationary-FY 2016'!$B:$B,$B34,'I - Stationary-FY 2016'!W:W) -> 0 | G34: =SUMIF('I - Stationary-FY 2016'!$B:$B,$B34,'I - Stationary-FY 2016'!X:X) -> 0 | H34: =SUMIF('I - Stationary-FY 2016'!$B:$B,$B34,'I - Stationary-FY 2016'!Y:Y) -> 0 | M34: =SUMIF('I - Stationary-FY 2016'!$B:$B,$B34,'I - Stationary-FY 2016'!Z:Z) -> 0 | N34: =SUMIF('I - Stationary-FY 2016'!$B:$B,$B34,'I - Stationary-FY 2016'!AA:AA) -> 0 | O34: =IF(VLOOKUP($B34,'I - Stationary-FY 2016'!$B:$AD,15,FALSE)="","",VLOOKUP($B34,'I - Stationary-FY 2016'!$B:$AD,15,FALSE)) -> 
B35: I.6.2 | C35: 2 | D35: Emissions from grid-supplied energy consumed within the city boundary | E35: =IF(VLOOKUP(B35,'I - Stationary-FY 2016'!$B:$F,5,FALSE)="","",VLOOKUP(B35,'I - Stationary-FY 2016'!$B:$F,5,FALSE)) -> NO | F35: =SUMIF('I - Stationary-FY 2016'!$B:$B,$B35,'I - Stationary-FY 2016'!W:W) -> 0 | G35: =SUMIF('I - Stationary-FY 2016'!$B:$B,$B35,'I - Stationary-FY 2016'!X:X) -> 0 | H35: =SUMIF('I - Stationary-FY 2016'!$B:$B,$B35,'I - Stationary-FY 2016'!Y:Y) -> 0 | M35: =SUMIF('I - Stationary-FY 2016'!$B:$B,$B35,'I - Stationary-FY 2016'!Z:Z) -> 0 | N35: =SUMIF('I - Stationary-FY 2016'!$B:$B,$B35,'I - Stationary-FY 2016'!AA:AA) -> 0 | O35: =IF(VLOOKUP($B35,'I - Stationary-FY 2016'!$B:$AD,15,FALSE)="","",VLOOKUP($B35,'I - Stationary-FY 2016'!$B:$AD,15,FALSE)) -> 
B36: I.6.3 | C36: 3 | D36: Emissions from transmission and distribution losses from grid-supplied energy consumption | E36: =IF(VLOOKUP(B36,'I - Stationary-FY 2016'!$B:$F,5,FALSE)="","",VLOOKUP(B36,'I - Stationary-FY 2016'!$B:$F,5,FALSE)) -> NO | F36: =SUMIF('I - Stationary-FY 2016'!$B:$B,$B36,'I - Stationary-FY 2016'!W:W) -> 0 | G36: =SUMIF('I - Stationary-FY 2016'!$B:$B,$B36,'I - Stationary-FY 2016'!X:X) -> 0 | H36: =SUMIF('I - Stationary-FY 2016'!$B:$B,$B36,'I - Stationary-FY 2016'!Y:Y) -> 0 | M36: =SUMIF('I - Stationary-FY 2016'!$B:$B,$B36,'I - Stationary-FY 2016'!Z:Z) -> 0 | N36: =SUMIF('I - Stationary-FY 2016'!$B:$B,$B36,'I - Stationary-FY 2016'!AA:AA) -> 0 | O36: =IF(VLOOKUP($B36,'I - Stationary-FY 2016'!$B:$AD,15,FALSE)="","",VLOOKUP($B36,'I - Stationary-FY 2016'!$B:$AD,15,FALSE)) -> 
B37: I.7 | C37: 1 | D37: Fugitive emissions from mining, processing, storage, and transportation of coal
B38: I.7.1 | C38: 1 | D38: Fugitive emissions from mining, processing, storage, and transportation of coal within the city boundary | E38: =IF(VLOOKUP(B38,'I - Stationary-FY 2016'!$B:$F,5,FALSE)="","",VLOOKUP(B38,'I - Stationary-FY 2016'!$B:$F,5,FALSE)) -> NO | F38: =SUMIF('I - Stationary-FY 2016'!$B:$B,$B38,'I - Stationary-FY 2016'!W:W) -> 0 | G38: =SUMIF('I - Stationary-FY 2016'!$B:$B,$B38,'I - Stationary-FY 2016'!X:X) -> 0 | H38: =SUMIF('I - Stationary-FY 2016'!$B:$B,$B38,'I - Stationary-FY 2016'!Y:Y) -> 0 | M38: =SUMIF('I - Stationary-FY 2016'!$B:$B,$B38,'I - Stationary-FY 2016'!Z:Z) -> 0 | N38: =SUMIF('I - Stationary-FY 2016'!$B:$B,$B38,'I - Stationary-FY 2016'!AA:AA) -> 0 | O38: =IF(VLOOKUP($B38,'I - Stationary-FY 2016'!$B:$AD,15,FALSE)="","",VLOOKUP($B38,'I - Stationary-FY 2016'!$B:$AD,15,FALSE)) -> 
B39: I.8 | C39: 1 | D39: Fugitive emissions from oil and natural gas systems
B40: I.8.1 | C40: 1 | D40: Fugitive emissions from oil and natural gas systems within the city boundary | E40: =IF(VLOOKUP(B40,'I - Stationary-FY 2016'!$B:$F,5,FALSE)="","",VLOOKUP(B40,'I - Stationary-FY 2016'!$B:$F,5,FALSE)) ->  | F40: =SUMIF('I - Stationary-FY 2016'!$B:$B,$B40,'I - Stationary-FY 2016'!W:W) -> 0 | G40: =SUMIF('I - Stationary-FY 2016'!$B:$B,$B40,'I - Stationary-FY 2016'!X:X) -> 3649.251357 | H40: =SUMIF('I - Stationary-FY 2016'!$B:$B,$B40,'I - Stationary-FY 2016'!Y:Y) -> 0 | M40: =SUMIF('I - Stationary-FY 2016'!$B:$B,$B40,'I - Stationary-FY 2016'!Z:Z) -> 3649.251357 | N40: =SUMIF('I - Stationary-FY 2016'!$B:$B,$B40,'I - Stationary-FY 2016'!AA:AA) -> 0 | O40: =IF(VLOOKUP($B40,'I - Stationary-FY 2016'!$B:$AD,15,FALSE)="","",VLOOKUP($B40,'I - Stationary-FY 2016'!$B:$AD,15,FALSE)) -> 
B41: II | D41: TRANSPORTATION
B42: II.1 | D42: On-road transportation
B43: II.1.1 | C43: 1 | D43: Emissions from fuel combustion on-road transportation occurring in the city | E43: =IF(VLOOKUP(B43,'II - Transport-FY 2016'!$B:$G,6,FALSE)="","",VLOOKUP(B43,'II - Transport-FY 2016'!$B:$G,6,FALSE)) ->  | F43: =SUMIF('II - Transport-FY 2016'!$B:$B,$B43,'II - Transport-FY 2016'!X:X) -> 58431.84642 | G43: =SUMIF('II - Transport-FY 2016'!$B:$B,$B43,'II - Transport-FY 2016'!Y:Y) -> 8.326005636 | H43: =SUMIF('II - Transport-FY 2016'!$B:$B,$B43,'II - Transport-FY 2016'!Z:Z) -> 1063.795899 | M43: =SUMIF('II - Transport-FY 2016'!$B:$B,$B43,'II - Transport-FY 2016'!AA:AA) -> 59503.96832 | N43: =SUMIF('II - Transport-FY 2016'!$B:$B,$B43,'II - Transport-FY 2016'!AB:AB) -> 0 | O43: =IF(VLOOKUP($B43,'II - Transport-FY 2016'!$B:$AE,17,FALSE)="","",VLOOKUP($B43,'II - Transport-FY 2016'!$B:$AE,17,FALSE)) -> 
B44: II.1.2 | C44: 2 | D44: Emissions from grid-supplied energy consumed in the city for on-road transportation | E44: =IF(VLOOKUP(B44,'II - Transport-FY 2016'!$B:$G,6,FALSE)="","",VLOOKUP(B44,'II - Transport-FY 2016'!$B:$G,6,FALSE)) -> IE | F44: =SUMIF('II - Transport-FY 2016'!$B:$B,$B44,'II - Transport-FY 2016'!X:X) -> 0 | G44: =SUMIF('II - Transport-FY 2016'!$B:$B,$B44,'II - Transport-FY 2016'!Y:Y) -> 0 | H44: =SUMIF('II - Transport-FY 2016'!$B:$B,$B44,'II - Transport-FY 2016'!Z:Z) -> 0 | M44: =SUMIF('II - Transport-FY 2016'!$B:$B,$B44,'II - Transport-FY 2016'!AA:AA) -> 0 | N44: =SUMIF('II - Transport-FY 2016'!$B:$B,$B44,'II - Transport-FY 2016'!AB:AB) -> 0 | O44: =IF(VLOOKUP($B44,'II - Transport-FY 2016'!$B:$AE,17,FALSE)="","",VLOOKUP($B44,'II - Transport-FY 2016'!$B:$AE,17,FALSE)) -> 
B45: II.1.3 | C45: 3 | D45: Emissions from transboundary journeys occurring outside the city, and T and D losses from grid-supplied energy use | E45: =IF(VLOOKUP(B45,'II - Transport-FY 2016'!$B:$G,6,FALSE)="","",VLOOKUP(B45,'II - Transport-FY 2016'!$B:$G,6,FALSE)) -> IE | F45: =SUMIF('II - Transport-FY 2016'!$B:$B,$B45,'II - Transport-FY 2016'!X:X) -> 0 | G45: =SUMIF('II - Transport-FY 2016'!$B:$B,$B45,'II - Transport-FY 2016'!Y:Y) -> 0 | H45: =SUMIF('II - Transport-FY 2016'!$B:$B,$B45,'II - Transport-FY 2016'!Z:Z) -> 0 | M45: =SUMIF('II - Transport-FY 2016'!$B:$B,$B45,'II - Transport-FY 2016'!AA:AA) -> 0 | N45: =SUMIF('II - Transport-FY 2016'!$B:$B,$B45,'II - Transport-FY 2016'!AB:AB) -> 0 | O45: =IF(VLOOKUP($B45,'II - Transport-FY 2016'!$B:$AE,17,FALSE)="","",VLOOKUP($B45,'II - Transport-FY 2016'!$B:$AE,17,FALSE)) -> 
B46: II.2 | D46: Railways
B47: II.2.1 | C47: 1 | D47: Emissions from fuel combustion for railway transportation occurring in the city | E47: =IF(VLOOKUP(B47,'II - Transport-FY 2016'!$B:$G,6,FALSE)="","",VLOOKUP(B47,'II - Transport-FY 2016'!$B:$G,6,FALSE)) -> NO | F47: =SUMIF('II - Transport-FY 2016'!$B:$B,$B47,'II - Transport-FY 2016'!X:X) -> 0 | G47: =SUMIF('II - Transport-FY 2016'!$B:$B,$B47,'II - Transport-FY 2016'!Y:Y) -> 0 | H47: =SUMIF('II - Transport-FY 2016'!$B:$B,$B47,'II - Transport-FY 2016'!Z:Z) -> 0 | M47: =SUMIF('II - Transport-FY 2016'!$B:$B,$B47,'II - Transport-FY 2016'!AA:AA) -> 0 | N47: =SUMIF('II - Transport-FY 2016'!$B:$B,$B47,'II - Transport-FY 2016'!AB:AB) -> 0 | O47: =IF(VLOOKUP($B47,'II - Transport-FY 2016'!$B:$AE,17,FALSE)="","",VLOOKUP($B47,'II - Transport-FY 2016'!$B:$AE,17,FALSE)) -> 
B48: II.2.2 | C48: 2 | D48: Emissions from grid-supplied energy consumed in the city for railways | E48: =IF(VLOOKUP(B48,'II - Transport-FY 2016'!$B:$G,6,FALSE)="","",VLOOKUP(B48,'II - Transport-FY 2016'!$B:$G,6,FALSE)) -> NO | F48: =SUMIF('II - Transport-FY 2016'!$B:$B,$B48,'II - Transport-FY 2016'!X:X) -> 0 | G48: =SUMIF('II - Transport-FY 2016'!$B:$B,$B48,'II - Transport-FY 2016'!Y:Y) -> 0 | H48: =SUMIF('II - Transport-FY 2016'!$B:$B,$B48,'II - Transport-FY 2016'!Z:Z) -> 0 | M48: =SUMIF('II - Transport-FY 2016'!$B:$B,$B48,'II - Transport-FY 2016'!AA:AA) -> 0 | N48: =SUMIF('II - Transport-FY 2016'!$B:$B,$B48,'II - Transport-FY 2016'!AB:AB) -> 0 | O48: =IF(VLOOKUP($B48,'II - Transport-FY 2016'!$B:$AE,17,FALSE)="","",VLOOKUP($B48,'II - Transport-FY 2016'!$B:$AE,17,FALSE)) -> 
B49: II.2.3 | C49: 3 | D49: Emissions from transboundary journeys occurring outside the city, and T and D losses from grid-supplied energy use | E49: =IF(VLOOKUP(B49,'II - Transport-FY 2016'!$B:$G,6,FALSE)="","",VLOOKUP(B49,'II - Transport-FY 2016'!$B:$G,6,FALSE)) -> NO | F49: =SUMIF('II - Transport-FY 2016'!$B:$B,$B49,'II - Transport-FY 2016'!X:X) -> 0 | G49: =SUMIF('II - Transport-FY 2016'!$B:$B,$B49,'II - Transport-FY 2016'!Y:Y) -> 0 | H49: =SUMIF('II - Transport-FY 2016'!$B:$B,$B49,'II - Transport-FY 2016'!Z:Z) -> 0 | M49: =SUMIF('II - Transport-FY 2016'!$B:$B,$B49,'II - Transport-FY 2016'!AA:AA) -> 0 | N49: =SUMIF('II - Transport-FY 2016'!$B:$B,$B49,'II - Transport-FY 2016'!AB:AB) -> 0 | O49: =IF(VLOOKUP($B49,'II - Transport-FY 2016'!$B:$AE,17,FALSE)="","",VLOOKUP($B49,'II - Transport-FY 2016'!$B:$AE,17,FALSE)) -> 
B50: II.3 | D50: Waterborne navigation
B51: II.3.1 | C51: 1 | D51: Emissions from fuel combustion for waterborne navigation occurring in the city | E51: =IF(VLOOKUP(B51,'II - Transport-FY 2016'!$B:$G,6,FALSE)="","",VLOOKUP(B51,'II - Transport-FY 2016'!$B:$G,6,FALSE)) -> NO | F51: =SUMIF('II - Transport-FY 2016'!$B:$B,$B51,'II - Transport-FY 2016'!X:X) -> 0 | G51: =SUMIF('II - Transport-FY 2016'!$B:$B,$B51,'II - Transport-FY 2016'!Y:Y) -> 0 | H51: =SUMIF('II - Transport-FY 2016'!$B:$B,$B51,'II - Transport-FY 2016'!Z:Z) -> 0 | M51: =SUMIF('II - Transport-FY 2016'!$B:$B,$B51,'II - Transport-FY 2016'!AA:AA) -> 0 | N51: =SUMIF('II - Transport-FY 2016'!$B:$B,$B51,'II - Transport-FY 2016'!AB:AB) -> 0 | O51: =IF(VLOOKUP($B51,'II - Transport-FY 2016'!$B:$AE,17,FALSE)="","",VLOOKUP($B51,'II - Transport-FY 2016'!$B:$AE,17,FALSE)) -> 
B52: II.3.2 | C52: 2 | D52: Emissions from grid-supplied energy consumed in the city for waterborne navigation | E52: =IF(VLOOKUP(B52,'II - Transport-FY 2016'!$B:$G,6,FALSE)="","",VLOOKUP(B52,'II - Transport-FY 2016'!$B:$G,6,FALSE)) -> NO | F52: =SUMIF('II - Transport-FY 2016'!$B:$B,$B52,'II - Transport-FY 2016'!X:X) -> 0 | G52: =SUMIF('II - Transport-FY 2016'!$B:$B,$B52,'II - Transport-FY 2016'!Y:Y) -> 0 | H52: =SUMIF('II - Transport-FY 2016'!$B:$B,$B52,'II - Transport-FY 2016'!Z:Z) -> 0 | M52: =SUMIF('II - Transport-FY 2016'!$B:$B,$B52,'II - Transport-FY 2016'!AA:AA) -> 0 | N52: =SUMIF('II - Transport-FY 2016'!$B:$B,$B52,'II - Transport-FY 2016'!AB:AB) -> 0 | O52: =IF(VLOOKUP($B52,'II - Transport-FY 2016'!$B:$AE,17,FALSE)="","",VLOOKUP($B52,'II - Transport-FY 2016'!$B:$AE,17,FALSE)) -> 
B53: II.3.3 | C53: 3 | D53: Emissions from transboundary journeys occurring outside the city, and T and D losses from grid-supplied energy use | E53: =IF(VLOOKUP(B53,'II - Transport-FY 2016'!$B:$G,6,FALSE)="","",VLOOKUP(B53,'II - Transport-FY 2016'!$B:$G,6,FALSE)) -> NO | F53: =SUMIF('II - Transport-FY 2016'!$B:$B,$B53,'II - Transport-FY 2016'!X:X) -> 0 | G53: =SUMIF('II - Transport-FY 2016'!$B:$B,$B53,'II - Transport-FY 2016'!Y:Y) -> 0 | H53: =SUMIF('II - Transport-FY 2016'!$B:$B,$B53,'II - Transport-FY 2016'!Z:Z) -> 0 | M53: =SUMIF('II - Transport-FY 2016'!$B:$B,$B53,'II - Transport-FY 2016'!AA:AA) -> 0 | N53: =SUMIF('II - Transport-FY 2016'!$B:$B,$B53,'II - Transport-FY 2016'!AB:AB) -> 0 | O53: =IF(VLOOKUP($B53,'II - Transport-FY 2016'!$B:$AE,17,FALSE)="","",VLOOKUP($B53,'II - Transport-FY 2016'!$B:$AE,17,FALSE)) -> 
B54: II.4 | D54: Aviation
B55: II.4.1 | C55: 1 | D55: Emissions from fuel combustion for aviation occurring in the city | E55: =IF(VLOOKUP(B55,'II - Transport-FY 2016'!$B:$G,6,FALSE)="","",VLOOKUP(B55,'II - Transport-FY 2016'!$B:$G,6,FALSE)) -> NO | F55: =SUMIF('II - Transport-FY 2016'!$B:$B,$B55,'II - Transport-FY 2016'!X:X) -> 0 | G55: =SUMIF('II - Transport-FY 2016'!$B:$B,$B55,'II - Transport-FY 2016'!Y:Y) -> 0 | H55: =SUMIF('II - Transport-FY 2016'!$B:$B,$B55,'II - Transport-FY 2016'!Z:Z) -> 0 | M55: =SUMIF('II - Transport-FY 2016'!$B:$B,$B55,'II - Transport-FY 2016'!AA:AA) -> 0 | N55: =SUMIF('II - Transport-FY 2016'!$B:$B,$B55,'II - Transport-FY 2016'!AB:AB) -> 0 | O55: =IF(VLOOKUP($B55,'II - Transport-FY 2016'!$B:$AE,17,FALSE)="","",VLOOKUP($B55,'II - Transport-FY 2016'!$B:$AE,17,FALSE)) -> 
B56: II.4.2 | C56: 2 | D56: Emissions from grid-supplied energy consumed in the city for aviation | E56: =IF(VLOOKUP(B56,'II - Transport-FY 2016'!$B:$G,6,FALSE)="","",VLOOKUP(B56,'II - Transport-FY 2016'!$B:$G,6,FALSE)) -> NO | F56: =SUMIF('II - Transport-FY 2016'!$B:$B,$B56,'II - Transport-FY 2016'!X:X) -> 0 | G56: =SUMIF('II - Transport-FY 2016'!$B:$B,$B56,'II - Transport-FY 2016'!Y:Y) -> 0 | H56: =SUMIF('II - Transport-FY 2016'!$B:$B,$B56,'II - Transport-FY 2016'!Z:Z) -> 0 | M56: =SUMIF('II - Transport-FY 2016'!$B:$B,$B56,'II - Transport-FY 2016'!AA:AA) -> 0 | N56: =SUMIF('II - Transport-FY 2016'!$B:$B,$B56,'II - Transport-FY 2016'!AB:AB) -> 0 | O56: =IF(VLOOKUP($B56,'II - Transport-FY 2016'!$B:$AE,17,FALSE)="","",VLOOKUP($B56,'II - Transport-FY 2016'!$B:$AE,17,FALSE)) -> 
B57: II.4.3 | C57: 3 | D57: Emissions from transboundary journeys occurring outside the city, and T and D losses from grid-supplied energy use | E57: =IF(VLOOKUP(B57,'II - Transport-FY 2016'!$B:$G,6,FALSE)="","",VLOOKUP(B57,'II - Transport-FY 2016'!$B:$G,6,FALSE)) -> NO | F57: =SUMIF('II - Transport-FY 2016'!$B:$B,$B57,'II - Transport-FY 2016'!X:X) -> 0 | G57: =SUMIF('II - Transport-FY 2016'!$B:$B,$B57,'II - Transport-FY 2016'!Y:Y) -> 0 | H57: =SUMIF('II - Transport-FY 2016'!$B:$B,$B57,'II - Transport-FY 2016'!Z:Z) -> 0 | M57: =SUMIF('II - Transport-FY 2016'!$B:$B,$B57,'II - Transport-FY 2016'!AA:AA) -> 0 | N57: =SUMIF('II - Transport-FY 2016'!$B:$B,$B57,'II - Transport-FY 2016'!AB:AB) -> 0 | O57: =IF(VLOOKUP($B57,'II - Transport-FY 2016'!$B:$AE,17,FALSE)="","",VLOOKUP($B57,'II - Transport-FY 2016'!$B:$AE,17,FALSE)) -> 
B58: II.5 | D58: Off-road transportation
B59: II.5.1 | C59: 1 | D59: Emissions from fuel combustion for off-road transportation occurring in the city | E59: =IF(VLOOKUP(B59,'II - Transport-FY 2016'!$B:$G,6,FALSE)="","",VLOOKUP(B59,'II - Transport-FY 2016'!$B:$G,6,FALSE)) ->  | F59: =SUMIF('II - Transport-FY 2016'!$B:$B,$B59,'II - Transport-FY 2016'!X:X) -> 7325.016923 | G59: =SUMIF('II - Transport-FY 2016'!$B:$B,$B59,'II - Transport-FY 2016'!Y:Y) -> 3.120899209 | H59: =SUMIF('II - Transport-FY 2016'!$B:$B,$B59,'II - Transport-FY 2016'!Z:Z) -> 0.0212265 | M59: =SUMIF('II - Transport-FY 2016'!$B:$B,$B59,'II - Transport-FY 2016'!AA:AA) -> 7412.096327 | N59: =SUMIF('II - Transport-FY 2016'!$B:$B,$B59,'II - Transport-FY 2016'!AB:AB) -> 0 | O59: =IF(VLOOKUP($B59,'II - Transport-FY 2016'!$B:$AE,17,FALSE)="","",VLOOKUP($B59,'II - Transport-FY 2016'!$B:$AE,17,FALSE)) -> 
B60: II.5.2 | C60: 2 | D60: Emissions from grid-supplied energy consumed in the city for off-road transportation | E60: =IF(VLOOKUP(B60,'II - Transport-FY 2016'!$B:$G,6,FALSE)="","",VLOOKUP(B60,'II - Transport-FY 2016'!$B:$G,6,FALSE)) -> NO | F60: =SUMIF('II - Transport-FY 2016'!$B:$B,$B60,'II - Transport-FY 2016'!X:X) -> 0 | G60: =SUMIF('II - Transport-FY 2016'!$B:$B,$B60,'II - Transport-FY 2016'!Y:Y) -> 0 | H60: =SUMIF('II - Transport-FY 2016'!$B:$B,$B60,'II - Transport-FY 2016'!Z:Z) -> 0 | M60: =SUMIF('II - Transport-FY 2016'!$B:$B,$B60,'II - Transport-FY 2016'!AA:AA) -> 0 | N60: =SUMIF('II - Transport-FY 2016'!$B:$B,$B60,'II - Transport-FY 2016'!AB:AB) -> 0 | O60: =IF(VLOOKUP($B60,'II - Transport-FY 2016'!$B:$AE,17,FALSE)="","",VLOOKUP($B60,'II - Transport-FY 2016'!$B:$AE,17,FALSE)) -> 
B61: II.5.3 | C61: 3 | D61: Emissions from transboundary journeys occurring outside the city, and T and D losses from grid-supplied energy use | E61: =IF(VLOOKUP(B61,'II - Transport-FY 2016'!$B:$G,6,FALSE)="","",VLOOKUP(B61,'II - Transport-FY 2016'!$B:$G,6,FALSE)) -> NO | F61: =SUMIF('II - Transport-FY 2016'!$B:$B,$B61,'II - Transport-FY 2016'!X:X) -> 0 | G61: =SUMIF('II - Transport-FY 2016'!$B:$B,$B61,'II - Transport-FY 2016'!Y:Y) -> 0 | H61: =SUMIF('II - Transport-FY 2016'!$B:$B,$B61,'II - Transport-FY 2016'!Z:Z) -> 0 | M61: =SUMIF('II - Transport-FY 2016'!$B:$B,$B61,'II - Transport-FY 2016'!AA:AA) -> 0 | N61: =SUMIF('II - Transport-FY 2016'!$B:$B,$B61,'II - Transport-FY 2016'!AB:AB) -> 0 | O61: =IF(VLOOKUP($B61,'II - Transport-FY 2016'!$B:$AE,17,FALSE)="","",VLOOKUP($B61,'II - Transport-FY 2016'!$B:$AE,17,FALSE)) -> 
B62: III | D62: WASTE
B63: III.1 | D63: Solid waste disposal
B64: III.1.1 | C64: 1 | D64: Emissions from solid waste generated in the city and disposed in landfills or open dumps within the city | E64: =IF(VLOOKUP(B64,'III - Waste-FY 2016'!$B:$G,6,FALSE)="","",VLOOKUP(B64,'III - Waste-FY 2016'!$B:$G,6,FALSE)) -> NO | F64: =SUMIF('III - Waste-FY 2016'!$B:$B,$B64,'III - Waste-FY 2016'!AA:AA) -> 0 | G64: =SUMIF('III - Waste-FY 2016'!$B:$B,$B64,'III - Waste-FY 2016'!AB:AB) -> 0 | H64: =SUMIF('III - Waste-FY 2016'!$B:$B,$B64,'III - Waste-FY 2016'!AC:AC) -> 0 | M64: =SUMIF('III - Waste-FY 2016'!$B:$B,$B64,'III - Waste-FY 2016'!AD:AD) -> 0 | N64: =SUMIF('III - Waste-FY 2016'!$B:$B,$B64,'III - Waste-FY 2016'!AE:AE) -> 0 | O64: =IF(VLOOKUP($B64,'III - Waste-FY 2016'!$B:$AH,17,FALSE)="","",VLOOKUP($B64,'III - Waste-FY 2016'!$B:$AH,17,FALSE)) -> 
B65: III.1.2 | C65: 3 | D65: Emissions from solid waste generated in the city but disposed in landfills or open dumps outside the city | E65: =IF(VLOOKUP(B65,'III - Waste-FY 2016'!$B:$G,6,FALSE)="","",VLOOKUP(B65,'III - Waste-FY 2016'!$B:$G,6,FALSE)) ->  | F65: =SUMIF('III - Waste-FY 2016'!$B:$B,$B65,'III - Waste-FY 2016'!AA:AA) -> 0 | G65: =SUMIF('III - Waste-FY 2016'!$B:$B,$B65,'III - Waste-FY 2016'!AB:AB) -> 2587.33944 | H65: =SUMIF('III - Waste-FY 2016'!$B:$B,$B65,'III - Waste-FY 2016'!AC:AC) -> 0 | M65: =SUMIF('III - Waste-FY 2016'!$B:$B,$B65,'III - Waste-FY 2016'!AD:AD) -> 2587.33944 | N65: =SUMIF('III - Waste-FY 2016'!$B:$B,$B65,'III - Waste-FY 2016'!AE:AE) -> 0 | O65: =IF(VLOOKUP($B65,'III - Waste-FY 2016'!$B:$AH,17,FALSE)="","",VLOOKUP($B65,'III - Waste-FY 2016'!$B:$AH,17,FALSE)) -> 
B66: III.1.3 | C66: 1 | D66: Emissions from waste generated outside the city and disposed in landfills or open dumps within the city | E66: =IF(VLOOKUP(B66,'III - Waste-FY 2016'!$B:$G,6,FALSE)="","",VLOOKUP(B66,'III - Waste-FY 2016'!$B:$G,6,FALSE)) -> NO | F66: =SUMIF('III - Waste-FY 2016'!$B:$B,$B66,'III - Waste-FY 2016'!AA:AA) -> 0 | G66: =SUMIF('III - Waste-FY 2016'!$B:$B,$B66,'III - Waste-FY 2016'!AB:AB) -> 0 | H66: =SUMIF('III - Waste-FY 2016'!$B:$B,$B66,'III - Waste-FY 2016'!AC:AC) -> 0 | M66: =SUMIF('III - Waste-FY 2016'!$B:$B,$B66,'III - Waste-FY 2016'!AD:AD) -> 0 | N66: =SUMIF('III - Waste-FY 2016'!$B:$B,$B66,'III - Waste-FY 2016'!AE:AE) -> 0 | O66: =IF(VLOOKUP($B66,'III - Waste-FY 2016'!$B:$AH,17,FALSE)="","",VLOOKUP($B66,'III - Waste-FY 2016'!$B:$AH,17,FALSE)) -> 
B67: III.2 | D67: Biological treatment of waste
B68: III.2.1 | C68: 1 | D68: Emissions from solid waste generated in the city that is treated biologically in the city | E68: =IF(VLOOKUP(B68,'III - Waste-FY 2016'!$B:$G,6,FALSE)="","",VLOOKUP(B68,'III - Waste-FY 2016'!$B:$G,6,FALSE)) -> NO | F68: =SUMIF('III - Waste-FY 2016'!$B:$B,$B68,'III - Waste-FY 2016'!AA:AA) -> 0 | G68: =SUMIF('III - Waste-FY 2016'!$B:$B,$B68,'III - Waste-FY 2016'!AB:AB) -> 0 | H68: =SUMIF('III - Waste-FY 2016'!$B:$B,$B68,'III - Waste-FY 2016'!AC:AC) -> 0 | M68: =SUMIF('III - Waste-FY 2016'!$B:$B,$B68,'III - Waste-FY 2016'!AD:AD) -> 0 | N68: =SUMIF('III - Waste-FY 2016'!$B:$B,$B68,'III - Waste-FY 2016'!AE:AE) -> 0 | O68: =IF(VLOOKUP($B68,'III - Waste-FY 2016'!$B:$AH,17,FALSE)="","",VLOOKUP($B68,'III - Waste-FY 2016'!$B:$AH,17,FALSE)) -> 
B69: III.2.2 | C69: 3 | D69: Emissions from solid waste generated in the city but treated biologically outside of the city | E69: =IF(VLOOKUP(B69,'III - Waste-FY 2016'!$B:$G,6,FALSE)="","",VLOOKUP(B69,'III - Waste-FY 2016'!$B:$G,6,FALSE)) ->  | F69: =SUMIF('III - Waste-FY 2016'!$B:$B,$B69,'III - Waste-FY 2016'!AA:AA) -> 811.8219713 | G69: =SUMIF('III - Waste-FY 2016'!$B:$B,$B69,'III - Waste-FY 2016'!AB:AB) -> 0.4752745476 | H69: =SUMIF('III - Waste-FY 2016'!$B:$B,$B69,'III - Waste-FY 2016'!AC:AC) -> 0.3373600583 | M69: =SUMIF('III - Waste-FY 2016'!$B:$B,$B69,'III - Waste-FY 2016'!AD:AD) -> 812.6346059 | N69: =SUMIF('III - Waste-FY 2016'!$B:$B,$B69,'III - Waste-FY 2016'!AE:AE) -> 0 | O69: =IF(VLOOKUP($B69,'III - Waste-FY 2016'!$B:$AH,17,FALSE)="","",VLOOKUP($B69,'III - Waste-FY 2016'!$B:$AH,17,FALSE)) -> 
B70: III.2.3 | C70: 1 | D70: Emissions from waste generated outside the city boundary but treated in the city | E70: =IF(VLOOKUP(B70,'III - Waste-FY 2016'!$B:$G,6,FALSE)="","",VLOOKUP(B70,'III - Waste-FY 2016'!$B:$G,6,FALSE)) -> NO | F70: =SUMIF('III - Waste-FY 2016'!$B:$B,$B70,'III - Waste-FY 2016'!AA:AA) -> 0 | G70: =SUMIF('III - Waste-FY 2016'!$B:$B,$B70,'III - Waste-FY 2016'!AB:AB) -> 0 | H70: =SUMIF('III - Waste-FY 2016'!$B:$B,$B70,'III - Waste-FY 2016'!AC:AC) -> 0 | M70: =SUMIF('III - Waste-FY 2016'!$B:$B,$B70,'III - Waste-FY 2016'!AD:AD) -> 0 | N70: =SUMIF('III - Waste-FY 2016'!$B:$B,$B70,'III - Waste-FY 2016'!AE:AE) -> 0 | O70: =IF(VLOOKUP($B70,'III - Waste-FY 2016'!$B:$AH,17,FALSE)="","",VLOOKUP($B70,'III - Waste-FY 2016'!$B:$AH,17,FALSE)) -> 
B71: III.3 | D71: Incineration and open burning
B72: III.3.1 | C72: 1 | D72: Emissions from waste generated and treated within the city | E72: =IF(VLOOKUP(B72,'III - Waste-FY 2016'!$B:$G,6,FALSE)="","",VLOOKUP(B72,'III - Waste-FY 2016'!$B:$G,6,FALSE)) -> NO | F72: =SUMIF('III - Waste-FY 2016'!$B:$B,$B72,'III - Waste-FY 2016'!AA:AA) -> 0 | G72: =SUMIF('III - Waste-FY 2016'!$B:$B,$B72,'III - Waste-FY 2016'!AB:AB) -> 0 | H72: =SUMIF('III - Waste-FY 2016'!$B:$B,$B72,'III - Waste-FY 2016'!AC:AC) -> 0 | M72: =SUMIF('III - Waste-FY 2016'!$B:$B,$B72,'III - Waste-FY 2016'!AD:AD) -> 0 | N72: =SUMIF('III - Waste-FY 2016'!$B:$B,$B72,'III - Waste-FY 2016'!AE:AE) -> 0 | O72: =IF(VLOOKUP($B72,'III - Waste-FY 2016'!$B:$AH,17,FALSE)="","",VLOOKUP($B72,'III - Waste-FY 2016'!$B:$AH,17,FALSE)) -> 
B73: III.3.2 | C73: 3 | D73: Emissions from waste generated within but treated outside of the city | E73: =IF(VLOOKUP(B73,'III - Waste-FY 2016'!$B:$G,6,FALSE)="","",VLOOKUP(B73,'III - Waste-FY 2016'!$B:$G,6,FALSE)) ->  | F73: =SUMIF('III - Waste-FY 2016'!$B:$B,$B73,'III - Waste-FY 2016'!AA:AA) -> 3602.698599 | G73: =SUMIF('III - Waste-FY 2016'!$B:$B,$B73,'III - Waste-FY 2016'!AB:AB) -> 0.05272658457 | H73: =SUMIF('III - Waste-FY 2016'!$B:$B,$B73,'III - Waste-FY 2016'!AC:AC) -> 124.7548653 | M73: =SUMIF('III - Waste-FY 2016'!$B:$B,$B73,'III - Waste-FY 2016'!AD:AD) -> 3727.506191 | N73: =SUMIF('III - Waste-FY 2016'!$B:$B,$B73,'III - Waste-FY 2016'!AE:AE) -> 0 | O73: =IF(VLOOKUP($B73,'III - Waste-FY 2016'!$B:$AH,17,FALSE)="","",VLOOKUP($B73,'III - Waste-FY 2016'!$B:$AH,17,FALSE)) -> 
B74: III.3.3 | C74: 1 | D74: Emissions from waste generated outside the city boundary but treated within the city | E74: =IF(VLOOKUP(B74,'III - Waste-FY 2016'!$B:$G,6,FALSE)="","",VLOOKUP(B74,'III - Waste-FY 2016'!$B:$G,6,FALSE)) -> NO | F74: =SUMIF('III - Waste-FY 2016'!$B:$B,$B74,'III - Waste-FY 2016'!AA:AA) -> 0 | G74: =SUMIF('III - Waste-FY 2016'!$B:$B,$B74,'III - Waste-FY 2016'!AB:AB) -> 0 | H74: =SUMIF('III - Waste-FY 2016'!$B:$B,$B74,'III - Waste-FY 2016'!AC:AC) -> 0 | M74: =SUMIF('III - Waste-FY 2016'!$B:$B,$B74,'III - Waste-FY 2016'!AD:AD) -> 0 | N74: =SUMIF('III - Waste-FY 2016'!$B:$B,$B74,'III - Waste-FY 2016'!AE:AE) -> 0 | O74: =IF(VLOOKUP($B74,'III - Waste-FY 2016'!$B:$AH,17,FALSE)="","",VLOOKUP($B74,'III - Waste-FY 2016'!$B:$AH,17,FALSE)) -> 
B75: III.4 | D75: Wastewater treatment and discharge
B76: III.4.1 | C76: 1 | D76: Emissions from wastewater generated and treated within the city | E76: =IF(VLOOKUP(B76,'III - Waste-FY 2016'!$B:$G,6,FALSE)="","",VLOOKUP(B76,'III - Waste-FY 2016'!$B:$G,6,FALSE)) ->  | F76: =SUMIF('III - Waste-FY 2016'!$B:$B,$B76,'III - Waste-FY 2016'!AA:AA) -> 0 | G76: =SUMIF('III - Waste-FY 2016'!$B:$B,$B76,'III - Waste-FY 2016'!AB:AB) -> 0 | H76: =SUMIF('III - Waste-FY 2016'!$B:$B,$B76,'III - Waste-FY 2016'!AC:AC) -> 139.1902168 | M76: =SUMIF('III - Waste-FY 2016'!$B:$B,$B76,'III - Waste-FY 2016'!AD:AD) -> 139.1902168 | N76: =SUMIF('III - Waste-FY 2016'!$B:$B,$B76,'III - Waste-FY 2016'!AE:AE) -> 0 | O76: =IF(VLOOKUP($B76,'III - Waste-FY 2016'!$B:$AH,17,FALSE)="","",VLOOKUP($B76,'III - Waste-FY 2016'!$B:$AH,17,FALSE)) -> 
B77: III.4.2 | C77: 3 | D77: Emissions from wastewater generated within but treated outside of the city | E77: =IF(VLOOKUP(B77,'III - Waste-FY 2016'!$B:$G,6,FALSE)="","",VLOOKUP(B77,'III - Waste-FY 2016'!$B:$G,6,FALSE)) -> NO | F77: =SUMIF('III - Waste-FY 2016'!$B:$B,$B77,'III - Waste-FY 2016'!AA:AA) -> 0 | G77: =SUMIF('III - Waste-FY 2016'!$B:$B,$B77,'III - Waste-FY 2016'!AB:AB) -> 0 | H77: =SUMIF('III - Waste-FY 2016'!$B:$B,$B77,'III - Waste-FY 2016'!AC:AC) -> 0 | M77: =SUMIF('III - Waste-FY 2016'!$B:$B,$B77,'III - Waste-FY 2016'!AD:AD) -> 0 | N77: =SUMIF('III - Waste-FY 2016'!$B:$B,$B77,'III - Waste-FY 2016'!AE:AE) -> 0 | O77: =IF(VLOOKUP($B77,'III - Waste-FY 2016'!$B:$AH,17,FALSE)="","",VLOOKUP($B77,'III - Waste-FY 2016'!$B:$AH,17,FALSE)) -> 
B78: III.4.3 | C78: 1 | D78: Emissions from wastewater generated outside the city boundary but treated within the city | E78: =IF(VLOOKUP(B78,'III - Waste-FY 2016'!$B:$G,6,FALSE)="","",VLOOKUP(B78,'III - Waste-FY 2016'!$B:$G,6,FALSE)) ->  | F78: =SUMIF('III - Waste-FY 2016'!$B:$B,$B78,'III - Waste-FY 2016'!AA:AA) -> 0 | G78: =SUMIF('III - Waste-FY 2016'!$B:$B,$B78,'III - Waste-FY 2016'!AB:AB) -> 0 | H78: =SUMIF('III - Waste-FY 2016'!$B:$B,$B78,'III - Waste-FY 2016'!AC:AC) -> 0.01678398295 | M78: =SUMIF('III - Waste-FY 2016'!$B:$B,$B78,'III - Waste-FY 2016'!AD:AD) -> 0.01678398295 | N78: =SUMIF('III - Waste-FY 2016'!$B:$B,$B78,'III - Waste-FY 2016'!AE:AE) -> 0 | O78: =IF(VLOOKUP($B78,'III - Waste-FY 2016'!$B:$AH,17,FALSE)="","",VLOOKUP($B78,'III - Waste-FY 2016'!$B:$AH,17,FALSE)) -> 
B79: IV | C79: 1 | D79: INDUSTRIAL PROCESSES and PRODUCT USES (IPPU)
B80: IV.1 | C80: 1 | D80: Emissions from industrial processes occurring in the city boundary | E80: =IF(VLOOKUP(B80,'IV - IPPU-FY 2016'!$B:$F,5,FALSE)="","",VLOOKUP(B80,'IV - IPPU-FY 2016'!$B:$F,5,FALSE)) -> NO | F80: =SUMIF('IV - IPPU-FY 2016'!$B:$B,$B80,'IV - IPPU-FY 2016'!AQ:AQ) -> 0 | G80: =SUMIF('IV - IPPU-FY 2016'!$B:$B,$B80,'IV - IPPU-FY 2016'!AR:AR) -> 0 | H80: =SUMIF('IV - IPPU-FY 2016'!$B:$B,$B80,'IV - IPPU-FY 2016'!AS:AS) -> 0 | I80: =SUMIF('IV - IPPU-FY 2016'!$B:$B,$B80,'IV - IPPU-FY 2016'!AT:AT) -> 0 | J80: =SUMIF('IV - IPPU-FY 2016'!$B:$B,$B80,'IV - IPPU-FY 2016'!AU:AU) -> 0 | K80: =SUMIF('IV - IPPU-FY 2016'!$B:$B,$B80,'IV - IPPU-FY 2016'!AV:AV) -> 0 | L80: =SUMIF('IV - IPPU-FY 2016'!$B:$B,$B80,'IV - IPPU-FY 2016'!AW:AW) -> 0 | M80: =SUMIF('IV - IPPU-FY 2016'!$B:$B,$B80,'IV - IPPU-FY 2016'!AX:AX) -> 0 | N80: =SUMIF('IV - IPPU-FY 2016'!$B:$B,$B80,'IV - IPPU-FY 2016'!AY:AY) -> 0 | O80: =IF(VLOOKUP($B80,'IV - IPPU-FY 2016'!$B:$BB,20,FALSE)="","",VLOOKUP($B80,'IV - IPPU-FY 2016'!$B:$BB,20,FALSE)) -> 
B81: IV.2 | C81: 1 | D81: Emissions from product use occurring within the city boundary | E81: =IF(VLOOKUP(B81,'IV - IPPU-FY 2016'!$B:$F,5,FALSE)="","",VLOOKUP(B81,'IV - IPPU-FY 2016'!$B:$F,5,FALSE)) -> NO | F81: =SUMIF('IV - IPPU-FY 2016'!$B:$B,$B81,'IV - IPPU-FY 2016'!AQ:AQ) -> 0 | G81: =SUMIF('IV - IPPU-FY 2016'!$B:$B,$B81,'IV - IPPU-FY 2016'!AR:AR) -> 0 | H81: =SUMIF('IV - IPPU-FY 2016'!$B:$B,$B81,'IV - IPPU-FY 2016'!AS:AS) -> 0 | I81: =SUMIF('IV - IPPU-FY 2016'!$B:$B,$B81,'IV - IPPU-FY 2016'!AT:AT) -> 0 | J81: =SUMIF('IV - IPPU-FY 2016'!$B:$B,$B81,'IV - IPPU-FY 2016'!AU:AU) -> 0 | K81: =SUMIF('IV - IPPU-FY 2016'!$B:$B,$B81,'IV - IPPU-FY 2016'!AV:AV) -> 0 | L81: =SUMIF('IV - IPPU-FY 2016'!$B:$B,$B81,'IV - IPPU-FY 2016'!AW:AW) -> 0 | M81: =SUMIF('IV - IPPU-FY 2016'!$B:$B,$B81,'IV - IPPU-FY 2016'!AX:AX) -> 0 | N81: =SUMIF('IV - IPPU-FY 2016'!$B:$B,$B81,'IV - IPPU-FY 2016'!AY:AY) -> 0 | O81: =IF(VLOOKUP($B81,'IV - IPPU-FY 2016'!$B:$AX,15,FALSE)="","",VLOOKUP($B81,'IV - IPPU-FY 2016'!$B:$AX,15,FALSE)) -> 
B82: V | C82: 1 | D82: AGRICULTURE, FORESTRY and OTHER LAND USE (AFOLU)
B83: V.1 | C83: 1 | D83: Emissions from livestock | E83: =IF(VLOOKUP(B83,'V - AFOLU-FY 2016'!$B:$F,5,FALSE)="","",VLOOKUP(B83,'V - AFOLU-FY 2016'!$B:$F,5,FALSE)) ->  | F83: =SUMIF('V - AFOLU-FY 2016'!$B:$B,$B83,'V - AFOLU-FY 2016'!W:W) -> 0 | G83: =SUMIF('V - AFOLU-FY 2016'!$B:$B,$B83,'V - AFOLU-FY 2016'!X:X) -> 520.5290412 | H83: =SUMIF('V - AFOLU-FY 2016'!$B:$B,$B83,'V - AFOLU-FY 2016'!Y:Y) -> 18.48274179 | M83: =SUMIF('V - AFOLU-FY 2016'!$B:$B,$B83,'V - AFOLU-FY 2016'!Z:Z) -> 539.011783 | N83: =SUMIF('V - AFOLU-FY 2016'!$B:$B,$B83,'V - AFOLU-FY 2016'!AA:AA) -> 0 | O83: =IF(VLOOKUP($B83,'V - AFOLU-FY 2016'!$B:$AD,16,FALSE)="","",VLOOKUP($B83,'V - AFOLU-FY 2016'!$B:$AD,16,FALSE)) -> 
B84: V.2 | C84: 1 | D84: Emissions from land | E84: =IF(VLOOKUP(B84,'V - AFOLU-FY 2016'!$B:$F,5,FALSE)="","",VLOOKUP(B84,'V - AFOLU-FY 2016'!$B:$F,5,FALSE)) -> NE | F84: =SUMIF('V - AFOLU-FY 2016'!$B:$B,$B84,'V - AFOLU-FY 2016'!W:W) -> 0 | G84: =SUMIF('V - AFOLU-FY 2016'!$B:$B,$B84,'V - AFOLU-FY 2016'!X:X) -> 0 | H84: =SUMIF('V - AFOLU-FY 2016'!$B:$B,$B84,'V - AFOLU-FY 2016'!Y:Y) -> 0 | M84: =SUMIF('V - AFOLU-FY 2016'!$B:$B,$B84,'V - AFOLU-FY 2016'!Z:Z) -> 0 | N84: =SUMIF('V - AFOLU-FY 2016'!$B:$B,$B84,'V - AFOLU-FY 2016'!AA:AA) -> 0 | O84: =IF(VLOOKUP($B84,'V - AFOLU-FY 2016'!$B:$AD,16,FALSE)="","",VLOOKUP($B84,'V - AFOLU-FY 2016'!$B:$AD,16,FALSE)) -> 
B85: V.3 | C85: 1 | D85: Emissions from aggregate sources and non-CO2 emission sources on land | E85: =IF(VLOOKUP(B85,'V - AFOLU-FY 2016'!$B:$F,5,FALSE)="","",VLOOKUP(B85,'V - AFOLU-FY 2016'!$B:$F,5,FALSE)) ->  | F85: =SUMIF('V - AFOLU-FY 2016'!$B:$B,$B85,'V - AFOLU-FY 2016'!W:W) -> 0 | G85: =SUMIF('V - AFOLU-FY 2016'!$B:$B,$B85,'V - AFOLU-FY 2016'!X:X) -> 0 | H85: =SUMIF('V - AFOLU-FY 2016'!$B:$B,$B85,'V - AFOLU-FY 2016'!Y:Y) -> 303.2106029 | M85: =SUMIF('V - AFOLU-FY 2016'!$B:$B,$B85,'V - AFOLU-FY 2016'!Z:Z) -> 303.2106029 | N85: =SUMIF('V - AFOLU-FY 2016'!$B:$B,$B85,'V - AFOLU-FY 2016'!AA:AA) -> 0 | O85: =IF(VLOOKUP($B85,'V - AFOLU-FY 2016'!$B:$AD,16,FALSE)="","",VLOOKUP($B85,'V - AFOLU-FY 2016'!$B:$AD,16,FALSE)) -> 
B86: VI | C86: 3 | D86: OTHER SCOPE 3
B87: VI.1 | C87: 3 | D87: Other Scope 3 | E87: =IF(VLOOKUP(B87,'VI - Other scope 3-FY 2016'!$B:$F,5,FALSE)="","",VLOOKUP(B87,'VI - Other scope 3-FY 2016'!$B:$F,5,FALSE)) -> NE | F87: =SUMIF('VI - Other scope 3-FY 2016'!$B:$B,$B87,'VI - Other scope 3-FY 2016'!AQ:AQ) -> 0 | G87: =SUMIF('VI - Other scope 3-FY 2016'!$B:$B,$B87,'VI - Other scope 3-FY 2016'!AR:AR) -> 0 | H87: =SUMIF('VI - Other scope 3-FY 2016'!$B:$B,$B87,'VI - Other scope 3-FY 2016'!AS:AS) -> 0 | I87: =SUMIF('VI - Other scope 3-FY 2016'!$B:$B,$B87,'VI - Other scope 3-FY 2016'!AT:AT) -> 0 | J87: =SUMIF('VI - Other scope 3-FY 2016'!$B:$B,$B87,'VI - Other scope 3-FY 2016'!AU:AU) -> 0 | K87: =SUMIF('VI - Other scope 3-FY 2016'!$B:$B,$B87,'VI - Other scope 3-FY 2016'!AV:AV) -> 0 | L87: =SUMIF('VI - Other scope 3-FY 2016'!$B:$B,$B87,'VI - Other scope 3-FY 2016'!AW:AW) -> 0 | M87: =SUMIF('VI - Other scope 3-FY 2016'!$B:$B,'Emissions Overview - FY 2016'!$B87,'VI - Other scope 3-FY 2016'!AX:AX) -> 0 | N87: =SUMIF('VI - Other scope 3-FY 2016'!$B:$B,$B87,'VI - Other scope 3-FY 2016'!AY:AY) -> 0 | O87: =IF(VLOOKUP($B87,'VI - Other scope 3-FY 2016'!$B:$BB,20,FALSE)="","",VLOOKUP($B87,'VI - Other scope 3-FY 2016'!$B:$BB,20,FALSE)) -> 

Sheet Activity Data-FY 2016
B2: FY 2016 Activity Data for Town of Amherst Community Greenhouse Gas Emissions Inventory
B3: =CONCATENATE("Year: ",'Town Information'!C49," (July 1 - June 30)") -> Year: 2016 (July 1 - June 30)
B5: I STATIONARY ENERGY
B7: I.1 RESIDENTIAL BUILDINGS
B9: GPC ref No. | C9: Scope | D9: GHG Emissions Source | F9: Activity data | H9: Data Quality | I9: Source | J9: Description of method(s) used | K9: Data quality explanation
D10: Activity | E10: Description | F10: Amount | G10: Units
B11: I.1.1 | C11: 1 | D11: Emissions from fuel combustion within the city boundary
B12: I.1.1 | C12: 1 | D12: Gas (natural gas) | F12: 1321107 | G12: therms/year | H12: H | I12: Berkshire Gas
B13: I.1.1 | C13: 1 | D13: Distillate oil (heating fuel) | F13: ='Residential Heat OilModel-2016 '!$I$3 -> 1836020.338 | G13: gal (US)/year | H13: L | I13: Calculated
B14: I.1.2 | C14: 2 | D14: Emissions from grid-supplied energy consumed within the city boundary
B15: I.1.2 | C15: 2 | D15: Electricity | E15: Consumed from grid but generated out of boundary | F15: 66286.449 | G15: MWh/year | H15: H | I15: Eversource
B16: I.1.3 | C16: 3 | D16: Transmission and distribution losses from grid-supplied energy
B17: I.1.3 | C17: 3 | D17: Electrictiy transmission losses | F17: =F15*'Trans Loss Factors - 2016'!$D$8 -> 3294.436515 | G17: MWh/year | H17: M | I17: Calculated
B19: I.2 COMMERCIAL AND INSTITUTIONAL BUILDINGS AND FACILITIES
B21: GPC ref No. | C21: Scope | D21: GHG Emissions Source | F21: Activity data | H21: Data Quality | I21: Source | J21: Description of method(s) used | K21: Data quality explanation
D22: Activity | E22: Description | F22: Amount | G22: Units
B23: I.2.1 | C23: 1 | D23: Emissions from fuel combustion within the city boundary
B24: I.2.1 | C24: 1 | D24: Gas (natural gas) | E24: Municipal | F24: 106312 | G24: therms/year | H24: H | I24: Mass Energy Insight report
B25: I.2.1 | C25: 1 | D25: Gas (natural gas) | E25: UMass | F25: 16227910 | G25: therms/year | H25: H | I25: UMass Self Reported
B26: I.2.1 | C26: 1 | D26: Gas (natural gas) | E26: Amherst College | F26: 2457500 | G26: therms/year | H26: H | I26: Amherst Self Reported
B27: I.2.1 | C27: 1 | D27: Gas (natural gas) | E27: Hampshire College | G27: therms/year | H27: H
B28: I.2.1 | C28: 1 | D28: Gas (natural gas) | E28: Community | F28: =22757594-SUM(F24:F27) -> 3965872 | G28: therms/year | H28: H | I28: Berkshire Gas (subtract municipal and university data)
B29: I.2.1 | C29: 1 | D29: Liquefied natural gas (LNG) | E29: UMass | F29: 2011961 | G29: gal (US)/year | H29: H | I29: UMass Self Reported
B30: I.2.1 | C30: 1 | D30: Distillate oil (heating fuel) | E30: UMass | F30: =23859 -> 23859 | G30: gal (US)/year | H30: H | I30: UMass Self Reported
B31: I.2.1 | C31: 1 | D31: Liquefied petroleum gases (LPG) | E31: UMass | F31: 31092 | G31: gal (US)/year | H31: H | I31: UMass Self Reported
B32: I.2.1 | C32: 1 | D32: Diesel oil | E32: UMass | F32: 737509 | G32: gal (US)/year | H32: H | I32: UMass Self Reported
B33: I.2.1 | C33: 1 | D33: Distillate oil (heating fuel) | E33: Amherst College | F33: 6439 | G33: gal (US)/year | H33: H | I33: Amherst Self Reported
B34: I.2.1 | C34: 1 | D34: Liquefied petroleum gases (LPG) | E34: Amherst College | F34: 4749 | G34: gal (US)/year | H34: H | I34: Amherst Self Reported
B35: I.2.1 | C35: 1 | D35: Residual fuel oil | E35: Amherst College | F35: =430*42 -> 18060 | G35: gal (US)/year | H35: H | I35: Amherst Self Reported
B36: I.2.1 | C36: 1
B37: I.2.1 | C37: 1
B38: I.2.1 | C38: 1 | D38: Distillate oil (heating fuel) | E38: Municipal | F38: 1602 | G38: gal (US)/year | H38: H | I38: Mass Energy Insight report
B39: I.2.2 | C39: 2 | D39: Emissions from grid-supplied energy consumed within the city boundary
B40: I.2.2 | C40: 2 | D40: Electricity | E40: Municipal | F40: 6462.016 | G40: MWh/year | H40: H | I40: Mass Energy Insight report
B41: I.2.2 | C41: 2 | D41: Electricity | E41: UMass | F41: 48651.545 | G41: MWh/year | H41: H | I41: UMass Self Reported
B42: I.2.2 | C42: 2 | D42: Electricity | E42: Amherst College | F42: 11635 | G42: MWh/year | H42: H | I42: Amherst Self Reported
B43: I.2.2 | C43: 2 | D43: Electricity | E43: Hampshire College | F43: =6642508/1000 -> 6642.508 | G43: MWh/year | H43: H | I43: Hampshire Self Reported
B44: I.2.2 | C44: 2 | D44: Electricity | E44: Community | F44: =95056.892-SUM(F40:F43) -> 21665.823 | G44: MWh/year | H44: H | I44: Eversource (subtract municipal and university data)
B45: I.2.3 | C45: 3 | D45: Transmission and distribution losses from grid-supplied energy
B46: I.2.3 | C46: 3 | D46: Electrictiy transmission losses | E46: Municipal | F46: =F40*'Trans Loss Factors - 2016'!$D$8 -> 321.1621952 | G46: MWh/year | H46: M | I46: Calculated
B47: I.2.3 | C47: 3 | D47: Electrictiy transmission losses | E47: UMass | F47: =F41*'Trans Loss Factors - 2016'!$D$8 -> 2417.981786 | G47: MWh/year | H47: M | I47: Calculated
B48: I.2.3 | C48: 3 | D48: Electrictiy transmission losses | E48: Amherst College | F48: =F42*'Trans Loss Factors - 2016'!$D$8 -> 578.2595 | G48: MWh/year | H48: M | I48: Calculated
B49: I.2.3 | C49: 3 | D49: Electrictiy transmission losses | E49: Hampshire College | F49: =F43*'Trans Loss Factors - 2016'!$D$8 -> 330.1326476 | G49: MWh/year | H49: M | I49: Calculated
B50: I.2.3 | C50: 3 | D50: Electrictiy transmission losses | E50: Community | F50: =F44*'Trans Loss Factors - 2016'!$D$8 -> 1076.791403 | G50: MWh/year | H50: M | I50: Calculated
B52: I.3 MANUFACTURING INDUSTRIES AND CONSTRUCTION
B54: GPC ref No. | C54: Scope | D54: GHG Emissions Source | F54: Activity data | H54: Data Quality | I54: Source | J54: Description of method(s) used | K54: Data quality explanation
D55: Activity | E55: Description | F55: Amount | G55: Units
B56: I.3.1 | C56: 1 | D56: Emissions from fuel combustion within the city boundary
B57: I.3.1 | C57: 1
B58: I.3.2 | C58: 2 | D58: Emissions from grid-supplied energy consumed within the city boundary
B59: I.3.2 | C59: 1
B60: I.3.3 | C60: 3 | D60: Transmission and distribution losses from grid-supplied energy
B61: I.3.3 | C61: 1
B63: I.4 ENERGY INDUSTRIES
B65: GPC ref No. | C65: Scope | D65: GHG Emissions Source | F65: Activity data | H65: Data Quality | I65: Source | J65: Description of method(s) used | K65: Data quality explanation
D66: Activity | E66: Description | F66: Amount | G66: Units
B67: I.4.1 | C67: 1 | D67: Emissions from energy used in power plant auxiliary operations within the city
B68: I.4.1 | C68: 1
B69: I.4.2 | C69: 2 | D69: Emissions from grid-supplied energy consumed in power plant auxiliary operations within the city
B70: I.4.2 | C70: 2
B71: I.4.3 | C71: 3 | D71: Emissions from transmission and distribution losses from grid-supplied energy used in power plant auxiliary operations
B72: I.4.3 | C72: 3
B73: I.4.4 | C73: 1 | D73: Emissions from energy generation supplied to the grid
B74: I.4.4 | C74: 1
B76: I.5 AGRICULTURE, FORESTRY AND FISHING ACTIVITIES
B78: GPC ref No. | C78: Scope | D78: GHG Emissions Source | F78: Activity data | H78: Data Quality | I78: Source | J78: Description of method(s) used | K78: Data quality explanation
D79: Activity | E79: Description | F79: Amount | G79: Units
B80: I.5.1 | C80: 1 | D80: Emissions from fuel combustion within the city boundary
B81: I.5.1 | C81: 1
B82: I.5.2 | C82: 2 | D82: Emissions from grid-supplied energy consumed within the city boundary
B83: I.5.2 | C83: 2
B84: I.5.3 | C84: 3 | D84: Transmission and distribution losses from grid-supplied energy consumption
B85: I.5.3 | C85: 3
B87: I.6 NON-SPECIFIED SOURCES
B89: GPC ref No. | C89: Scope | D89: GHG Emissions Source | F89: Activity data | H89: Data Quality | I89: Source | J89: Description of method(s) used | K89: Data quality explanation
D90: Activity | E90: Description | F90: Amount | G90: Units
B91: I.6.1 | C91: 1 | D91: Emissions from fuel combustion within the city boundary
B92: I.6.1 | C92: 1
B93: I.6.2 | C93: 2 | D93: Emissions from grid-supplied energy consumed within the city boundary
B94: I.6.2 | C94: 2
B95: I.6.3 | C95: 3 | D95: Emissions from transmission and distribution losses from grid-supplied energy consumption
B96: I.6.3 | C96: 3 | D96: Electrictiy transmission losses
B98: I.7 FUGITIVE EMISSIONS FROM MINING, PROCESSING, STORAGE AND TRANSPORTATION OF COAL
B100: GPC ref No. | C100: Scope | D100: GHG Emissions Source | F100: Activity data | H100: Data Quality | I100: Source | J100: Description of method(s) used | K100: Data quality explanation
D101: Activity | E101: Description | F101: Amount | G101: Units
B102: I.7.1 | C102: 1 | D102: Emissions from fugitive emissions within the city boundary
B103: I.7.1 | C103: 1
B105: I.8 FUGITIVE EMISSIONS FROM OIL AND NATURAL GAS SYSTEMS
B107: GPC ref No. | C107: Scope | D107: GHG Emissions Source | F107: Activity data | H107: Data Quality | I107: Source | J107: Description of method(s) used | K107: Data quality explanation
D108: Activity | E108: Description | F108: Amount | G108: Units
B109: I.8.1 | C109: 1 | D109: Emissions from fugitive emissions within the city boundary
B110: I.8.1 | C110: 1 | D110: Natural gas distribution losses | E110: Residential | F110: =F12*'Trans Loss Factors - 2016'!$D$9 -> 4781.682204 | G110: Therm/year | H110: M
B111: I.8.1 | C111: 1 | D111: Natural gas distribution losses | E111: Municipal | F111: =F24*'Trans Loss Factors - 2016'!$D$9 -> 384.7910869 | G111: Therm/year | H111: M
B112: I.8.1 | C112: 1 | D112: Natural gas distribution losses | E112: UMass | F112: =F25*'Trans Loss Factors - 2016'!$D$9 -> 58736.12694 | G112: Therm/year | H112: M
B113: I.8.1 | C113: 1 | D113: Natural gas distribution losses | E113: Amherst College | F113: =F26*'Trans Loss Factors - 2016'!$D$9 -> 8894.801114 | G113: Therm/year | H113: M
B114: I.8.1 | C114: 1 | D114: Natural gas distribution losses | E114: Hampshire College | F114: =F27*'Trans Loss Factors - 2016'!$D$9 -> 0 | G114: Therm/year | H114: M
B115: I.8.1 | C115: 1 | D115: Natural gas distribution losses | E115: Community | F115: =(F28+F12)*'Trans Loss Factors - 2016'!$D$9 -> 19135.96203 | G115: Therm/year | H115: M
B117: II TRANSPORTATION
B119: II.1 ON-ROAD TRANSPORTATION
B121: GPC ref No. | C121: Scope | D121: GHG Emissions Source | G121: Activity data | I121: Data Quality | J121: Source | K121: Description of method(s) used | L121: Data quality explanation
D122: Method | E122: Activity | F122: Description | G122: Amount | H122: Units
B123: II.1.1 | C123: 1 | D123: Emissions from fuel combustion on-road transportation occurring in the city
B124: II.1.1 | C124: 1 | D124: City-induced activity | E124: Vehicle Miles Traveled (VMT) | F124: Passenger cars | G124: =VLOOKUP(F124,'Trans-VMT Summary 2016-2050'!$C$42:$F$47,4,FALSE) -> 107491074.9 | H124: VMT/year | I124: L | J124: Calculated, Pioneer Valley MPO
B125: II.1.1 | C125: 1 | D125: City-induced activity | E125: Vehicle Miles Traveled (VMT) | F125: Light trucks | G125: =VLOOKUP(F125,'Trans-VMT Summary 2016-2050'!$C$42:$F$47,4,FALSE) -> 35102515.22 | H125: VMT/year | I125: L | J125: Calculated, Pioneer Valley MPO
B126: II.1.1 | C126: 1 | D126: City-induced activity | E126: Vehicle Miles Traveled (VMT) | F126: Motorcycles | G126: =VLOOKUP(F126,'Trans-VMT Summary 2016-2050'!$C$42:$F$47,4,FALSE) -> 2673370.364 | H126: VMT/year | I126: L | J126: Calculated, Pioneer Valley MPO
B127: II.1.1 | C127: 1 | D127: City-induced activity | E127: Vehicle Miles Traveled (VMT) | F127: Heavy Trucks | G127: =VLOOKUP(F127,'Trans-VMT Summary 2016-2050'!$C$42:$F$47,4,FALSE) -> 1519337.816 | H127: VMT/year | I127: L | J127: Calculated, Pioneer Valley MPO
B128: II.1.1 | C128: 1 | D128: City-induced activity | E128: Vehicle Miles Traveled (VMT) | F128: Other Vehicles | G128: =VLOOKUP(F128,'Trans-VMT Summary 2016-2050'!$C$42:$F$47,4,FALSE) -> 3188118.695 | H128: VMT/year | I128: L | J128: Calculated, Pioneer Valley MPO
B129: II.1.1 | C129: 1 | D129: Fuel sales approach | E129: Gasoline | F129: Municipal | G129: 80116 | H129: gallons/year | I129: H | J129: Mass Energy Insight
B130: II.1.1 | C130: 1 | D130: Fuel sales approach | E130: Diesel | F130: Municipal | G130: 74089 | H130: gallons/year | I130: H | J130: Mass Energy Insight
B131: II.1.1 | C131: 1 | D131: Fuel sales approach | E131: B100 | F131: UMass | G131: 2611 | H131: gallons/year | I131: H | J131: UMass Self Reported
B132: II.1.1 | C132: 1 | D132: Fuel sales approach | E132: Diesel | F132: UMass | G132: 50558 | H132: gallons/year | I132: H | J132: UMass Self Reported
B133: II.1.1 | C133: 1 | D133: Fuel sales approach | E133: Gasoline | F133: UMass | G133: 143503 | H133: gallons/year | I133: H | J133: UMass Self Reported
B134: II.1.1 | C134: 1 | D134: Fuel sales approach | E134: Diesel | F134: Amherst College | G134: 8088 | H134: gallons/year | I134: H | J134: Amherst College Self Reported
B135: II.1.1 | C135: 1 | D135: Fuel sales approach | E135: Gasoline | F135: Amherst College | G135: 15614 | H135: gallons/year | I135: H | J135: Amherst College Self Reported
B136: II.1.2 | C136: 2 | D136: Fuel-based approach | E136: Diesel | F136: In-city bus transit fuel use | G136: ='PVTA Bus Fuel Model - 2016'!$R$16 -> 145620.6387 | H136: gallons/year | I136: M | J136: Calculated
B137: II.1.2 | C137: 2 | D137: Emissions from grid-supplied energy consumed in the city for on-road transportation
B138: II.1.2 | C138: 2
B139: II.1.3 | C139: 3 | D139: Emissions from transboundary journeys occurring outside the city, and T&D losses from grid-supplied energy consumption
B142: II.2 RAILWAYS
B144: GPC ref No. | C144: Scope | D144: GHG Emissions Source | G144: Activity data | I144: Data Quality | J144: Source | K144: Description of method(s) used | L144: Data quality explanation
D145: Method | E145: Activity | F145: Description | G145: Amount | H145: Units
B146: II.2.1 | C146: 1 | D146: Emissions from fuel combustion for railway transportation occuring in the city
B147: II.2.1 | C147: 1
B148: II.2.2 | C148: 2 | D148: Emissions from grid-supplied energy consumed in the city for railways
B149: II.2.2 | C149: 2
B150: II.2.3 | C150: 3 | D150: Emissions from transboundary journeys occurring outside the city, and T&D losses from grid-supplied energy consumption
B151: II.2.3 | C151: 3
B153: II.3 WATERBORNE NAVIGATION
B155: GPC ref No. | C155: Scope | D155: GHG Emissions Source | G155: Activity data | I155: Data Quality | J155: Source | K155: Description of method(s) used | L155: Data quality explanation
D156: Method | E156: Activity | F156: Description | G156: Amount | H156: Units
B157: II.3.1 | C157: 1 | D157: Emissions from fuel combustion for waterborne navigation occurring in the city
B158: II.3.1 | C158: 1
B159: II.3.2 | C159: 2 | D159: Emissions from grid-supplied energy consumed in the city for waterborne navigation
B160: II.3.2 | C160: 2
B161: II.3.3 | C161: 3 | D161: Emissions from transboundary journeys occurring outside the city, and T&D losses from grid-supplied energy consumption
B162: II.3.3 | C162: 3
B164: II.4 AVIATION
B166: GPC ref No. | C166: Scope | D166: GHG Emissions Source | G166: Activity data | I166: Data Quality | J166: Source | K166: Description of method(s) used | L166: Data quality explanation
D167: Method | E167: Activity | F167: Description | G167: Amount | H167: Units
B168: II.4.1 | C168: 1 | D168: Emissions from fuel combustion for aviation occurring in the city
B169: II.4.1 | C169: 1
B170: II.4.2 | C170: 2 | D170: Emissions from grid-supplied energy consumed in the city for aviation
B171: II.4.2 | C171: 2
B172: II.4.3 | C172: 3 | D172: Emissions from transboundary journeys occurring outside the city, and T&D losses from grid-supplied energy consumption
B173: II.4.3 | C173: 3
B175: II.5 OFF-ROAD TRANSPORTATION
B177: GPC ref No. | C177: Scope | D177: GHG Emissions Source | G177: Activity data | I177: Data Quality | J177: Source | K177: Description of method(s) used | L177: Data quality explanation
D178: Method | E178: Activity | F178: Description | G178: Amount | H178: Units
B179: II.5.1 | C179: 1 | D179: Emissions from fuel combustion for off-road transportation occurring in the city
B180: II.5.1 | C180: 1 | D180: Geographic / Territorial | E180: Emissions from Sector Specific Model | F180: Construction | G180: ='Off-Road Emissions - Town'!G6 -> 2308.622455 | H180: MT CO2e/year | I180: L
B181: II.5.1 | C181: 1 | D181: Geographic / Territorial | E181: Emissions from Sector Specific Model | F181: Industrial | G181: ='Off-Road Emissions - Town'!G7 -> 1566.087573 | H181: MT CO2e/year | I181: L
B182: II.5.1 | C182: 1 | D182: Geographic / Territorial | E182: Emissions from Sector Specific Model | F182: Lawn & Garden | G182: ='Off-Road Emissions - Town'!G8 -> 1740.617658 | H182: MT CO2e/year | I182: L
B183: II.5.1 | C183: 1 | D183: Geographic / Territorial | E183: Emissions from Sector Specific Model | F183: Agriculture | G183: ='Off-Road Emissions - Town'!G9 -> 113.0559113 | H183: MT CO2e/year | I183: L
B184: II.5.1 | C184: 1 | D184: Geographic / Territorial | E184: Emissions from Sector Specific Model | F184: Commercial | G184: ='Off-Road Emissions - Town'!G10 -> 1674.514077 | H184: MT CO2e/year | I184: L
B185: II.5.1 | C185: 1 | D185: Fuel sales approach | E185: Liquefied petroleum gases (LPG) | F185: Municipal | G185: 1602 | H185: gallons/year | I185: H | J185: Mass Energy Insight
B186: II.5.2 | C186: 2 | D186: Emissions from grid-supplied energy consumed in the city for off-road transportation
B187: II.5.2 | C187: 2
B188: II.5.3 | C188: 3 | D188: Emissions from transboundary journeys occurring outside the city, and T&D losses from grid-supplied energy consumption
B189: II.5.3 | C189: 3
B191: III WASTE
B193: III.1 SOLID WASTE DISPOSAL
B195: GPC ref No. | C195: Scope | D195: GHG Emissions Source | G195: Activity data | I195: Data Quality | J195: Source | K195: Description of method(s) used | L195: Data quality explanation
D196: Activity | E196: Waste type | F196: Description | G196: Amount | H196: Units
B197: III.1.1 | C197: 1 | D197: Emissions from solid waste generated in the city and disposed in landfills or open dumps within the city
B198: III.1.1 | C198: 1
B199: III.1.2 | C199: 3 | D199: Emissions from solid waste generated in the city but disposed in landfills or open dumps outside the city
B200: III.1.2 | C200: 3 | D200: Landfill sites - Methane commitment | E200: Municipal solid waste | F200: Community | G200: ='SWaste Summary-2016'!E4 -> 4311.753411 | H200: t | I200: M
B201: III.1.2 | C201: 3 | D201: Landfill sites - Methane commitment | E201: Municipal solid waste | F201: UMass | G201: ='SWaste Summary-2016'!E20 -> 2688.895569 | H201: t | I201: H
B202: III.1.2 | C202: 3 | D202: Landfill sites - Methane commitment | E202: Municipal solid waste | F202: Amherst College | G202: ='SWaste Summary-2016'!E35 -> 369.3584525 | H202: t | I202: H
B203: III.1.2 | C203: 3 | D203: Landfill sites - Methane commitment | E203: Municipal solid waste | F203: Hampshire College
B204: III.1.3 | C204: 1 | D204: Emissions from waste generated outside the city and disposed in landfills or open dumps within the city
B205: III.1.3 | C205: 1
B207: III.2 BIOLOGICAL TREATMENT OF WASTE
B209: GPC ref No. | C209: Scope | D209: GHG Emissions Source | G209: Activity data | I209: Data Quality | J209: Source | K209: Description of method(s) used | L209: Data quality explanation
D210: Activity | E210: Waste type | F210: Description | G210: Amount | H210: Units
B211: III.2.1 | C211: 1 | D211: Emissions from solid waste generated in the city that is treated biologically in the city
B212: III.2.1 | C212: 1
B213: III.2.2 | C213: 3 | D213: Emissions from solid waste generated in the city but treated biologically outside of the city
B214: III.2.2 | C214: 3 | D214: Composting | E214: Municipal solid waste | F214: Community | G214: ='SWaste Summary-2016'!F4 -> 2053.21591 | I214: H
B215: III.2.2 | C215: 3 | D215: Composting | E215: Municipal solid waste | F215: UMass | G215: ='SWaste Summary-2016'!F20 -> 2103.217101 | I215: H
B216: III.2.2 | C216: 3 | D216: Composting | E216: Municipal solid waste | F216: Amherst College | G216: ='SWaste Summary-2016'!F35 -> 87.08973504 | I216: M
B217: III.2.2 | C217: 3 | D217: Composting | E217: Municipal solid waste | F217: Hampshire College
B218: III.2.3 | C218: 1 | D218: Emissions from waste generated outside the city boundary but treated in the city
B219: III.2.3 | C219: 1
B221: III.3 INCINERATION AND OPEN BURNING
B223: GPC ref No. | C223: Scope | D223: GHG Emissions Source | G223: Activity data | I223: Data Quality | J223: Source | K223: Description of method(s) used | L223: Data quality explanation
D224: Activity | E224: Waste type | F224: Description | G224: Amount | H224: Units
B225: III.3.1 | C225: 1 | D225: Emissions from waste generated and treated within the city
B226: III.3.1 | C226: 1
B227: III.3.2 | C227: 3 | D227: Emissions from waste generated within but treated outside of the city
B228: III.3.2 | C228: 3 | D228: Waste incineration | E228: Municipal solid waste | F228: Community | G228: ='SWaste Summary-2016'!G4 -> 9415.46153 | H228: t | I228: M
B229: III.3.2 | C229: 3 | D229: Waste incineration | E229: Municipal solid waste | F229: UMass | G229: ='SWaste Summary-2016'!G20 -> 0 | H229: t | I229: H
B230: III.3.2 | C230: 3 | D230: Waste incineration | E230: Municipal solid waste | F230: Amherst College | G230: ='SWaste Summary-2016'!G35 -> 0 | H230: t | I230: H
B231: III.3.2 | C231: 3 | D231: Waste incineration | E231: Municipal solid waste | F231: Hampshire College
B232: III.3.3 | C232: 1 | D232: Emissions from waste generated outside the city boundary but treated within the city
B233: III.3.3 | C233: 1
B235: III.4 WASTEWATER TREATMENT AND DISCHARGE
B237: GPC ref No. | C237: Scope | D237: GHG Emissions Source | G237: Activity data | I237: Data Quality | J237: Source | K237: Description of method(s) used | L237: Data quality explanation
D238: Activity | F238: Description | G238: Amount | H238: Units
B239: III.4.1 | C239: 1 | D239: Emissions from wastewater generated and treated within the city
... 47 more rows

Sheet Waste Activity Details-2016
B2: Waste Sector Activity Data Details
B4: 1. Solid Waste Activity Data Details
B5: A. Solid Waste Generation Data
B6: Solid Waste Generation | C6: Value | D6: Units | E6: Source | K6: Conversion (Tonnes/ton)
B7: Population | C7: ='Town Information'!C63 -> 40059 | K7: 0.90718474
B8: Per capita generation rate | C8: 4.4 | D8: lb/person-day | E8: EPA Advancing Sustainable Materials Management 2014 Fact Sheet
B9: Total Solid Waste Tonnage | C9: =C7*C8*365/2204 -> 29189.99728 | D9: Tonnes/Year | E9: Calculated
B10: UMass | C10: =7142*K7 -> 6479.113413 | D10: Tonnes/Year | E10: FY 2016 Solid Waste Report
B11: Amherst College | C11: =(786+8*12)*K7 -> 800.1369407 | D11: Tonnes/Year | E11: https://www.amherst.edu/amherst-story/green-amherst/what-the-college-is-doing/recycling
B12: Hampshire College
B13: Remaining Community Tonnage | C13: =C9-SUM(C10:C12) -> 21910.74692 | D13: Tonnes/Year
B15: B. Solid Waste Composition Data
B16: Waste Type | C16: Value | D16: Units | E16: Source
B17: Paper | C17: 0.258 | D17: % of total waste | E17: http://www.mass.gov/eea/docs/dep/recycle/priorities/swmp13f.pdf
B18: Plastic | C18: 0.14 | D18: % of total waste
B19: Organic Waste | C19: 0.206 | D19: % of total waste
B20: Food Waste | C20: =ROUND($C$19*$C$31,3) -> 0.103 | E20: Calculated
B21: Yard Waste | C21: =ROUND($C$19*$C$32,3) -> 0.103 | E21: Calculated
B22: Metal | C22: 0.055 | D22: % of total waste
B23: Glass | C23: 0.022 | D23: % of total waste
B24: Construction and Demolition | C24: 0.139 | D24: % of total waste
B25: Hazardous Waste | C25: 0.032 | D25: % of total waste
B26: Electronics | C26: 0.033 | D26: % of total waste
B27: Other | C27: 0.115 | D27: % of total waste | E27: report says 11.6, changed to 11.5 to sum to 100%
B28: Total | C28: =SUM(C17:C19,C22:C27) -> 1 | D28: % of total waste
B30: Waste Sub-Type | C30: Community | D30: UMass | E30: Amherst College | G30: Units | H30: Source
B31: Food Waste | C31: 0.5 | D31: =O58/(O58+O59) -> 0.6612750173 | E31: 1 | G31: % of organic waste | H31: Community is an assumption, Colleges is from reports or respective websites
B32: Yard Waste | C32: 0.5 | D32: =O59/(O58+O59) -> 0.3387249827 | E32: 0 | G32: % of organic waste
B33: Total | C33: =SUM(C31:C32) -> 1 | D33: =SUM(D31:D32) -> 1 | E33: =SUM(E31:E32) -> 1 | G33: % of organic waste
B35: 2012 Massachusetts Statewide Waste data | F35: Statewide Recycling Composition percentages
B36: Description | C36: Tons | D36: Percentage | F36: Material | G36: Percentage
B37: MSW generation | C37: 7470000 | F37: Paper | G37: 0.39
B38: Recycling | C38: 2090000 | D38: =C38/$C$37 -> 0.2797858099 | F38: Plastic | G38: 0.07
B39: Compost | C39: 700000 | D39: =C39/$C$37 -> 0.093708166 | F39: Metal | G39: 0.4
B40: Landfill | C40: 1380000 | D40: =C40/$C$37 -> 0.1847389558 | F40: Glass | G40: 0.13
B41: Combustion | C41: 3210000 | D41: =C41/$C$37 -> 0.4297188755 | F41: Other | G41: 0.01
B42: Net export (assume landfill) | C42: =510000-420000 -> 90000 | D42: =C42/$C$37 -> 0.01204819277
B43: Source | C43: http://www.mass.gov/eea/docs/dep/recycle/priorities/12swdata.pdf
B44: Mass DEP no longer reports on recyling and compost percentages on an annual basis
B46: C.1 Community Solid Waste Management Methods Data
C47: Waste Management Method
B48: Waste Type | C48: Recycle | D48: Open Dump | E48: Landfill | F48: Compost | G48: Incineration | H48: Open Burning | I48: Anaerobic Digestion
B49: Paper | C49: =D38*G37 -> 0.1091164659 | E49: =C17*($D$40+$D$42) -> 0.05077108434 | G49: =C17*$D$41 -> 0.1108674699
B50: Plastic | C50: =D38*G38 -> 0.01958500669 | E50: =C18*($D$40+$D$42) -> 0.0275502008 | G50: =C18*$D$41 -> 0.06016064257
B51: Food Waste | E51: =C20*($D$40+$D$42) -> 0.02026907631 | F51: =D39*C31 -> 0.046854083 | G51: =C20*$D$41 -> 0.04426104418
B52: Yard Waste | E52: 0.02026907631 | F52: =C32*D39 -> 0.046854083 | G52: 0.04426104418
B53: Metal | C53: =D38*G39 -> 0.111914324 | E53: 0.01082329317 | G53: 0.02363453815
B54: Glass | C54: =D38*G40 -> 0.03637215529 | E54: 0.004329317269 | G54: 0.009453815261 | K54: UMass Solid Waste Data | N54: Recycling and Compost condensed to statewide composition catagories | R54: Refuse composition (assume statewide composition)
B55: Construction and Demolition | E55: 0.02735341365 | G55: 0.05973092369 | K55: Waste Type | L55: tons | N55: Waste Type | O55: tons | P55: % of total | R55: Waste Type | S55: tons | T55: % of total
B56: Hazardous Waste | E56: 0.006297188755 | G56: 0.01375100402 | K56: Animal Bedding | L56: 404.8 | N56: Paper | O56: =L58+L59+L67 -> 586.1 | P56: =O56/$L$78 -> 0.08206384766 | R56: Paper | S56: =C17*$L$77 -> 764.712 | T56: =S56/$L$78 -> 0.1070725287
B57: Electronics | E57: 0.006493975904 | G57: 0.01418072289 | K57: Batteries | L57: 6.6 | N57: Plastic | O57: =L69 -> 16.1 | P57: 0.002254270512 | R57: Plastic | S57: =C18*$L$77 -> 414.96 | T57: =S57/$L$78 -> 0.05810137216
B58: Other | C58: =D38*G41 -> 0.002797858099 | E58: 0.02263052209 | G58: 0.04941767068 | K58: Books | L58: 34.2 | N58: Food Waste | O58: =L64 -> 1533.1 | P58: 0.2146597592 | R58: Food Waste | S58: =C20*$L$77 -> 305.292 | T58: 0.04274600952
B59: Total | C59: =SUM(C49:C58) -> 0.2797858099 | D59: =SUM(D49:D58) -> 0 | E59: 0.1967871486 | F59: 0.093708166 | G59: 0.4297188755 | H59: 0 | I59: 0 | K59: Cardboard | L59: 506 | N59: Yard Waste | O59: =L68+L66+L56 -> 785.3 | P59: 0.1099551946 | R59: Yard Waste | S59: 305.292 | T59: 0.04274600952
B60: Source | K60: Clothing | L60: 10 | N60: Metal | O60: =L72 -> 416.2 | P60: 0.058274993 | R60: Metal | S60: 163.02 | T60: 0.02282553906
B61: 2012 Solid Waste Data Update, Massachusetts Department of Environmental Protection, December 2015; http://www.mass.gov/eea/docs/dep/recycle/priorities/12swdata.pdf | K61: Concrete | L61: 82.5 | N61: Glass | P61: 0 | R61: Glass | S61: 65.208 | T61: 0.009130215626
K62: Electronic Scrap | L62: 54 | N62: Construction and Demolition | O62: =L61 -> 82.5 | P62: 0.01155138617 | R62: Construction and Demolition | S62: 411.996 | T62: 0.05768636236
B63: C.2 UMass Solid Waste Management Methods Data | K63: Fluorescent Tubes | L63: 4.6 | N63: Household Hazardous Waste | O63: =L57+L71+L74+L75+L63 -> 28.4 | P63: 0.003976477177 | R63: Household Hazardous Waste | S63: 94.848 | T63: 0.01328031364
C64: Waste Management Method | K64: Food Waste | L64: 1533.1 | N64: Electronics | O64: =L62 -> 54 | P64: 0.007560907309 | R64: Electronics | S64: 97.812 | T64: 0.01369532344
B65: Waste Type | C65: Recycle | D65: Open Dump | E65: Landfill | F65: Compost | G65: Incineration | H65: Open Burning | I65: Anaerobic Digestion | K65: Mattresses | L65: 6.2 | N65: Other Materials | O65: =L60+L65+L70+L73 -> 676.3 | P65: 0.0946933632 | R65: Other Materials | S65: 340.86 | T65: 0.04772612714
B66: Paper | C66: =P56 -> 0.08206384766 | E66: =T56 -> 0.1070725287 | K66: Greenhouse waste | L66: 38.8 | N66: Total | O66: =SUM(O56:O65) -> 4178
B67: Plastic | C67: =P57 -> 0.002254270512 | E67: 0.05810137216 | K67: High grade paper | L67: 45.9
B68: Food Waste | E68: 0.04274600952 | F68: =P58 -> 0.2146597592 | K68: leaves/yardwaste | L68: 341.7
B69: Yard Waste | E69: 0.04274600952 | F69: =P59 -> 0.1099551946 | K69: Plastic/Bulky | L69: 16.1
B70: Metal | C70: =P60 -> 0.058274993 | E70: 0.02282553906 | K70: Single stream recyclables | L70: 488.8
B71: Glass | C71: 0 | E71: 0.009130215626 | K71: Paint | L71: 0
B72: Construction and Demolition | C72: 0.01155138617 | E72: 0.05768636236 | K72: Scrap Metal | L72: 416.2
B73: Hazardous Waste | C73: 0.003976477177 | E73: 0.01328031364 | K73: Scrap wood | L73: 171.3
B74: Electronics | C74: 0.007560907309 | E74: 0.01369532344 | K74: Tires | L74: 11.2
B75: Other | C75: 0.0946933632 | E75: 0.04772612714 | K75: Toner Cartridges | L75: 6
B76: Total | C76: =SUM(C66:C75) -> 0.260375245 | D76: 0 | E76: 0.4150098012 | F76: 0.3246149538 | G76: 0 | H76: 0 | I76: 0 | K76: Recyclable total | L76: =SUM(L56:L75) -> 4178
K77: Refuse Totals | L77: 2964
K78: Grand Total | L78: =SUM(L76:L77) -> 7142
B79: C.3 Amherst College Solid Waste Management Methods Data
C80: Waste Management Method | K80: Amherst 2015 MSW | L80: https://www.amherst.edu/amherst-story/green-amherst/what-the-college-is-doing/recycling | O80: 2015 Amherst College Diversion percentages
B81: Waste Type | C81: Recycle | D81: Open Dump | E81: Landfill | F81: Compost | G81: Incineration | H81: Open Burning | I81: Anaerobic Digestion | K81: Waste type | L81: Tonnage (Tonnes) | O81: Waste treatment | P81: percentage
B82: Paper | C82: =G37*($M$86+$M$87) -> 0.1678671429 | E82: =C17*$M$85 -> 0.1190977143 | K82: Total Trash and Recyling | L82: =786*K7 -> 713.0472056 | O82: Landfill | P82: 0.518
B83: Plastic | C83: =G38*($M$86+$M$87) -> 0.03013 | E83: =C18*$M$85 -> 0.06462666667 | K83: Food Compost (estimated) | L83: =8*12*K7 -> 87.08973504 | O83: Recycling | P83: 0.22
B84: Food Waste | E84: =C20*$M$85 -> 0.0475467619 | F84: =M88 -> 0.1088435374 | K84: Total MSW (Tonnes) | L84: =L82+L83 -> 800.1369407 | M84: percent of Total Waste | O84: Other Recovery | P84: 0.263
B85: Yard Waste | E85: 0.0475467619 | K85: Landfill | L85: =L82*P82 -> 369.3584525 | M85: =L85/$L$84 -> 0.4616190476
B86: Metal | C86: =G39*(M86+M87) -> 0.1721714286 | E86: 0.02538904762 | K86: Single Stream Recycling | L86: =L82*P83 -> 156.8703852 | M86: =L86/$L$84 -> 0.1960544218
B87: Glass | C87: =G40*(M86+M87) -> 0.05595571429 | E87: 0.01015561905 | K87: Other Recycling | L87: =L82*P84 -> 187.5314151 | M87: =L87/$L$84 -> 0.2343741497
B88: Construction and Demolition | E88: 0.06416504762 | K88: Compost | L88: =L83 -> 87.08973504 | M88: =L88/$L$84 -> 0.1088435374
B89: Hazardous Waste | E89: 0.01477180952
B90: Electronics | E90: 0.01523342857
B91: Other | C91: =G41*(M86+M87) -> 0.004304285714 | E91: 0.05308619048
B92: Total | C92: =SUM(C82:C91) -> 0.4304285714 | D92: 0 | E92: 0.4616190476 | F92: 0.1088435374 | G92: 0 | H92: 0 | I92: 0
B94: D. Solid Waste Management Location Data
C95: Waste Management Method
B96: Location | C96: Recycle | D96: Open Dump | E96: Landfill | F96: Compost | G96: Incineration | H96: Open Burning | I96: Anaerobic Digestion
B97: Managed within community | C97: 0 | E97: 0 | F97: 0 | G97: 0 | I97: 0
B98: Managed outside community | C98: 1 | E98: 1 | F98: 1 | G98: 1 | I98: 0
A100: x | B100: 2. Wastewater Activity Data Details
B101: A. Wastewater Generation Data | K101: FY 2016 Wastewater Flows
B102: Wastewater Generation Factors | C102: Value | D102: Units | E102: Source | K102: Area | L102: Quantity | M102: Unit | N102: Gallons
B103: Wastewater Generated and Treated Within the City | C103: =SUM(N103:N106) -> 1243955775 | D103: gal/yr | E103: WWTP 2016 Fiscal Report | K103: Amherst | L103: 682.317 | M103: Million gallon | N103: =IF(M103="Million gallon",L103*1000000,L103) -> 682317000
B104: Wastewater Generated Outside of but Treated Within the City | C104: =SUM(N107:N108) -> 150000 | D104: gal/yr | E104: WWTP 2016 Fiscal Report | K104: Umass | L104: 354.725 | M104: Million gallon | N104: =IF(M104="Million gallon",L104*1000000,L104) -> 354725000
B105: Average Influent BOD | C105: =L132 -> 218.6666667 | D105: (mg/L) | E105: WWTP 2016 Fiscal Report | K105: N Amh | L105: 206.802 | M105: Million gallon | N105: 206802000
B106: Average Effluent BOD | C106: =M132 -> 1.916666667 | D106: (mg/L) | E106: WWTP 2016 Fiscal Report | K106: Amherst Septics | L106: 111775 | M106: gallon | N106: 111775
B107: Liters per Gallon | C107: 3.785 | D107: L/gal | K107: Pelham Septics | L107: 46500 | M107: gallon | N107: 46500
B108: Average Total Nitrogen in Effluent | C108: =O132 -> 10.73333333 | D108: (mg/L) | E108: WWTP 2016 Fiscal Report | K108: Shutes Septics | L108: 103500 | M108: gallon | N108: 103500
B109: Industrial/Commercial Co-discharge Factor | C109: N/A | D109: N/A | E109: N/A, Amherst has raw data, no correction needed
B110: Annual BOD (total treated) | C110: =(C103+C104)*C106*C107/1000000 -> 9025.46902 | D110: kg/year | E110: calculated
B111: Annual BOD (UMass) | C111: =L104*1000000*C106*C107/1000000 -> 2573.382073 | D111: kg/year | E111: calculated
B112: Annual BOD (Remaining community) | C112: =(C103-L104*1000000)*C106*C107/1000000 -> 6450.99876 | D112: kg/year | E112: calculated
B113: Annual BOD (Outside of Amherst) | C113: =C104*C106*C107/1000000 -> 1.0881875 | D113: kg/year | E113: calculated
B114: Annual TN (total treated) | C114: =(C103+C104)*C108*C107/1000000 -> 50542.62651 | D114: kg/year | E114: calculated
B115: Annual TN (Amherst) | C115: =C103*C108*C107/1000000 -> 50536.53266 | D115: kg/year | E115: calculated
B116: Annual TN (outside of Amherst) | C116: =C104*C108*C107/1000000 -> 6.09385 | D116: kg/year | E116: calculated
B118: B. Wastewater Treatment Methods | K118: FY 2016 Wastewater Chemical Data
B119: Wastewater Management Type | C119: Value | D119: Units | E119: Source | K119: Month | L119: Influent BOD (mg/L) | M119: Effluent BOD (mg/L) | N119: Percent Removal | O119: Total N (mg/L)
B120: Decentralized Treatment | K120: July | L120: 170 | M120: 2 | N120: =1-M120/L120 -> 0.9882352941 | O120: 6.3
B121: Latrine | C121: 0 | D121: % of total | K121: August | L121: 184 | M121: 1 | N121: =1-M121/L121 -> 0.9945652174 | O121: 6.1
B122: Septic system | C122: 0 | D122: % of total | K122: September | L122: 280 | M122: 2 | N122: 0.9928571429 | O122: 10.7
B123: Centralized Treatment | K123: October | L123: 309 | M123: 2 | N123: =1-M123/L123 -> 0.9935275081 | O123: 10.8
B124: Anaerobic Treatment without Biogas Capture | C124: 0 | D124: % of total | K124: November | L124: 274 | M124: 2 | N124: 0.9927007299 | O124: 11.6
B125: Anaerobic Treatment with Biogas Capture | C125: 0 | D125: % of total | K125: December | L125: 252 | M125: 2 | N125: 0.9920634921 | O125: 11.2
B126: Facultative Treatment Lagoons without Biogas Capture | D126: % of total | K126: January | L126: 195 | M126: 2 | N126: 0.9897435897 | O126: 13.6
B127: Facultative Treatment Lagoons with Biogas Capture | C127: 0 | D127: % of total | K127: February | L127: 192 | M127: 3 | N127: 0.984375 | O127: 16
B128: Activated Sludge Treatment Plant without Nitrification/Denitrification and without Anaerobic Digesters | C128: 0 | D128: % of total | K128: March | L128: 169 | M128: 2 | N128: 0.9881656805 | O128: 10.3
B129: Activated Sludge Treatment Plant without Nitrification/Denitrification and with Anaerobic Digesters | C129: 0 | D129: % of total | K129: April | L129: 207 | M129: 3 | N129: 0.9855072464 | O129: 15.5
B130: Activated Sludge Treatment Plant with Nitrification/Denitrification and without Anaerobic Digesters | C130: 1 | D130: % of total | E130: Per Duane, treatment plant is Aerobic with nitrification/denitrification | K130: May | L130: 192 | M130: 1 | N130: 0.9947916667 | O130: 9.3
B131: Activated Sludge Treatment Plant with Nitrification/Denitrification and with Anaerobic Digesters | C131: 0 | D131: % of total | K131: June | L131: 200 | M131: 1 | N131: 0.995 | O131: 7.4
B132: No Treatment | K132: Annual Average | L132: =AVERAGE(L120:L131) -> 218.6666667 | M132: =AVERAGE(M120:M131) -> 1.916666667 | N132: =AVERAGE(N120:N131) -> 0.9909610473 | O132: =AVERAGE(O120:O131) -> 10.73333333
B133: Untreated Sewer (Discharge into Water) | C133: 0 | D133: % of total
B134: Total | C134: =SUM(C121:C133) -> 1 | D134: % of total
B136: C. Wastewater Management Location Data
C137: Decentralized Treatment | E137: Centralized Treatment | M137: No Treatment
B138: Treatment Location | C138: Latrine | D138: Septic system | E138: Anaerobic Treatment without Biogas Capture | F138: Anaerobic Treatment with Biogas Capture | G138: Facultative Treatment Lagoons without Biogas Capture | H138: Facultative Treatment Lagoons with Biogas Capture | I138: Activated Sludge Treatment Plant without Nitrification/Denitrification and without Anaerobic Digesters | J138: Activated Sludge Treatment Plant without Nitrification/Denitrification and with Anaerobic Digesters | K138: Activated Sludge Treatment Plant with Nitrification/Denitrification and without Anaerobic Digesters | L138: Activated Sludge Treatment Plant with Nitrification/Denitrification and with Anaerobic Digesters | M138: Untreated Sewer (Discharge into Water)
B139: Managed within community | C139: 0 | D139: 0 | E139: 0 | F139: 0 | G139: 0 | H139: 0 | I139: 0 | J139: 0 | K139: 1 | L139: 0 | M139: 0
B140: Managed outside community | C140: 0 | D140: 0 | E140: 0 | F140: 0 | G140: 0 | H140: 0 | I140: 0 | J140: 0 | K140: 0 | L140: 0 | M140: 0
N159: 4
N201: 2

Sheet I - Stationary-FY 2016
B2: I Stationary Energy - FY 2016 | J2:  | Q2:  | Z2: =Z11+Z23 -> 7579.845048 | AE2: 
Z3: =Z12 -> 18805.7688
J4: View emission factor(s) | Q4: Enter emissions data | Z4: =Z14+Z38+Z92 -> 19039.25628 | AE4: Data quality explanation (optional)
Z5: =Z11+Z12+Z14+Z16+Z23+Z38+Z48+Z92+Z94 -> 46568.87953
B6: I.1 RESIDENTIAL BUILDINGS
B8: GPC ref No. | C8: Scope | D8: GHG Emissions Source | F8: Notation keys | G8: Activity data | I8: Gas(es) | J8: Emission factor | K8: Emission factor (metric tonnes) | Q8: Emissions data | R8: GHGs (metric tonnes CO2e) | W8: GHGs (metric tonnes) | AB8: Data Quality | AD8: Description of method(s) used or explanation for using notation key(s) | AE8: Source | AF8: Data quality explanation (optional)
D9: Activity | E9: Description | G9: Amount | H9: Units | K9: Units | L9: CO2 | M9: CH4 | N9: N2O | O9: Total tCO2e | P9: CO2(b) | R9: CO2 | S9: CH4 | T9: N2O | U9: Total tCO2e | V9: CO2(b) | W9: CO2 | X9: CH4 | Y9: N2O | Z9: Total tCO2e | AA9: CO2(b) | AB9: AD | AC9: EF | AH9: =SUM(AH16,AH14,AH12,AH11) -> 44031.33642
B10: I.1.1 | C10: 1 | D10: Emissions from fuel combustion within the city boundary
B11: I.1.1 | C11: 1 | D11: Gas (natural gas) | G11: ='Activity Data-FY 2016'!F12 -> 1321107 | H11: therms/year | I11: CO2, CH4, N2O | J11: Natural Gas | K11: t/therm | L11: =VLOOKUP($J11,'Emission factors-Main'!$C$10:$BO$97,8,FALSE) -> 0.00530472656 | M11: =VLOOKUP($J11,'Emission factors-Main'!$C$10:$BO$97,12,FALSE) -> 2.799328e-06 | N11: =VLOOKUP($J11,'Emission factors-Main'!$C$10:$BO$97,15,FALSE) -> 2.649364e-06 | O11: =VLOOKUP($J11,'Emission factors-Main'!$C$10:$BO$97,65,FALSE) -> 0.005310175252 | P11: =IFERROR(VLOOKUP($J11,'Emission factors-Main'!$C:$BQ,67,FALSE),"") -> 0 | Q11: Total GHGs | W11: =$G11*L11 -> 7008.111392 | X11: 3.698211816 | Y11: 3.500093326 | Z11: =$G11*O11 -> 7015.309697 | AB11: H | AC11: H | AH11: =Z11 -> 7015.309697 | AI11: =#REF! ->  | AK11: 108482.4942
B12: I.1.1 | C12: 1 | D12: Distillate oil (heating fuel) | G12: ='Activity Data-FY 2016'!F13 -> 1836020.338 | H12: gal (US)/year | I12: CO2, CH4, N2O | J12: Distillate Fuel Oil No. 2 | K12: t/gallon | L12: =VLOOKUP($J12,'Emission factors-Main'!$C$10:$BO$97,8,FALSE) -> 0.01021 | M12: =VLOOKUP($J12,'Emission factors-Main'!$C$10:$BO$97,12,FALSE) -> 1.148e-05 | N12: =VLOOKUP($J12,'Emission factors-Main'!$C$10:$BO$97,15,FALSE) -> 2.12e-05 | O12: =VLOOKUP($J12,'Emission factors-Main'!$C$10:$BO$97,65,FALSE) -> 0.01024268 | P12: =IFERROR(VLOOKUP($J12,'Emission factors-Main'!$C:$BQ,67,FALSE),"") ->  | Q12: Total GHGs | W12: 18745.76765 | X12: 21.07751348 | Y12: 38.92363117 | Z12: 18805.7688 | AB12: L | AC12: H | AH12: =Z12 -> 18805.7688 | AI12: =#REF! ->  | AK12: 31459.28432
B13: I.1.2 | C13: 2 | D13: Emissions from grid-supplied energy consumed within the city boundary
B14: I.1.2 | C14: 2 | D14: Electricity | G14: ='Activity Data-FY 2016'!F15 -> 66286.449 | H14: MWh/year | I14: CO2, CH4, N2O | J14: Electricity (2016) | K14: t/MWh | L14: =VLOOKUP($J14,'Emission factors-Main'!$C$10:$BO$97,8,FALSE) -> 0.2589556728 | M14: =VLOOKUP($J14,'Emission factors-Main'!$C$10:$BO$97,12,FALSE) -> 0.001219255296 | N14: =VLOOKUP($J14,'Emission factors-Main'!$C$10:$BO$97,15,FALSE) -> 0.001538584064 | O14: =VLOOKUP($J14,'Emission factors-Main'!$C$10:$BO$97,65,FALSE) -> 0.2617135122 | Q14: Total GHGs | W14: =$G14*L14 -> 17165.252 | X14: =$G14*M14 -> 80.820104 | Y14: =$G14*N14 -> 101.9872741 | Z14: =$G14*O14 -> 17348.05938 | AB14: H | AC14: M | AH14: =Z14 -> 17348.05938 | AI14: =#REF!*1000 ->  | AK14: 43801.74216
B15: I.1.3 | C15: 3 | D15: Transmission and distribution losses from grid-supplied energy
B16: I.1.3 | C16: 3 | D16: Electricity | E16: Transmission and distribution losses | G16: ='Activity Data-FY 2016'!F17 -> 3294.436515 | H16: MWh/year | I16: CO2, CH4, N2O | J16: Electricity (2016) | K16: t/MWh | L16: =L14 -> 0.2589556728 | M16: =M14 -> 0.001219255296 | N16: =N14 -> 0.001538584064 | O16: =O14 -> 0.2617135122 | P16: =IFERROR(VLOOKUP($J16,'Emission factors-Main'!$C:$BQ,67,FALSE),"") ->  | Q16: Total GHGs | W16: =$G16*L16 -> 853.1130243 | X16: =$G16*M16 -> 4.016759169 | Y16: =$G16*N16 -> 5.068767522 | Z16: =$G16*O16 -> 862.198551 | AB16: M | AC16: M | AH16: =Z16 -> 862.198551 | AI16: =#REF!*1000 ->  | AK16: 4016.619756
B18: I.2 COMMERCIAL AND INSTITUTIONAL BUILDINGS AND FACILITIES | G18: =G14*'Trans Loss Factors - 2016'!D8 -> 3294.436515
B20: GPC ref No. | C20: Scope | D20: GHG Emissions Source | F20: Notation keys | G20: Activity data | I20: Gas(es) | J20: Emission factor | K20: Emission factor (metric tonnes) | R20: GHGs (metric tonnes CO2e) | W20: GHGs (metric tonnes) | AB20: Data Quality | AD20: Description of methods used | AE20: Source | AF20: Data quality explanation (optional)
D21: Activity | E21: Description | G21: Amount | H21: Units | K21: Units | L21: CO2 | M21: CH4 | N21: N2O | O21: Total tCO2e | P21: CO2(b) | R21: CO2 | S21: CH4 | T21: N2O | U21: Total tCO2e | V21: CO2(b) | W21: CO2 | X21: CH4 | Y21: N2O | Z21: Total tCO2e | AA21: CO2(b) | AB21: AD | AC21: EF
B22: I.2.1 | C22: 1 | D22: Emissions from fuel combustion within the city boundary
B23: I.2.1 | C23: 1 | D23: Gas (natural gas) | E23: Municipal | G23: =INDEX('Activity Data-FY 2016'!$F$24:$F$50,MATCH(D23&E23,'Activity Data-FY 2016'!$D$24:$D$50&'Activity Data-FY 2016'!$E$24:$E$50,0),1) -> 106312 | H23: therms/year | I23: CO2, CH4, N2O | J23: Natural Gas | K23: t/therm | L23: =VLOOKUP($J23,'Emission factors-Main'!$C$10:$BO$97,8,FALSE) -> 0.00530472656 | M23: =VLOOKUP($J23,'Emission factors-Main'!$C$10:$BO$97,12,FALSE) -> 2.799328e-06 | N23: =VLOOKUP($J23,'Emission factors-Main'!$C$10:$BO$97,15,FALSE) -> 2.649364e-06 | O23: =VLOOKUP($J23,'Emission factors-Main'!$C$10:$BO$97,65,FALSE) -> 0.005310175252 | P23: =IFERROR(VLOOKUP($J23,'Emission factors-Main'!$C:$BQ,67,FALSE),"") -> 0 | Q23: Total GHGs | W23: =$G23*L23 -> 563.95609 | X23: =$G23*M23 -> 0.2976021583 | Y23: =$G23*N23 -> 0.2816591856 | Z23: =$G23*O23 -> 564.5353514 | AB23: H | AC23: H | AH23: =Z23 -> 564.5353514 | AI23: =#REF! ->  | AK23: 75765.97524
B24: I.2.1 | C24: 1 | D24: Gas (natural gas) | E24: UMass | G24: =INDEX('Activity Data-FY 2016'!$F$24:$F$50,MATCH(D24&E24,'Activity Data-FY 2016'!$D$24:$D$50&'Activity Data-FY 2016'!$E$24:$E$50,0),1) -> 16227910 | H24: therms/year | I24: CO2, CH4, N2O | J24: Natural Gas | K24: t/therm | L24: =VLOOKUP($J24,'Emission factors-Main'!$C$10:$BO$97,8,FALSE) -> 0.00530472656 | M24: =VLOOKUP($J24,'Emission factors-Main'!$C$10:$BO$97,12,FALSE) -> 2.799328e-06 | N24: =VLOOKUP($J24,'Emission factors-Main'!$C$10:$BO$97,15,FALSE) -> 2.649364e-06 | O24: =VLOOKUP($J24,'Emission factors-Main'!$C$10:$BO$97,65,FALSE) -> 0.005310175252 | P24: =IFERROR(VLOOKUP($J24,'Emission factors-Main'!$C:$BQ,67,FALSE),"") -> 0 | Q24: Total GHGs | W24: =$G24*L24 -> 86084.62519 | X24: =$G24*M24 -> 45.42724284 | Y24: =$G24*N24 -> 42.99364055 | Z24: =$G24*O24 -> 86173.04607 | AB24: H | AC24: H
B25: I.2.1 | C25: 1 | D25: Gas (natural gas) | E25: Amherst College | G25: =INDEX('Activity Data-FY 2016'!$F$24:$F$50,MATCH(D25&E25,'Activity Data-FY 2016'!$D$24:$D$50&'Activity Data-FY 2016'!$E$24:$E$50,0),1) -> 2457500 | H25: therms/year | I25: CO2, CH4, N2O | J25: Natural Gas | K25: t/therm | L25: =VLOOKUP($J25,'Emission factors-Main'!$C$10:$BO$97,8,FALSE) -> 0.00530472656 | M25: =VLOOKUP($J25,'Emission factors-Main'!$C$10:$BO$97,12,FALSE) -> 2.799328e-06 | N25: =VLOOKUP($J25,'Emission factors-Main'!$C$10:$BO$97,15,FALSE) -> 2.649364e-06 | O25: =VLOOKUP($J25,'Emission factors-Main'!$C$10:$BO$97,65,FALSE) -> 0.005310175252 | P25: =IFERROR(VLOOKUP($J25,'Emission factors-Main'!$C:$BQ,67,FALSE),"") -> 0 | Q25: Total GHGs | W25: =$G25*L25 -> 13036.36552 | X25: 6.87934856 | Y25: 6.51081203 | Z25: 13049.75568 | AB25: H | AC25: H
B26: I.2.1 | C26: 1 | D26: Gas (natural gas) | E26: Hampshire College | G26: =INDEX('Activity Data-FY 2016'!$F$24:$F$50,MATCH(D26&E26,'Activity Data-FY 2016'!$D$24:$D$50&'Activity Data-FY 2016'!$E$24:$E$50,0),1) -> 0 | H26: therms/year | I26: CO2, CH4, N2O | J26: Natural Gas | K26: t/therm | L26: =VLOOKUP($J26,'Emission factors-Main'!$C$10:$BO$97,8,FALSE) -> 0.00530472656 | M26: =VLOOKUP($J26,'Emission factors-Main'!$C$10:$BO$97,12,FALSE) -> 2.799328e-06 | N26: =VLOOKUP($J26,'Emission factors-Main'!$C$10:$BO$97,15,FALSE) -> 2.649364e-06 | O26: =VLOOKUP($J26,'Emission factors-Main'!$C$10:$BO$97,65,FALSE) -> 0.005310175252 | P26: =IFERROR(VLOOKUP($J26,'Emission factors-Main'!$C:$BQ,67,FALSE),"") -> 0 | Q26: Total GHGs | W26: 0 | X26: 0 | Y26: 0 | Z26: 0 | AB26: H | AC26: H
B27: I.2.1 | C27: 1 | D27: Gas (natural gas) | E27: Community | G27: =INDEX('Activity Data-FY 2016'!$F$24:$F$50,MATCH(D27&E27,'Activity Data-FY 2016'!$D$24:$D$50&'Activity Data-FY 2016'!$E$24:$E$50,0),1) -> 3965872 | H27: therms/year | I27: CO2, CH4, N2O | J27: Natural Gas | K27: t/therm | L27: =VLOOKUP($J27,'Emission factors-Main'!$C$10:$BO$97,8,FALSE) -> 0.00530472656 | M27: =VLOOKUP($J27,'Emission factors-Main'!$C$10:$BO$97,12,FALSE) -> 2.799328e-06 | N27: =VLOOKUP($J27,'Emission factors-Main'!$C$10:$BO$97,15,FALSE) -> 2.649364e-06 | O27: =VLOOKUP($J27,'Emission factors-Main'!$C$10:$BO$97,65,FALSE) -> 0.005310175252 | P27: =IFERROR(VLOOKUP($J27,'Emission factors-Main'!$C:$BQ,67,FALSE),"") -> 0 | Q27: Total GHGs | W27: 21037.86653 | X27: 11.10177653 | Y27: 10.50703851 | Z27: 21059.47535 | AB27: H | AC27: H
B28: I.2.1 | C28: 1 | D28: Liquefied natural gas (LNG) | E28: UMass | G28: =INDEX('Activity Data-FY 2016'!$F$24:$F$50,MATCH(D28&E28,'Activity Data-FY 2016'!$D$24:$D$50&'Activity Data-FY 2016'!$E$24:$E$50,0),1) -> 2011961 | H28: gal (US)/year | I28: CO2, CH4, N2O | J28: Liquified Natural Gas (LNG) | K28: t/gallon | L28: =VLOOKUP($J28,'Emission factors-Main'!$C$10:$BO$97,8,FALSE) -> 0.00446 | M28: =VLOOKUP($J28,'Emission factors-Main'!$C$10:$BO$97,12,FALSE) -> 0 | N28: =VLOOKUP($J28,'Emission factors-Main'!$C$10:$BO$97,15,FALSE) -> 0 | O28: =VLOOKUP($J28,'Emission factors-Main'!$C$10:$BO$97,65,FALSE) -> 0.00446 | P28: =IFERROR(VLOOKUP($J28,'Emission factors-Main'!$C:$BQ,67,FALSE),"") -> 0 | Q28: Total GHGs | W28: 8973.34606 | X28: 0 | Y28: 0 | Z28: 8973.34606 | AB28: H | AC28: H
B29: I.2.1 | C29: 1 | D29: Distillate oil (heating fuel) | E29: UMass | G29: =INDEX('Activity Data-FY 2016'!$F$24:$F$50,MATCH(D29&E29,'Activity Data-FY 2016'!$D$24:$D$50&'Activity Data-FY 2016'!$E$24:$E$50,0),1) -> 23859 | H29: gal (US)/year | I29: CO2, CH4, N2O | J29: Distillate Fuel Oil No. 2 | K29: t/gallon | L29: =VLOOKUP($J29,'Emission factors-Main'!$C$10:$BO$97,8,FALSE) -> 0.01021 | M29: =VLOOKUP($J29,'Emission factors-Main'!$C$10:$BO$97,12,FALSE) -> 1.148e-05 | N29: =VLOOKUP($J29,'Emission factors-Main'!$C$10:$BO$97,15,FALSE) -> 2.12e-05 | O29: =VLOOKUP($J29,'Emission factors-Main'!$C$10:$BO$97,65,FALSE) -> 0.01024268 | P29: =IFERROR(VLOOKUP($J29,'Emission factors-Main'!$C:$BQ,67,FALSE),"") ->  | Q29: Total GHGs | W29: 243.60039 | X29: 0.27390132 | Y29: 0.5058108 | Z29: 244.3801021 | AB29: H | AC29: H
B30: I.2.1 | C30: 1 | D30: Liquefied petroleum gases (LPG) | E30: UMass | G30: =INDEX('Activity Data-FY 2016'!$F$24:$F$50,MATCH(D30&E30,'Activity Data-FY 2016'!$D$24:$D$50&'Activity Data-FY 2016'!$E$24:$E$50,0),1) -> 31092 | H30: gal (US)/year | I30: CO2, CH4, N2O | J30: Propane | K30: t/gallon | L30: =VLOOKUP($J30,'Emission factors-Main'!$C$10:$BO$97,8,FALSE) -> 0.00572117 | M30: =VLOOKUP($J30,'Emission factors-Main'!$C$10:$BO$97,12,FALSE) -> 7.56e-06 | N30: =VLOOKUP($J30,'Emission factors-Main'!$C$10:$BO$97,15,FALSE) -> 1.325e-05 | O30: =VLOOKUP($J30,'Emission factors-Main'!$C$10:$BO$97,65,FALSE) -> 0.00574198 | P30: =IFERROR(VLOOKUP($J30,'Emission factors-Main'!$C:$BQ,67,FALSE),"") -> 0 | Q30: Total GHGs | W30: 177.8826176 | X30: 0.23505552 | Y30: 0.411969 | Z30: 178.5296422 | AB30: H | AC30: H
B31: I.2.1 | C31: 1 | D31: Diesel oil | E31: UMass | G31: =INDEX('Activity Data-FY 2016'!$F$24:$F$50,MATCH(D31&E31,'Activity Data-FY 2016'!$D$24:$D$50&'Activity Data-FY 2016'!$E$24:$E$50,0),1) -> 737509 | H31: gal (US)/year | I31: CO2, CH4, N2O | J31: Distillate Fuel Oil No. 2 | K31: t/gallon | L31: =VLOOKUP($J31,'Emission factors-Main'!$C$10:$BO$97,8,FALSE) -> 0.01021 | M31: =VLOOKUP($J31,'Emission factors-Main'!$C$10:$BO$97,12,FALSE) -> 1.148e-05 | N31: =VLOOKUP($J31,'Emission factors-Main'!$C$10:$BO$97,15,FALSE) -> 2.12e-05 | O31: =VLOOKUP($J31,'Emission factors-Main'!$C$10:$BO$97,65,FALSE) -> 0.01024268 | P31: =IFERROR(VLOOKUP($J31,'Emission factors-Main'!$C:$BQ,67,FALSE),"") ->  | Q31: Total GHGs | W31: 7529.96689 | X31: 8.46660332 | Y31: 15.6351908 | Z31: 7554.068684 | AB31: H | AC31: H
B32: I.2.1 | C32: 1 | D32: Distillate oil (heating fuel) | E32: Amherst College | G32: =INDEX('Activity Data-FY 2016'!$F$24:$F$50,MATCH(D32&E32,'Activity Data-FY 2016'!$D$24:$D$50&'Activity Data-FY 2016'!$E$24:$E$50,0),1) -> 6439 | H32: gal (US)/year | I32: CO2, CH4, N2O | J32: Distillate Fuel Oil No. 2 | K32: t/gallon | L32: =VLOOKUP($J32,'Emission factors-Main'!$C$10:$BO$97,8,FALSE) -> 0.01021 | M32: =VLOOKUP($J32,'Emission factors-Main'!$C$10:$BO$97,12,FALSE) -> 1.148e-05 | N32: =VLOOKUP($J32,'Emission factors-Main'!$C$10:$BO$97,15,FALSE) -> 2.12e-05 | O32: =VLOOKUP($J32,'Emission factors-Main'!$C$10:$BO$97,65,FALSE) -> 0.01024268 | P32: =IFERROR(VLOOKUP($J32,'Emission factors-Main'!$C:$BQ,67,FALSE),"") ->  | Q32: Total GHGs | W32: =$G32*L32 -> 65.74219 | X32: =$G32*M32 -> 0.07391972 | Y32: =$G32*N32 -> 0.1365068 | Z32: =$G32*O32 -> 65.95261652 | AB32: H | AC32: H
B33: I.2.1 | C33: 1 | D33: Liquefied petroleum gases (LPG) | E33: Amherst College | G33: =INDEX('Activity Data-FY 2016'!$F$24:$F$50,MATCH(D33&E33,'Activity Data-FY 2016'!$D$24:$D$50&'Activity Data-FY 2016'!$E$24:$E$50,0),1) -> 4749 | H33: gal (US)/year | I33: CO2, CH4, N2O | J33: Propane | K33: t/gallon | L33: =VLOOKUP($J33,'Emission factors-Main'!$C$10:$BO$97,8,FALSE) -> 0.00572117 | M33: =VLOOKUP($J33,'Emission factors-Main'!$C$10:$BO$97,12,FALSE) -> 7.56e-06 | N33: =VLOOKUP($J33,'Emission factors-Main'!$C$10:$BO$97,15,FALSE) -> 1.325e-05 | O33: =VLOOKUP($J33,'Emission factors-Main'!$C$10:$BO$97,65,FALSE) -> 0.00574198 | P33: =IFERROR(VLOOKUP($J33,'Emission factors-Main'!$C:$BQ,67,FALSE),"") -> 0 | Q33: Total GHGs | W33: 27.16983633 | X33: 0.03590244 | Y33: 0.06292425 | Z33: 27.26866302 | AB33: H | AC33: H
B34: I.2.1 | C34: 1 | D34: Residual fuel oil | E34: Amherst College | G34: =INDEX('Activity Data-FY 2016'!$F$24:$F$50,MATCH(D34&E34,'Activity Data-FY 2016'!$D$24:$D$50&'Activity Data-FY 2016'!$E$24:$E$50,0),1) -> 18060 | H34: gal (US)/year | I34: CO2, CH4, N2O | J34: Residual Fuel Oil No. 6 | K34: t/gallon | L34: =VLOOKUP($J34,'Emission factors-Main'!$C$10:$BO$97,8,FALSE) -> 0.01127 | M34: =VLOOKUP($J34,'Emission factors-Main'!$C$10:$BO$97,12,FALSE) -> 1.26e-05 | N34: =VLOOKUP($J34,'Emission factors-Main'!$C$10:$BO$97,15,FALSE) -> 2.385e-05 | O34: =VLOOKUP($J34,'Emission factors-Main'!$C$10:$BO$97,65,FALSE) -> 0.01130645 | P34: =IFERROR(VLOOKUP($J34,'Emission factors-Main'!$C:$BQ,67,FALSE),"") -> 0 | Q34: Total GHGs | W34: 203.5362 | X34: 0.227556 | Y34: 0.430731 | Z34: 204.194487 | AB34: H | AC34: H
B35: I.2.1 | C35: 1 | D35: Distillate oil (heating fuel) | E35: Municipal | G35: =INDEX('Activity Data-FY 2016'!$F$24:$F$50,MATCH(D35&E35,'Activity Data-FY 2016'!$D$24:$D$50&'Activity Data-FY 2016'!$E$24:$E$50,0),1) -> 1602 | H35: gal (US)/year | I35: CO2, CH4, N2O | J35: Distillate Fuel Oil No. 2 | K35: t/gallon | L35: =VLOOKUP($J35,'Emission factors-Main'!$C$10:$BO$97,8,FALSE) -> 0.01021 | M35: =VLOOKUP($J35,'Emission factors-Main'!$C$10:$BO$97,12,FALSE) -> 1.148e-05 | N35: =VLOOKUP($J35,'Emission factors-Main'!$C$10:$BO$97,15,FALSE) -> 2.12e-05 | O35: =VLOOKUP($J35,'Emission factors-Main'!$C$10:$BO$97,65,FALSE) -> 0.01024268 | P35: =IFERROR(VLOOKUP($J35,'Emission factors-Main'!$C:$BQ,67,FALSE),"") ->  | Q35: Total GHGs | W35: 16.35642 | X35: 0.01839096 | Y35: 0.0339624 | Z35: 16.40877336 | AB35: H | AC35: H
B36: I.2.1 | C36: 1 | G36: =INDEX('Activity Data-FY 2016'!$F$24:$F$50,MATCH(D36&E36,'Activity Data-FY 2016'!$D$24:$D$50&'Activity Data-FY 2016'!$E$24:$E$50,0),1) -> 0 | W36: 0 | X36: 0 | Y36: 0 | Z36: 0
B37: I.2.2 | C37: 2 | D37: Emissions from grid-supplied energy consumed within the city boundary
B38: I.2.2 | C38: 2 | D38: Electricity | E38: Municipal | G38: =INDEX('Activity Data-FY 2016'!$F$24:$F$50,MATCH(D38&E38,'Activity Data-FY 2016'!$D$24:$D$50&'Activity Data-FY 2016'!$E$24:$E$50,0),1) -> 6462.016 | H38: MWh/year | I38: CO2, CH4, N2O | J38: Electricity (2016) | K38: t/MWh | L38: =VLOOKUP($J38,'Emission factors-Main'!$C$10:$BO$97,8,FALSE) -> 0.2589556728 | M38: =VLOOKUP($J38,'Emission factors-Main'!$C$10:$BO$97,12,FALSE) -> 0.001219255296 | N38: =VLOOKUP($J38,'Emission factors-Main'!$C$10:$BO$97,15,FALSE) -> 0.001538584064 | O38: =VLOOKUP($J38,'Emission factors-Main'!$C$10:$BO$97,65,FALSE) -> 0.2617135122 | P38: =IFERROR(VLOOKUP($J38,'Emission factors-Main'!$C:$BQ,67,FALSE),"") ->  | Q38: Total GHGs | W38: =$G38*L38 -> 1673.375701 | X38: =$G38*M38 -> 7.878847231 | Y38: =$G38*N38 -> 9.942354839 | Z38: =$G38*O38 -> 1691.196903 | AB38: H | AC38: M | AH38: =Z38 -> 1691.196903 | AI38: =#REF!*1000 ->  | AK38: 78779.57677
B39: I.2.2 | C39: 2 | D39: Electricity | E39: UMass | G39: =INDEX('Activity Data-FY 2016'!$F$24:$F$50,MATCH(D39&E39,'Activity Data-FY 2016'!$D$24:$D$50&'Activity Data-FY 2016'!$E$24:$E$50,0),1) -> 48651.545 | H39: MWh/year | I39: CO2, CH4, N2O | J39: Electricity (2016) | K39: t/MWh | L39: =VLOOKUP($J39,'Emission factors-Main'!$C$10:$BO$97,8,FALSE) -> 0.2589556728 | M39: =VLOOKUP($J39,'Emission factors-Main'!$C$10:$BO$97,12,FALSE) -> 0.001219255296 | N39: =VLOOKUP($J39,'Emission factors-Main'!$C$10:$BO$97,15,FALSE) -> 0.001538584064 | O39: =VLOOKUP($J39,'Emission factors-Main'!$C$10:$BO$97,65,FALSE) -> 0.2617135122 | P39: =IFERROR(VLOOKUP($J39,'Emission factors-Main'!$C:$BQ,67,FALSE),"") ->  | Q39: Total GHGs | W39: =$G39*L39 -> 12598.59357 | X39: =$G39*M39 -> 59.3186539 | Y39: =$G39*N39 -> 74.85449183 | Z39: =$G39*O39 -> 12732.76671 | AB39: H | AC39: M
B40: I.2.2 | C40: 2 | D40: Electricity | E40: Amherst College | G40: =INDEX('Activity Data-FY 2016'!$F$24:$F$50,MATCH(D40&E40,'Activity Data-FY 2016'!$D$24:$D$50&'Activity Data-FY 2016'!$E$24:$E$50,0),1) -> 11635 | H40: MWh/year | I40: CO2, CH4, N2O | J40: Electricity (2016) | K40: t/MWh | L40: =VLOOKUP($J40,'Emission factors-Main'!$C$10:$BO$97,8,FALSE) -> 0.2589556728 | M40: =VLOOKUP($J40,'Emission factors-Main'!$C$10:$BO$97,12,FALSE) -> 0.001219255296 | N40: =VLOOKUP($J40,'Emission factors-Main'!$C$10:$BO$97,15,FALSE) -> 0.001538584064 | O40: =VLOOKUP($J40,'Emission factors-Main'!$C$10:$BO$97,65,FALSE) -> 0.2617135122 | P40: =IFERROR(VLOOKUP($J40,'Emission factors-Main'!$C:$BQ,67,FALSE),"") ->  | Q40: Total GHGs | W40: 3012.949253 | X40: 14.18603537 | Y40: 17.90142558 | Z40: 3045.036714 | AB40: H | AC40: M
B41: I.2.2 | C41: 2 | D41: Electricity | E41: Hampshire College | G41: =INDEX('Activity Data-FY 2016'!$F$24:$F$50,MATCH(D41&E41,'Activity Data-FY 2016'!$D$24:$D$50&'Activity Data-FY 2016'!$E$24:$E$50,0),1) -> 6642.508 | H41: MWh/year | I41: CO2, CH4, N2O | J41: Electricity (2016) | K41: t/MWh | L41: =VLOOKUP($J41,'Emission factors-Main'!$C$10:$BO$97,8,FALSE) -> 0.2589556728 | M41: =VLOOKUP($J41,'Emission factors-Main'!$C$10:$BO$97,12,FALSE) -> 0.001219255296 | N41: =VLOOKUP($J41,'Emission factors-Main'!$C$10:$BO$97,15,FALSE) -> 0.001538584064 | O41: =VLOOKUP($J41,'Emission factors-Main'!$C$10:$BO$97,65,FALSE) -> 0.2617135122 | P41: =IFERROR(VLOOKUP($J41,'Emission factors-Main'!$C:$BQ,67,FALSE),"") ->  | Q41: Total GHGs | W41: 1720.115128 | X41: 8.098913058 | Y41: 10.22005695 | Z41: 1738.434098 | AB41: H | AC41: M
B42: I.2.2 | C42: 2 | D42: Electricity | E42: Community | G42: =INDEX('Activity Data-FY 2016'!$F$24:$F$50,MATCH(D42&E42,'Activity Data-FY 2016'!$D$24:$D$50&'Activity Data-FY 2016'!$E$24:$E$50,0),1) -> 21665.823 | H42: MWh/year | I42: CO2, CH4, N2O | J42: Electricity (2016) | K42: t/MWh | L42: =VLOOKUP($J42,'Emission factors-Main'!$C$10:$BO$97,8,FALSE) -> 0.2589556728 | M42: =VLOOKUP($J42,'Emission factors-Main'!$C$10:$BO$97,12,FALSE) -> 0.001219255296 | N42: =VLOOKUP($J42,'Emission factors-Main'!$C$10:$BO$97,15,FALSE) -> 0.001538584064 | O42: =VLOOKUP($J42,'Emission factors-Main'!$C$10:$BO$97,65,FALSE) -> 0.2617135122 | P42: =IFERROR(VLOOKUP($J42,'Emission factors-Main'!$C:$BQ,67,FALSE),"") ->  | Q42: Total GHGs | W42: 5610.487772 | X42: 26.41616943 | Y42: 33.33469 | Z42: 5670.238631 | AB42: H | AC42: M
B43: I.2.3 | C43: 3 | D43: Transmission and distribution losses from grid-supplied energy
B44: I.2.3 | C44: 3 | D44: Electrictiy transmission losses | E44: Municipal | G44: =INDEX('Activity Data-FY 2016'!$F$24:$F$50,MATCH(D44&E44,'Activity Data-FY 2016'!$D$24:$D$50&'Activity Data-FY 2016'!$E$24:$E$50,0),1) -> 321.1621952 | H44: MWh/year | I44: CO2, CH4, N2O | J44: Electricity (2016) | K44: t/MWh | L44: =VLOOKUP($J44,'Emission factors-Main'!$C$10:$BO$97,8,FALSE) -> 0.2589556728 | M44: =VLOOKUP($J44,'Emission factors-Main'!$C$10:$BO$97,12,FALSE) -> 0.001219255296 | N44: =VLOOKUP($J44,'Emission factors-Main'!$C$10:$BO$97,15,FALSE) -> 0.001538584064 | O44: =VLOOKUP($J44,'Emission factors-Main'!$C$10:$BO$97,65,FALSE) -> 0.2617135122 | P44: =IFERROR(VLOOKUP($J44,'Emission factors-Main'!$C:$BQ,67,FALSE),"") ->  | Q44: Total GHGs | W44: =$G44*L44 -> 83.16677234 | X44: =$G44*M44 -> 0.3915787074 | Y44: =$G44*N44 -> 0.4941350355 | Z44: =$G44*O44 -> 84.05248608 | AB44: M | AC44: M
B45: I.2.3 | C45: 3 | D45: Electrictiy transmission losses | E45: UMass | G45: =INDEX('Activity Data-FY 2016'!$F$24:$F$50,MATCH(D45&E45,'Activity Data-FY 2016'!$D$24:$D$50&'Activity Data-FY 2016'!$E$24:$E$50,0),1) -> 2417.981786 | H45: MWh/year | I45: CO2, CH4, N2O | J45: Electricity (2016) | K45: t/MWh | L45: =VLOOKUP($J45,'Emission factors-Main'!$C$10:$BO$97,8,FALSE) -> 0.2589556728 | M45: =VLOOKUP($J45,'Emission factors-Main'!$C$10:$BO$97,12,FALSE) -> 0.001219255296 | N45: =VLOOKUP($J45,'Emission factors-Main'!$C$10:$BO$97,15,FALSE) -> 0.001538584064 | O45: =VLOOKUP($J45,'Emission factors-Main'!$C$10:$BO$97,65,FALSE) -> 0.2617135122 | P45: =IFERROR(VLOOKUP($J45,'Emission factors-Main'!$C:$BQ,67,FALSE),"") ->  | Q45: Total GHGs | W45: =$G45*L45 -> 626.1501003 | X45: =$G45*M45 -> 2.948137099 | Y45: =$G45*N45 -> 3.720268244 | Z45: =$G45*O45 -> 632.8185057 | AB45: M | AC45: M
B46: I.2.3 | C46: 3 | D46: Electrictiy transmission losses | E46: Amherst College | G46: =INDEX('Activity Data-FY 2016'!$F$24:$F$50,MATCH(D46&E46,'Activity Data-FY 2016'!$D$24:$D$50&'Activity Data-FY 2016'!$E$24:$E$50,0),1) -> 578.2595 | H46: MWh/year | I46: CO2, CH4, N2O | J46: Electricity (2016) | K46: t/MWh | L46: =VLOOKUP($J46,'Emission factors-Main'!$C$10:$BO$97,8,FALSE) -> 0.2589556728 | M46: =VLOOKUP($J46,'Emission factors-Main'!$C$10:$BO$97,12,FALSE) -> 0.001219255296 | N46: =VLOOKUP($J46,'Emission factors-Main'!$C$10:$BO$97,15,FALSE) -> 0.001538584064 | O46: =VLOOKUP($J46,'Emission factors-Main'!$C$10:$BO$97,65,FALSE) -> 0.2617135122 | P46: =IFERROR(VLOOKUP($J46,'Emission factors-Main'!$C:$BQ,67,FALSE),"") ->  | Q46: Total GHGs | W46: 149.7435779 | X46: 0.7050459578 | Y46: 0.8897008516 | Z46: 151.3383247 | AB46: M | AC46: M
B47: I.2.3 | C47: 3 | D47: Electrictiy transmission losses | E47: Hampshire College | G47: =INDEX('Activity Data-FY 2016'!$F$24:$F$50,MATCH(D47&E47,'Activity Data-FY 2016'!$D$24:$D$50&'Activity Data-FY 2016'!$E$24:$E$50,0),1) -> 330.1326476 | H47: MWh/year | I47: CO2, CH4, N2O | J47: Electricity (2016) | K47: t/MWh | L47: =VLOOKUP($J47,'Emission factors-Main'!$C$10:$BO$97,8,FALSE) -> 0.2589556728 | M47: =VLOOKUP($J47,'Emission factors-Main'!$C$10:$BO$97,12,FALSE) -> 0.001219255296 | N47: =VLOOKUP($J47,'Emission factors-Main'!$C$10:$BO$97,15,FALSE) -> 0.001538584064 | O47: =VLOOKUP($J47,'Emission factors-Main'!$C$10:$BO$97,65,FALSE) -> 0.2617135122 | P47: =IFERROR(VLOOKUP($J47,'Emission factors-Main'!$C:$BQ,67,FALSE),"") ->  | Q47: Total GHGs | W47: 85.48972187 | X47: 0.402515979 | Y47: 0.5079368306 | Z47: 86.40017468 | AB47: M | AC47: M
B48: I.2.3 | C48: 3 | D48: Electrictiy transmission losses | E48: Community | G48: =INDEX('Activity Data-FY 2016'!$F$24:$F$50,MATCH(D48&E48,'Activity Data-FY 2016'!$D$24:$D$50&'Activity Data-FY 2016'!$E$24:$E$50,0),1) -> 1076.791403 | H48: MWh/year | I48: CO2, CH4, N2O | J48: Electricity (2016) | K48: t/MWh | L48: =L38 -> 0.2589556728 | M48: =M38 -> 0.001219255296 | N48: =N38 -> 0.001538584064 | O48: =O38 -> 0.2617135122 | P48: =IFERROR(VLOOKUP($J48,'Emission factors-Main'!$C:$BQ,67,FALSE),"") ->  | Q48: Total GHGs | W48: =$G48*L48 -> 278.8412423 | X48: =$G48*M48 -> 1.312883621 | Y48: =$G48*N48 -> 1.656734093 | Z48: =$G48*O48 -> 281.81086 | AB48: M | AC48: M | AH48: =Z48 -> 281.81086 | AI48: =#REF!*1000 ->  | AK48: 7224.08719
B50: I.3 MANUFACTURING INDUSTRIES AND CONSTRUCTION
B52: GPC ref No. | C52: Scope | D52: GHG Emissions Source | F52: Notation keys | G52: Activity data | I52: Gas(es) | J52: Emission factor | K52: Emission factor (metric tonnes) | R52: GHGs (metric tonnes CO2e) | W52: GHGs (metric tonnes) | AB52: Data Quality | AD52: Description of methods used | AE52: Source | AF52: Data quality explanation (optional)
D53: Activity | E53: Description | G53: Amount | H53: Units | K53: Units | L53: CO2 | M53: CH4 | N53: N2O | O53: Total tCO2e | P53: CO2(b) | R53: CO2 | S53: CH4 | T53: N2O | U53: Total tCO2e | V53: CO2(b) | W53: CO2 | X53: CH4 | Y53: N2O | Z53: Total tCO2e | AA53: CO2(b) | AB53: AD | AC53: EF
B54: I.3.1 | C54: 1 | D54: Emissions from fuel combustion within the city boundary | F54: IE
B55: I.3.1 | C55: 1 | F55: IE | P55: =IFERROR(VLOOKUP($J55,'Emission factors-Main'!$C:$BQ,67,FALSE),"") -> 
B56: I.3.2 | C56: 2 | D56: Emissions from grid-supplied energy consumed within the city boundary | F56: IE
B57: I.3.2 | C57: 2 | F57: IE | P57: =IFERROR(VLOOKUP($J57,'Emission factors-Main'!$C:$BQ,67,FALSE),"") -> 
B58: I.3.3 | C58: 3 | D58: Transmission and distribution losses from grid-supplied energy | F58: IE
B59: I.3.3 | C59: 3 | F59: IE | P59: =IFERROR(VLOOKUP($J59,'Emission factors-Main'!$C:$BQ,67,FALSE),"") -> 
B61: I.4 ENERGY INDUSTRIES
B63: GPC ref No. | C63: Scope | D63: GHG Emissions Source | F63: Notation keys | G63: Activity data | I63: Gas(es) | J63: Emission factor | K63: Emission factor (metric tonnes) | R63: GHGs (metric tonnes CO2e) | W63: GHGs (metric tonnes) | AB63: Data Quality | AD63: Description of methods used | AE63: Source | AF63: Data quality explanation (optional)
D64: Activity | E64: Description | G64: Amount | H64: Units | K64: Units | L64: CO2 | M64: CH4 | N64: N2O | O64: Total tCO2e | P64: CO2(b) | R64: CO2 | S64: CH4 | T64: N2O | U64: Total tCO2e | V64: CO2(b) | W64: CO2 | X64: CH4 | Y64: N2O | Z64: Total tCO2e | AA64: CO2(b) | AB64: AD | AC64: EF
B65: I.4.1 | C65: 1 | D65: Emissions from fuel combustion in energy-related operations within the city boundary | F65: NO
B66: I.4.1 | C66: 1 | F66: NO | P66: =IFERROR(VLOOKUP($J66,'Emission factors-Main'!$C:$BQ,67,FALSE),"") -> 
B67: I.4.2 | C67: 2 | D67: Emissions from grid-supplied energy consumed in energy related operations within the city | F67: NO
B68: I.4.2 | C68: 2 | F68: NO | P68: =IFERROR(VLOOKUP($J68,'Emission factors-Main'!$C:$BQ,67,FALSE),"") -> 
B69: I.4.3 | C69: 3 | D69: Emissions from transmission and distribution losses from grid-supplied energy used in power plant auxiliary operations | F69: NO
B70: I.4.3 | C70: 3 | F70: NO | P70: =IFERROR(VLOOKUP($J70,'Emission factors-Main'!$C:$BQ,67,FALSE),"") -> 
B71: I.4.4 | C71: 1 | D71: Emissions from energy generation supplied to the grid | F71: NO
B72: I.4.4 | C72: 1 | F72: NO | P72: =IFERROR(VLOOKUP($J72,'Emission factors-Main'!$C:$BQ,67,FALSE),"") -> 
B74: I.5 AGRICULTURE, FORESTRY AND FISHING ACTIVITIES
B76: GPC ref No. | C76: Scope | D76: GHG Emissions Source | F76: Notation keys | G76: Activity data | I76: Gas(es) | J76: Emission factor | K76: Emission factor (metric tonnes) | R76: GHGs (metric tonnes CO2e) | W76: GHGs (metric tonnes) | AB76: Data Quality | AD76: Description of methods used | AE76: Source | AF76: Data quality explanation (optional)
D77: Activity | E77: Description | G77: Amount | H77: Units | K77: Units | L77: CO2 | M77: CH4 | N77: N2O | O77: Total tCO2e | P77: CO2(b) | R77: CO2 | S77: CH4 | T77: N2O | U77: Total tCO2e | V77: CO2(b) | W77: CO2 | X77: CH4 | Y77: N2O | Z77: Total tCO2e | AA77: CO2(b) | AB77: AD | AC77: EF
B78: I.5.1 | C78: 1 | D78: Emissions from fuel combustion within the city boundary | F78: IE
B79: I.5.1 | C79: 1 | F79: IE | P79: =IFERROR(VLOOKUP($J79,'Emission factors-Main'!$C:$BQ,67,FALSE),"") -> 
B80: I.5.2 | C80: 2 | D80: Emissions from grid-supplied energy consumed within the city boundary | F80: IE
B81: I.5.2 | C81: 2 | F81: IE | P81: =IFERROR(VLOOKUP($J81,'Emission factors-Main'!$C:$BQ,67,FALSE),"") -> 
B82: I.5.3 | C82: 3 | D82: Transmission and distribution losses from grid-supplied energy consumption | F82: IE
B83: I.5.3 | C83: 3 | F83: IE | P83: =IFERROR(VLOOKUP($J83,'Emission factors-Main'!$C:$BQ,67,FALSE),"") -> 
B85: I.6 NON-SPECIFIED SOURCES
B87: GPC ref No. | C87: Scope | D87: GHG Emissions Source | F87: Notation keys | G87: Activity data | I87: Gas(es) | J87: Emission factor | K87: Emission factor (metric tonnes) | R87: GHGs (metric tonnes CO2e) | W87: GHGs (metric tonnes) | AB87: Data Quality | AD87: Description of methods used | AE87: Source | AF87: Data quality explanation (optional)
D88: Activity | E88: Description | G88: Amount | H88: Units | K88: Units | L88: CO2 | M88: CH4 | N88: N2O | O88: Total tCO2e | P88: CO2(b) | R88: CO2 | S88: CH4 | T88: N2O | U88: Total tCO2e | V88: CO2(b) | W88: CO2 | X88: CH4 | Y88: N2O | Z88: Total tCO2e | AA88: CO2(b) | AB88: AD | AC88: EF
B89: I.6.1 | C89: 1 | D89: Emissions from fuel combustion within the city boundary | F89: NO
B90: I.6.1 | C90: 1 | F90: NO | P90: =IFERROR(VLOOKUP($J90,'Emission factors-Main'!$C:$BQ,67,FALSE),"") ->  | W90: =IFERROR(IF(AND($J90="",$Q90=""),"",IF($J90="",IF(R90=0,"",R90),IF(L90=0,"0",$G90*IF(#REF!="",1,#REF!)*L90))),"CHECK") ->  | X90: =IFERROR(IF(AND($J90="",$Q90=""),"",IF($J90="",IF(S90=0,"",S90),IF(M90=0,"0",$G90*IF(#REF!="",1,#REF!)*M90))),"CHECK") ->  | Y90: =IFERROR(IF(AND($J90="",$Q90=""),"",IF($J90="",IF(T90=0,"",T90),IF(N90=0,"0",$G90*IF(#REF!="",1,#REF!)*N90))),"CHECK") ->  | AA90: =IFERROR(IF(AND($J90="",$Q90=""),"",IF($J90="",IF(V90=0,"",V90),IF(P90=0,"0",$G90*IF(#REF!="",1,#REF!)*P90))),"CHECK") -> 
B91: I.6.2 | C91: 2 | D91: Emissions from grid-supplied energy consumed within the city boundary | F91: NO
B92: I.6.2 | C92: 2 | D92: Electricity | E92: Water & wastewater treatment related electricity | F92: NO | AK92: 1639.499318
B93: I.6.3 | C93: 3 | D93: Emissions from transmission and distribution losses from grid-supplied energy consumption | F93: NO
B94: I.6.3 | C94: 3 | D94: Electricity | F94: NO | AK94: 150.3420874
B96: I.7 FUGITIVE EMISSIONS FROM MINING, PROCESSING, STORAGE AND TRANSPORTATION OF COAL
B98: GPC ref No. | C98: Scope | D98: GHG Emissions Source | F98: Notation keys | G98: Activity data | I98: Gas(es) | J98: Emission factor | K98: Emission factor (metric tonnes) | R98: GHGs (metric tonnes CO2e) | W98: GHGs (metric tonnes) | AB98: Data Quality | AD98: Description of methods used | AE98: Source | AF98: Data quality explanation (optional)
D99: Activity | E99: Description | G99: Amount | H99: Units | K99: Units | L99: CO2 | M99: CH4 | N99: N2O | O99: Total tCO2e | P99: CO2(b) | R99: CO2 | S99: CH4 | T99: N2O | U99: Total tCO2e | V99: CO2(b) | W99: CO2 | X99: CH4 | Y99: N2O | Z99: Total tCO2e | AA99: CO2(b) | AB99: AD | AC99: EF
B100: I.7.1 | C100: 1 | D100: Emissions from fugitive emissions within the city boundary | F100: NO
B101: I.7.1 | C101: 1 | F101: NO | P101: =IFERROR(VLOOKUP($J101,'Emission factors-Main'!$C:$BQ,67,FALSE),"") ->  | W101: =IFERROR(IF(AND($J101="",$Q101=""),"",IF($J101="",IF(R101=0,"",R101),IF(L101=0,"0",$G101*IF(#REF!="",1,#REF!)*L101))),"CHECK") ->  | X101: =IFERROR(IF(AND($J101="",$Q101=""),"",IF($J101="",IF(S101=0,"",S101),IF(M101=0,"0",$G101*IF(#REF!="",1,#REF!)*M101))),"CHECK") ->  | Y101: =IFERROR(IF(AND($J101="",$Q101=""),"",IF($J101="",IF(T101=0,"",T101),IF(N101=0,"0",$G101*IF(#REF!="",1,#REF!)*N101))),"CHECK") ->  | AA101: =IFERROR(IF(AND($J101="",$Q101=""),"",IF($J101="",IF(V101=0,"",V101),IF(P101=0,"0",$G101*IF(#REF!="",1,#REF!)*P101))),"CHECK") -> 
B103: I.8 FUGITIVE EMISSIONS FROM OIL AND NATURAL GAS SYSTEMS
B105: GPC ref No. | C105: Scope | D105: GHG Emissions Source | F105: Notation keys | G105: Activity data | I105: Gas(es) | J105: Emission factor | K105: Emission factor (metric tonnes) | R105: GHGs (metric tonnes CO2e) | W105: GHGs (metric tonnes) | AB105: Data Quality | AD105: Description of methods used | AE105: Source | AF105: Data quality explanation (optional)
D106: Activity | E106: Description | G106: Amount | H106: Units | K106: Units | L106: CO2 | M106: CH4 | N106: N2O | O106: Total tCO2e | P106: CO2(b) | R106: CO2 | S106: CH4 | T106: N2O | U106: Total tCO2e | V106: CO2(b) | W106: CO2 | X106: CH4 | Y106: N2O | Z106: Total tCO2e | AA106: CO2(b) | AB106: AD | AC106: EF
B107: I.8.1 | C107: 1 | D107: Emissions from fugitive emissions within the city boundary
B108: I.8.1 | C108: 1 | D108: Gas (natural gas) | E108: Residential | G108: ='Activity Data-FY 2016'!F110 -> 4781.682204 | H108: therms/year | I108: CH4 | J108: Natural Gas (Fugitive) | K108: t/therm | L108: =VLOOKUP($J108,'Emission factors-Main'!$C$10:$BO$97,8,FALSE) -> 0 | M108: =VLOOKUP($J108,'Emission factors-Main'!$C$10:$BO$97,12,FALSE) -> 0.03969452681 | N108: =VLOOKUP($J108,'Emission factors-Main'!$C$10:$BO$97,15,FALSE) -> 0 | O108: =VLOOKUP($J108,'Emission factors-Main'!$C$10:$BO$97,65,FALSE) -> 0.03969452681 | P108: =IFERROR(VLOOKUP($J108,'Emission factors-Main'!$C:$BQ,67,FALSE),"") ->  | Q108: Total GHGs | W108: =$G108*L108 -> 0 | X108: 189.8066124 | Y108: 0 | Z108: 189.8066124 | AB108: M | AC108: M | AH108: ='Fugitive Natural Gas E Factor'!G12 -> MT CO2e/year | AK108: 4974.708675
B109: I.8.1 | C109: 1 | D109: Gas (natural gas) | E109: Municipal | G109: ='Activity Data-FY 2016'!F111 -> 384.7910869 | H109: therms/year | I109: CH4 | J109: Natural Gas (Fugitive) | K109: t/therm | L109: =VLOOKUP($J109,'Emission factors-Main'!$C$10:$BO$97,8,FALSE) -> 0 | M109: =VLOOKUP($J109,'Emission factors-Main'!$C$10:$BO$97,12,FALSE) -> 0.03969452681 | N109: =VLOOKUP($J109,'Emission factors-Main'!$C$10:$BO$97,15,FALSE) -> 0 | O109: =VLOOKUP($J109,'Emission factors-Main'!$C$10:$BO$97,65,FALSE) -> 0.03969452681 | P109: =IFERROR(VLOOKUP($J109,'Emission factors-Main'!$C:$BQ,67,FALSE),"") ->  | Q109: Total GHGs | W109: 0 | X109: 15.27410012 | Y109: 0 | Z109: 15.27410012 | AB109: M | AC109: M | AH109: ='Fugitive Natural Gas E Factor'!G13 -> 205.0807126 | AK109: 4974.708675
B110: I.8.1 | C110: 1 | D110: Gas (natural gas) | E110: UMass | G110: ='Activity Data-FY 2016'!F112 -> 58736.12694 | H110: therms/year | I110: CH4 | J110: Natural Gas (Fugitive) | K110: t/therm | L110: =VLOOKUP($J110,'Emission factors-Main'!$C$10:$BO$97,8,FALSE) -> 0 | M110: =VLOOKUP($J110,'Emission factors-Main'!$C$10:$BO$97,12,FALSE) -> 0.03969452681 | N110: =VLOOKUP($J110,'Emission factors-Main'!$C$10:$BO$97,15,FALSE) -> 0 | O110: =VLOOKUP($J110,'Emission factors-Main'!$C$10:$BO$97,65,FALSE) -> 0.03969452681 | P110: =IFERROR(VLOOKUP($J110,'Emission factors-Main'!$C:$BQ,67,FALSE),"") ->  | Q110: Total GHGs | W110: =$G110*L110 -> 0 | X110: =$G110*M110 -> 2331.502766 | Y110: =$G110*N110 -> 0 | Z110: =$G110*O110 -> 2331.502766 | AB110: M | AC110: M
B111: I.8.1 | C111: 1 | D111: Gas (natural gas) | E111: Amherst College | G111: ='Activity Data-FY 2016'!F113 -> 8894.801114 | H111: therms/year | I111: CH4 | J111: Natural Gas (Fugitive) | K111: t/therm | L111: =VLOOKUP($J111,'Emission factors-Main'!$C$10:$BO$97,8,FALSE) -> 0 | M111: =VLOOKUP($J111,'Emission factors-Main'!$C$10:$BO$97,12,FALSE) -> 0.03969452681 | N111: =VLOOKUP($J111,'Emission factors-Main'!$C$10:$BO$97,15,FALSE) -> 0 | O111: =VLOOKUP($J111,'Emission factors-Main'!$C$10:$BO$97,65,FALSE) -> 0.03969452681 | P111: =IFERROR(VLOOKUP($J111,'Emission factors-Main'!$C:$BQ,67,FALSE),"") ->  | Q111: Total GHGs | W111: 0 | X111: 353.0749213 | Y111: 0 | Z111: 353.0749213 | AB111: M | AC111: M
B112: I.8.1 | C112: 1 | D112: Gas (natural gas) | E112: Hampshire College | G112: ='Activity Data-FY 2016'!F114 -> 0 | H112: therms/year | I112: CH4 | J112: Natural Gas (Fugitive) | K112: t/therm | L112: =VLOOKUP($J112,'Emission factors-Main'!$C$10:$BO$97,8,FALSE) -> 0 | M112: =VLOOKUP($J112,'Emission factors-Main'!$C$10:$BO$97,12,FALSE) -> 0.03969452681 | N112: =VLOOKUP($J112,'Emission factors-Main'!$C$10:$BO$97,15,FALSE) -> 0 | O112: =VLOOKUP($J112,'Emission factors-Main'!$C$10:$BO$97,65,FALSE) -> 0.03969452681 | P112: =IFERROR(VLOOKUP($J112,'Emission factors-Main'!$C:$BQ,67,FALSE),"") ->  | Q112: Total GHGs | W112: 0 | X112: 0 | Y112: 0 | Z112: 0 | AB112: M | AC112: M
B113: I.8.1 | C113: 1 | D113: Gas (natural gas) | E113: Community | G113: ='Activity Data-FY 2016'!F115 -> 19135.96203 | H113: therms/year | I113: CH4 | J113: Natural Gas (Fugitive) | K113: t/therm | L113: =VLOOKUP($J113,'Emission factors-Main'!$C$10:$BO$97,8,FALSE) -> 0 | M113: =VLOOKUP($J113,'Emission factors-Main'!$C$10:$BO$97,12,FALSE) -> 0.03969452681 | N113: =VLOOKUP($J113,'Emission factors-Main'!$C$10:$BO$97,15,FALSE) -> 0 | O113: =VLOOKUP($J113,'Emission factors-Main'!$C$10:$BO$97,65,FALSE) -> 0.03969452681 | P113: =IFERROR(VLOOKUP($J113,'Emission factors-Main'!$C:$BQ,67,FALSE),"") ->  | Q113: Total GHGs | W113: =$G113*L113 -> 0 | X113: =$G113*M113 -> 759.592958 | Y113: =$G113*N113 -> 0 | Z113: =$G113*O113 -> 759.592958 | AB113: M | AC113: M

Sheet II - Transport-FY 2016
B2: II Transportation - FY 2016 | K2:  | R2:  | AF2: 
K4: View emission factor(s) | R4: Enter emissions data | AF4: Data quality explanation (optional)
B6: II.1 ON-ROAD TRANSPORTATION
B8: GPC ref No. | C8: Scope | D8: GHG Emissions Source | G8: Notation keys | H8: Activity data | J8: Gas(es) | K8: Emission factor | L8: Emission factor | R8: Emissions data | S8: GHGs (metric tonnes CO2e) | X8: GHGs (metric tonnes CO2e) | AC8: Data Quality | AE8: Description of method(s) used or explanation for using notation key(s) | AF8: Source | AG8: Data quality explanation (optional)
D9: Method | E9: Activity | F9: Description | H9: Amount | I9: Units | L9: Units | M9: CO2 | N9: CH4 | O9: N2O | P9: Total tCO2e | Q9: CO2(b) | S9: CO2 | T9: CH4 | U9: N2O | V9: Total tCO2e | W9: CO2(b) | X9: CO2 | Y9: CH4 | Z9: N2O | AA9: Total tCO2e | AB9: CO2(b) | AC9: AD | AD9: EF
B10: II.1.1 | C10: 1 | D10: Emissions from fuel combustion on-road transportation occurring in the city | AI10: BAU New | AJ10: BAU Orig | AK10: ABAU New | AL10: ABAU Orig
B11: II.1.1 | C11: 1 | D11: City-induced activity | E11: Vehicle Miles Traveled (VMT) | F11: Passenger cars | H11: =INDEX('Activity Data-FY 2016'!$G$123:$G$140,MATCH(E11&F11,'Activity Data-FY 2016'!$E$123:$E$140&'Activity Data-FY 2016'!$F$123:$F$139,0),1) -> 107491074.9 | I11: VMT/year | J11: CO2, CH4, N2O | K11: Passenger Vehicles (2016) | L11: t/mile | M11: =VLOOKUP($K11,'Emission factors-Main'!$C$10:$BO$97,8,FALSE) -> 0.0003226661214 | N11: =VLOOKUP($K11,'Emission factors-Main'!$C$10:$BO$97,12,FALSE) -> 0 | O11: =VLOOKUP($K11,'Emission factors-Main'!$C$10:$BO$97,15,FALSE) -> 0 | P11: =VLOOKUP($K11,'Emission factors-Main'!$C$10:$BO$97,65,FALSE) -> 0.0003226661214 | R11: Total GHGs | X11: =$H11*M11 -> 34683.72821 | Y11: =$H11*N11 -> 0 | Z11: 0 | AA11: 34683.72821 | AC11: L | AD11: L | AI11: =AA11 -> 34683.72821 | AJ11: 184110.6358 | AL11: 184110.6358
B12: II.1.1 | C12: 1 | D12: City-induced activity | E12: Vehicle Miles Traveled (VMT) | F12: Light trucks | H12: =INDEX('Activity Data-FY 2016'!$G$123:$G$140,MATCH(E12&F12,'Activity Data-FY 2016'!$E$123:$E$140&'Activity Data-FY 2016'!$F$123:$F$139,0),1) -> 35102515.22 | I12: VMT/year | J12: CO2, CH4, N2O | K12: Light Trucks (2016) | L12: t/mile | M12: =VLOOKUP($K12,'Emission factors-Main'!$C$10:$BO$97,8,FALSE) -> 0.0004542392928 | N12: =VLOOKUP($K12,'Emission factors-Main'!$C$10:$BO$97,12,FALSE) -> 0 | O12: =VLOOKUP($K12,'Emission factors-Main'!$C$10:$BO$97,15,FALSE) -> 0 | P12: =VLOOKUP($K12,'Emission factors-Main'!$C$10:$BO$97,65,FALSE) -> 0.0004542392928 | R12: Total GHGs | X12: =$H12*M12 -> 15944.94169 | Y12: =$H12*N12 -> 0 | Z12: =$H12*O12 -> 0 | AA12: =$H12*P12 -> 15944.94169 | AC12: L | AD12: L
B13: II.1.1 | C13: 1 | D13: City-induced activity | E13: Vehicle Miles Traveled (VMT) | F13: Motorcycles | H13: =INDEX('Activity Data-FY 2016'!$G$123:$G$140,MATCH(E13&F13,'Activity Data-FY 2016'!$E$123:$E$140&'Activity Data-FY 2016'!$F$123:$F$139,0),1) -> 2673370.364 | I13: VMT/year | J13: CO2, CH4, N2O | K13: Heavy Trucks (2016) | L13: t/mile | M13: =VLOOKUP($K13,'Emission factors-Main'!$C$10:$BO$97,8,FALSE) -> 0.001527965754 | N13: =VLOOKUP($K13,'Emission factors-Main'!$C$10:$BO$97,12,FALSE) -> 0 | O13: =VLOOKUP($K13,'Emission factors-Main'!$C$10:$BO$97,15,FALSE) -> 0 | P13: =VLOOKUP($K13,'Emission factors-Main'!$C$10:$BO$97,65,FALSE) -> 0.001527965754 | R13: Total GHGs | X13: 4084.818365 | Y13: 0 | Z13: 0 | AA13: 4084.818365 | AC13: L | AD13: L
B14: II.1.1 | C14: 1 | D14: City-induced activity | E14: Vehicle Miles Traveled (VMT) | F14: Heavy Trucks | H14: =INDEX('Activity Data-FY 2016'!$G$123:$G$140,MATCH(E14&F14,'Activity Data-FY 2016'!$E$123:$E$140&'Activity Data-FY 2016'!$F$123:$F$139,0),1) -> 1519337.816 | I14: VMT/year | J14: CO2, CH4, N2O | K14: Motorcycles (2016) | L14: t/mile | M14: =VLOOKUP($K14,'Emission factors-Main'!$C$10:$BO$97,8,FALSE) -> 0.0001713342258 | N14: =VLOOKUP($K14,'Emission factors-Main'!$C$10:$BO$97,12,FALSE) -> 0 | O14: =VLOOKUP($K14,'Emission factors-Main'!$C$10:$BO$97,15,FALSE) -> 0 | P14: =VLOOKUP($K14,'Emission factors-Main'!$C$10:$BO$97,65,FALSE) -> 0.0001713342258 | R14: Total GHGs | X14: =$H14*M14 -> 260.3145684 | Y14: 0 | Z14: 0 | AA14: 260.3145684 | AC14: L | AD14: L | AI14: =AA14 -> 260.3145684
B15: II.1.1 | C15: 1 | D15: City-induced activity | E15: Vehicle Miles Traveled (VMT) | F15: Other Vehicles | H15: =INDEX('Activity Data-FY 2016'!$G$123:$G$140,MATCH(E15&F15,'Activity Data-FY 2016'!$E$123:$E$140&'Activity Data-FY 2016'!$F$123:$F$139,0),1) -> 3188118.695 | I15: VMT/year | J15: CO2, CH4, N2O | K15: Other Vehicles (2016) | L15: t/mile | M15: =VLOOKUP($K15,'Emission factors-Main'!$C$10:$BO$97,8,FALSE) -> 0.0006183135131 | N15: =VLOOKUP($K15,'Emission factors-Main'!$C$10:$BO$97,12,FALSE) -> 0 | O15: =VLOOKUP($K15,'Emission factors-Main'!$C$10:$BO$97,15,FALSE) -> 0 | P15: =VLOOKUP($K15,'Emission factors-Main'!$C$10:$BO$97,65,FALSE) -> 0.0006183135131 | R15: Total GHGs | X15: =$H15*M15 -> 1971.256871 | Y15: =$H15*N15 -> 0 | Z15: =$H15*O15 -> 0 | AA15: =$H15*P15 -> 1971.256871 | AC15: L | AD15: L
B16: II.1.1(s) | C16: 1 | D16: Fuel sales approach | E16: B100 | F16: UMass | H16: =INDEX('Activity Data-FY 2016'!$G$123:$G$140,MATCH(E16&F16,'Activity Data-FY 2016'!$E$123:$E$140&'Activity Data-FY 2016'!$F$123:$F$139,0),1) -> 2611 | I16: gallons/year | J16: CO2, CH4, N2O | K16: Biodiesel (100%) | L16: t/gallon | M16: =VLOOKUP($K16,'Emission factors-Main'!$C$10:$BO$97,8,FALSE) -> 0.00945 | N16: =VLOOKUP($K16,'Emission factors-Main'!$C$10:$BO$97,12,FALSE) -> 5.292e-05 | O16: =VLOOKUP($K16,'Emission factors-Main'!$C$10:$BO$97,15,FALSE) -> 0.006761475 | P16: =VLOOKUP($K16,'Emission factors-Main'!$C$10:$BO$97,65,FALSE) -> 0.016264395 | Q16: =VLOOKUP($K16,'Emission factors-Main'!$C$10:$BO$97,9,FALSE) -> 0.00945 | R16: Total GHGs | X16: =$H16*M16 -> 24.67395 | Y16: =$H16*N16 -> 0.13817412 | Z16: =$H16*O16 -> 17.65421123 | AA16: =$H16*P16 -> 42.46633535 | AB16: =$H16*Q16 -> 24.67395 | AC16: H | AD16: M
B17: II.1.1(s) | C17: 1 | D17: Fuel sales approach | E17: Diesel | F17: UMass | H17: =INDEX('Activity Data-FY 2016'!$G$123:$G$140,MATCH(E17&F17,'Activity Data-FY 2016'!$E$123:$E$140&'Activity Data-FY 2016'!$F$123:$F$139,0),1) -> 50558 | I17: gallons/year | J17: CO2, CH4, N2O | K17: Diesel | L17: t/gallon | M17: =VLOOKUP($K17,'Emission factors-Main'!$C$10:$BO$97,8,FALSE) -> 0.01021 | N17: =VLOOKUP($K17,'Emission factors-Main'!$C$10:$BO$97,12,FALSE) -> 5.7176e-05 | O17: =VLOOKUP($K17,'Emission factors-Main'!$C$10:$BO$97,15,FALSE) -> 0.007305255 | P17: =VLOOKUP($K17,'Emission factors-Main'!$C$10:$BO$97,65,FALSE) -> 0.017572431 | R17: Total GHGs | X17: 516.19718 | Y17: 2.890704208 | Z17: 369.3390823 | AA17: =$H17*P17 -> 888.4269665 | AC17: H | AD17: M
B18: II.1.1(s) | C18: 1 | D18: Fuel sales approach | E18: Gasoline | F18: UMass | H18: =INDEX('Activity Data-FY 2016'!$G$123:$G$140,MATCH(E18&F18,'Activity Data-FY 2016'!$E$123:$E$140&'Activity Data-FY 2016'!$F$123:$F$139,0),1) -> 143503 | I18: gallons/year | J18: CO2, CH4, N2O | K18: Gasoline | L18: t/gallon | M18: =VLOOKUP($K18,'Emission factors-Main'!$C$10:$BO$97,8,FALSE) -> 0.00878 | N18: =VLOOKUP($K18,'Emission factors-Main'!$C$10:$BO$97,12,FALSE) -> 1.064e-05 | O18: =VLOOKUP($K18,'Emission factors-Main'!$C$10:$BO$97,15,FALSE) -> 2.12e-05 | P18: =VLOOKUP($K18,'Emission factors-Main'!$C$10:$BO$97,65,FALSE) -> 0.00881184 | R18: Total GHGs | X18: 1259.95634 | Y18: 1.52687192 | Z18: 3.0422636 | AA18: 1264.525476 | AC18: H | AD18: M
B19: II.1.1(s) | C19: 1 | D19: Fuel sales approach | E19: Diesel | F19: Amherst College | H19: =INDEX('Activity Data-FY 2016'!$G$123:$G$140,MATCH(E19&F19,'Activity Data-FY 2016'!$E$123:$E$140&'Activity Data-FY 2016'!$F$123:$F$139,0),1) -> 8088 | I19: gallons/year | J19: CO2, CH4, N2O | K19: Diesel | L19: t/gallon | M19: =VLOOKUP($K19,'Emission factors-Main'!$C$10:$BO$97,8,FALSE) -> 0.01021 | N19: =VLOOKUP($K19,'Emission factors-Main'!$C$10:$BO$97,12,FALSE) -> 5.7176e-05 | O19: =VLOOKUP($K19,'Emission factors-Main'!$C$10:$BO$97,15,FALSE) -> 0.007305255 | P19: =VLOOKUP($K19,'Emission factors-Main'!$C$10:$BO$97,65,FALSE) -> 0.017572431 | R19: Total GHGs | X19: 82.57848 | Y19: 0.462439488 | Z19: 59.08490244 | AA19: 142.1258219 | AC19: H | AD19: M
B20: II.1.1(s) | C20: 1 | D20: Fuel sales approach | E20: Gasoline | F20: Amherst College | H20: =INDEX('Activity Data-FY 2016'!$G$123:$G$140,MATCH(E20&F20,'Activity Data-FY 2016'!$E$123:$E$140&'Activity Data-FY 2016'!$F$123:$F$139,0),1) -> 15614 | I20: gallons/year | J20: CO2, CH4, N2O | K20: Gasoline | L20: t/gallon | M20: =VLOOKUP($K20,'Emission factors-Main'!$C$10:$BO$97,8,FALSE) -> 0.00878 | N20: =VLOOKUP($K20,'Emission factors-Main'!$C$10:$BO$97,12,FALSE) -> 1.064e-05 | O20: =VLOOKUP($K20,'Emission factors-Main'!$C$10:$BO$97,15,FALSE) -> 2.12e-05 | P20: =VLOOKUP($K20,'Emission factors-Main'!$C$10:$BO$97,65,FALSE) -> 0.00881184 | R20: Total GHGs | X20: 137.09092 | Y20: 0.16613296 | Z20: 0.3310168 | AA20: 137.5880698 | AC20: H | AD20: M
B21: II.1.1(s) | C21: 1 | D21: Fuel sales approach | E21: Gasoline | F21: Municipal | H21: 80116 | I21: gallons/year | J21: CO2, CH4, N2O | K21: Gasoline | L21: t/gallon | M21: =VLOOKUP($K21,'Emission factors-Main'!$C$10:$BO$97,8,FALSE) -> 0.00878 | N21: =VLOOKUP($K21,'Emission factors-Main'!$C$10:$BO$97,12,FALSE) -> 1.064e-05 | O21: =VLOOKUP($K21,'Emission factors-Main'!$C$10:$BO$97,15,FALSE) -> 2.12e-05 | P21: =VLOOKUP($K21,'Emission factors-Main'!$C$10:$BO$97,65,FALSE) -> 0.00881184 | R21: Total GHGs | X21: =$H21*M21 -> 703.41848 | Y21: =$H21*N21 -> 0.85243424 | Z21: =$H21*O21 -> 1.6984592 | AA21: =$H21*P21 -> 705.9693734 | AC21: H | AD21: M
B22: II.1.1(s) | C22: 1 | D22: Fuel sales approach | E22: Diesel | F22: Municipal | H22: 74089 | I22: gallons/year | J22: CO2, CH4, N2O | K22: Diesel | L22: t/gallon | M22: =VLOOKUP($K22,'Emission factors-Main'!$C$10:$BO$97,8,FALSE) -> 0.01021 | N22: =VLOOKUP($K22,'Emission factors-Main'!$C$10:$BO$97,12,FALSE) -> 5.7176e-05 | O22: =VLOOKUP($K22,'Emission factors-Main'!$C$10:$BO$97,15,FALSE) -> 0.007305255 | P22: =VLOOKUP($K22,'Emission factors-Main'!$C$10:$BO$97,65,FALSE) -> 0.017572431 | R22: Total GHGs | X22: 756.44869 | Y22: 4.236112664 | Z22: 541.2390377 | AA22: 1301.92384 | AC22: H | AD22: M
B25: II.1.1 | C25: 1 | D25: Fuel sales approach | E25: Diesel | L25: t/gallon | R25: Total GHGs | X25: 0 | Y25: 0 | Z25: 0 | AA25: 0 | AC25: M | AD25: L
B26: II.1.1 | C26: 1 | D26: City-induced activity | E26: Diesel | F26: City Buses | H26: ='Activity Data-FY 2016'!G136 -> 145620.6387 | I26: gallons/year | J26: CO2, CH4, N2O | K26: Diesel | L26: t/gallon | M26: =VLOOKUP($K26,'Emission factors-Main'!$C$10:$BO$97,8,FALSE) -> 0.01021 | N26: =VLOOKUP($K26,'Emission factors-Main'!$C$10:$BO$97,12,FALSE) -> 5.7176e-05 | O26: =VLOOKUP($K26,'Emission factors-Main'!$C$10:$BO$97,15,FALSE) -> 0.007305255 | P26: =VLOOKUP($K26,'Emission factors-Main'!$C$10:$BO$97,65,FALSE) -> 0.017572431 | R26: Total GHGs | X26: 1486.786721 | Y26: 8.326005636 | Z26: 1063.795899 | AA26: 2558.908625 | AC26: M | AD26: H | AI26: =AA26 -> 2558.908625 | AJ26: 3558.859798 | AL26: 3558.859798
B27: II.1.2 | C27: 2 | D27: Emissions from grid-supplied energy consumed in the city for on-road transportation | G27: IE
B28: II.1.2 | C28: 2 | E28: Electricity | G28: IE | I28: MWh/year | J28: CO2 | K28: Electricity (2016) | L28: t/MWh | M28: =VLOOKUP($K28,'Emission factors-Main'!$C$10:$BO$97,8,FALSE) -> 0.2589556728 | N28: =VLOOKUP($K28,'Emission factors-Main'!$C$10:$BO$97,12,FALSE) -> 0.001219255296 | O28: =VLOOKUP($K28,'Emission factors-Main'!$C$10:$BO$97,15,FALSE) -> 0.001538584064 | P28: =VLOOKUP($K28,'Emission factors-Main'!$C$10:$BO$97,65,FALSE) -> 0.2617135122 | R28: Total GHGs | X28: =$H28*M28 -> 0 | Y28: =$H28*N28 -> 0 | Z28: =$H28*O28 -> 0 | AA28: =$H28*P28 -> 0
B29: II.1.3 | C29: 3 | D29: Emissions from transboundary journeys occurring outside the city, and T&D losses from grid-supplied energy consumption | G29: IE
B30: II.1.3 | C30: 3 | E30: T&D losses from grid-supplied energy consumption | G30: IE | I30: MWh/year | J30: CO2 | K30: Electricity (2016) | L30: t/MWh | M30: =VLOOKUP($K30,'Emission factors-Main'!$C$10:$BO$97,8,FALSE) -> 0.2589556728 | N30: =VLOOKUP($K30,'Emission factors-Main'!$C$10:$BO$97,12,FALSE) -> 0.001219255296 | O30: =VLOOKUP($K30,'Emission factors-Main'!$C$10:$BO$97,15,FALSE) -> 0.001538584064 | P30: =VLOOKUP($K30,'Emission factors-Main'!$C$10:$BO$97,65,FALSE) -> 0.2617135122 | R30: Total GHGs | X30: =$H30*M30 -> 0 | Y30: =$H30*N30 -> 0 | Z30: =$H30*O30 -> 0 | AA30: =$H30*P30 -> 0
B32: II.2 RAILWAYS
B34: GPC ref No. | C34: Scope | D34: GHG Emissions Source | G34: Notation keys | H34: Activity data | J34: Gas(es) | K34: Emission factor | L34: Emission factor | S34: GHGs (metric tonnes CO2e) | X34: GHGs (metric tonnes CO2e) | AC34: Data Quality | AE34: Description of methods used | AF34: Source | AG34: Data quality explanation (optional)
D35: Method | E35: Activity | F35: Description | H35: Amount | I35: Units | L35: Units | M35: CO2 | N35: CH4 | O35: N2O | P35: Total tCO2e | Q35: CO2(b) | S35: CO2 | T35: CH4 | U35: N2O | V35: Total tCO2e | W35: CO2(b) | X35: CO2 | Y35: CH4 | Z35: N2O | AA35: Total tCO2e | AB35: CO2(b) | AC35: AD | AD35: EF
B36: II.2.1 | C36: 1 | D36: Emissions from fuel combustion for railway transportation occuring in the city | G36: NO
B37: II.2.1 | C37: 1 | G37: NO
B38: II.2.2 | C38: 2 | D38: Emissions from grid-supplied energy consumed in the city for railways | G38: NO
B39: II.2.2 | C39: 2 | D39: Geographic / Territorial | E39: Electricity | G39: NO | H39: ='Activity Data-FY 2016'!G149 -> 0 | I39: MWh/year | J39: CO2, CH4, N2O | K39: Electricity (2016) | L39: t/MWh | M39: =VLOOKUP($K39,'Emission factors-Main'!$C$10:$BO$97,8,FALSE) -> 0.2589556728 | N39: =VLOOKUP($K39,'Emission factors-Main'!$C$10:$BO$97,12,FALSE) -> 0.001219255296 | O39: =VLOOKUP($K39,'Emission factors-Main'!$C$10:$BO$97,15,FALSE) -> 0.001538584064 | P39: =VLOOKUP($K39,'Emission factors-Main'!$C$10:$BO$97,65,FALSE) -> 0.2617135122 | R39: Total GHGs | X39: =$H39*M39 -> 0 | Y39: =$H39*N39 -> 0 | Z39: =$H39*O39 -> 0 | AA39: =$H39*P39 -> 0 | AC39: L | AD39: H | AI39: =AA39 -> 0 | AJ39: 283.3789375 | AL39: 220.2411281
B40: II.2.3 | C40: 3 | D40: Emissions from transboundary journeys occurring outside the city, and T&D losses from grid-supplied energy consumption | G40: NO
B41: II.2.3 | C41: 3 | D41: Geographic / Territorial | E41: Electricity | H41: ='Activity Data-FY 2016'!G151 -> 0 | I41: MWh/year | J41: CO2, CH4, N2O | K41: Electricity (2016) | L41: t/MWh | M41: =VLOOKUP($K41,'Emission factors-Main'!$C$10:$BO$97,8,FALSE) -> 0.2589556728 | N41: =VLOOKUP($K41,'Emission factors-Main'!$C$10:$BO$97,12,FALSE) -> 0.001219255296 | O41: =VLOOKUP($K41,'Emission factors-Main'!$C$10:$BO$97,15,FALSE) -> 0.001538584064 | P41: =VLOOKUP($K41,'Emission factors-Main'!$C$10:$BO$97,65,FALSE) -> 0.2617135122 | R41: Total GHGs | X41: =$H41*M41 -> 0 | Y41: =$H41*N41 -> 0 | Z41: =$H41*O41 -> 0 | AA41: =$H41*P41 -> 0 | AC41: L | AD41: H | AI41: =AA41 -> 0 | AJ41: 25.98584856 | AL41: 20.19611145
B43: II.3 WATERBORNE NAVIGATION
B45: GPC ref No. | C45: Scope | D45: GHG Emissions Source | G45: Notation keys | H45: Activity data | J45: Gas(es) | K45: Emission factor | L45: Emission factor | S45: GHGs (metric tonnes CO2e) | X45: GHGs (metric tonnes CO2e) | AC45: Data Quality | AE45: Description of methods used | AF45: Source | AG45: Data quality explanation (optional)
D46: Method | E46: Activity | F46: Description | H46: Amount | I46: Units | L46: Units | M46: CO2 | N46: CH4 | O46: N2O | P46: Total tCO2e | Q46: CO2(b) | S46: CO2 | T46: CH4 | U46: N2O | V46: Total tCO2e | W46: CO2(b) | X46: CO2 | Y46: CH4 | Z46: N2O | AA46: Total tCO2e | AB46: CO2(b) | AC46: AD | AD46: EF
B47: II.3.1 | C47: 1 | D47: Emissions from fuel combustion for waterborne navigation occurring in the city | G47: NO
B48: II.3.1 | C48: 1 | G48: NO
B49: II.3.2 | C49: 2 | D49: Emissions from grid-supplied energy consumed in the city for waterborne navigation | G49: NO
B50: II.3.2 | C50: 2 | G50: NO
B51: II.3.3 | C51: 3 | D51: Emissions from transboundary journeys occurring outside the city, and T&D losses from grid-supplied energy consumption | G51: NO
B52: II.3.3 | C52: 3 | G52: NO
B54: II.4 AVIATION
B56: GPC ref No. | C56: Scope | D56: GHG Emissions Source | G56: Notation keys | H56: Activity data | J56: Gas(es) | K56: Emission factor | L56: Emission factor | S56: GHGs (metric tonnes CO2e) | X56: GHGs (metric tonnes CO2e) | AC56: Data Quality | AE56: Description of methods used | AF56: Source | AG56: Data quality explanation (optional)
D57: Method | E57: Activity | F57: Description | H57: Amount | I57: Units | L57: Units | M57: CO2 | N57: CH4 | O57: N2O | P57: Total tCO2e | Q57: CO2(b) | S57: CO2 | T57: CH4 | U57: N2O | V57: Total tCO2e | W57: CO2(b) | X57: CO2 | Y57: CH4 | Z57: N2O | AA57: Total tCO2e | AB57: CO2(b) | AC57: AD | AD57: EF
B58: II.4.1 | C58: 1 | D58: Emissions from fuel combustion for aviation occurring in the city | G58: NO
B59: II.4.1 | C59: 1 | G59: NO
B60: II.4.2 | C60: 2 | D60: Emissions from grid-supplied energy consumed in the city for aviation | G60: NO
B61: II.4.2 | C61: 2 | G61: NO
B62: II.4.3 | C62: 3 | D62: Emissions from transboundary journeys occurring outside the city, and T&D losses from grid-supplied energy consumption | G62: NO
B63: II.4.3 | C63: 3 | G63: NO
B65: II.5 OFF-ROAD TRANSPORTATION
B67: GPC ref No. | C67: Scope | D67: GHG Emissions Source | G67: Notation keys | H67: Activity data | J67: Gas(es) | K67: Emission factor | L67: Emission factor | S67: GHGs (metric tonnes CO2e) | X67: GHGs (metric tonnes CO2e) | AC67: Data Quality | AE67: Description of methods used | AF67: Source | AG67: Data quality explanation (optional)
D68: Method | E68: Activity | F68: Description | H68: Amount | I68: Units | L68: Units | M68: CO2 | N68: CH4 | O68: N2O | P68: Total tCO2e | Q68: CO2(b) | S68: CO2 | T68: CH4 | U68: N2O | V68: Total tCO2e | W68: CO2(b) | X68: CO2 | Y68: CH4 | Z68: N2O | AA68: Total tCO2e | AB68: CO2(b) | AC68: AD | AD68: EF
B69: II.5.1 | C69: 1 | D69: Emissions from fuel combustion for off-road transportation occurring in the city
B70: II.5.1 | C70: 1 | D70: Geographic / Territorial | E70: Emissions from Sector Specific Model | F70: Construction | H70: No Activity Data | J70: CO2, CH4 | K70: No Emission Factor | R70: Total GHGs | X70: ='Off-Road Emissions - Town'!E6 -> 2305.79128 | Y70: ='Off-Road Emissions - Town'!F6 -> 0.1011133847 | AA70: =X70+Y70*'Global Warming Potentials'!$E$7 -> 2308.622455 | AC70: L | AD70: L | AE70: Emissions modeled using US EPA. No emission factor or activity data available.
B71: II.5.1 | C71: 1 | D71: Geographic / Territorial | E71: Emissions from Sector Specific Model | F71: Industrial | H71: No Activity Data | J71: CO2, CH4 | K71: No Emission Factor | R71: Total GHGs | X71: ='Off-Road Emissions - Town'!E7 -> 1555.714725 | Y71: ='Off-Road Emissions - Town'!F7 -> 0.370458871 | AA71: =X71+Y71*'Global Warming Potentials'!$E$7 -> 1566.087573 | AC71: L | AD71: L | AE71: Emissions modeled using US EPA. No emission factor or activity data available.
B72: II.5.1 | C72: 1 | D72: Geographic / Territorial | E72: Emissions from Sector Specific Model | F72: Lawn & Garden | H72: No Activity Data | J72: CO2, CH4 | K72: No Emission Factor | R72: Total GHGs | X72: ='Off-Road Emissions - Town'!E8 -> 1699.792312 | Y72: ='Off-Road Emissions - Town'!F8 -> 1.458048098 | AA72: =X72+Y72*'Global Warming Potentials'!$E$7 -> 1740.617658 | AC72: L | AD72: L | AE72: Emissions modeled using US EPA. No emission factor or activity data available.
B73: II.5.1 | C73: 1 | D73: Geographic / Territorial | E73: Emissions from Sector Specific Model | F73: Agriculture | H73: No Activity Data | J73: CO2, CH4 | K73: No Emission Factor | R73: Total GHGs | X73: ='Off-Road Emissions - Town'!E9 -> 112.9277785 | Y73: ='Off-Road Emissions - Town'!F9 -> 0.004576171782 | AA73: =X73+Y73*'Global Warming Potentials'!$E$7 -> 113.0559113 | AC73: L | AD73: L | AE73: Emissions modeled using US EPA. No emission factor or activity data available.
B74: II.5.1 | C74: 1 | D74: Geographic / Territorial | E74: Emissions from Sector Specific Model | F74: Commercial | H74: No Activity Data | J74: CO2, CH4 | K74: No Emission Factor | R74: Total GHGs | X74: ='Off-Road Emissions - Town'!E10 -> 1641.625513 | Y74: ='Off-Road Emissions - Town'!F10 -> 1.174591564 | AA74: =X74+Y74*'Global Warming Potentials'!$E$7 -> 1674.514077 | AC74: L | AD74: L | AE74: Emissions modeled using US EPA. No emission factor or activity data available.
B75: II.5.1 | C75: 1 | D75: Fuel sales approach | E75: Liquefied petroleum gases (LPG) | F75: Municipal | H75: ='Activity Data-FY 2016'!G185 -> 1602 | I75: gallons/year | J75: CO2, CH4, N2O | K75: Propane | L75: t/gallon | M75: =VLOOKUP($K75,'Emission factors-Main'!$C$10:$BO$97,8,FALSE) -> 0.00572117 | N75: =VLOOKUP($K75,'Emission factors-Main'!$C$10:$BO$97,12,FALSE) -> 7.56e-06 | O75: =VLOOKUP($K75,'Emission factors-Main'!$C$10:$BO$97,15,FALSE) -> 1.325e-05 | P75: =VLOOKUP($K75,'Emission factors-Main'!$C$10:$BO$97,65,FALSE) -> 0.00574198 | R75: Total GHGs | X75: =$H75*M75 -> 9.16531434 | Y75: =$H75*N75 -> 0.01211112 | Z75: =$H75*O75 -> 0.0212265 | AA75: =$H75*P75 -> 9.19865196 | AC75: H | AD75: H
B76: II.5.2 | C76: 2 | D76: Emissions from grid-supplied energy consumed in the city for off-road transportation | G76: NO
B77: II.5.2 | C77: 2 | G77: NO
B78: II.5.3 | C78: 3 | D78: Emissions from transboundary journeys occurring outside the city, and T&D losses from grid-supplied energy consumption | G78: NO
B79: II.5.3 | C79: 3 | G79: NO
B81: II. MACRO

Sheet III - Waste-FY 2016
B2: III Waste - FY 2016 | N2:  | U2:  | AI2: 
N4: View emission factor(s) | U4: Enter emissions data | AI4: Data quality explanation (optional)
B6: III.1 SOLID WASTE DISPOSAL
